Workbook

Sheet Print
A2: Cost of Service Model Printing
A4: This worksheet has the Page Setup properties used by the print macros which are triggered by the buttons on the other worksheets.
A5: For example, when Rate Base button is hit, macro will print RB1 and RB2 below.
A6: There are 5 print buttons on Detail tab, 1 on Summary tab, 1 on Factors tab.
B9: RATE BASE | G9: REVENUE REQUIREMENTS | M9: SUMMARY PAGES
C11: Total $ By Schedule | D11: Classification %'s | E11: Classif. $'s/Commodity $ | F11: Demand $/Customer $ | G11: Total $ By Schedule | H11: Classification %'s | I11: Classif. $'s/Commodity $ | J11: Demand $/Customer $ | K11: Labor $ and Classif. %'s | L11: Labor $ by Schedule | M11: General Summary | N11: Allocation Factors
C12: GoTo | D12: GoTo | E12: GoTo | F12: GoTo | G12: GoTo | H12: GoTo | I12: GoTo | J12: GoTo | K12: GoTo | L12: GoTo | M12: GoTo | N12: GoTo
A14: Scenario Title | B14: Base Case
C15: RB1 | D15: RB2 | E15: RB3 | F15: RB4 | G15: RR1 | H15: RR2 | I15: RR3 | J15: RR4 | K15: RR5 | L15: RR6 | M15: SUM1 | N15: SUM2
C16: 1 print button | E16: 1 print button | G16: 1 print button | I16: 1 print button | K16: 1 print button | M16: 1 print button | N16: 1 print button
A18: Print Area | B18: 0 | C18: $E$7:$P$148 | D18: $Q$7:$AH$148 | E18: $AK$7:$AY$148 | F18: $BA$7:$BO$148 | G18: $E$165:$P$433 | H18: $Q$165:$AH$433 | I18: $AK$165:$AY$433 | J18: $BA$165:$BO$433 | K18: $BQ$165:$CK$333 | L18: $CK$165:$CR$333 | M18: $A$5:$K$52,$A$105:$K$179,$A$183:$K$257 | N18: $A$4:$Q$51,$A$67:$J$107
A19: Print Title Rows | B19: 1 | C19: $1:$6 | D19: =C19 -> $1:$6 | E19: =C19 -> $1:$6 | F19: =C19 -> $1:$6 | G19: $159:$164 | H19: =G19 -> $159:$164 | I19: =G19 -> $159:$164 | J19: =G19 -> $159:$164 | K19: =H19 -> $159:$164 | L19: =I19 -> $159:$164 | M19: $1:$4 | N19: $1:$3
A20: Print Title Columns | B20: 2 | C20: $A:$D | D20: =$C20 -> $A:$D | E20: =$C20 -> $A:$D | F20: =$C20 -> $A:$D | G20: $A:$D | H20: =$G20 -> $A:$D | I20: =$G20 -> $A:$D | J20: =$G20 -> $A:$D | L20: $BQ:$BR
A21: Fit Pgs Wide | B21: 3 | C21: 1 | D21: =C21 -> 1 | E21: =C21 -> 1 | F21: =C21 -> 1 | G21: 1 | H21: =G21 -> 1 | I21: =G21 -> 1 | J21: =G21 -> 1 | K21: =H21 -> 1 | L21: =I21 -> 1 | M21: =J21 -> 1 | N21: =K21 -> 1
A22: Fit Pgs Tall | B22: 4 | C22: 2 | D22: =C22 -> 2 | E22: =C22 -> 2 | F22: =C22 -> 2 | G22: 4 | H22: =G22 -> 4 | I22: =G22 -> 4 | J22: =G22 -> 4 | K22: 3 | L22: 3 | M22: 1 | N22: 1
A23: Zoom | B23: 5 | C23: FALSE | D23: =C23 -> FALSE | E23: =C23 -> FALSE | F23: =C23 -> FALSE | G23: FALSE | H23: =G23 -> FALSE | I23: =G23 -> FALSE | J23: =G23 -> FALSE | K23: =H23 -> FALSE | L23: =I23 -> FALSE | M23: =J23 -> FALSE | N23: =K23 -> FALSE
A24: Orientation | B24: 6 | C24: Landscape | D24: =C24 -> Landscape | E24: =C24 -> Landscape | F24: =C24 -> Landscape | G24: Landscape | H24: =G24 -> Landscape | I24: =G24 -> Landscape | J24: =G24 -> Landscape | K24: =H24 -> Landscape | L24: =I24 -> Landscape | M24: Portrait | N24: Landscape
A25: Left Header | B25: 7 | C25: ="AVISTA UTILITIES -- "&Scen&CHAR(10)&"Pro-Forma Rate Base Dollars" -> AVISTA UTILITIES -- Base Case Pro-Forma Rate Base Dollars | D25: ="AVISTA UTILITIES -- "&Scen&CHAR(10)&"Rate Base Classification %'s" -> AVISTA UTILITIES -- Base Case Rate Base Classification %'s | E25: ="AVISTA UTILITIES -- "&Scen&CHAR(10)&"Classification Dollars" -> AVISTA UTILITIES -- Base Case Classification Dollars | F25: =E25 -> AVISTA UTILITIES -- Base Case Classification Dollars | G25: ="AVISTA UTILITIES -- "&Scen&CHAR(10)&"Pro-Forma Revenue Requirement Dollars" -> AVISTA UTILITIES -- Base Case Pro-Forma Revenue Requirement Dollars | H25: ="AVISTA UTILITIES -- "&Scen&CHAR(10)&"Revenue Requirement Classification %'s" -> AVISTA UTILITIES -- Base Case Revenue Requirement Classification %'s | I25: ="AVISTA UTILITIES -- "&Scen&CHAR(10)&"Classification Dollars" -> AVISTA UTILITIES -- Base Case Classification Dollars | J25: =I25 -> AVISTA UTILITIES -- Base Case Classification Dollars | K25: ="AVISTA UTILITIES -- "&Scen&CHAR(10)&"Pro-Forma Labor Expense" -> AVISTA UTILITIES -- Base Case Pro-Forma Labor Expense | L25: ="AVISTA UTILITIES -- "&Scen&CHAR(10)&"Pro-Forma Labor Expense" -> AVISTA UTILITIES -- Base Case Pro-Forma Labor Expense | M25: ="AVISTA UTILITIES -- "&Scen&CHAR(10)&"Cost of Service General Summary" -> AVISTA UTILITIES -- Base Case Cost of Service General Summary | N25: ="AVISTA UTILITIES -- "&Scen&CHAR(10)&"Allocation Percentages" -> AVISTA UTILITIES -- Base Case Allocation Percentages
A26: Center Header | B26: 8
A27: Right Header | B27: 9 | C27: WA Gas | D27: =$C27 -> WA Gas | E27: =$C27 -> WA Gas | F27: =$C27 -> WA Gas | G27: WA Gas | H27: =$G27 -> WA Gas | I27: WA Gas | J27: WA Gas | K27: WA Gas | L27: WA Gas | M27: WA Gas | N27: WA Gas
A28: Left Footer | B28: 10 | C28: =MID(C42,C44+1,C46-1)&" "&C47 -> UG-170929, CNGC BR-12, Attach B, 3.23.18.xlsx.xlsm Detail | D28: =MID(D42,D44+1,D46-1)&" "&D47 -> UG-170929, CNGC BR-12, Attach B, 3.23.18.xlsx.xlsm Detail | E28: UG-170929, CNGC BR-12, Attach B, 3.23.18.xlsx.xlsm Detail | F28: UG-170929, CNGC BR-12, Attach B, 3.23.18.xlsx.xlsm Detail | G28: UG-170929, CNGC BR-12, Attach B, 3.23.18.xlsx.xlsm Detail | H28: UG-170929, CNGC BR-12, Attach B, 3.23.18.xlsx.xlsm Detail | I28: UG-170929, CNGC BR-12, Attach B, 3.23.18.xlsx.xlsm Detail | J28: UG-170929, CNGC BR-12, Attach B, 3.23.18.xlsx.xlsm Detail | K28: UG-170929, CNGC BR-12, Attach B, 3.23.18.xlsx.xlsm Detail | L28: UG-170929, CNGC BR-12, Attach B, 3.23.18.xlsx.xlsm Detail | M28: UG-170929, CNGC BR-12, Attach B, 3.23.18.xlsx.xlsm Summary | N28: UG-170929, CNGC BR-12, Attach B, 3.23.18.xlsx.xlsm Factors
A29: Center Footer | B29: 11 | C29: =TODAY() -> 2018-03-23 | D29: =$C$29 -> 2018-03-23 | E29: =$C$29 -> 2018-03-23 | F29: 2018-03-23 | G29: 2018-03-23 | H29: 2018-03-23 | I29: 2018-03-23 | J29: 2018-03-23 | K29: 2018-03-23 | L29: 2018-03-23 | M29: 2018-03-23 | N29: 2018-03-23
A30: Right Footer | B30: 12 | C30: ="Page &P of "&$P$35 -> Page &P of 35 | D30: Page &P of 35 | E30: Page &P of 35 | F30: Page &P of 35 | G30: Page &P of 35 | H30: Page &P of 35 | I30: Page &P of 35 | J30: Page &P of 35 | K30: Page &P of 35 | L30: Page &P of 35 | M30: Page &P of 35 | N30: Page &P of 35
A31: 1st Pg # | B31: 13 | C31: =M35+1 -> 4 | D31: =C31+C35 -> 6 | E31: =H31+H35 -> 16 | F31: =E31+E35 -> 18 | G31: =D31+D35 -> 8 | H31: =G31+G35 -> 12 | I31: =F31+F35 -> 20 | J31: =I31+I35 -> 24 | K31: =J31+J35 -> 28 | L31: =K31+K35 -> 31 | M31: 1 | N31: =L31+L35 -> 34
A32: Preview (False=Print) | B32: 14 | C32: TRUE | D32: =$C$32 -> TRUE | E32: TRUE | F32: TRUE | G32: TRUE | H32: TRUE | I32: TRUE | J32: TRUE | K32: TRUE | L32: TRUE | M32: TRUE | N32: TRUE
A33: Zoom % w/print to fit | B33: 15
A35: Total Pages | C35: =C21*C22 -> 2 | D35: =D21*D22 -> 2 | E35: 2 | F35: 2 | G35: 4 | H35: 4 | I35: 4 | J35: 4 | K35: 3 | L35: 3 | M35: 3 | N35: 2 | P35: =SUM(C35:O35) -> 35
A37: H/F examples: | C37: "&F" & Chr(10) & "&A" | D37: would print FileName on one line and TabName on next
C38: "Page &P of &N" | D38: would print: Page 1 of 3
C39: "&D , &T" | D39: would print: 1/31/08, 18:00 in whatever format
A42: Path of Filename | C42: =CELL("filename",$A$1) -> G:\Dept\Rates\WA Rate Case 2017 UG-170929\Rebuttal\Robertson\BR-12\[UG-170929, CNGC BR-12, Attach B, 3.23.18.xlsx.xlsm]Print | D42: =CELL("filename",$A$1) -> G:\Dept\Rates\WA Rate Case 2017 UG-170929\Rebuttal\Robertson\BR-12\[UG-170929, CNGC BR-12, Attach B, 3.23.18.xlsx.xlsm]Print | E42: G:\Dept\Rates\WA Rate Case 2017 UG-170929\Rebuttal\Robertson\BR-12\[UG-170929, CNGC BR-12, Attach B, 3.23.18.xlsx.xlsm]Print | F42: G:\Dept\Rates\WA Rate Case 2017 UG-170929\Rebuttal\Robertson\BR-12\[UG-170929, CNGC BR-12, Attach B, 3.23.18.xlsx.xlsm]Print | G42: G:\Dept\Rates\WA Rate Case 2017 UG-170929\Rebuttal\Robertson\BR-12\[UG-170929, CNGC BR-12, Attach B, 3.23.18.xlsx.xlsm]Print | H42: G:\Dept\Rates\WA Rate Case 2017 UG-170929\Rebuttal\Robertson\BR-12\[UG-170929, CNGC BR-12, Attach B, 3.23.18.xlsx.xlsm]Print | I42: G:\Dept\Rates\WA Rate Case 2017 UG-170929\Rebuttal\Robertson\BR-12\[UG-170929, CNGC BR-12, Attach B, 3.23.18.xlsx.xlsm]Print | J42: G:\Dept\Rates\WA Rate Case 2017 UG-170929\Rebuttal\Robertson\BR-12\[UG-170929, CNGC BR-12, Attach B, 3.23.18.xlsx.xlsm]Print | K42: G:\Dept\Rates\WA Rate Case 2017 UG-170929\Rebuttal\Robertson\BR-12\[UG-170929, CNGC BR-12, Attach B, 3.23.18.xlsx.xlsm]Print | L42: G:\Dept\Rates\WA Rate Case 2017 UG-170929\Rebuttal\Robertson\BR-12\[UG-170929, CNGC BR-12, Attach B, 3.23.18.xlsx.xlsm]Print | M42: G:\Dept\Rates\WA Rate Case 2017 UG-170929\Rebuttal\Robertson\BR-12\[UG-170929, CNGC BR-12, Attach B, 3.23.18.xlsx.xlsm]Print | N42: G:\Dept\Rates\WA Rate Case 2017 UG-170929\Rebuttal\Robertson\BR-12\[UG-170929, CNGC BR-12, Attach B, 3.23.18.xlsx.xlsm]Print
A43: Length of Path | C43: =LEN(C42) -> 124 | D43: =$C43 -> 124 | E43: =$C43 -> 124 | F43: 124 | G43: 124 | H43: 124 | I43: 124 | J43: 124 | K43: 124 | L43: 124 | M43: 124 | N43: 124
A44: Filename start pt | C44: =FIND("[",C42,1) -> 68 | D44: =$C44 -> 68 | E44: 68 | F44: 68 | G44: 68 | H44: 68 | I44: 68 | J44: 68 | K44: 68 | L44: 68 | M44: 68 | N44: 68
A45: Filename end pt | C45: =FIND("]",C42,1) -> 119 | D45: 119 | E45: 119 | F45: 119 | G45: 119 | H45: 119 | I45: 119 | J45: 119 | K45: 119 | L45: 119 | M45: 119 | N45: 119
A46: Filename length | C46: =C45-C44 -> 51 | D46: 51 | E46: 51 | F46: 51 | G46: 51 | H46: 51 | I46: 51 | J46: 51 | K46: 51 | L46: 51 | M46: 51 | N46: 51
A47: Tab Name | C47: Detail | D47: Detail | E47: Detail | F47: Detail | G47: Detail | H47: Detail | I47: Detail | J47: Detail | K47: Detail | L47: Detail | M47: Summary | N47: Factors

Sheet Detail
A1: =ColHdr -> A | B1: =ColHdr -> B | C1: C | D1: D | E1: E | F1: F | G1: G | H1: H | I1: I | J1: J | K1: K | L1: L | M1: M | N1: N | O1: O | P1: P | Q1: Q | R1: R | S1: S | T1: T | U1: U | V1: V | W1: W | X1: X | Y1: Y | Z1: Z | AA1: AA | AB1: AB | AC1: AC | AD1: AD | AE1: AE | AF1: AF | AG1: AG | AH1: AH | AI1: AI | AJ1: AJ | AK1: AK | AL1: AL | AM1: AM | AN1: AN | AO1: AO | AP1: AP | AQ1: AQ | AR1: AR | AS1: AS | AT1: AT | AU1: AU | AV1: AV | AW1: AW | AX1: AX | AY1: AY | AZ1: AZ | BA1: BA | BB1: BB | BC1: BC | BD1: BD | BE1: BE | BF1: BF | BG1: BG | BH1: BH | BI1: BI | BJ1: BJ | BK1: BK | BL1: BL | BM1: BM | BN1: BN | BO1: =ColHdr -> BO | BP1: BP | BQ1: BQ | BR1: BR | BS1: BS | BT1: BT | BU1: BU | BV1: BV | BW1: BW | BX1: BX | BY1: BY | BZ1: BZ | CA1: CA | CB1: CB | CC1: CC | CD1: CD | CE1: CE | CF1: CF | CG1: CG | CH1: CH | CI1: CI | CJ1: CJ | CK1: CK | CL1: CL | CM1: CM | CN1: CN | CO1: CO | CP1: CP | CQ1: CQ | CR1: CR
A2: =RowHdr -> 2
A3: 3 | E3: Pro Forma | AS3: COMMODITY | BA3: DEMAND | BI3: CUSTOMER | CM3: Pro Forma
A4: 4 | E4: Cross Check | I4: =MATCH(I5,Factors!$C$58:$C$64,0) -> 1 | J4: =MATCH(J5,Factors!$C$58:$C$64,0) -> 2 | K4: =MATCH(K5,Factors!$C$58:$C$64,0) -> 3 | L4: =MATCH(L5,Factors!$C$58:$C$64,0) -> 4 | M4: =MATCH(M5,Factors!$C$58:$C$64,0) -> 5 | N4: =MATCH(N5,Factors!$C$58:$C$64,0) -> 6 | R4: COMMODITY | S4: COMMODITY | T4: COMMODITY | U4: COMMODITY | V4: COMMODITY | W4: DEMAND | X4: DEMAND | Y4: DEMAND | Z4: DEMAND | AA4: DEMAND | AB4: CUSTOMER | AC4: CUSTOMER | AD4: CUSTOMER | AE4: CUSTOMER | AF4: CUSTOMER | AG4: CUSTOMER | AH4: REVENUE | AT4: =MATCH(AT5,Factors!$C$58:$C$64,0) -> 1 | AU4: =MATCH(AU5,Factors!$C$58:$C$64,0) -> 2 | AV4: =MATCH(AV5,Factors!$C$58:$C$64,0) -> 3 | AW4: =MATCH(AW5,Factors!$C$58:$C$64,0) -> 4 | AX4: =MATCH(AX5,Factors!$C$58:$C$64,0) -> 5 | AY4: =MATCH(AY5,Factors!$C$58:$C$64,0) -> 6 | BB4: =MATCH(BB5,Factors!$C$58:$C$64,0) -> 1 | BC4: =MATCH(BC5,Factors!$C$58:$C$64,0) -> 2 | BD4: =MATCH(BD5,Factors!$C$58:$C$64,0) -> 3 | BE4: =MATCH(BE5,Factors!$C$58:$C$64,0) -> 4 | BF4: =MATCH(BF5,Factors!$C$58:$C$64,0) -> 5 | BG4: =MATCH(BG5,Factors!$C$58:$C$64,0) -> 6 | BJ4: =MATCH(BJ5,Factors!$C$58:$C$64,0) -> 1 | BK4: =MATCH(BK5,Factors!$C$58:$C$64,0) -> 2 | BL4: =MATCH(BL5,Factors!$C$58:$C$64,0) -> 3 | BM4: =MATCH(BM5,Factors!$C$58:$C$64,0) -> 4 | BN4: =MATCH(BN5,Factors!$C$58:$C$64,0) -> 5 | BO4: =MATCH(BO5,Factors!$C$58:$C$64,0) -> 6 | BR4: Proforma | CM4: Cross Check
A5: 5 | B5: Acct | C5: Func | D5: Description | E5: Totals | F5: classif. basis (line) | G5: derived classif. | H5: Total | I5: Sch 101 | J5: Sch 111 | K5: Sch 121 | L5: Sch 131 | M5: Sch 146 | N5: Open | P5: source | R5: Throughput | S5: Sales | T5: Therms - Small Mains | U5: Purchased Gas - Commodity | V5: GTI Expense | W5: Coincident Peak - All | X5: Coincident Peak - Small Mains | Y5: Purchased Gas - Demand | Z5: DA 101 | AA5: DA 146 | AB5: All Customers | AC5: Service Cost | AD5: Meter Cost | AE5: 4-Factor | AF5: Ind Meas & Reg Cost | AG5: DA 101 | AH5: Revenues From Retail Rates | AK5: Total | AL5: Commodity | AM5: Demand | AN5: Customer | AO5: Revenue | AQ5: source | AS5: Total | AT5: Sch 101 | AU5: Sch 111 | AV5: Sch 121 | AW5: Sch 131 | AX5: Sch 146 | AY5: Open | BA5: Total | BB5: Sch 101 | BC5: Sch 111 | BD5: Sch 121 | BE5: Sch 131 | BF5: Sch 146 | BG5: Open | BI5: Total | BJ5: Sch 101 | BK5: Sch 111 | BL5: Sch 121 | BM5: Sch 131 | BN5: Sch 146 | BO5: Open | BR5: Labor Totals | CM5: Labor Totals
A6: 6 | R6: E01 | S6: E04 | T6: E06 | U6: E07 | V6: E08 | W6: D01 | X6: D02 | Y6: D05 | Z6: D06 | AA6: D07 | AB6: C01 | AC6: C02 | AD6: C03 | AE6: C04 | AF6: C06 | AG6: C10 | AH6: R01 | BR6: (see below) | CM6: (see below)
A7: 7 | D7: Rate Base | AI7: =IF(SUM(R7:AH7)<>0,(ROUND(SUM(R7:AH7),8)<>1)+0,0) -> 0
A8: 8 | D8: Plant In Service | AI8: 0
A9: 9 | D9: Intangible Plant | AI9: 0
A10: 10 | B10: 303 | C10: D | D10: Intangible Gas Plant | E10: =PROFORMA!AQ250 -> 2312000 | F10: ="as Distrib Plant ("&A$40&")" -> as Distrib Plant (40) | H10: =SUM(I10:N10) -> 2312000 | I10: =$E10*SUMPRODUCT($R10:$AH10,INDEX(AllocFactors,I$4,0)) -> 1825405.808 | J10: 339383.7779 | K10: 25460.96636 | L10: 4845.919031 | M10: 116903.5284 | N10: 0 | P10: =E$1&$A10&"* Sum["&$R$1&$A10&":"&$AH$1&$A10&"* "&Factors!D$1&Factors!$A$58&":"&Factors!S$1&Factors!$A$64&"]" -> E10* Sum[R10:AH10* D1037:S1043] | R10: =R$40 -> 0.1125784049 | S10: =S$40 -> 0 | T10: 0.08423902827 | U10: 0 | V10: 0 | W10: 0.3126832867 | X10: 0 | Y10: 0 | Z10: 0 | AA10: 0 | AB10: 0 | AC10: 0.3514057011 | AD10: 0.1324088684 | AE10: 0 | AF10: 0.006684710625 | AG10: 0 | AH10: 0 | AI10: =IF(SUM(R10:AH10)<>0,(ROUND(SUM(R10:AH10),8)<>1)+0,0) -> 0 | AK10: =SUM(AL10:AO10) -> 2312000 | AL10: =SUMIF($R$4:$AH$4,AL$5,$R10:$AH10)*$E10 -> 455041.9054 | AM10: 722923.7589 | AN10: 1134034.336 | AO10: 0 | AQ10: =E$1&$A10&"*["&R$1&$A10&":"&$AH$1&$A10&" when "&R$1&$A$4&":"&$AH$1&$A$4&" = E,D,C,or R]" -> E10*[R10:AH10 when R4:AH4 = E,D,C,or R] | AS10: =SUM(AT10:AY10) -> 455041.9054 | AT10: =$E10*SUMPRODUCT($R10:$V10,INDEX(AllocFactors_E,AT$4,0)) -> 288686.3528 | AU10: 115892.8357 | AV10: 9946.199624 | AW10: 1154.815961 | AX10: 39361.70124 | AY10: 0 | BA10: =SUM(BB10:BG10) -> 722923.7589 | BB10: =$E10*SUMPRODUCT($W10:$AA10,INDEX(AllocFactors_D,BB$4,0)) -> 479025.461 | BC10: 159140.6559 | BD10: 13744.38386 | BE10: 2936.582185 | BF10: 68076.67595 | BG10: 0 | BI10: =SUM(BJ10:BO10) -> 1134034.336 | BJ10: =$E10*SUMPRODUCT($AB10:$AG10,INDEX(AllocFactors_C,BJ$4,0)) -> 1057693.994 | BK10: 64350.28632 | BL10: 1770.382875 | BM10: 754.5208855 | BN10: 9465.151204 | BO10: 0
A11: 11 | B11: 303.1 | C11: O | D11: Miscellaneous - Computer Software | E11: =PROFORMA!AQ251 -> 23408000 | F11: 4-Factor | H11: =SUM(I11:N11) -> 23408000 | I11: 20406603.15 | J11: 2234534.84 | K11: 150447.313 | L11: 31306.94255 | M11: 585107.7536 | N11: 0 | P11: Corporate Cost Allocator (4-Factor) | R11: =(R$114*0.25)+(R$251*0.25)+(BS$250*0.25) -> 0.05967099314 | S11: =(S$114*0.25)+(S$251*0.25)+(BT$250*0.25) -> 0.04696751177 | T11: 0.0355507549 | U11: 0 | V11: 0 | W11: 0.136584133 | X11: 0 | Y11: 0 | Z11: 0 | AA11: 0 | AB11: =(AB$114*0.25)+(AB$251*0.25)+(CC$250*0.25)+0.25 -> 0.4515171542 | AC11: 0.1664888801 | AD11: 0.096243723 | AE11: 0 | AF11: 0.006976849831 | AG11: 0 | AH11: 1.218185842e-18 | AI11: 0 | AK11: =SUM(AL11:AO11) -> 23408000 | AL11: 3328366.194 | AM11: 3197161.386 | AN11: 16882472.42 | AO11: 2.851529418e-11 | AQ11: =E$1&$A11&"* """ -> E11* " | AS11: =SUM(AT11:AY11) -> 3328366.194 | AT11: 2162536.15 | AU11: 868147.8853 | AV11: 74506.5225 | AW11: 11944.21749 | AX11: 211231.4183 | AY11: 0 | BA11: =SUM(BB11:BG11) -> 3197161.386 | BB11: 2118510.684 | BC11: 703806.3885 | BD11: 60785.12819 | BE11: 12987.16089 | BF11: 301072.0244 | BG11: 0 | BI11: =SUM(BJ11:BO11) -> 16882472.42 | BJ11: 16125556.32 | BK11: 662580.5663 | BL11: 15155.6623 | BM11: 6375.564176 | BN11: 72804.31088 | BO11: 0
A12: 12 | D12: Total Intangible Plant | E12: =SUM(E9:E11) -> 25720000 | H12: =IF(ROUND(SUM(H10:H11),3)<>ROUND(SUM(I12:N12),3),#VALUE!,SUM(H10:H11)) -> 25720000 | I12: =SUM(I10:I11) -> 22232008.96 | J12: 2573918.618 | K12: 175908.2793 | L12: 36152.86158 | M12: 702011.282 | N12: 0 | P12: =A10&":"&A11 -> 10:11 | R12: =SUMPRODUCT($E10:$E11,R$10:R$11)/$E12 -> 0.06442690045 | S12: =SUMPRODUCT($E10:$E11,S$10:S$11)/$E12 -> 0.04274554881 | T12: 0.03992739907 | U12: 0 | V12: 0 | W12: 0.1524138859 | X12: 0 | Y12: 0 | Z12: 0 | AA12: 0 | AB12: 0.4109297646 | AC12: 0.1831112631 | AD12: 0.09949464898 | AE12: 0 | AF12: 0.006950589106 | AG12: 0 | AH12: 1.108681733e-18 | AI12: 0 | AK12: =IF(ROUND(SUM(AK10:AK11),3)<>ROUND(SUM(AL12:AO12),3),#VALUE!,SUM(AK10:AK11)) -> 25720000 | AL12: =SUM(AL10:AL11) -> 3783408.099 | AM12: =SUM(AM10:AM11) -> 3920085.145 | AN12: =SUM(AN10:AN11) -> 18016506.76 | AO12: =SUM(AO10:AO11) -> 2.851529418e-11 | AQ12: =$A10&":"&$A11 -> 10:11 | AS12: =IF(ROUND(SUM(AS10:AS11),3)<>ROUND(SUM(AT12:AY12),3),#VALUE!,SUM(AS10:AS11)) -> 3783408.099 | AT12: =SUM(AT10:AT11) -> 2451222.503 | AU12: 984040.721 | AV12: 84452.72212 | AW12: 13099.03345 | AX12: 250593.1196 | AY12: 0 | BA12: =IF(ROUND(SUM(BA10:BA11),3)<>ROUND(SUM(BB12:BG12),3),#VALUE!,SUM(BA10:BA11)) -> 3920085.145 | BB12: =SUM(BB10:BB11) -> 2597536.145 | BC12: 862947.0444 | BD12: 74529.51205 | BE12: 15923.74307 | BF12: 369148.7004 | BG12: 0 | BI12: =IF(ROUND(SUM(BI10:BI11),3)<>ROUND(SUM(BJ12:BO12),3),#VALUE!,SUM(BI10:BI11)) -> 18016506.76 | BJ12: =SUM(BJ10:BJ11) -> 17183250.31 | BK12: 726930.8526 | BL12: 16926.04517 | BM12: 7130.085061 | BN12: 82269.46208 | BO12: 0
A13: 13 | AI13: 0
A14: 14 | D14: Underground Storage Plant | AI14: 0
A15: 15 | B15: 350 | C15: U | D15: Land & Land Rights | E15: =PROFORMA!AQ255 -> 816000 | F15: Input - Settlement | H15: =SUM(I15:N15) -> 816000 | I15: =$E15*SUMPRODUCT($R15:$AH15,INDEX(AllocFactors,I$4,0)) -> 554199.3832 | J15: =$E15*SUMPRODUCT($R15:$AH15,INDEX(AllocFactors,J$4,0)) -> 222482.7652 | K15: =$E15*SUMPRODUCT($R15:$AH15,INDEX(AllocFactors,K$4,0)) -> 19094.00165 | L15: =$E15*SUMPRODUCT($R15:$AH15,INDEX(AllocFactors,L$4,0)) -> 4181.63049 | M15: =$E15*SUMPRODUCT($R15:$AH15,INDEX(AllocFactors,M$4,0)) -> 16042.21939 | N15: =$E15*SUMPRODUCT($R15:$AH15,INDEX(AllocFactors,N$4,0)) -> 0 | P15: =E$1&$A15&"* Sum["&$R$1&$A15&":"&$AH$1&$A15&"* "&Factors!D$1&Factors!$A$58&":"&Factors!S$1&Factors!$A$64&"]" -> E15* Sum[R15:AH15* D1037:S1043] | R15: 0.13 | S15: 0.87 | T15: 0 | U15: 0 | V15: 0 | W15: 0 | X15: 0 | Y15: 0 | Z15: 0 | AA15: 0 | AB15: 0 | AC15: 0 | AD15: 0 | AE15: 0 | AF15: 0 | AG15: 0 | AH15: 0 | AI15: 0 | AK15: =SUM(AL15:AO15) -> 816000 | AL15: =SUMIF($R$4:$AH$4,AL$5,$R15:$AH15)*$E15 -> 816000 | AM15: 0 | AN15: 0 | AO15: 0 | AQ15: =E$1&$A15&"*["&R$1&$A15&":"&$AH$1&$A15&" when "&R$1&$A$4&":"&$AH$1&$A$4&" = E,D,C,or R]" -> E15*[R15:AH15 when R4:AH4 = E,D,C,or R] | AS15: =SUM(AT15:AY15) -> 816000 | AT15: =$E15*SUMPRODUCT($R15:$V15,INDEX(AllocFactors_E,AT$4,0)) -> 554199.3832 | AU15: 222482.7652 | AV15: 19094.00165 | AW15: 4181.63049 | AX15: 16042.21939 | AY15: 0 | BA15: =SUM(BB15:BG15) -> 0 | BB15: =$E15*SUMPRODUCT($W15:$AA15,INDEX(AllocFactors_D,BB$4,0)) -> 0 | BC15: 0 | BD15: 0 | BE15: 0 | BF15: 0 | BG15: 0 | BI15: =SUM(BJ15:BO15) -> 0 | BJ15: =$E15*SUMPRODUCT($AB15:$AG15,INDEX(AllocFactors_C,BJ$4,0)) -> 0 | BK15: 0 | BL15: 0 | BM15: 0 | BN15: 0 | BO15: 0
A16: 16 | B16: 351 | C16: U | D16: Structures & Improvements | E16: =PROFORMA!AQ256 -> 1427000 | F16: Input - Settlement | H16: 1427000 | I16: =$E16*SUMPRODUCT($R16:$AH16,INDEX(AllocFactors,I$4,0)) -> 969169.7547 | J16: 389072.1887 | K16: 33391.10337 | L16: 7312.72881 | M16: 28054.22434 | N16: 0 | P16: =E$1&$A16&"* """ -> E16* " | R16: 0.13 | S16: 0.87 | T16: 0 | U16: 0 | V16: 0 | W16: 0 | X16: 0 | Y16: 0 | Z16: 0 | AA16: 0 | AB16: 0 | AC16: 0 | AD16: 0 | AE16: 0 | AF16: 0 | AG16: 0 | AH16: 0 | AI16: 0 | AK16: 1427000 | AL16: 1427000 | AM16: 0 | AN16: 0 | AO16: 0 | AQ16: =E$1&$A16&"* """ -> E16* " | AS16: 1427000 | AT16: 969169.7547 | AU16: 389072.1887 | AV16: 33391.10337 | AW16: 7312.72881 | AX16: 28054.22434 | AY16: 0 | BA16: 0 | BB16: 0 | BC16: 0 | BD16: 0 | BE16: 0 | BF16: 0 | BG16: 0 | BI16: 0 | BJ16: 0 | BK16: 0 | BL16: 0 | BM16: 0 | BN16: 0 | BO16: 0
A17: 17 | B17: 352 | C17: U | D17: Wells | E17: =PROFORMA!AQ257 -> 13937000 | F17: Input - Settlement | H17: =SUM(I17:N17) -> 13937000 | I17: 9465535.299 | J17: 3799929.288 | K17: 326118.9963 | L17: 71420.81389 | M17: 273995.6024 | N17: 0 | P17: E17* " | R17: 0.13 | S17: 0.87 | T17: 0 | U17: 0 | V17: 0 | W17: 0 | X17: 0 | Y17: 0 | Z17: 0 | AA17: 0 | AB17: 0 | AC17: 0 | AD17: 0 | AE17: 0 | AF17: 0 | AG17: 0 | AH17: 0 | AI17: 0 | AK17: 13937000 | AL17: 13937000 | AM17: 0 | AN17: 0 | AO17: 0 | AQ17: =E$1&$A17&"* """ -> E17* " | AS17: 13937000 | AT17: 9465535.299 | AU17: 3799929.288 | AV17: 326118.9963 | AW17: 71420.81389 | AX17: 273995.6024 | AY17: 0 | BA17: 0 | BB17: 0 | BC17: 0 | BD17: 0 | BE17: 0 | BF17: 0 | BG17: 0 | BI17: 0 | BJ17: 0 | BK17: 0 | BL17: 0 | BM17: 0 | BN17: 0 | BO17: 0
A18: 18 | B18: 353 | C18: U | D18: Lines | E18: =PROFORMA!AQ258 -> 774000 | F18: Input - Settlement | H18: =SUM(I18:N18) -> 774000 | I18: 525674.415 | J18: 211031.4464 | K18: 18111.22215 | L18: 3966.399509 | M18: 15216.51692 | N18: 0 | P18: E18* " | R18: 0.13 | S18: 0.87 | T18: 0 | U18: 0 | V18: 0 | W18: 0 | X18: 0 | Y18: 0 | Z18: 0 | AA18: 0 | AB18: 0 | AC18: 0 | AD18: 0 | AE18: 0 | AF18: 0 | AG18: 0 | AH18: 0 | AI18: 0 | AK18: 774000 | AL18: 774000 | AM18: 0 | AN18: 0 | AO18: 0 | AQ18: E18* " | AS18: 774000 | AT18: 525674.415 | AU18: 211031.4464 | AV18: 18111.22215 | AW18: 3966.399509 | AX18: 15216.51692 | AY18: 0 | BA18: 0 | BB18: 0 | BC18: 0 | BD18: 0 | BE18: 0 | BF18: 0 | BG18: 0 | BI18: 0 | BJ18: 0 | BK18: 0 | BL18: 0 | BM18: 0 | BN18: 0 | BO18: 0
A19: 19 | B19: 354 | C19: U | D19: Compressor Station Equipment | E19: =PROFORMA!AQ259 -> 8926000 | F19: Input - Settlement | H19: 8926000 | I19: 6062234.92 | J19: 2433677.895 | K19: 208864.0426 | L19: 45741.70803 | M19: 175481.4341 | N19: 0 | P19: E19* " | R19: 0.13 | S19: 0.87 | T19: 0 | U19: 0 | V19: 0 | W19: 0 | X19: 0 | Y19: 0 | Z19: 0 | AA19: 0 | AB19: 0 | AC19: 0 | AD19: 0 | AE19: 0 | AF19: 0 | AG19: 0 | AH19: 0 | AI19: 0 | AK19: 8926000 | AL19: 8926000 | AM19: 0 | AN19: 0 | AO19: 0 | AQ19: E19* " | AS19: 8926000 | AT19: 6062234.92 | AU19: 2433677.895 | AV19: 208864.0426 | AW19: 45741.70803 | AX19: 175481.4341 | AY19: 0 | BA19: 0 | BB19: 0 | BC19: 0 | BD19: 0 | BE19: 0 | BF19: 0 | BG19: 0 | BI19: 0 | BJ19: 0 | BK19: 0 | BL19: 0 | BM19: 0 | BN19: 0 | BO19: 0
A20: 20 | B20: 355 | C20: U | D20: Measuring & Regulating Equipment | E20: =PROFORMA!AQ260 -> 534000 | F20: Input - Settlement | H20: 534000 | I20: 362674.5964 | J20: 145595.339 | K20: 12495.33931 | L20: 2736.508188 | M20: 10498.2171 | N20: 0 | P20: E20* " | R20: 0.13 | S20: 0.87 | T20: 0 | U20: 0 | V20: 0 | W20: 0 | X20: 0 | Y20: 0 | Z20: 0 | AA20: 0 | AB20: 0 | AC20: 0 | AD20: 0 | AE20: 0 | AF20: 0 | AG20: 0 | AH20: 0 | AI20: 0 | AK20: 534000 | AL20: 534000 | AM20: 0 | AN20: 0 | AO20: 0 | AQ20: E20* " | AS20: 534000 | AT20: 362674.5964 | AU20: 145595.339 | AV20: 12495.33931 | AW20: 2736.508188 | AX20: 10498.2171 | AY20: 0 | BA20: 0 | BB20: 0 | BC20: 0 | BD20: 0 | BE20: 0 | BF20: 0 | BG20: 0 | BI20: 0 | BJ20: 0 | BK20: 0 | BL20: 0 | BM20: 0 | BN20: 0 | BO20: 0
A21: 21 | B21: 356 | C21: U | D21: Purification Equipment | E21: =PROFORMA!AQ261 -> 299000 | F21: Input - Settlement | H21: 299000 | I21: 203070.6073 | J21: 81522.48383 | K21: 6996.454036 | L21: 1532.239603 | M21: 5878.215192 | N21: 0 | P21: E21* " | R21: 0.13 | S21: 0.87 | T21: 0 | U21: 0 | V21: 0 | W21: 0 | X21: 0 | Y21: 0 | Z21: 0 | AA21: 0 | AB21: 0 | AC21: 0 | AD21: 0 | AE21: 0 | AF21: 0 | AG21: 0 | AH21: 0 | AI21: 0 | AK21: 299000 | AL21: 299000 | AM21: 0 | AN21: 0 | AO21: 0 | AQ21: E21* " | AS21: 299000 | AT21: 203070.6073 | AU21: 81522.48383 | AV21: 6996.454036 | AW21: 1532.239603 | AX21: 5878.215192 | AY21: 0 | BA21: 0 | BB21: 0 | BC21: 0 | BD21: 0 | BE21: 0 | BF21: 0 | BG21: 0 | BI21: 0 | BJ21: 0 | BK21: 0 | BL21: 0 | BM21: 0 | BN21: 0 | BO21: 0
A22: 22 | B22: 357 | C22: U | D22: Other Equipment | E22: =PROFORMA!AQ262 -> 1504000 | F22: Input - Settlement | H22: 1504000 | I22: 1021465.53 | J22: 410066.2732 | K22: 35192.86578 | L22: 7707.318942 | M22: 29568.0122 | N22: 0 | P22: E22* " | R22: 0.13 | S22: 0.87 | T22: 0 | U22: 0 | V22: 0 | W22: 0 | X22: 0 | Y22: 0 | Z22: 0 | AA22: 0 | AB22: 0 | AC22: 0 | AD22: 0 | AE22: 0 | AF22: 0 | AG22: 0 | AH22: 0 | AI22: 0 | AK22: 1504000 | AL22: 1504000 | AM22: 0 | AN22: 0 | AO22: 0 | AQ22: E22* " | AS22: 1504000 | AT22: 1021465.53 | AU22: 410066.2732 | AV22: 35192.86578 | AW22: 7707.318942 | AX22: 29568.0122 | AY22: 0 | BA22: 0 | BB22: 0 | BC22: 0 | BD22: 0 | BE22: 0 | BF22: 0 | BG22: 0 | BI22: 0 | BJ22: 0 | BK22: 0 | BL22: 0 | BM22: 0 | BN22: 0 | BO22: 0
A23: 23 | D23: Total Underground Storage Plant | E23: =SUM(E15:E22) -> 28217000 | G23: UG Storage Plant (S14) | H23: =IF(ROUND(SUM(H14:H22),3)<>ROUND(SUM(I23:N23),3),#VALUE!,SUM(H14:H22)) -> 28217000 | I23: =SUM(I14:I22) -> 19164024.51 | J23: 7693377.68 | K23: 660264.0252 | L23: 144599.3475 | M23: 554734.4417 | N23: 0 | P23: =$A14&":"&A22 -> 14:22 | R23: =SUMPRODUCT($E15:$E22,R$15:R$22)/$E23 -> 0.13 | S23: 0.87 | T23: 0 | U23: 0 | V23: 0 | W23: 0 | X23: 0 | Y23: 0 | Z23: 0 | AA23: 0 | AB23: 0 | AC23: 0 | AD23: 0 | AE23: 0 | AF23: 0 | AG23: 0 | AH23: 0 | AI23: 0 | AK23: =IF(ROUND(SUM(AK14:AK22),3)<>ROUND(SUM(AL23:AO23),3),#VALUE!,SUM(AK14:AK22)) -> 28217000 | AL23: =SUM(AL14:AL22) -> 28217000 | AM23: =SUM(AM14:AM22) -> 0 | AN23: =SUM(AN14:AN22) -> 0 | AO23: =SUM(AO14:AO22) -> 0 | AQ23: =$A14&":"&$A22 -> 14:22 | AS23: =IF(ROUND(SUM(AS14:AS22),3)<>ROUND(SUM(AT23:AY23),3),#VALUE!,SUM(AS14:AS22)) -> 28217000 | AT23: =SUM(AT14:AT22) -> 19164024.51 | AU23: 7693377.68 | AV23: 660264.0252 | AW23: 144599.3475 | AX23: 554734.4417 | AY23: 0 | BA23: =IF(ROUND(SUM(BA14:BA22),3)<>ROUND(SUM(BB23:BG23),3),#VALUE!,SUM(BA14:BA22)) -> 0 | BB23: =SUM(BB14:BB22) -> 0 | BC23: 0 | BD23: 0 | BE23: 0 | BF23: 0 | BG23: 0 | BI23: =IF(ROUND(SUM(BI14:BI22),3)<>ROUND(SUM(BJ23:BO23),3),#VALUE!,SUM(BI14:BI22)) -> 0 | BJ23: =SUM(BJ14:BJ22) -> 0 | BK23: 0 | BL23: 0 | BM23: 0 | BN23: 0 | BO23: 0
A24: 24 | AI24: 0
A25: 25 | D25: Distribution Plant | AI25: 0
A26: 26 | B26: 374 | C26: D | D26: Land & Land Rights | E26: =PROFORMA!AQ266 -> 208000 | F26: ="as other Dist Plt ("&A$28&"-"&A$38&")" -> as other Dist Plt (28-38) | H26: =SUM(I26:N26) -> 208000 | I26: =$E26*SUMPRODUCT($R26:$AH26,INDEX(AllocFactors,I$4,0)) -> 164223.3599 | J26: 30532.79663 | K26: 2290.60597 | L26: 435.9650339 | M26: 10517.27245 | N26: 0 | P26: =E$1&$A26&"* Sum["&$R$1&$A26&":"&$AH$1&$A26&"* "&Factors!D$1&Factors!$A$58&":"&Factors!S$1&Factors!$A$64&"]" -> E26* Sum[R26:AH26* D1037:S1043] | R26: =SUMPRODUCT($E$28:$E$38,R$28:R$38)/SUM($E$28:$E$38) -> 0.1125784049 | S26: 0 | T26: =SUMPRODUCT($E$28:$E$38,T$28:T$38)/SUM($E$28:$E$38) -> 0.08423902827 | U26: 0 | V26: 0 | W26: 0.3126832867 | X26: 0 | Y26: 0 | Z26: 0 | AA26: 0 | AB26: =SUMPRODUCT($E$28:$E$38,AB$28:AB$38)/SUM($E$28:$E$38) -> 0 | AC26: 0.3514057011 | AD26: 0.1324088684 | AE26: 0 | AF26: 0.006684710625 | AG26: 0 | AH26: 0 | AI26: 0 | AK26: =SUM(AL26:AO26) -> 208000 | AL26: =SUMIF($R$4:$AH$4,AL$5,$R26:$AH26)*$E26 -> 40938.02609 | AM26: 65038.12364 | AN26: 102023.8503 | AO26: 0 | AQ26: =E$1&$A26&"*["&R$1&$A26&":"&$AH$1&$A26&" when "&R$1&$A$4&":"&$AH$1&$A$4&" = E,D,C,or R]" -> E26*[R26:AH26 when R4:AH4 = E,D,C,or R] | AS26: =SUM(AT26:AY26) -> 40938.02609 | AT26: =$E26*SUMPRODUCT($R26:$V26,INDEX(AllocFactors_E,AT$4,0)) -> 25971.78261 | AU26: 10426.34508 | AV26: 894.813807 | AW26: 103.8934774 | AX26: 3541.191115 | AY26: 0 | BA26: =SUM(BB26:BG26) -> 65038.12364 | BB26: =$E26*SUMPRODUCT($W26:$AA26,INDEX(AllocFactors_D,BB$4,0)) -> 43095.71622 | BC26: 14317.15243 | BD26: 1236.518963 | BE26: 264.1907848 | BF26: 6124.545241 | BG26: 0 | BI26: =SUM(BJ26:BO26) -> 102023.8503 | BJ26: =$E26*SUMPRODUCT($AB26:$AG26,INDEX(AllocFactors_C,BJ$4,0)) -> 95155.86109 | BK26: 5789.299115 | BL26: 159.2731998 | BM26: 67.88077171 | BN26: 851.5360945 | BO26: 0
A27: 27 | B27: 375 | C27: D | D27: Structures & Improvements | E27: =PROFORMA!AQ267 -> 621000 | F27: ="as other Dist Plt ("&A$28&"-"&A$38&")" -> as other Dist Plt (28-38) | H27: 621000 | I27: 490301.4736 | J27: 91158.01301 | K27: 6838.780324 | L27: 1301.607145 | M27: 31400.12592 | N27: 0 | P27: =E$1&$A27&"* """ -> E27* " | R27: =SUMPRODUCT($E$28:$E$38,R$28:R$38)/SUM($E$28:$E$38) -> 0.1125784049 | S27: 0 | T27: =SUMPRODUCT($E$28:$E$38,T$28:T$38)/SUM($E$28:$E$38) -> 0.08423902827 | U27: 0 | V27: 0 | W27: 0.3126832867 | X27: 0 | Y27: 0 | Z27: 0 | AA27: 0 | AB27: 0 | AC27: 0.3514057011 | AD27: 0.1324088684 | AE27: 0 | AF27: 0.006684710625 | AG27: 0 | AH27: 0 | AI27: 0 | AK27: 621000 | AL27: 122223.626 | AM27: 194176.3211 | AN27: 304600.053 | AO27: 0 | AQ27: =E$1&$A27&"* """ -> E27* " | AS27: 122223.626 | AT27: 77540.75481 | AU27: 31128.65526 | AV27: 2671.535453 | AW27: 310.1819687 | AX27: 10572.49847 | AY27: 0 | BA27: 194176.3211 | BB27: 128665.5758 | BC27: 42744.95991 | BD27: 3691.722482 | BE27: 788.7619104 | BF27: 18285.30094 | BG27: 0 | BI27: 304600.053 | BJ27: 284095.143 | BK27: 17284.39784 | BL27: 475.5223898 | BM27: 202.6632655 | BN27: 2542.326513 | BO27: 0
A28: 28 | B28: 376-All | C28: D | D28: Mains | E28: =PROFORMA!AQ268+PROFORMA!AQ269 -> 214740000 | F28: Input - Peak & Avg Calc | G28: oth Dist Plt (S05); (S06); (S21) | H28: 214740000 | I28: =$E28*SUMPRODUCT($R28:$AH28,INDEX(AllocFactors,I$4,0)) -> 140067372.3 | J28: 50184261.87 | K28: 4322711.476 | L28: 741121.6824 | M28: 19424532.64 | N28: 0 | P28: E28* " | R28: ='Mains Allocator'!E15+'Mains Allocator'!E16 -> 0.2159944957 | T28: ='Mains Allocator'!E17+'Mains Allocator'!E18 -> 0.1703002149 | W28: ='Mains Allocator'!E9 -> 0.6137052894 | Z28: 0 | AB28: 0 | AC28: 0 | AD28: 0 | AE28: 0 | AF28: 0 | AG28: 0 | AH28: 0 | AI28: 0 | AK28: 214740000 | AL28: =SUMIF($R$4:$AH$4,AL$5,$R28:$AH28)*$E28 -> 82952926.15 | AM28: 131787073.8 | AN28: 0 | AO28: 0 | AQ28: =E$1&$A28&"* """ -> E28* " | AS28: 82952926.15 | AT28: =$E28*SUMPRODUCT($R28:$V28,INDEX(AllocFactors_E,AT$4,0)) -> 52742307.92 | AU28: =$E28*SUMPRODUCT($R28:$V28,INDEX(AllocFactors_E,AU$4,0)) -> 21173344.59 | AV28: 1817146.942 | AW28: 205790.5794 | AX28: 7014336.118 | AY28: 0 | BA28: 131787073.8 | BB28: 87325064.41 | BC28: 29010917.28 | BD28: 2505564.534 | BE28: 535331.103 | BF28: 12410196.52 | BG28: 0 | BI28: 0 | BJ28: 0 | BK28: 0 | BL28: 0 | BM28: 0 | BN28: 0 | BO28: 0
A29: 29 | B29: 376 | C29: D | D29: Mains | F29: Input - Peak & Avg w/131&146 | G29: oth Dist Plt (S05); (S06); (S21) | H29: =SUM(I29:N29) -> 0 | I29: 0 | J29: 0 | K29: 0 | L29: 0 | M29: =$E29*SUMPRODUCT($R29:$AH29,INDEX(AllocFactors,M$4,0)) -> 0 | N29: 0 | P29: =E$1&$A29&"* """ -> E29* " | AI29: =IF(SUM(R29:AH29)<>0,(ROUND(SUM(R29:AH29),8)<>1)+0,0) -> 0 | AK29: =SUM(AL29:AO29) -> 0 | AL29: 0 | AM29: 0 | AN29: 0 | AO29: 0 | AQ29: =E$1&$A29&"* """ -> E29* " | AS29: =SUM(AT29:AY29) -> 0 | AT29: 0 | AU29: 0 | AV29: 0 | AW29: 0 | AX29: 0 | AY29: 0 | BA29: =SUM(BB29:BG29) -> 0 | BB29: =$E29*SUMPRODUCT($W29:$AA29,INDEX(AllocFactors_D,BB$4,0)) -> 0 | BC29: 0 | BD29: 0 | BE29: 0 | BF29: 0 | BG29: 0 | BI29: =SUM(BJ29:BO29) -> 0 | BJ29: 0 | BK29: 0 | BL29: 0 | BM29: 0 | BN29: 0 | BO29: 0
A30: 30 | B30: 376 | C30: D | D30: Mains | F30: Input - Peak & Avg w/131&146 | G30: oth Dist Plt (S05); (S06); (S21) | H30: 0 | I30: 0 | J30: 0 | K30: 0 | L30: 0 | M30: =$E30*SUMPRODUCT($R30:$AH30,INDEX(AllocFactors,M$4,0)) -> 0 | N30: 0 | P30: E30* " | AI30: =IF(SUM(R30:AH30)<>0,(ROUND(SUM(R30:AH30),8)<>1)+0,0) -> 0 | AK30: 0 | AL30: =SUMIF($R$4:$AH$4,AL$5,$R30:$AH30)*$E30 -> 0 | AM30: 0 | AN30: 0 | AO30: 0 | AQ30: E30* " | AS30: 0 | AT30: 0 | AU30: 0 | AV30: 0 | AW30: 0 | AX30: 0 | AY30: 0 | BA30: 0 | BB30: 0 | BC30: 0 | BD30: 0 | BE30: 0 | BF30: 0 | BG30: 0 | BI30: 0 | BJ30: 0 | BK30: 0 | BL30: 0 | BM30: 0 | BN30: 0 | BO30: 0
A31: 31 | B31: 378 | C31: D | D31: Meas & Reg Station Equip-General | E31: =PROFORMA!AQ270 -> 3865000 | F31: Input - Peak & Avg Calc | G31: oth Dist Plt (S05); (S08) | H31: 3865000 | I31: 2449648.223 | J31: 874596.2372 | K31: 75343.92326 | L31: 16259.43351 | M31: 449152.1828 | N31: 0 | P31: E31* " | R31: =PkAvg_E -> 0.3862947106 | W31: =PkAvg_D -> 0.6137052894 | AI31: 0 | AK31: 3865000 | AL31: 1493029.056 | AM31: 2371970.944 | AN31: 0 | AO31: 0 | AQ31: E31* " | AS31: 1493029.056 | AT31: 877927.1935 | AU31: 352442.9575 | AV31: 30247.49537 | AW31: 6624.271392 | AX31: 225787.1387 | AY31: 0 | BA31: 2371970.944 | BB31: 1571721.03 | BC31: 522153.2797 | BD31: 45096.42788 | BE31: 9635.162117 | BF31: 223365.0441 | BG31: 0 | BI31: 0 | BJ31: 0 | BK31: 0 | BL31: 0 | BM31: 0 | BN31: 0 | BO31: 0
A32: 32 | B32: 379 | C32: D | D32: Meas & Reg Station Equip-City Gate | E32: =PROFORMA!AQ271 -> 2582000 | F32: Input - Peak & Avg Calc | G32: oth Dist Plt (S05); (S09) | H32: 2582000 | I32: 1636479.098 | J32: 584271.018 | K32: 50333.24964 | L32: 10862.05882 | M32: 300054.5759 | N32: 0 | P32: E32* " | R32: =PkAvg_E -> 0.3862947106 | W32: =PkAvg_D -> 0.6137052894 | AI32: 0 | AK32: 2582000 | AL32: 997412.9428 | AM32: 1584587.057 | AN32: 0 | AO32: 0 | AQ32: E32* " | AS32: 997412.9428 | AT32: 586496.2519 | AU32: 235448.3095 | AV32: 20206.73559 | AW32: 4425.321794 | AX32: 150836.324 | AY32: 0 | BA32: 1584587.057 | BB32: 1049982.846 | BC32: 348822.7085 | BD32: 30126.51405 | BE32: 6436.737021 | BF32: 149218.252 | BG32: 0 | BI32: 0 | BJ32: 0 | BK32: 0 | BL32: 0 | BM32: 0 | BN32: 0 | BO32: 0
A33: 33 | B33: 380 | C33: D | D33: Services | E33: =PROFORMA!AQ272 -> 152554000 | F33: Input - 100% Svcs cost | G33: oth Dist Plt (S05); (S06); (S20) | H33: 152554000 | I33: 149319667.9 | J33: 2665825.12 | K33: 66177.12081 | L33: 5817.768862 | M33: 496512.0669 | N33: 0 | P33: E33* " | AC33: 1 | AI33: 0 | AK33: 152554000 | AL33: 0 | AM33: 0 | AN33: 152554000 | AO33: 0 | AQ33: E33* " | AS33: 0 | AT33: 0 | AU33: 0 | AV33: 0 | AW33: 0 | AX33: 0 | AY33: 0 | BA33: 0 | BB33: 0 | BC33: 0 | BD33: 0 | BE33: 0 | BF33: 0 | BG33: 0 | BI33: 152554000 | BJ33: =$E33*SUMPRODUCT($AB33:$AG33,INDEX(AllocFactors_C,BJ$4,0)) -> 149319667.9 | BK33: 2665825.12 | BL33: 66177.12081 | BM33: 5817.768862 | BN33: 496512.0669 | BO33: 0
A34: 34 | B34: 381 | C34: D | D34: Meters | E34: =PROFORMA!AQ273 -> 57482000 | F34: Input - 100% Mtrs cost | G34: oth Dist Plt (S05); (S07) | H34: 57482000 | I34: 49283881.1 | J34: 7070798.435 | K34: 178659.8353 | L34: 90936.96199 | M34: 857723.6684 | N34: 0 | P34: E34* " | AD34: 1 | AI34: 0 | AK34: 57482000 | AL34: 0 | AM34: 0 | AN34: 57482000 | AO34: 0 | AQ34: E34* " | AS34: 0 | AT34: 0 | AU34: 0 | AV34: 0 | AW34: 0 | AX34: 0 | AY34: 0 | BA34: 0 | BB34: 0 | BC34: 0 | BD34: 0 | BE34: 0 | BF34: 0 | BG34: 0 | BI34: 57482000 | BJ34: 49283881.1 | BK34: 7070798.435 | BL34: 178659.8353 | BM34: 90936.96199 | BN34: 857723.6684 | BO34: 0
A35: 35 | B35: 382 | C35: D | D35: Meter Installations | E35: =PROFORMA!AQ274 -> 0 | F35: Input - 100% Install cost | G35: oth Dist Plt (S05); (S07) | H35: 0 | I35: 0 | J35: 0 | K35: 0 | L35: 0 | M35: 0 | N35: 0 | P35: E35* " | AB35: 1 | AI35: 0 | AK35: 0 | AL35: 0 | AM35: 0 | AN35: 0 | AO35: 0 | AQ35: E35* " | AS35: 0 | AT35: 0 | AU35: 0 | AV35: 0 | AW35: 0 | AX35: 0 | AY35: 0 | BA35: 0 | BB35: 0 | BC35: 0 | BD35: 0 | BE35: 0 | BF35: 0 | BG35: 0 | BI35: 0 | BJ35: 0 | BK35: 0 | BL35: 0 | BM35: 0 | BN35: 0 | BO35: 0
A36: 36 | B36: 383 | C36: D | D36: House Regulators | E36: =PROFORMA!AQ275 -> 0 | F36: Input - 100% Reg. cost | G36: oth Dist Plt (S05); (S07) | H36: 0 | I36: 0 | J36: 0 | K36: 0 | L36: 0 | M36: 0 | N36: 0 | P36: E36* " | AI36: 0 | AK36: 0 | AL36: 0 | AM36: 0 | AN36: 0 | AO36: 0 | AQ36: E36* " | AS36: 0 | AT36: 0 | AU36: 0 | AV36: 0 | AW36: 0 | AX36: 0 | AY36: 0 | BA36: 0 | BB36: 0 | BC36: 0 | BD36: 0 | BE36: 0 | BF36: 0 | BG36: 0 | BI36: 0 | BJ36: 0 | BK36: 0 | BL36: 0 | BM36: 0 | BN36: 0 | BO36: 0
A37: 37 | B37: 384 | C37: D | D37: House Regulator Installations | E37: =PROFORMA!AQ276 -> 0 | F37: Input - 100% Install cost | G37: oth Dist Plt (S05); (S07) | H37: 0 | I37: 0 | J37: 0 | K37: 0 | L37: 0 | M37: 0 | N37: 0 | P37: E37* " | AB37: 1 | AI37: 0 | AK37: 0 | AL37: 0 | AM37: 0 | AN37: 0 | AO37: 0 | AQ37: E37* " | AS37: 0 | AT37: 0 | AU37: 0 | AV37: 0 | AW37: 0 | AX37: 0 | AY37: 0 | BA37: 0 | BB37: 0 | BC37: 0 | BD37: 0 | BE37: 0 | BF37: 0 | BG37: 0 | BI37: 0 | BJ37: 0 | BK37: 0 | BL37: 0 | BM37: 0 | BN37: 0 | BO37: 0
A38: 38 | B38: 385 | C38: D | D38: Industrial Meas & Reg Station Equip | E38: =PROFORMA!AQ277 -> 2902000 | F38: Input - 100% Ind Meas cost | G38: oth Dist Plt (S05); (S19) | H38: 2902000 | I38: 0 | J38: 2346450.86 | K38: 87588.41822 | L38: 44921.90385 | M38: 423038.8176 | N38: 0 | P38: E38* " | AF38: 1 | AI38: 0 | AK38: 2902000 | AL38: 0 | AM38: 0 | AN38: 2902000 | AO38: 0 | AQ38: E38* " | AS38: 0 | AT38: 0 | AU38: 0 | AV38: 0 | AW38: 0 | AX38: 0 | AY38: 0 | BA38: 0 | BB38: 0 | BC38: 0 | BD38: 0 | BE38: 0 | BF38: 0 | BG38: 0 | BI38: 2902000 | BJ38: 0 | BK38: 2346450.86 | BL38: 87588.41822 | BM38: 44921.90385 | BN38: 423038.8176 | BO38: 0
A39: 39 | B39: 387 | C39: D | D39: Other Equipment | E39: =PROFORMA!AQ278 -> 0 | F39: ="as other Dist Plt ("&A$28&"-"&A$38&")" -> as other Dist Plt (28-38) | H39: 0 | I39: 0 | J39: 0 | K39: 0 | L39: 0 | M39: 0 | N39: 0 | P39: E39* " | R39: =SUMPRODUCT($E$28:$E$38,R$28:R$38)/SUM($E$28:$E$38) -> 0.1125784049 | S39: =SUMPRODUCT($E$28:$E$38,S$28:S$38)/SUM($E$28:$E$38) -> 0 | T39: 0.08423902827 | U39: 0 | V39: 0 | W39: 0.3126832867 | X39: 0 | Y39: 0 | Z39: 0 | AA39: 0 | AB39: 0 | AC39: 0.3514057011 | AD39: 0.1324088684 | AE39: 0 | AF39: 0.006684710625 | AG39: 0 | AH39: 0 | AI39: 0 | AK39: 0 | AL39: 0 | AM39: 0 | AN39: 0 | AO39: 0 | AQ39: E39* " | AS39: 0 | AT39: 0 | AU39: 0 | AV39: 0 | AW39: 0 | AX39: 0 | AY39: 0 | BA39: 0 | BB39: 0 | BC39: 0 | BD39: 0 | BE39: 0 | BF39: 0 | BG39: 0 | BI39: 0 | BJ39: 0 | BK39: 0 | BL39: 0 | BM39: 0 | BN39: 0 | BO39: 0
A40: 40 | D40: Total Distribution Plant | E40: =SUM(E26:E39) -> 434954000 | G40: Distrib Plant (S15) | H40: =IF(ROUND(SUM(H25:H39),3)<>ROUND(SUM(I40:N40),3),#VALUE!,SUM(H25:H39)) -> 434954000 | I40: =SUM(I25:I39) -> 343411573.5 | J40: 63847894.35 | K40: 4789943.409 | L40: 911657.3816 | M40: 21992931.35 | N40: 0 | P40: =$A25&":"&A39 -> 25:39 | R40: =SUMPRODUCT($E26:$E39,R$26:R$39)/$E40 -> 0.1125784049 | S40: =SUMPRODUCT($E26:$E39,S$26:S$39)/$E40 -> 0 | T40: =SUMPRODUCT($E26:$E39,T$26:T$39)/$E40 -> 0.08423902827 | U40: 0 | V40: 0 | W40: 0.3126832867 | X40: 0 | Y40: 0 | Z40: =SUMPRODUCT($E26:$E39,Z$26:Z$39)/$E40 -> 0 | AA40: 0 | AB40: 0 | AC40: 0.3514057011 | AD40: 0.1324088684 | AE40: 0 | AF40: 0.006684710625 | AG40: 0 | AH40: 0 | AI40: =IF(SUM(R40:AH40)<>0,(ROUND(SUM(R40:AH40),8)<>1)+0,0) -> 0 | AK40: =IF(ROUND(SUM(AK25:AK39),3)<>ROUND(SUM(AL40:AO40),3),#VALUE!,SUM(AK25:AK39)) -> 434954000 | AL40: =SUM(AL25:AL39) -> 85606529.8 | AM40: =SUM(AM25:AM39) -> 136002846.3 | AN40: =SUM(AN25:AN39) -> 213344623.9 | AO40: =SUM(AO25:AO39) -> 0 | AQ40: =$A25&":"&$A39 -> 25:39 | AS40: =IF(ROUND(SUM(AS25:AS39),3)<>ROUND(SUM(AT40:AY40),3),#VALUE!,SUM(AS25:AS39)) -> 85606529.8 | AT40: =SUM(AT25:AT39) -> 54310243.91 | AU40: 21802790.86 | AV40: 1871167.522 | AW40: 217254.248 | AX40: 7405073.271 | AY40: 0 | BA40: =IF(ROUND(SUM(BA25:BA39),3)<>ROUND(SUM(BB40:BG40),3),#VALUE!,SUM(BA25:BA39)) -> 136002846.3 | BB40: =SUM(BB25:BB39) -> 90118529.57 | BC40: 29938955.38 | BD40: 2585715.717 | BE40: 552455.9548 | BF40: 12807189.67 | BG40: 0 | BI40: =IF(ROUND(SUM(BI25:BI39),3)<>ROUND(SUM(BJ40:BO40),3),#VALUE!,SUM(BI25:BI39)) -> 213344623.9 | BJ40: =SUM(BJ25:BJ39) -> 198982800 | BK40: 12106148.11 | BL40: 333060.1699 | BM40: 141947.1787 | BN40: 1780668.416 | BO40: 0
A41: 41 | H41: =H40/$H40 -> 1 | I41: 0.7895353842 | J41: 0.1467922915 | K41: 0.0110125287 | L41: 0.00209598574 | M41: 0.05056380986 | N41: 0 | AI41: =IF(SUM(R41:AH41)<>0,(ROUND(SUM(R41:AH41),8)<>1)+0,0) -> 0 | AT41: =IF(I40,AT40/I40,0) -> 0.1581491368 | AU41: 0.3414801863 | AV41: 0.3906450165 | AW41: 0.2383069039 | AX41: 0.3367024228 | AY41: 0 | BB41: =IF(I40,BB40/I40,0) -> 0.2624213525 | BC41: 0.4689106146 | BD41: 0.5398217675 | BE41: 0.6059907658 | BF41: 0.5823320894 | BG41: 0 | BJ41: =IF(I40,BJ40/I40,0) -> 0.5794295108 | BK41: 0.1896091991 | BL41: 0.06953321604 | BM41: 0.1557023303 | BN41: 0.08096548782 | BO41: 0
A42: 42 | D42: UG/D Plant | E42: =E23+E40 -> 463171000 | F42: ="("&A$23&"+"&A$40&")" -> (23+40) | G42: UG/D Plant (S03) | H42: =H23+H40 -> 463171000 | I42: =I23+I40 -> 362575598 | J42: 71541272.03 | K42: 5450207.435 | L42: 1056256.729 | M42: 22547665.79 | N42: 0 | R42: =($E23*R23+$E40*R40)/$E42 -> 0.1136397518 | S42: =($E23*S23+$E40*S40)/$E42 -> 0.05300156961 | T42: =($E23*T23+$E40*T40)/$E42 -> 0.07910707342 | U42: =($E23*U23+$E40*U40)/$E42 -> 0 | V42: =($E23*V23+$E40*V40)/$E42 -> 0 | W42: 0.2936342005 | X42: 0 | Y42: =($E23*Y23+$E40*Y40)/$E42 -> 0 | Z42: 0 | AA42: 0 | AB42: 0 | AC42: 0.3299975934 | AD42: 0.1243423421 | AE42: 0 | AF42: 0.006277469067 | AG42: =($E23*AG23+$E40*AG40)/$E42 -> 0 | AH42: 0 | AI42: 0
A43: 43 | AI43: 0
A44: 44 | D44: General Plant | AI44: 0
A45: 45 | B45: 389 | C45: O | D45: Land & Land Rights | E45: =PROFORMA!AQ282 -> 2748000 | F45: 4-Factor | H45: =SUM(I45:N45) -> 2748000 | I45: =$E45*SUMPRODUCT($R45:$AH45,INDEX(AllocFactors,I$4,0)) -> 2395648.729 | J45: 262324.9206 | K45: 17661.87697 | L45: 3675.302381 | M45: 68689.17067 | N45: 0 | P45: Corporate Cost Allocator (4-Factor) | R45: =(R$114*0.25)+(R$251*0.25)+(BS$250*0.25) -> 0.05967099314 | S45: =(S$114*0.25)+(S$251*0.25)+(BT$250*0.25) -> 0.04696751177 | T45: 0.0355507549 | U45: 0 | V45: 0 | W45: 0.136584133 | X45: 0 | Y45: 0 | Z45: 0 | AA45: 0 | AB45: =(AB$114*0.25)+(AB$251*0.25)+(CC$250*0.25)+0.25 -> 0.4515171542 | AC45: 0.1664888801 | AD45: 0.096243723 | AE45: 0 | AF45: 0.006976849831 | AG45: 0 | AH45: 1.218185842e-18 | AI45: 0 | AK45: =SUM(AL45:AO45) -> 2748000 | AL45: =SUMIF($R$4:$AH$4,AL$5,$R45:$AH45)*$E45 -> 390736.086 | AM45: 375333.1976 | AN45: 1981930.716 | AO45: 3.347574693e-12 | AQ45: =E$1&$A45&"*["&R$1&$A45&":"&$AH$1&$A45&" when "&R$1&$A$4&":"&$AH$1&$A$4&" = E,D,C,or R]" -> E45*[R45:AH45 when R4:AH4 = E,D,C,or R] | AS45: =SUM(AT45:AY45) -> 390736.086 | AT45: =$E45*SUMPRODUCT($R45:$V45,INDEX(AllocFactors_E,AT$4,0)) -> 253872.5795 | AU45: 101916.8826 | AV45: 8746.749993 | AW45: 1402.200515 | AX45: 24797.67334 | AY45: 0 | BA45: =SUM(BB45:BG45) -> 375333.1976 | BB45: =$E45*SUMPRODUCT($W45:$AA45,INDEX(AllocFactors_D,BB$4,0)) -> 248704.1763 | BC45: 82623.88737 | BD45: 7135.91645 | BE45: 1524.637651 | BF45: 35344.57977 | BG45: 0 | BI45: =SUM(BJ45:BO45) -> 1981930.716 | BJ45: =$E45*SUMPRODUCT($AB45:$AG45,INDEX(AllocFactors_C,BJ$4,0)) -> 1893071.974 | BK45: 77784.15056 | BL45: 1779.210526 | BM45: 748.4642154 | BN45: 8546.917562 | BO45: 0
A46: 46 | B46: 390 | C46: O | D46: Structures & Improvements | E46: =PROFORMA!AQ283 -> 24182000 | F46: 4-Factor | H46: 24182000 | I46: 21081360.11 | J46: 2308421.117 | K46: 155421.9465 | L46: 32342.12598 | M46: 604454.7035 | N46: 0 | P46: Corporate Cost Allocator (4-Factor) | R46: =(R$114*0.25)+(R$251*0.25)+(BS$250*0.25) -> 0.05967099314 | S46: 0.04696751177 | T46: 0.0355507549 | U46: 0 | V46: 0 | W46: 0.136584133 | X46: 0 | Y46: 0 | Z46: 0 | AA46: 0 | AB46: =(AB$114*0.25)+(AB$251*0.25)+(CC$250*0.25)+0.25 -> 0.4515171542 | AC46: 0.1664888801 | AD46: 0.096243723 | AE46: 0 | AF46: 0.006976849831 | AG46: 0 | AH46: 1.218185842e-18 | AI46: 0 | AK46: 24182000 | AL46: 3438420.681 | AM46: 3302877.505 | AN46: 17440701.81 | AO46: 2.945817002e-11 | AQ46: =E$1&$A46&"* """ -> E46* " | AS46: 3438420.681 | AT46: 2234041.746 | AU46: 896853.7322 | AV46: 76970.12675 | AW46: 12339.16043 | AX46: 218215.9158 | AY46: 0 | BA46: 3302877.505 | BB46: 2188560.55 | BC46: 727078.1821 | BD46: 62795.02606 | BE46: 13416.5894 | BF46: 311027.1572 | BG46: 0 | BI46: 17440701.81 | BJ46: 16658757.81 | BK46: 684489.2026 | BL46: 15656.79365 | BM46: 6586.376149 | BN46: 75211.63045 | BO46: 0
A47: 47 | B47: 391 | C47: O | D47: Office Furniture & Equipment | E47: =PROFORMA!AQ284 -> 11330000 | F47: 4-Factor | H47: 11330000 | I47: 9877256.224 | J47: 1081565.266 | K47: 72819.89303 | L47: 15153.26637 | M47: 283205.3507 | N47: 0 | P47: Corporate Cost Allocator (4-Factor) | R47: 0.05967099314 | S47: 0.04696751177 | T47: 0.0355507549 | U47: 0 | V47: 0 | W47: 0.136584133 | X47: 0 | Y47: 0 | Z47: 0 | AA47: 0 | AB47: 0.4515171542 | AC47: 0.1664888801 | AD47: 0.096243723 | AE47: 0 | AF47: 0.006976849831 | AG47: 0 | AH47: 1.218185842e-18 | AI47: 0 | AK47: 11330000 | AL47: 1611004.314 | AM47: 1547498.227 | AN47: 8171497.459 | AO47: 1.380204558e-11 | AQ47: =E$1&$A47&"* """ -> E47* " | AS47: 1611004.314 | AT47: 1046716.276 | AU47: 420203.1588 | AV47: 36062.83749 | AW47: 5781.270683 | AX47: 102240.7711 | AY47: 0 | BA47: 1547498.227 | BB47: 1025406.957 | BC47: 340658.1674 | BD47: 29421.37314 | BE47: 6286.078814 | BF47: 145725.6509 | BG47: 0 | BI47: 8171497.459 | BJ47: 7805132.992 | BK47: 320703.9395 | BL47: 7335.682409 | BM47: 3085.916871 | BN47: 35238.92867 | BO47: 0
A48: 48 | B48: 392 | C48: O | D48: Transportation Equipment | E48: =PROFORMA!AQ285 -> 11576000 | F48: 4-Factor | H48: 11576000 | I48: 10091713.86 | J48: 1105048.501 | K48: 74400.97809 | L48: 15482.27815 | M48: 289354.3812 | N48: 0 | P48: Corporate Cost Allocator (4-Factor) | R48: 0.05967099314 | S48: 0.04696751177 | T48: 0.0355507549 | U48: 0 | V48: 0 | W48: 0.136584133 | X48: 0 | Y48: 0 | Z48: 0 | AA48: 0 | AB48: 0.4515171542 | AC48: 0.1664888801 | AD48: 0.096243723 | AE48: 0 | AF48: 0.006976849831 | AG48: 0 | AH48: 1.218185842e-18 | AI48: 0 | AK48: 11576000 | AL48: 1645982.872 | AM48: 1581097.924 | AN48: 8348919.204 | AO48: 1.41017193e-11 | AQ48: E48* " | AS48: 1645982.872 | AT48: 1069442.86 | AU48: 429326.7225 | AV48: 36845.84349 | AW48: 5906.795183 | AX48: 104460.6501 | AY48: 0 | BA48: 1581097.924 | BB48: 1047670.868 | BC48: 348054.6289 | BD48: 30060.17789 | BE48: 6422.563844 | BF48: 148889.6854 | BG48: 0 | BI48: 8348919.204 | BJ48: 7974600.133 | BK48: 327667.1495 | BL48: 7494.956713 | BM48: 3152.919126 | BN48: 36004.04574 | BO48: 0
A49: 49 | B49: 393 | C49: O | D49: Stores Equipment | E49: =PROFORMA!AQ286 -> 831000 | F49: 4-Factor | H49: 831000 | I49: 724448.3603 | J49: 79327.51419 | K49: 5340.982446 | L49: 1111.41786 | M49: 20771.72519 | N49: 0 | P49: Corporate Cost Allocator (4-Factor) | R49: 0.05967099314 | S49: 0.04696751177 | T49: 0.0355507549 | U49: 0 | V49: 0 | W49: 0.136584133 | X49: 0 | Y49: 0 | Z49: 0 | AA49: 0 | AB49: 0.4515171542 | AC49: 0.1664888801 | AD49: 0.096243723 | AE49: 0 | AF49: 0.006976849831 | AG49: 0 | AH49: 1.218185842e-18 | AI49: 0 | AK49: 831000 | AL49: 118159.2749 | AM49: 113501.4145 | AN49: 599339.3105 | AO49: 1.012312434e-12 | AQ49: E49* " | AS49: 118159.2749 | AT49: 76771.51148 | AU49: 30819.84333 | AV49: 2645.032476 | AW49: 424.027885 | AX49: 7498.859732 | AY49: 0 | BA49: 113501.4145 | BB49: 75208.57734 | BC49: 24985.60786 | BD49: 2157.913599 | BE49: 461.0530887 | BF49: 10688.26266 | BG49: 0 | BI49: 599339.3105 | BJ49: 572468.2715 | BK49: 23522.063 | BL49: 538.0363708 | BM49: 226.3368861 | BN49: 2584.6028 | BO49: 0
A50: 50 | B50: 394 | C50: O | D50: Tools, Shop & Garage Equipment | E50: =PROFORMA!AQ287 -> 6860000 | F50: 4-Factor | H50: 6860000 | I50: 5980404.033 | J50: 654857.6984 | K50: 44090.42067 | L50: 9174.88149 | M50: 171472.9661 | N50: 0 | P50: Corporate Cost Allocator (4-Factor) | R50: 0.05967099314 | S50: 0.04696751177 | T50: 0.0355507549 | U50: 0 | V50: 0 | W50: 0.136584133 | X50: 0 | Y50: 0 | Z50: 0 | AA50: 0 | AB50: 0.4515171542 | AC50: 0.1664888801 | AD50: 0.096243723 | AE50: 0 | AF50: 0.006976849831 | AG50: 0 | AH50: 1.218185842e-18 | AI50: 0 | AK50: 6860000 | AL50: 975418.3223 | AM50: 936967.1526 | AN50: 4947614.525 | AO50: 8.356754873e-12 | AQ50: E50* " | AS50: 975418.3223 | AT50: 633757.6038 | AU50: 254421.33 | AV50: 21835.04547 | AW50: 3500.398666 | AX50: 61903.94436 | AY50: 0 | BA50: 936967.1526 | BB50: 620855.4038 | BC50: 206259.0493 | BD50: 17813.82345 | BE50: 3806.045954 | BF50: 88232.83013 | BG50: 0 | BI50: 4947614.525 | BJ50: 4725791.026 | BK50: 194177.3191 | BL50: 4441.55175 | BM50: 1868.43687 | BN50: 21336.19159 | BO50: 0
A51: 51 | B51: 395 | C51: O | D51: Laboratory Equipment | E51: =PROFORMA!AQ288 -> 333000 | F51: 4-Factor | H51: 333000 | I51: 290302.4115 | J51: 31788.28186 | K51: 2140.249283 | L51: 445.3696117 | M51: 8323.687712 | N51: 0 | P51: Corporate Cost Allocator (4-Factor) | R51: 0.05967099314 | S51: 0.04696751177 | T51: 0.0355507549 | U51: 0 | V51: 0 | W51: 0.136584133 | X51: 0 | Y51: 0 | Z51: 0 | AA51: 0 | AB51: 0.4515171542 | AC51: 0.1664888801 | AD51: 0.096243723 | AE51: 0 | AF51: 0.006976849831 | AG51: 0 | AH51: 1.218185842e-18 | AI51: 0 | AK51: 333000 | AL51: 47349.02352 | AM51: 45482.5163 | AN51: 240168.4602 | AO51: 4.056558852e-13 | AQ51: E51* " | AS51: 47349.02352 | AT51: 30764.03529 | AU51: 12350.18993 | AV51: 1059.922761 | AW51: 169.9173113 | AX51: 3004.958232 | AY51: 0 | BA51: 45482.5163 | BB51: 30137.73316 | BC51: 10012.2833 | BD51: 864.7235 | BE51: 184.7541258 | BF51: 4283.022221 | BG51: 0 | BI51: 240168.4602 | BJ51: 229400.6431 | BK51: 9425.808637 | BL51: 215.6030222 | BM51: 90.69817458 | BN51: 1035.707259 | BO51: 0
A52: 52 | B52: 396 | C52: O | D52: Power Operated Equipment | E52: =PROFORMA!AQ289 -> 4696000 | F52: 4-Factor | H52: 4696000 | I52: 4093874.248 | J52: 448281.5964 | K52: 30182.01392 | L52: 6280.647737 | M52: 117381.494 | N52: 0 | P52: Corporate Cost Allocator (4-Factor) | R52: 0.05967099314 | S52: 0.04696751177 | T52: 0.0355507549 | U52: 0 | V52: 0 | W52: 0.136584133 | X52: 0 | Y52: 0 | Z52: 0 | AA52: 0 | AB52: 0.4515171542 | AC52: 0.1664888801 | AD52: 0.096243723 | AE52: 0 | AF52: 0.006976849831 | AG52: 0 | AH52: 1.218185842e-18 | AI52: 0 | AK52: 4696000 | AL52: 667720.7641 | AM52: 641399.0887 | AN52: 3386880.147 | AO52: 5.720600712e-12 | AQ52: E52* " | AS52: 667720.7641 | AT52: 433837.5667 | AU52: 174163.6393 | AV52: 14947.139 | AW52: 2396.191273 | AX52: 42376.2278 | AY52: 0 | BA52: 641399.0887 | BB52: 425005.3901 | BC52: 141194.2413 | BD52: 12194.41909 | BE52: 2605.421546 | BF52: 60399.61666 | BG52: 0 | BI52: 3386880.147 | BJ52: 3235031.291 | BK52: 132923.7158 | BL52: 3040.455833 | BM52: 1279.034918 | BN52: 14605.64952 | BO52: 0
A53: 53 | B53: 397 | C53: O | D53: Communication Equipment | E53: =PROFORMA!AQ290 -> 9760000 | F53: 4-Factor | H53: 9760000 | I53: 8508563.173 | J53: 931692.5854 | K53: 62729.22824 | L53: 13053.47571 | M53: 243961.5377 | N53: 0 | P53: Corporate Cost Allocator (4-Factor) | R53: 0.05967099314 | S53: 0.04696751177 | T53: 0.0355507549 | U53: 0 | V53: 0 | W53: 0.136584133 | X53: 0 | Y53: 0 | Z53: 0 | AA53: 0 | AB53: 0.4515171542 | AC53: 0.1664888801 | AD53: 0.096243723 | AE53: 0 | AF53: 0.006976849831 | AG53: 0 | AH53: 1.218185842e-18 | AI53: 0 | AK53: 9760000 | AL53: 1387767.176 | AM53: 1333061.138 | AN53: 7039171.686 | AO53: 1.188949381e-11 | AQ53: E53* " | AS53: 1387767.176 | AT53: 901672.6258 | AU53: 361975.5366 | AV53: 31065.60405 | AW53: 4980.159035 | AX53: 88073.25029 | AY53: 0 | BA53: 1333061.138 | BB53: 883316.143 | BC53: 293453.108 | BD53: 25344.44853 | BE53: 5415.015819 | BF53: 125532.423 | BG53: 0 | BI53: 7039171.686 | BJ53: 6723574.404 | BK53: 276263.9408 | BL53: 6319.175667 | BM53: 2658.300853 | BN53: 30355.86441 | BO53: 0
A54: 54 | B54: 398 | C54: O | D54: Miscellaneous Equipment | E54: =PROFORMA!AQ291 -> 77000 | F54: 4-Factor | H54: 77000 | I54: 67126.98405 | J54: 7350.443553 | K54: 494.8924769 | L54: 102.9833637 | M54: 1924.696558 | N54: 0 | P54: Corporate Cost Allocator (4-Factor) | R54: 0.05967099314 | S54: 0.04696751177 | T54: 0.0355507549 | U54: 0 | V54: 0 | W54: 0.136584133 | X54: 0 | Y54: 0 | Z54: 0 | AA54: 0 | AB54: 0.4515171542 | AC54: 0.1664888801 | AD54: 0.096243723 | AE54: 0 | AF54: 0.006976849831 | AG54: 0 | AH54: 1.218185842e-18 | AI54: 0 | AK54: 77000 | AL54: 10948.57301 | AM54: 10516.97824 | AN54: 55534.44875 | AO54: 9.38003098e-14 | AQ54: E54* " | AS54: 10948.57301 | AT54: 7113.605757 | AU54: 2855.749623 | AV54: 245.0872451 | AW54: 39.29018911 | AX54: 694.8401918 | AY54: 0 | BA54: 10516.97824 | BB54: 6968.785144 | BC54: 2315.152594 | BD54: 199.9510796 | BE54: 42.72092398 | BF54: 990.3685015 | BG54: 0 | BI54: 55534.44875 | BJ54: 53044.59315 | BK54: 2179.541337 | BL54: 49.85415229 | BM54: 20.97225058 | BN54: 239.4878647 | BO54: 0
A55: 55 | D55: Total General Plant | E55: =SUM(E45:E54) -> 72393000 | G55: Genl Plant | H55: =IF(ROUND(SUM(H44:H54),3)<>ROUND(SUM(I55:N55),3),#VALUE!,SUM(H44:H54)) -> 72393000 | I55: =SUM(I44:I54) -> 63110698.13 | J55: 6910657.924 | K55: 465282.4816 | L55: 96821.74865 | M55: 1809539.713 | N55: 0 | P55: Corporate Cost Allocator (4-Factor) | R55: =SUMPRODUCT($E45:$E54,R$45:R$54)/$E55 -> 0.05967099314 | S55: =SUMPRODUCT($E45:$E54,S$45:S$54)/$E55 -> 0.04696751177 | T55: =SUMPRODUCT($E45:$E54,T$45:T$54)/$E55 -> 0.0355507549 | U55: =SUMPRODUCT($E45:$E54,U$45:U$54)/$E55 -> 0 | V55: =SUMPRODUCT($E45:$E54,V$45:V$54)/$E55 -> 0 | W55: 0.136584133 | X55: 0 | Y55: =SUMPRODUCT($E45:$E54,Y$45:Y$54)/$E55 -> 0 | Z55: =SUMPRODUCT($E45:$E54,Z$45:Z$54)/$E55 -> 0 | AA55: 0 | AB55: =SUMPRODUCT($E45:$E54,AB$45:AB$54)/$E55 -> 0.4515171542 | AC55: 0.1664888801 | AD55: 0.096243723 | AE55: =SUMPRODUCT($E45:$E54,AE$45:AE$54)/$E55 -> 0 | AF55: 0.006976849831 | AG55: =SUMPRODUCT($E45:$E54,AG$45:AG$54)/$E55 -> 0 | AH55: =SUMPRODUCT($E45:$E54,AH$45:AH$54)/$E55 -> 1.218185842e-18 | AI55: 0 | AK55: =SUM(AK44:AK54) -> 72393000 | AL55: =SUM(AL44:AL54) -> 10293507.09 | AM55: =SUM(AM44:AM54) -> 9887735.142 | AN55: =SUM(AN44:AN54) -> 52211757.77 | AO55: =SUM(AO44:AO54) -> 8.818812763e-11 | AQ55: =$A44&":"&$A54 -> 44:54 | AS55: =IF(ROUND(SUM(AS44:AS54),3)<>ROUND(SUM(AT55:AY55),3),#VALUE!,SUM(AS44:AS54)) -> 10293507.09 | AT55: =SUM(AT44:AT54) -> 6687990.41 | AU55: 2684886.785 | AV55: 230423.3887 | AW55: 36939.41117 | AX55: 653267.091 | AY55: 0 | BA55: =IF(ROUND(SUM(BA44:BA54),3)<>ROUND(SUM(BB55:BG55),3),#VALUE!,SUM(BA44:BA54)) -> 9887735.142 | BB55: =SUM(BB44:BB54) -> 6551834.584 | BC55: 2176634.308 | BD55: 187987.7728 | BE55: 40164.88116 | BF55: 931113.5965 | BG55: 0 | BI55: =IF(ROUND(SUM(BI44:BI54),3)<>ROUND(SUM(BJ55:BO55),3),#VALUE!,SUM(BI44:BI54)) -> 52211757.77 | BJ55: =SUM(BJ44:BJ54) -> 49870873.14 | BK55: 2049136.831 | BL55: 46871.32009 | BM55: 19717.45631 | BN55: 225159.0259 | BO55: 0
A56: 56 | AI56: 0
A57: 57 | D57: Total Plant In Service | E57: =E12+E23+E40+E55 -> 561284000 | F57: ="("&A$12&"+"&A$23&"+"&A$40&"+"&A$55&")" -> (12+23+40+55) | G57: Plant in Service (S17) | H57: =H12+H23+H40+H55 -> 561284000 | I57: =I12+I23+I40+I55 -> 447918305.1 | J57: 81025848.57 | K57: 6091398.196 | L57: 1189231.339 | M57: 25059216.79 | N57: 0 | P57: ="Sum("&$A12&","&$A23&","&$A40&","&$A55&")" -> Sum(12,23,40,55) | R57: =($E12*R12+$E23*R23+$E40*R40+$E55*R55)/$E57 -> 0.1044238916 | S57: =($E12*S12+$E23*S23+$E40*S40+$E55*S55)/$E57 -> 0.05175334518 | T57: 0.07169393891 | U57: =($E12*U12+$E23*U23+$E40*U40+$E55*U55)/$E57 -> 0 | V57: =($E12*V12+$E23*V23+$E40*V40+$E55*V55)/$E57 -> 0 | W57: 0.2669070677 | X57: 0 | Y57: =($E12*Y12+$E23*Y23+$E40*Y40+$E55*Y55)/$E57 -> 0 | Z57: 0 | AA57: 0 | AB57: 0.07706579003 | AC57: 0.3021778039 | AD57: 0.1195796445 | AE57: 0 | AF57: 0.00639851816 | AG57: =($E12*AG12+$E23*AG23+$E40*AG40+$E55*AG55)/$E57 -> 0 | AH57: 2.079222315e-19 | AI57: 0 | AK57: =AK12+AK23+AK40+AK55 -> 561284000 | AL57: =AL12+AL23+AL40+AL55 -> 127900445 | AM57: =AM12+AM23+AM40+AM55 -> 149810666.6 | AN57: =AN12+AN23+AN40+AN55 -> 283572888.4 | AO57: =AO12+AO23+AO40+AO55 -> 1.167034218e-10 | AQ57: ="Sum("&$A12&","&$A23&","&$A40&","&$A55&")" -> Sum(12,23,40,55) | AS57: =AS12+AS23+AS40+AS55 -> 127900445 | AT57: =AT12+AT23+AT40+AT55 -> 82613481.33 | AU57: 33165096.04 | AV57: 2846307.658 | AW57: 411892.0401 | AX57: 8863667.923 | AY57: 0 | BA57: =BA12+BA23+BA40+BA55 -> 149810666.6 | BB57: =BB12+BB23+BB40+BB55 -> 99267900.3 | BC57: 32978536.73 | BD57: 2848233.002 | BE57: 608544.5791 | BF57: 14107451.96 | BG57: 0 | BI57: =BI12+BI23+BI40+BI55 -> 283572888.4 | BJ57: =BJ12+BJ23+BJ40+BJ55 -> 266036923.5 | BK57: 14882215.8 | BL57: 396857.5352 | BM57: 168794.7201 | BN57: 2088096.904 | BO57: 0
A58: 58 | E58: =(E57/1000)-PROFORMA!AQ294 -> 0 | AI58: 0
A59: 59 | AI59: 0
A60: 60 | D60: Accumulated Reserve For Depreciation | AI60: 0
A61: 61 | D61: Underground Storage Plant Accumulated Depreciation | AI61: 0
A62: 62 | B62: 350 | C62: U | D62: Land & Land Rights Accum. Depr. | E62: =PROFORMA!AQ308 -> -19000 | F62: ="as 350 Plant ("&A$15&")" -> as 350 Plant (15) | H62: =SUM(I62:N62) -> -19000 | I62: =$E62*SUMPRODUCT($R62:$AH62,INDEX(AllocFactors,I$4,0)) -> -12904.15231 | J62: -5180.358504 | K62: -444.5907247 | L62: -97.3663962 | M62: -373.532069 | N62: 0 | P62: =E$1&$A62&"* Sum["&$R$1&$A62&":"&$AH$1&$A62&"* "&Factors!D$1&Factors!$A$58&":"&Factors!S$1&Factors!$A$64&"]" -> E62* Sum[R62:AH62* D1037:S1043] | R62: =R$15 -> 0.13 | S62: =S$15 -> 0.87 | T62: 0 | U62: 0 | V62: 0 | W62: 0 | X62: 0 | Y62: 0 | Z62: 0 | AA62: 0 | AB62: 0 | AC62: 0 | AD62: 0 | AE62: 0 | AF62: 0 | AG62: 0 | AH62: 0 | AI62: 0 | AK62: =SUM(AL62:AO62) -> -19000 | AL62: =SUMIF($R$4:$AH$4,AL$5,$R62:$AH62)*$E62 -> -19000 | AM62: 0 | AN62: 0 | AO62: 0 | AQ62: =E$1&$A62&"*["&R$1&$A62&":"&$AH$1&$A62&" when "&R$1&$A$4&":"&$AH$1&$A$4&" = E,D,C,or R]" -> E62*[R62:AH62 when R4:AH4 = E,D,C,or R] | AS62: =SUM(AT62:AY62) -> -19000 | AT62: =$E62*SUMPRODUCT($R62:$V62,INDEX(AllocFactors_E,AT$4,0)) -> -12904.15231 | AU62: -5180.358504 | AV62: -444.5907247 | AW62: -97.3663962 | AX62: -373.532069 | AY62: 0 | BA62: =SUM(BB62:BG62) -> 0 | BB62: =$E62*SUMPRODUCT($W62:$AA62,INDEX(AllocFactors_D,BB$4,0)) -> 0 | BC62: 0 | BD62: 0 | BE62: 0 | BF62: 0 | BG62: 0 | BI62: =SUM(BJ62:BO62) -> 0 | BJ62: =$E62*SUMPRODUCT($AB62:$AG62,INDEX(AllocFactors_C,BJ$4,0)) -> 0 | BK62: 0 | BL62: 0 | BM62: 0 | BN62: 0 | BO62: 0
A63: 63 | B63: 351 | C63: U | D63: Structures & Improvements Accum. Depr. | E63: =PROFORMA!AQ309 -> -602000 | F63: ="as 351 Plant ("&A$16&")" -> as 351 Plant (16) | H63: -602000 | I63: -408857.8783 | J63: -164135.5695 | K63: -14086.50612 | L63: -3084.977396 | M63: -11835.06871 | N63: 0 | P63: =E$1&$A63&"* """ -> E63* " | R63: =R$16 -> 0.13 | S63: =S$16 -> 0.87 | T63: 0 | U63: 0 | V63: 0 | W63: 0 | X63: 0 | Y63: 0 | Z63: 0 | AA63: 0 | AB63: 0 | AC63: 0 | AD63: 0 | AE63: 0 | AF63: 0 | AG63: 0 | AH63: 0 | AI63: 0 | AK63: -602000 | AL63: -602000 | AM63: 0 | AN63: 0 | AO63: 0 | AQ63: =E$1&$A63&"* """ -> E63* " | AS63: -602000 | AT63: -408857.8783 | AU63: -164135.5695 | AV63: -14086.50612 | AW63: -3084.977396 | AX63: -11835.06871 | AY63: 0 | BA63: 0 | BB63: 0 | BC63: 0 | BD63: 0 | BE63: 0 | BF63: 0 | BG63: 0 | BI63: 0 | BJ63: 0 | BK63: 0 | BL63: 0 | BM63: 0 | BN63: 0 | BO63: 0
A64: 64 | B64: 352 | C64: U | D64: Wells Accum. Depr. | E64: =PROFORMA!AQ310 -> -6988000 | F64: ="as 352 Plant ("&A$17&")" -> as 352 Plant (17) | H64: -6988000 | I64: -4746011.385 | J64: -1905281.328 | K64: -163515.7886 | L64: -35810.33561 | M64: -137381.1631 | N64: 0 | P64: E64* " | R64: =R$17 -> 0.13 | S64: =S$17 -> 0.87 | T64: 0 | U64: 0 | V64: 0 | W64: 0 | X64: 0 | Y64: 0 | Z64: 0 | AA64: 0 | AB64: 0 | AC64: 0 | AD64: 0 | AE64: 0 | AF64: 0 | AG64: 0 | AH64: 0 | AI64: 0 | AK64: -6988000 | AL64: -6988000 | AM64: 0 | AN64: 0 | AO64: 0 | AQ64: =E$1&$A64&"* """ -> E64* " | AS64: -6988000 | AT64: -4746011.385 | AU64: -1905281.328 | AV64: -163515.7886 | AW64: -35810.33561 | AX64: -137381.1631 | AY64: 0 | BA64: 0 | BB64: 0 | BC64: 0 | BD64: 0 | BE64: 0 | BF64: 0 | BG64: 0 | BI64: 0 | BJ64: 0 | BK64: 0 | BL64: 0 | BM64: 0 | BN64: 0 | BO64: 0
A65: 65 | B65: 353 | C65: U | D65: Lines Accum. Depr. | E65: =PROFORMA!AQ311 -> -415000 | F65: ="as 353 Plant ("&A$18&")" -> as 353 Plant (18) | H65: -415000 | I65: -281853.853 | J65: -113149.9358 | K65: -9710.797407 | L65: -2126.687075 | M65: -8158.726771 | N65: 0 | P65: E65* " | R65: =R$18 -> 0.13 | S65: =S$18 -> 0.87 | T65: 0 | U65: 0 | V65: 0 | W65: 0 | X65: 0 | Y65: 0 | Z65: 0 | AA65: 0 | AB65: 0 | AC65: 0 | AD65: 0 | AE65: 0 | AF65: 0 | AG65: 0 | AH65: 0 | AI65: 0 | AK65: -415000 | AL65: -415000 | AM65: 0 | AN65: 0 | AO65: 0 | AQ65: E65* " | AS65: -415000 | AT65: -281853.853 | AU65: -113149.9358 | AV65: -9710.797407 | AW65: -2126.687075 | AX65: -8158.726771 | AY65: 0 | BA65: 0 | BB65: 0 | BC65: 0 | BD65: 0 | BE65: 0 | BF65: 0 | BG65: 0 | BI65: 0 | BJ65: 0 | BK65: 0 | BL65: 0 | BM65: 0 | BN65: 0 | BO65: 0
A66: =RowHdr -> 66 | B66: 354 | C66: U | D66: Compressor Station Equip. Accum. Depr. | E66: =PROFORMA!AQ312 -> -2097000 | F66: ="as 354 Plant ("&A$19&")" -> as 354 Plant (19) | H66: -2097000 | I66: -1424210.915 | J66: -571747.9886 | K66: -49068.7763 | L66: -10746.17541 | M66: -41226.14467 | N66: 0 | P66: E66* " | R66: =R$19 -> 0.13 | S66: =S$19 -> 0.87 | T66: 0 | U66: 0 | V66: 0 | W66: 0 | X66: 0 | Y66: 0 | Z66: 0 | AA66: 0 | AB66: 0 | AC66: 0 | AD66: 0 | AE66: 0 | AF66: 0 | AG66: 0 | AH66: 0 | AI66: 0 | AK66: -2097000 | AL66: -2097000 | AM66: 0 | AN66: 0 | AO66: 0 | AQ66: E66* " | AS66: -2097000 | AT66: -1424210.915 | AU66: -571747.9886 | AV66: -49068.7763 | AW66: -10746.17541 | AX66: -41226.14467 | AY66: 0 | BA66: 0 | BB66: 0 | BC66: 0 | BD66: 0 | BE66: 0 | BF66: 0 | BG66: 0 | BI66: 0 | BJ66: 0 | BK66: 0 | BL66: 0 | BM66: 0 | BN66: 0 | BO66: 0
A67: 67 | B67: 355 | C67: U | D67: Measuring & Regulating Equip. Accum. Depr. | E67: =PROFORMA!AQ313 -> 46000 | F67: ="as 355 Plant ("&A$20&")" -> as 355 Plant (20) | H67: 46000 | I67: 31241.6319 | J67: 12541.92059 | K67: 1076.377544 | L67: 235.7291698 | M67: 904.3407987 | N67: 0 | P67: E67* " | R67: =R$20 -> 0.13 | S67: =S$20 -> 0.87 | T67: 0 | U67: 0 | V67: 0 | W67: 0 | X67: 0 | Y67: 0 | Z67: 0 | AA67: 0 | AB67: 0 | AC67: 0 | AD67: 0 | AE67: 0 | AF67: 0 | AG67: 0 | AH67: 0 | AI67: 0 | AK67: 46000 | AL67: 46000 | AM67: 0 | AN67: 0 | AO67: 0 | AQ67: E67* " | AS67: 46000 | AT67: 31241.6319 | AU67: 12541.92059 | AV67: 1076.377544 | AW67: 235.7291698 | AX67: 904.3407987 | AY67: 0 | BA67: 0 | BB67: 0 | BC67: 0 | BD67: 0 | BE67: 0 | BF67: 0 | BG67: 0 | BI67: 0 | BJ67: 0 | BK67: 0 | BL67: 0 | BM67: 0 | BN67: 0 | BO67: 0
A68: 68 | B68: 356 | C68: U | D68: Purification Equipment Accum. Depr. | E68: =PROFORMA!AQ314 -> -288000 | F68: ="as 356 Plant ("&A$21&")" -> as 356 Plant (21) | H68: -288000 | I68: -195599.7823 | J68: -78523.32891 | K68: -6739.059406 | L68: -1475.869585 | M68: -5661.959783 | N68: 0 | P68: E68* " | R68: =R$21 -> 0.13 | S68: =S$21 -> 0.87 | T68: 0 | U68: 0 | V68: 0 | W68: 0 | X68: 0 | Y68: 0 | Z68: 0 | AA68: 0 | AB68: 0 | AC68: 0 | AD68: 0 | AE68: 0 | AF68: 0 | AG68: 0 | AH68: 0 | AI68: 0 | AK68: -288000 | AL68: -288000 | AM68: 0 | AN68: 0 | AO68: 0 | AQ68: E68* " | AS68: -288000 | AT68: -195599.7823 | AU68: -78523.32891 | AV68: -6739.059406 | AW68: -1475.869585 | AX68: -5661.959783 | AY68: 0 | BA68: 0 | BB68: 0 | BC68: 0 | BD68: 0 | BE68: 0 | BF68: 0 | BG68: 0 | BI68: 0 | BJ68: 0 | BK68: 0 | BL68: 0 | BM68: 0 | BN68: 0 | BO68: 0
A69: 69 | B69: 357 | C69: U | D69: Other Equipment Accum. Depr. | E69: =PROFORMA!AQ315 -> -609000 | F69: ="as 357 Plant ("&A$22&")" -> as 357 Plant (22) | H69: -609000 | I69: -413612.0397 | J69: -166044.1226 | K69: -14250.3027 | L69: -3120.849226 | M69: -11972.68579 | N69: 0 | P69: E69* " | R69: =R$22 -> 0.13 | S69: =S$22 -> 0.87 | T69: 0 | U69: 0 | V69: 0 | W69: 0 | X69: 0 | Y69: 0 | Z69: 0 | AA69: 0 | AB69: 0 | AC69: 0 | AD69: 0 | AE69: 0 | AF69: 0 | AG69: 0 | AH69: 0 | AI69: 0 | AK69: -609000 | AL69: -609000 | AM69: 0 | AN69: 0 | AO69: 0 | AQ69: E69* " | AS69: -609000 | AT69: -413612.0397 | AU69: -166044.1226 | AV69: -14250.3027 | AW69: -3120.849226 | AX69: -11972.68579 | AY69: 0 | BA69: 0 | BB69: 0 | BC69: 0 | BD69: 0 | BE69: 0 | BF69: 0 | BG69: 0 | BI69: 0 | BJ69: 0 | BK69: 0 | BL69: 0 | BM69: 0 | BN69: 0 | BO69: 0
A70: 70 | D70: Total Transmission Plant Accum Depr | E70: =SUM(E62:E69) -> -10972000 | H70: =IF(ROUND(SUM(H61:H69),3)<>ROUND(SUM(I70:N70),3),#VALUE!,SUM(H61:H69)) -> -10972000 | I70: =SUM(I61:I69) -> -7451808.374 | J70: -2991520.711 | K70: -256739.4437 | L70: -56226.53153 | M70: -215704.9401 | N70: 0 | P70: =$A61&":"&A69 -> 61:69 | R70: =SUMPRODUCT($E62:$E69,R$62:R$69)/$E70 -> 0.13 | S70: 0.87 | T70: 0 | U70: 0 | V70: 0 | W70: 0 | X70: 0 | Y70: 0 | Z70: 0 | AA70: 0 | AB70: 0 | AC70: 0 | AD70: 0 | AE70: 0 | AF70: 0 | AG70: 0 | AH70: 0 | AI70: 0 | AK70: =IF(ROUND(SUM(AK61:AK69),3)<>ROUND(SUM(AL70:AO70),3),#VALUE!,SUM(AK61:AK69)) -> -10972000 | AL70: =SUM(AL61:AL69) -> -10972000 | AM70: =SUM(AM61:AM69) -> 0 | AN70: =SUM(AN61:AN69) -> 0 | AO70: =SUM(AO61:AO69) -> 0 | AQ70: =$A61&":"&$A69 -> 61:69 | AS70: =IF(ROUND(SUM(AS61:AS69),3)<>ROUND(SUM(AT70:AY70),3),#VALUE!,SUM(AS61:AS69)) -> -10972000 | AT70: =SUM(AT61:AT69) -> -7451808.374 | AU70: -2991520.711 | AV70: -256739.4437 | AW70: -56226.53153 | AX70: -215704.9401 | AY70: 0 | BA70: =IF(ROUND(SUM(BA61:BA69),3)<>ROUND(SUM(BB70:BG70),3),#VALUE!,SUM(BA61:BA69)) -> 0 | BB70: =SUM(BB61:BB69) -> 0 | BC70: 0 | BD70: 0 | BE70: 0 | BF70: 0 | BG70: 0 | BI70: =IF(ROUND(SUM(BI61:BI69),3)<>ROUND(SUM(BJ70:BO70),3),#VALUE!,SUM(BI61:BI69)) -> 0 | BJ70: =SUM(BJ61:BJ69) -> 0 | BK70: 0 | BL70: 0 | BM70: 0 | BN70: 0 | BO70: 0
A71: 71 | AI71: 0
A72: 72 | D72: Distribution Plant Accumulated Depreciation | AI72: =IF(SUM(R72:AH72)<>0,(ROUND(SUM(R72:AH72),8)<>1)+0,0) -> 0
A73: 73 | B73: 374 | C73: D | D73: Land & Land Rights Accum. Depr. | E73: =PROFORMA!AQ319 -> -7000 | F73: ="as 374 Plant ("&A$26&")" -> as 374 Plant (26) | H73: =SUM(I73:N73) -> -7000 | I73: =$E73*SUMPRODUCT($R73:$AH73,INDEX(AllocFactors,I$4,0)) -> -5526.74769 | J73: -1027.54604 | K73: -77.08770092 | L73: -14.67190018 | M73: -353.946669 | N73: 0 | P73: =E$1&$A73&"* Sum["&$R$1&$A73&":"&$AH$1&$A73&"* "&Factors!D$1&Factors!$A$58&":"&Factors!S$1&Factors!$A$64&"]" -> E73* Sum[R73:AH73* D1037:S1043] | R73: =R$26 -> 0.1125784049 | S73: =S$26 -> 0 | T73: 0.08423902827 | U73: 0 | V73: 0 | W73: 0.3126832867 | X73: 0 | Y73: 0 | Z73: 0 | AA73: 0 | AB73: 0 | AC73: 0.3514057011 | AD73: 0.1324088684 | AE73: 0 | AF73: 0.006684710625 | AG73: 0 | AH73: 0 | AI73: 0 | AK73: =SUM(AL73:AO73) -> -7000 | AL73: =SUMIF($R$4:$AH$4,AL$5,$R73:$AH73)*$E73 -> -1377.722032 | AM73: -2188.783007 | AN73: -3433.494961 | AO73: 0 | AQ73: =E$1&$A73&"*["&R$1&$A73&":"&$AH$1&$A73&" when "&R$1&$A$4&":"&$AH$1&$A$4&" = E,D,C,or R]" -> E73*[R73:AH73 when R4:AH4 = E,D,C,or R] | AS73: =SUM(AT73:AY73) -> -1377.722032 | AT73: =$E73*SUMPRODUCT($R73:$V73,INDEX(AllocFactors_E,AT$4,0)) -> -874.0503762 | AU73: -350.8866133 | AV73: -30.1139262 | AW73: -3.496415106 | AX73: -119.174701 | AY73: 0 | BA73: =SUM(BB73:BG73) -> -2188.783007 | BB73: =$E73*SUMPRODUCT($W73:$AA73,INDEX(AllocFactors_D,BB$4,0)) -> -1450.336603 | BC73: -481.8272453 | BD73: -41.61361896 | BE73: -8.891036026 | BF73: -206.1145033 | BG73: 0 | BI73: =SUM(BJ73:BO73) -> -3433.494961 | BJ73: =$E73*SUMPRODUCT($AB73:$AG73,INDEX(AllocFactors_C,BJ$4,0)) -> -3202.36071 | BK73: -194.8321818 | BL73: -5.360155762 | BM73: -2.284449048 | BN73: -28.65746472 | BO73: 0
A74: 74 | B74: 375 | C74: D | D74: Structures & Improvements Accum. Depr. | E74: =PROFORMA!AQ320 -> -190000 | F74: ="as 375 Plant ("&A$27&")" -> as 375 Plant (27) | H74: -190000 | I74: -150011.723 | J74: -27890.53538 | K74: -2092.380454 | L74: -398.2372906 | M74: -9607.123873 | N74: 0 | P74: =E$1&$A74&"* """ -> E74* " | R74: =R$27 -> 0.1125784049 | S74: =S$27 -> 0 | T74: 0.08423902827 | U74: 0 | V74: 0 | W74: 0.3126832867 | X74: 0 | Y74: 0 | Z74: 0 | AA74: 0 | AB74: 0 | AC74: 0.3514057011 | AD74: 0.1324088684 | AE74: 0 | AF74: 0.006684710625 | AG74: 0 | AH74: 0 | AI74: 0 | AK74: -190000 | AL74: -37395.31229 | AM74: -59409.82448 | AN74: -93194.86323 | AO74: 0 | AQ74: =E$1&$A74&"* """ -> E74* " | AS74: -37395.31229 | AT74: -23724.2245 | AU74: -9524.065218 | AV74: -817.3779968 | AW74: -94.90269573 | AX74: -3234.741884 | AY74: 0 | BA74: -59409.82448 | BB74: -39366.27924 | BC74: -13078.16809 | BD74: -1129.512515 | BE74: -241.3281207 | BF74: -5594.536518 | BG74: 0 | BI74: -93194.86323 | BJ74: -86921.21927 | BK74: -5288.302076 | BL74: -145.4899421 | BM74: -62.00647416 | BN74: -777.8454709 | BO74: 0
A75: 75 | B75: 376-All | C75: D | D75: Mains Accum. Depr. | E75: =PROFORMA!AQ321+PROFORMA!AQ322 -> -67479000 | F75: ="as 376-SM Plant ("&A$30&")" -> as 376-SM Plant (30) | H75: =SUM(I75:N75) -> -67479000 | I75: -44014185.61 | J75: -15769692.68 | K75: -1358350.786 | L75: -232886.9796 | M75: -6103883.944 | N75: 0 | P75: =E$1&$A75&"* """ -> E75* " | R75: =R$28 -> 0.2159944957 | S75: =S$28 -> 0 | T75: 0.1703002149 | U75: 0 | V75: 0 | W75: 0.6137052894 | X75: 0 | Y75: 0 | Z75: 0 | AA75: 0 | AB75: 0 | AC75: 0 | AD75: 0 | AE75: 0 | AF75: 0 | AG75: 0 | AH75: 0 | AI75: =IF(SUM(R75:AH75)<>0,(ROUND(SUM(R75:AH75),8)<>1)+0,0) -> 0 | AK75: =SUM(AL75:AO75) -> -67479000 | AL75: -26066780.78 | AM75: -41412219.22 | AN75: 0 | AO75: 0 | AQ75: =E$1&$A75&"* """ -> E75* " | AS75: =SUM(AT75:AY75) -> -26066780.78 | AT75: -16573522.38 | AU75: -6653423.3 | AV75: -571012.6595 | AW75: -64666.77146 | AX75: -2204155.662 | AY75: 0 | BA75: =SUM(BB75:BG75) -> -41412219.22 | BB75: -27440663.23 | BC75: -9116269.382 | BD75: -787338.126 | BE75: -168220.2082 | BF75: -3899728.282 | BG75: 0 | BI75: =SUM(BJ75:BO75) -> 0 | BJ75: 0 | BK75: 0 | BL75: 0 | BM75: 0 | BN75: 0 | BO75: 0
A76: 76 | B76: 376 | C76: D | D76: Mains Accum. Depr. | F76: ="as 376-SM Plant ("&A$30&")" -> as 376-SM Plant (30) | H76: 0 | I76: 0 | J76: 0 | K76: 0 | L76: 0 | M76: 0 | N76: 0 | P76: E76* " | R76: =R$29 -> 0 | S76: =S$29 -> 0 | T76: 0 | U76: 0 | V76: 0 | W76: 0 | X76: 0 | Y76: 0 | Z76: 0 | AA76: 0 | AB76: 0 | AC76: 0 | AD76: 0 | AE76: 0 | AF76: 0 | AG76: 0 | AH76: 0 | AI76: 0 | AK76: 0 | AL76: 0 | AM76: 0 | AN76: 0 | AO76: 0 | AQ76: =E$1&$A76&"* """ -> E76* " | AS76: 0 | AT76: 0 | AU76: 0 | AV76: 0 | AW76: 0 | AX76: 0 | AY76: 0 | BA76: 0 | BB76: 0 | BC76: 0 | BD76: 0 | BE76: 0 | BF76: 0 | BG76: 0 | BI76: 0 | BJ76: 0 | BK76: 0 | BL76: 0 | BM76: 0 | BN76: 0 | BO76: 0
A77: 77 | B77: 378 | C77: D | D77: Meas & Reg Station Equip-Gen. Accum. Depr. | E77: =PROFORMA!AQ323 -> -945000 | F77: ="as 378 Plant ("&A$31&")" -> as 378 Plant (31) | H77: -945000 | I77: -598943.7441 | J77: -213840.4771 | K77: -18421.73544 | L77: -3975.463044 | M77: -109818.5803 | N77: 0 | P77: E77* " | R77: =R$31 -> 0.3862947106 | S77: =S$31 -> 0 | T77: 0 | U77: 0 | V77: 0 | W77: 0.6137052894 | X77: 0 | Y77: 0 | Z77: 0 | AA77: 0 | AB77: 0 | AC77: 0 | AD77: 0 | AE77: 0 | AF77: 0 | AG77: 0 | AH77: 0 | AI77: 0 | AK77: -945000 | AL77: -365048.5015 | AM77: -579951.4985 | AN77: 0 | AO77: 0 | AQ77: E77* " | AS77: -365048.5015 | AT77: -214654.9024 | AU77: -86172.98703 | AV77: -7395.571314 | AW77: -1619.64721 | AX77: -55205.39355 | AY77: 0 | BA77: -579951.4985 | BB77: -384288.8417 | BC77: -127667.4901 | BD77: -11026.16413 | BE77: -2355.815835 | BF77: -54613.18672 | BG77: 0 | BI77: 0 | BJ77: 0 | BK77: 0 | BL77: 0 | BM77: 0 | BN77: 0 | BO77: 0
A78: 78 | B78: 379 | C78: D | D78: Meas & Reg Station Equip-City Gate Accum. Depr. | E78: =PROFORMA!AQ324 -> -547000 | F78: ="as 379 Plant ("&A$32&")" -> as 379 Plant (32) | H78: -547000 | I78: -346690.1884 | J78: -123778.5619 | K78: -10663.16327 | L78: -2301.141043 | M78: -63566.9454 | N78: 0 | P78: E78* " | R78: =R$32 -> 0.3862947106 | S78: =S$32 -> 0 | T78: 0 | U78: 0 | V78: 0 | W78: 0.6137052894 | X78: 0 | Y78: 0 | Z78: 0 | AA78: 0 | AB78: 0 | AC78: 0 | AD78: 0 | AE78: 0 | AF78: 0 | AG78: 0 | AH78: 0 | AI78: 0 | AK78: -547000 | AL78: -211303.2067 | AM78: -335696.7933 | AN78: 0 | AO78: 0 | AQ78: E78* " | AS78: -211303.2067 | AT78: -124249.9805 | AU78: -49880.02529 | AV78: -4280.82276 | AW78: -937.510078 | AX78: -31954.86801 | AY78: 0 | BA78: -335696.7933 | BB78: -222440.2078 | BC78: -73898.53661 | BD78: -6382.340505 | BE78: -1363.630965 | BF78: -31612.07739 | BG78: 0 | BI78: 0 | BJ78: 0 | BK78: 0 | BL78: 0 | BM78: 0 | BN78: 0 | BO78: 0
A79: 79 | B79: 380 | C79: D | D79: Services Accum. Depr. | E79: =PROFORMA!AQ325 -> -57597000 | F79: ="as 380 Plant ("&A$33&")" -> as 380 Plant (33) | H79: -57597000 | I79: -56375872.89 | J79: -1006486.421 | K79: -24985.2749 | L79: -2196.507684 | M79: -187458.9032 | N79: 0 | P79: E79* " | R79: =R$33 -> 0 | S79: =S$33 -> 0 | T79: 0 | U79: 0 | V79: 0 | W79: 0 | X79: 0 | Y79: 0 | Z79: 0 | AA79: 0 | AB79: 0 | AC79: 1 | AD79: 0 | AE79: 0 | AF79: 0 | AG79: 0 | AH79: 0 | AI79: 0 | AK79: -57597000 | AL79: 0 | AM79: 0 | AN79: -57597000 | AO79: 0 | AQ79: E79* " | AS79: 0 | AT79: 0 | AU79: 0 | AV79: 0 | AW79: 0 | AX79: 0 | AY79: 0 | BA79: 0 | BB79: 0 | BC79: 0 | BD79: 0 | BE79: 0 | BF79: 0 | BG79: 0 | BI79: -57597000 | BJ79: -56375872.89 | BK79: -1006486.421 | BL79: -24985.2749 | BM79: -2196.507684 | BN79: -187458.9032 | BO79: 0
A80: 80 | B80: 381 | C80: D | D80: Meters Accum. Depr. | E80: =PROFORMA!AQ326 -> -13440000 | F80: ="as 381 Plant ("&A$34&")" -> as 381 Plant (34) | H80: -13440000 | I80: -11523178.77 | J80: -1653239.814 | K80: -41772.87127 | L80: -21262.18241 | M80: -200546.3641 | N80: 0 | P80: E80* " | R80: =R$34 -> 0 | S80: =S$34 -> 0 | T80: 0 | U80: 0 | V80: 0 | W80: 0 | X80: 0 | Y80: 0 | Z80: 0 | AA80: 0 | AB80: 0 | AC80: 0 | AD80: 1 | AE80: 0 | AF80: 0 | AG80: 0 | AH80: 0 | AI80: 0 | AK80: -13440000 | AL80: 0 | AM80: 0 | AN80: -13440000 | AO80: 0 | AQ80: E80* " | AS80: 0 | AT80: 0 | AU80: 0 | AV80: 0 | AW80: 0 | AX80: 0 | AY80: 0 | BA80: 0 | BB80: 0 | BC80: 0 | BD80: 0 | BE80: 0 | BF80: 0 | BG80: 0 | BI80: -13440000 | BJ80: -11523178.77 | BK80: -1653239.814 | BL80: -41772.87127 | BM80: -21262.18241 | BN80: -200546.3641 | BO80: 0
A81: 81 | B81: 382 | C81: D | D81: Meter Installations Accum. Depr. | E81: =PROFORMA!AQ327 -> 0 | F81: ="as 382 Plant ("&A$35&")" -> as 382 Plant (35) | H81: 0 | I81: 0 | J81: 0 | K81: 0 | L81: 0 | M81: 0 | N81: 0 | P81: E81* " | R81: =R$35 -> 0 | S81: =S$35 -> 0 | T81: 0 | U81: 0 | V81: 0 | W81: 0 | X81: 0 | Y81: 0 | Z81: 0 | AA81: 0 | AB81: 1 | AC81: 0 | AD81: 0 | AE81: 0 | AF81: 0 | AG81: 0 | AH81: 0 | AI81: 0 | AK81: 0 | AL81: 0 | AM81: 0 | AN81: 0 | AO81: 0 | AQ81: E81* " | AS81: 0 | AT81: 0 | AU81: 0 | AV81: 0 | AW81: 0 | AX81: 0 | AY81: 0 | BA81: 0 | BB81: 0 | BC81: 0 | BD81: 0 | BE81: 0 | BF81: 0 | BG81: 0 | BI81: 0 | BJ81: 0 | BK81: 0 | BL81: 0 | BM81: 0 | BN81: 0 | BO81: 0
A82: 82 | B82: 383 | C82: D | D82: House Regulators Accum. Depr. | E82: =PROFORMA!AQ328 -> 0 | F82: ="as 383 Plant ("&A$36&")" -> as 383 Plant (36) | H82: 0 | I82: 0 | J82: 0 | K82: 0 | L82: 0 | M82: 0 | N82: 0 | P82: E82* " | R82: =R$36 -> 0 | S82: =S$36 -> 0 | T82: 0 | U82: 0 | V82: 0 | W82: 0 | X82: 0 | Y82: 0 | Z82: 0 | AA82: 0 | AB82: 0 | AC82: 0 | AD82: 0 | AE82: 0 | AF82: 0 | AG82: 0 | AH82: 0 | AI82: 0 | AK82: 0 | AL82: 0 | AM82: 0 | AN82: 0 | AO82: 0 | AQ82: E82* " | AS82: 0 | AT82: 0 | AU82: 0 | AV82: 0 | AW82: 0 | AX82: 0 | AY82: 0 | BA82: 0 | BB82: 0 | BC82: 0 | BD82: 0 | BE82: 0 | BF82: 0 | BG82: 0 | BI82: 0 | BJ82: 0 | BK82: 0 | BL82: 0 | BM82: 0 | BN82: 0 | BO82: 0
A83: 83 | B83: 384 | C83: D | D83: House Regulator Installations Accum. Depr. | E83: =PROFORMA!AQ329 -> 0 | F83: ="as 384 Plant ("&A$37&")" -> as 384 Plant (37) | H83: 0 | I83: 0 | J83: 0 | K83: 0 | L83: 0 | M83: 0 | N83: 0 | P83: E83* " | R83: =R$37 -> 0 | S83: =S$37 -> 0 | T83: 0 | U83: 0 | V83: 0 | W83: 0 | X83: 0 | Y83: 0 | Z83: 0 | AA83: 0 | AB83: 1 | AC83: 0 | AD83: 0 | AE83: 0 | AF83: 0 | AG83: 0 | AH83: 0 | AI83: 0 | AK83: 0 | AL83: 0 | AM83: 0 | AN83: 0 | AO83: 0 | AQ83: E83* " | AS83: 0 | AT83: 0 | AU83: 0 | AV83: 0 | AW83: 0 | AX83: 0 | AY83: 0 | BA83: 0 | BB83: 0 | BC83: 0 | BD83: 0 | BE83: 0 | BF83: 0 | BG83: 0 | BI83: 0 | BJ83: 0 | BK83: 0 | BL83: 0 | BM83: 0 | BN83: 0 | BO83: 0
A84: 84 | B84: 385 | C84: D | D84: Industrial Meas & Reg Station Equip Accum. Depr. | E84: =PROFORMA!AQ330 -> -1136000 | F84: ="as 385 Plant ("&A$38&")" -> as 385 Plant (38) | H84: -1136000 | I84: 0 | J84: -918527.9729 | K84: -34286.85152 | L84: -17584.86657 | M84: -165600.309 | N84: 0 | P84: E84* " | R84: =R$38 -> 0 | S84: =S$38 -> 0 | T84: 0 | U84: 0 | V84: 0 | W84: 0 | X84: 0 | Y84: 0 | Z84: 0 | AA84: 0 | AB84: 0 | AC84: 0 | AD84: 0 | AE84: 0 | AF84: 1 | AG84: 0 | AH84: 0 | AI84: 0 | AK84: -1136000 | AL84: 0 | AM84: 0 | AN84: -1136000 | AO84: 0 | AQ84: E84* " | AS84: 0 | AT84: 0 | AU84: 0 | AV84: 0 | AW84: 0 | AX84: 0 | AY84: 0 | BA84: 0 | BB84: 0 | BC84: 0 | BD84: 0 | BE84: 0 | BF84: 0 | BG84: 0 | BI84: -1136000 | BJ84: 0 | BK84: -918527.9729 | BL84: -34286.85152 | BM84: -17584.86657 | BN84: -165600.309 | BO84: 0
A85: 85 | B85: 387 | C85: D | D85: Other Equipment Accum. Depr. | E85: =PROFORMA!AQ331 -> 0 | F85: ="as 387 Plant ("&A$39&")" -> as 387 Plant (39) | H85: 0 | I85: 0 | J85: 0 | K85: 0 | L85: 0 | M85: 0 | N85: 0 | P85: E85* " | R85: =R$39 -> 0.1125784049 | S85: =S$39 -> 0 | T85: 0.08423902827 | U85: 0 | V85: 0 | W85: 0.3126832867 | X85: 0 | Y85: 0 | Z85: 0 | AA85: 0 | AB85: 0 | AC85: 0.3514057011 | AD85: 0.1324088684 | AE85: 0 | AF85: 0.006684710625 | AG85: 0 | AH85: 0 | AI85: 0 | AK85: 0 | AL85: 0 | AM85: 0 | AN85: 0 | AO85: 0 | AQ85: E85* " | AS85: 0 | AT85: 0 | AU85: 0 | AV85: 0 | AW85: 0 | AX85: 0 | AY85: 0 | BA85: 0 | BB85: 0 | BC85: 0 | BD85: 0 | BE85: 0 | BF85: 0 | BG85: 0 | BI85: 0 | BJ85: 0 | BK85: 0 | BL85: 0 | BM85: 0 | BN85: 0 | BO85: 0
A86: 86 | D86: Total Distribution Plant Accum Depr | E86: =SUM(E73:E85) -> -141341000 | H86: =IF(ROUND(SUM(H72:H85),3)<>ROUND(SUM(I86:N86),3),#VALUE!,SUM(H72:H85)) -> -141341000 | I86: =SUM(I72:I85) -> -113014409.7 | J86: -19714484.01 | K86: -1490650.15 | L86: -280620.0496 | M86: -6840836.117 | N86: 0 | P86: =$A72&":"&A85 -> 72:85 | R86: =SUMPRODUCT($E73:$E85,R$73:R$85)/$E86 -> 0.1073547112 | S86: 0 | T86: 0.08142211594 | U86: 0 | V86: 0 | W86: 0.2999091992 | X86: 0 | Y86: 0 | Z86: 0 | AA86: 0 | AB86: 0 | AC86: 0.4079936248 | AD86: 0.09527373195 | AE86: 0 | AF86: 0.008046616962 | AG86: 0 | AH86: 0 | AI86: 0 | AK86: =IF(ROUND(SUM(AK72:AK85),3)<>ROUND(SUM(AL86:AO86),3),#VALUE!,SUM(AK72:AK85)) -> -141341000 | AL86: =SUM(AL72:AL85) -> -26681905.52 | AM86: =SUM(AM72:AM85) -> -42389466.12 | AN86: =SUM(AN72:AN85) -> -72269628.36 | AO86: =SUM(AO72:AO85) -> 0 | AQ86: =$A72&":"&$A85 -> 72:85 | AS86: =IF(ROUND(SUM(AS72:AS85),3)<>ROUND(SUM(AT86:AY86),3),#VALUE!,SUM(AS72:AS85)) -> -26681905.52 | AT86: =SUM(AT72:AT85) -> -16937025.54 | AU86: -6799351.265 | AV86: -583536.5455 | AW86: -67322.32786 | AX86: -2294669.84 | AY86: 0 | BA86: =IF(ROUND(SUM(BA72:BA85),3)<>ROUND(SUM(BB86:BG86),3),#VALUE!,SUM(BA72:BA85)) -> -42389466.12 | BB86: =SUM(BB72:BB85) -> -28088208.89 | BC86: -9331395.404 | BD86: -805917.7568 | BE86: -172189.8741 | BF86: -3991754.197 | BG86: 0 | BI86: =IF(ROUND(SUM(BI72:BI85),3)<>ROUND(SUM(BJ86:BO86),3),#VALUE!,SUM(BI72:BI85)) -> -72269628.36 | BJ86: =SUM(BJ72:BJ85) -> -67989175.24 | BK86: -3583737.341 | BL86: -101195.8478 | BM86: -41107.84758 | BN86: -554412.0793 | BO86: 0
A88: =RowHdr -> 88 | D88: UG/D Plant | E88: =E70+E86 -> -152313000 | F88: ="("&A$23&"+"&A$40&")" -> (23+40) | G88: UG/D Plant (S03) | H88: =H70+H86 -> -152313000 | I88: =I70+I86 -> -120466218 | J88: -22706004.72 | K88: -1747389.594 | L88: -336846.5811 | M88: -7056541.057 | N88: =N69+N86 -> 0 | R88: =($E70*R70+$E86*R86)/$E88 -> 0.1089859843 | S88: =($E70*S70+$E86*S86)/$E88 -> 0.06267120994 | T88: =($E70*T70+$E86*T86)/$E88 -> 0.0755568027 | U88: =($E70*U70+$E86*U86)/$E88 -> 0 | V88: 0 | W88: =($E70*W70+$E86*W86)/$E88 -> 0.2783049781 | X88: 0 | Y88: 0 | Z88: 0 | AA88: 0 | AB88: 0 | AC88: 0.3786034477 | AD88: 0.08841060544 | AE88: 0 | AF88: 0.00746697188 | AG88: 0 | AH88: 0 | AI88: =IF(SUM(R88:AH88)<>0,(ROUND(SUM(R88:AH88),8)<>1)+0,0) -> 0
A89: 89 | AI89: 0
A90: 90 | D90: General Plant Accumulated Depreciation | AI90: 0
A91: 91 | B91: 389 | C91: O | D91: Land & Land Rights Accum. Depr. | E91: =PROFORMA!AQ335 -> -14000 | F91: ="as 389 Plant ("&A$45&")" -> as 389 Plant (45) | H91: =SUM(I91:N91) -> -14000 | I91: =$E91*SUMPRODUCT($R91:$AH91,INDEX(AllocFactors,I$4,0)) -> -12204.90619 | J91: -1336.444282 | K91: -89.98045035 | L91: -18.72424794 | M91: -349.9448287 | N91: 0 | P91: Corporate Cost Allocator (4-Factor) | R91: =(R$114*0.25)+(R$251*0.25)+(BS$250*0.25) -> 0.05967099314 | S91: =(S$114*0.25)+(S$251*0.25)+(BT$250*0.25) -> 0.04696751177 | T91: 0.0355507549 | U91: 0 | V91: 0 | W91: 0.136584133 | X91: 0 | Y91: 0 | Z91: 0 | AA91: 0 | AB91: =(AB$114*0.25)+(AB$251*0.25)+(CC$250*0.25)+0.25 -> 0.4515171542 | AC91: 0.1664888801 | AD91: 0.096243723 | AE91: 0 | AF91: 0.006976849831 | AG91: 0 | AH91: 1.218185842e-18 | AI91: 0 | AK91: =SUM(AL91:AO91) -> -14000 | AL91: =SUMIF($R$4:$AH$4,AL$5,$R91:$AH91)*$E91 -> -1990.649637 | AM91: -1912.177862 | AN91: -10097.1725 | AO91: -1.705460178e-14 | AQ91: =E$1&$A91&"*["&R$1&$A91&":"&$AH$1&$A91&" when "&R$1&$A$4&":"&$AH$1&$A$4&" = E,D,C,or R]" -> E91*[R91:AH91 when R4:AH4 = E,D,C,or R] | AS91: =SUM(AT91:AY91) -> -1990.649637 | AT91: =$E91*SUMPRODUCT($R91:$V91,INDEX(AllocFactors_E,AT$4,0)) -> -1293.382865 | AU91: -519.2272041 | AV91: -44.56131728 | AW91: -7.143670747 | AX91: -126.3345803 | AY91: 0 | BA91: =SUM(BB91:BG91) -> -1912.177862 | BB91: =$E91*SUMPRODUCT($W91:$AA91,INDEX(AllocFactors_D,BB$4,0)) -> -1267.051844 | BC91: -420.9368352 | BD91: -36.35474174 | BE91: -7.767440723 | BF91: -180.0670003 | BG91: 0 | BI91: =SUM(BJ91:BO91) -> -10097.1725 | BJ91: =$E91*SUMPRODUCT($AB91:$AG91,INDEX(AllocFactors_C,BJ$4,0)) -> -9644.471481 | BK91: -396.280243 | BL91: -9.064391326 | BM91: -3.813136469 | BN91: -43.54324813 | BO91: 0
A92: 92 | B92: 390 | C92: O | D92: Structures & Improvements Accum. Depr. | E92: =PROFORMA!AQ336 -> -1394000 | F92: ="as 390 Plant ("&A$46&")" -> as 390 Plant (46) | H92: -1394000 | I92: -1215259.945 | J92: -133071.6664 | K92: -8959.481985 | L92: -1864.400116 | M92: -34844.50652 | N92: 0 | P92: Corporate Cost Allocator (4-Factor) | R92: =(R$114*0.25)+(R$251*0.25)+(BS$250*0.25) -> 0.05967099314 | S92: 0.04696751177 | T92: 0.0355507549 | U92: 0 | V92: 0 | W92: 0.136584133 | X92: 0 | Y92: 0 | Z92: 0 | AA92: 0 | AB92: =(AB$114*0.25)+(AB$251*0.25)+(CC$250*0.25)+0.25 -> 0.4515171542 | AC92: 0.1664888801 | AD92: 0.096243723 | AE92: 0 | AF92: 0.006976849831 | AG92: 0 | AH92: 1.218185842e-18 | AI92: 0 | AK92: -1394000 | AL92: -198211.8282 | AM92: -190398.2814 | AN92: -1005389.89 | AO92: -1.698151063e-12 | AQ92: =E$1&$A92&"* """ -> E92* " | AS92: -198211.8282 | AT92: -128783.9795 | AU92: -51700.19447 | AV92: -4437.034021 | AW92: -711.3055015 | AX92: -12579.31464 | AY92: 0 | BA92: -190398.2814 | BB92: -126162.1622 | BC92: -41913.28202 | BD92: -3619.893571 | BE92: -773.4151692 | BF92: -17929.52846 | BG92: 0 | BI92: -1005389.89 | BJ92: -960313.8032 | BK92: -39458.18991 | BL92: -902.5543934 | BM92: -379.6794455 | BN92: -4335.663421 | BO92: 0
A93: 93 | B93: 391 | C93: O | D93: Office Furniture & Equipment Accum. Depr. | E93: =PROFORMA!AQ337 -> -6621000 | F93: ="as 391 Plant ("&A$47&")" -> as 391 Plant (47) | H93: -6621000 | I93: -5772048.849 | J93: -632042.6853 | K93: -42554.32584 | L93: -8855.231829 | M93: -165498.9079 | N93: 0 | P93: Corporate Cost Allocator (4-Factor) | R93: 0.05967099314 | S93: 0.04696751177 | T93: 0.0355507549 | U93: 0 | V93: 0 | W93: 0.136584133 | X93: 0 | Y93: 0 | Z93: 0 | AA93: 0 | AB93: 0.4515171542 | AC93: 0.1664888801 | AD93: 0.096243723 | AE93: 0 | AF93: 0.006976849831 | AG93: 0 | AH93: 1.218185842e-18 | AI93: 0 | AK93: -6621000 | AL93: -941435.0892 | AM93: -904323.5448 | AN93: -4775241.366 | AO93: -8.065608457e-12 | AQ93: =E$1&$A93&"* """ -> E93* " | AS93: -941435.0892 | AT93: -611677.7106 | AU93: -245557.3799 | AV93: -21074.32012 | AW93: -3378.446001 | AX93: -59747.2326 | AY93: 0 | BA93: -904323.5448 | BB93: -599225.0187 | BC93: -199073.0561 | BD93: -17193.19608 | BE93: -3673.444645 | BF93: -85158.8292 | BG93: 0 | BI93: -4775241.366 | BJ93: -4561146.12 | BK93: -187412.2492 | BL93: -4286.80964 | BM93: -1803.341183 | BN93: -20592.84614 | BO93: 0
A94: 94 | B94: 392 | C94: O | D94: Transportation Equipment Accum. Depr. | E94: =PROFORMA!AQ338 -> -5186000 | F94: ="as 392 Plant ("&A$48&")" -> as 392 Plant (48) | H94: -5186000 | I94: -4521045.965 | J94: -495057.1463 | K94: -33331.32968 | L94: -6935.996415 | M94: -129629.563 | N94: 0 | P94: Corporate Cost Allocator (4-Factor) | R94: 0.05967099314 | S94: 0.04696751177 | T94: 0.0355507549 | U94: 0 | V94: 0 | W94: 0.136584133 | X94: 0 | Y94: 0 | Z94: 0 | AA94: 0 | AB94: 0.4515171542 | AC94: 0.1664888801 | AD94: 0.096243723 | AE94: 0 | AF94: 0.006976849831 | AG94: 0 | AH94: 1.218185842e-18 | AI94: 0 | AK94: -5186000 | AL94: -737393.5014 | AM94: -708325.3139 | AN94: -3740281.185 | AO94: -6.317511774e-12 | AQ94: E94* " | AS94: -737393.5014 | AT94: -479105.9669 | AU94: -192336.5915 | AV94: -16506.7851 | AW94: -2646.219749 | AX94: -46797.93811 | AY94: 0 | BA94: -708325.3139 | BB94: -469352.2047 | BC94: -155927.0305 | BD94: -13466.83505 | BE94: -2877.281971 | BF94: -66701.96167 | BG94: 0 | BI94: -3740281.185 | BJ94: -3572587.793 | BK94: -146793.5243 | BL94: -3357.70953 | BM94: -1412.494695 | BN94: -16129.6632 | BO94: 0
A95: 95 | B95: 393 | C95: O | D95: Stores Equipment Accum. Depr. | E95: =PROFORMA!AQ339 -> -213000 | F95: ="as 393 Plant ("&A$49&")" -> as 393 Plant (49) | H95: -213000 | I95: -185688.9299 | J95: -20333.04515 | K95: -1368.98828 | L95: -284.8760579 | M95: -5324.160609 | N95: 0 | P95: Corporate Cost Allocator (4-Factor) | R95: 0.05967099314 | S95: 0.04696751177 | T95: 0.0355507549 | U95: 0 | V95: 0 | W95: 0.136584133 | X95: 0 | Y95: 0 | Z95: 0 | AA95: 0 | AB95: 0.4515171542 | AC95: 0.1664888801 | AD95: 0.096243723 | AE95: 0 | AF95: 0.006976849831 | AG95: 0 | AH95: 1.218185842e-18 | AI95: 0 | AK95: -213000 | AL95: -30286.31234 | AM95: -29092.42033 | AN95: -153621.2673 | AO95: -2.594735842e-13 | AQ95: E95* " | AS95: -30286.31234 | AT95: -19677.89644 | AU95: -7899.671034 | AV95: -677.968613 | AW95: -108.6858478 | AX95: -1922.090401 | AY95: 0 | BA95: -29092.42033 | BB95: -19277.28878 | BC95: -6404.253279 | BD95: -553.1114279 | BE95: -118.1760624 | BF95: -2739.59079 | BG95: 0 | BI95: -153621.2673 | BJ95: -146733.7447 | BK95: -6029.12084 | BL95: -137.9082395 | BM95: -58.0141477 | BN95: -662.479418 | BO95: 0
A96: 96 | B96: 394 | C96: O | D96: Tools, Shop & Garage Equip. Accum. Depr. | E96: =PROFORMA!AQ340 -> -2029000 | F96: ="as 394 Plant ("&A$50&")" -> as 394 Plant (50) | H96: -2029000 | I96: -1768839.619 | J96: -193688.9606 | K96: -13040.73813 | L96: -2713.678505 | M96: -50717.00411 | N96: 0 | P96: Corporate Cost Allocator (4-Factor) | R96: 0.05967099314 | S96: 0.04696751177 | T96: 0.0355507549 | U96: 0 | V96: 0 | W96: 0.136584133 | X96: 0 | Y96: 0 | Z96: 0 | AA96: 0 | AB96: 0.4515171542 | AC96: 0.1664888801 | AD96: 0.096243723 | AE96: 0 | AF96: 0.006976849831 | AG96: 0 | AH96: 1.218185842e-18 | AI96: 0 | AK96: -2029000 | AL96: -288502.0082 | AM96: -277129.2059 | AN96: -1463368.786 | AO96: -2.471699072e-12 | AQ96: E96* " | AS96: -288502.0082 | AT96: -187448.1309 | AU96: -75250.85694 | AV96: -6458.208055 | AW96: -1035.321996 | AX96: -18309.49025 | AY96: 0 | BA96: -277129.2059 | BB96: -183632.0137 | BC96: -61005.77419 | BD96: -5268.840785 | BE96: -1125.724088 | BF96: -26096.85311 | BG96: 0 | BI96: -1463368.786 | BJ96: -1397759.474 | BK96: -57432.3295 | BL96: -1313.689286 | BM96: -552.6324211 | BN96: -6310.660747 | BO96: 0
A97: 97 | B97: 395 | C97: O | D97: Laboratory Equipment Accum. Depr. | E97: =PROFORMA!AQ341 -> -101000 | F97: ="as 395 Plant ("&A$51&")" -> as 395 Plant (51) | H97: -101000 | I97: -88049.68038 | J97: -9641.490894 | K97: -649.1446775 | L97: -135.0820744 | M97: -2524.601979 | N97: 0 | P97: Corporate Cost Allocator (4-Factor) | R97: 0.05967099314 | S97: 0.04696751177 | T97: 0.0355507549 | U97: 0 | V97: 0 | W97: 0.136584133 | X97: 0 | Y97: 0 | Z97: 0 | AA97: 0 | AB97: 0.4515171542 | AC97: 0.1664888801 | AD97: 0.096243723 | AE97: 0 | AF97: 0.006976849831 | AG97: 0 | AH97: 1.218185842e-18 | AI97: 0 | AK97: -101000 | AL97: -14361.11524 | AM97: -13794.99744 | AN97: -72843.88732 | AO97: -1.2303677e-13 | AQ97: E97* " | AS97: -14361.11524 | AT97: -9330.833525 | AU97: -3745.853401 | AV97: -321.4780747 | AW97: -51.53648181 | AX97: -911.4137581 | AY97: 0 | BA97: -13794.99744 | BB97: -9140.874021 | BC97: -3036.758597 | BD97: -262.273494 | BE97: -56.03653665 | BF97: -1299.054788 | BG97: 0 | BI97: -72843.88732 | BJ97: -69577.97283 | BK97: -2858.878896 | BL97: -65.39310885 | BM97: -27.50905595 | BN97: -314.133433 | BO97: 0
A98: 98 | B98: 396 | C98: O | D98: Power Operated Equipment Accum. Depr. | E98: =PROFORMA!AQ342 -> -2546000 | F98: ="as 396 Plant ("&A$52&")" -> as 396 Plant (52) | H98: -2546000 | I98: -2219549.369 | J98: -243041.9388 | K98: -16363.58761 | L98: -3405.138232 | M98: -63639.96671 | N98: 0 | P98: Corporate Cost Allocator (4-Factor) | R98: 0.05967099314 | S98: 0.04696751177 | T98: 0.0355507549 | U98: 0 | V98: 0 | W98: 0.136584133 | X98: 0 | Y98: 0 | Z98: 0 | AA98: 0 | AB98: 0.4515171542 | AC98: 0.1664888801 | AD98: 0.096243723 | AE98: 0 | AF98: 0.006976849831 | AG98: 0 | AH98: 1.218185842e-18 | AI98: 0 | AK98: -2546000 | AL98: -362013.8555 | AM98: -347743.2027 | AN98: -1836242.942 | AO98: -3.101501153e-12 | AQ98: E98* " | AS98: -362013.8555 | AT98: -235210.9124 | AU98: -94425.17584 | AV98: -8103.793843 | AW98: -1299.127551 | AX98: -22974.84582 | AY98: 0 | BA98: -347743.2027 | BB98: -230422.4283 | BC98: -76550.37018 | BD98: -6611.369462 | BE98: -1412.564577 | BF98: -32746.47019 | BG98: 0 | BI98: -1836242.942 | BJ98: -1753916.028 | BK98: -72066.39276 | BL98: -1648.424308 | BM98: -693.4461035 | BN98: -7918.650696 | BO98: 0
A99: 99 | B99: 397 | C99: O | D99: Communication Equipment Accum. Depr. | E99: =PROFORMA!AQ343 -> -4491000 | F99: ="as 397 Plant ("&A$53&")" -> as 397 Plant (53) | H99: -4491000 | I99: -3915159.55 | J99: -428712.2337 | K99: -28864.44304 | L99: -6006.471249 | M99: -112257.3018 | N99: 0 | P99: Corporate Cost Allocator (4-Factor) | R99: 0.05967099314 | S99: 0.04696751177 | T99: 0.0355507549 | U99: 0 | V99: 0 | W99: 0.136584133 | X99: 0 | Y99: 0 | Z99: 0 | AA99: 0 | AB99: 0.4515171542 | AC99: 0.1664888801 | AD99: 0.096243723 | AE99: 0 | AF99: 0.006976849831 | AG99: 0 | AH99: 1.218185842e-18 | AI99: 0 | AK99: -4491000 | AL99: -638571.9658 | AM99: -613399.3414 | AN99: -3239028.693 | AO99: -5.470872614e-12 | AQ99: E99* " | AS99: -638571.9658 | AT99: -414898.7462 | AU99: -166560.6696 | AV99: -14294.63399 | AW99: -2291.587523 | AX99: -40526.32859 | AY99: 0 | BA99: -613399.3414 | BB99: -406452.131 | BC99: -135030.5234 | BD99: -11662.0818 | BE99: -2491.684021 | BF99: -57762.9213 | BG99: 0 | BI99: -3239028.693 | BJ99: -3093808.673 | BK99: -127121.0408 | BL99: -2907.727246 | BM99: -1223.199706 | BN99: -13968.05195 | BO99: 0
A100: 100 | B100: 398 | C100: O | D100: Miscellaneous Equipment Accum. Depr. | E100: =PROFORMA!AQ344 -> -45000 | F100: ="as 398 Plant ("&A$54&")" -> as 398 Plant (54) | H100: -45000 | I100: -39230.05561 | J100: -4295.713765 | K100: -289.2228761 | L100: -60.18508266 | M100: -1124.822664 | N100: 0 | P100: Corporate Cost Allocator (4-Factor) | R100: =(R$114*0.25)+(R$251*0.25)+(BS$250*0.25) -> 0.05967099314 | S100: 0.04696751177 | T100: 0.0355507549 | U100: 0 | V100: 0 | W100: 0.136584133 | X100: 0 | Y100: 0 | Z100: 0 | AA100: 0 | AB100: 0.4515171542 | AC100: 0.1664888801 | AD100: 0.096243723 | AE100: 0 | AF100: 0.006976849831 | AG100: 0 | AH100: 1.218185842e-18 | AI100: 0 | AK100: -45000 | AL100: -6398.516692 | AM100: -6146.285986 | AN100: -32455.19732 | AO100: -5.481836287e-14 | AQ100: E100* " | AS100: -6398.516692 | AT100: -4157.302066 | AU100: -1668.944585 | AV100: -143.2328056 | AW100: -22.96179883 | AX100: -406.0754368 | AY100: 0 | BA100: -6146.285986 | BB100: -4072.666643 | BC100: -1353.011256 | BD100: -116.854527 | BE100: -24.96677375 | BF100: -578.7867866 | BG100: 0 | BI100: -32455.19732 | BJ100: -31000.0869 | BK100: -1273.757924 | BL100: -29.13554355 | BM100: -12.25651008 | BN100: -139.9604404 | BO100: 0
A101: 101 | D101: Total General Plant Accum Depreciation | E101: =SUM(E91:E100) -> -22640000 | H101: =IF(ROUND(SUM(H90:H100),3)<>ROUND(SUM(I101:N101),3),#VALUE!,SUM(H90:H100)) -> -22640000 | I101: =SUM(I90:I100) -> -19737076.87 | J101: -2161221.325 | K101: -145511.2426 | L101: -30279.78381 | M101: -565910.7802 | N101: 0 | P101: =$A90&":"&$A100 -> 90:100 | R101: =SUMPRODUCT($E91:$E100,R$91:R$100)/$E101 -> 0.05967099314 | S101: 0.04696751177 | T101: 0.0355507549 | U101: =SUMPRODUCT($E91:$E100,U$91:U$100)/$E101 -> 0 | V101: =SUMPRODUCT($E91:$E100,V$91:V$100)/$E101 -> 0 | W101: 0.136584133 | X101: 0 | Y101: =SUMPRODUCT($E91:$E100,Y$91:Y$100)/$E101 -> 0 | Z101: 0 | AA101: 0 | AB101: 0.4515171542 | AC101: 0.1664888801 | AD101: 0.096243723 | AE101: 0 | AF101: 0.006976849831 | AG101: =SUMPRODUCT($E91:$E100,AG$91:AG$100)/$E101 -> 0 | AH101: 1.218185842e-18 | AI101: 0 | AK101: =IF(ROUND(SUM(AK90:AK100),3)<>ROUND(SUM(AL101:AO101),3),#VALUE!,SUM(AK90:AK100)) -> -22640000 | AL101: =SUM(AL90:AL100) -> -3219164.842 | AM101: =SUM(AM90:AM100) -> -3092264.772 | AN101: =SUM(AN90:AN100) -> -16328570.39 | AO101: =SUM(AO90:AO100) -> -2.757972745e-11 | AQ101: =$A90&":"&$A100 -> 90:100 | AS101: =IF(ROUND(SUM(AS90:AS100),3)<>ROUND(SUM(AT101:AY101),3),#VALUE!,SUM(AS90:AS100)) -> -3219164.842 | AT101: =SUM(AT90:AT100) -> -2091584.861 | AU101: -839664.5644 | AV101: -72062.01595 | AW101: -11552.33612 | AX101: -204301.0642 | AY101: 0 | BA101: =IF(ROUND(SUM(BA90:BA100),3)<>ROUND(SUM(BB101:BG101),3),#VALUE!,SUM(BA90:BA100)) -> -3092264.772 | BB101: =SUM(BB90:BB100) -> -2049003.84 | BC101: -680714.9964 | BD101: -58790.81093 | BE101: -12561.06128 | BF101: -291194.0633 | BG101: 0 | BI101: =IF(ROUND(SUM(BI90:BI100),3)<>ROUND(SUM(BJ101:BO101),3),#VALUE!,SUM(BI90:BI100)) -> -16328570.39 | BJ101: =SUM(BJ90:BJ100) -> -15596488.17 | BK101: -640841.7644 | BL101: -14658.41569 | BM101: -6166.386404 | BN101: -70415.6527 | BO101: 0
A102: 102 | AI102: 0
A103: 103 | D103: Total Accumulated Reserve for Depreciation | E103: =E70+E86+E101 -> -174953000 | F103: ="("&A$70&"+"&A$86&"+"&A$101&")" -> (70+86+101) | H103: =H70+H86+H101 -> -174953000 | I103: -140203294.9 | J103: -24867226.05 | K103: -1892900.836 | L103: -367126.3649 | M103: -7622451.837 | N103: 0 | P103: ="Sum("&$A70&","&$A86&","&$A101&")" -> Sum(70,86,101) | R103: =($E70*R70+$E86*R86+$E101*R101)/$E103 -> 0.1026043195 | S103: 0.0606390543 | T103: 0.07037977274 | U103: 0 | V103: 0 | W103: 0.2599654244 | X103: 0 | Y103: 0 | Z103: 0 | AA103: 0 | AB103: 0.05842911166 | AC103: 0.351154511 | AD103: 0.08942425929 | AE103: 0 | AF103: 0.007403547057 | AG103: 0 | AH103: 1.576407804e-19 | AI103: 0 | AK103: =AK70+AK86+AK101 -> -174953000 | AL103: =AL70+AL86+AL101 -> -40873070.36 | AM103: =AM70+AM86+AM101 -> -45481730.89 | AN103: =AN70+AN86+AN101 -> -88598198.74 | AO103: =AO70+AO86+AO101 -> -2.757972745e-11 | AQ103: ="Sum("&$A70&","&$A86&","&$A101&")" -> Sum(70,86,101) | AS103: =AS70+AS86+AS101 -> -40873070.36 | AT103: -26480418.78 | AU103: -10630536.54 | AV103: -912338.0052 | AW103: -135101.1955 | AX103: -2714675.845 | AY103: 0 | BA103: =BA70+BA86+BA101 -> -45481730.89 | BB103: -30137212.73 | BC103: -10012110.4 | BD103: -864708.5677 | BE103: -184750.9354 | BF103: -4282948.26 | BG103: 0 | BI103: =BI70+BI86+BI101 -> -88598198.74 | BJ103: -83585663.41 | BK103: -4224579.106 | BL103: -115854.2635 | BM103: -47274.23398 | BN103: -624827.732 | BO103: 0
A104: 104 | AI104: 0
A105: 105 | D105: Amortization | AI105: 0
A106: 106 | B106: 303.1 | C106: O | D106: Accum Amort of Intangible Plant-Software | E106: =PROFORMA!AQ350 -> -6044000 | F106: 4-Factor | H106: =SUM(I106:N106) -> -6044000 | I106: =$E106*SUMPRODUCT($R106:$AH106,INDEX(AllocFactors,I$4,0)) -> -5269032.358 | J106: -576962.0888 | K106: -38845.84585 | L106: -8083.525324 | M106: -151076.1818 | N106: 0 | P106: Corporate Cost Allocator (4-Factor) | R106: =(R$114*0.25)+(R$251*0.25)+(BS$250*0.25) -> 0.05967099314 | S106: =(S$114*0.25)+(S$251*0.25)+(BT$250*0.25) -> 0.04696751177 | T106: 0.0355507549 | U106: 0 | V106: 0 | W106: 0.136584133 | X106: 0 | Y106: 0 | Z106: 0 | AA106: 0 | AB106: =(AB$114*0.25)+(AB$251*0.25)+(CC$250*0.25)+0.25 -> 0.4515171542 | AC106: 0.1664888801 | AD106: 0.096243723 | AE106: 0 | AF106: 0.006976849831 | AG106: 0 | AH106: =AH$42 -> 0 | AI106: =IF(SUM(R106:AH106)<>0,(ROUND(SUM(R106:AH106),8)<>1)+0,0) -> 0 | AK106: =SUM(AL106:AO106) -> -6044000 | AL106: =SUMIF($R$4:$AH$4,AL$5,$R106:$AH106)*$E106 -> -859391.8863 | AM106: -825514.5 | AN106: -4359093.614 | AO106: 0 | AQ106: =E$1&$A106&"* """ -> E106* " | AS106: =SUM(AT106:AY106) -> -859391.8863 | AT106: =$E106*SUMPRODUCT($R106:$V106,INDEX(AllocFactors_E,AT$4,0)) -> -558371.8597 | AU106: -224157.8016 | AV106: -19237.75726 | AW106: -3084.024714 | AX106: -54540.44311 | AY106: 0 | BA106: =SUM(BB106:BG106) -> -825514.5 | BB106: =$E106*SUMPRODUCT($W106:$AA106,INDEX(AllocFactors_D,BB$4,0)) -> -547004.382 | BC106: -181724.4452 | BD106: -15694.86136 | BE106: -3353.315124 | BF106: -77737.4964 | BG106: 0 | BI106: =SUM(BJ106:BO106) -> -4359093.614 | BJ106: =$E106*SUMPRODUCT($AB106:$AG106,INDEX(AllocFactors_C,BJ$4,0)) -> -4163656.117 | BK106: -171079.8421 | BL106: -3913.227227 | BM106: -1646.185487 | BN106: -18798.24227 | BO106: 0
A107: 107 | B107: 303 | C107: D | D107: Intangible Distribution Plant | E107: =PROFORMA!AQ351 -> -392000 | F107: as Distrib Plant (40) | H107: =SUM(I107:N107) -> -392000 | I107: -309497.8706 | J107: -57542.57826 | K107: -4316.911252 | L107: -821.6264101 | M107: -19821.01346 | N107: 0 | P107: =E$1&$A107&"* """ -> E107* " | R107: =R$40 -> 0.1125784049 | S107: =S$40 -> 0 | T107: 0.08423902827 | U107: 0 | V107: 0 | W107: 0.3126832867 | X107: 0 | Y107: 0 | Z107: 0 | AA107: 0 | AB107: 0 | AC107: 0.3514057011 | AD107: 0.1324088684 | AE107: 0 | AF107: 0.006684710625 | AG107: 0 | AH107: 0 | AI107: 0 | AK107: =SUM(AL107:AO107) -> -392000 | AL107: -77152.43378 | AM107: -122571.8484 | AN107: -192275.7178 | AO107: 0 | AQ107: =E$1&$A107&"* """ -> E107* " | AS107: =SUM(AT107:AY107) -> -77152.43378 | AT107: -48946.82107 | AU107: -19649.65034 | AV107: -1686.379867 | AW107: -195.7992459 | AX107: -6673.783255 | AY107: 0 | BA107: =SUM(BB107:BG107) -> -122571.8484 | BB107: -81218.84979 | BC107: -26982.32574 | BD107: -2330.362662 | BE107: -497.8980175 | BF107: -11542.41218 | BG107: 0 | BI107: =SUM(BJ107:BO107) -> -192275.7178 | BJ107: -179332.1998 | BK107: -10910.60218 | BL107: -300.1687227 | BM107: -127.9291467 | BN107: -1604.818024 | BO107: 0
A108: 108 | D108: Total Amortization | E108: =SUM(E105:E107) -> -6436000 | H108: =IF(ROUND(SUM(H105:H107),3)<>ROUND(SUM(I108:N108),3),#VALUE!,SUM(H105:H107)) -> -6436000 | I108: =SUM(I105:I107) -> -5578530.229 | J108: -634504.667 | K108: -43162.7571 | L108: -8905.151735 | M108: -170897.1952 | N108: 0 | P108: =$A105&":"&$A107 -> 105:107 | R108: =SUMPRODUCT($E106:$E107,R106:R107)/$E108 -> 0.06289344581 | S108: =SUMPRODUCT($E106:$E107,S106:S107)/$E108 -> 0.04410684293 | T108: 0.03851623085 | U108: 0 | V108: 0 | W108: 0.1473098739 | X108: 0 | Y108: 0 | Z108: 0 | AA108: 0 | AB108: 0.4240164202 | AC108: 0.1777516821 | AD108: 0.09844644783 | AE108: 0 | AF108: 0.006959056393 | AG108: 0 | AH108: 0 | AI108: 0 | AK108: =IF(ROUND(SUM(AK105:AK107),3)<>ROUND(SUM(AL108:AO108),3),#VALUE!,SUM(AK105:AK107)) -> -6436000 | AL108: =SUM(AL105:AL107) -> -936544.3201 | AM108: =SUM(AM105:AM107) -> -948086.3484 | AN108: =SUM(AN105:AN107) -> -4551369.331 | AO108: =SUM(AO105:AO107) -> 0 | AQ108: =$A105&":"&$A107 -> 105:107 | AS108: =IF(ROUND(SUM(AS105:AS107),3)<>ROUND(SUM(AT108:AY108),3),#VALUE!,SUM(AS105:AS107)) -> -936544.3201 | AT108: =SUM(AT105:AT107) -> -607318.6807 | AU108: -243807.4519 | AV108: -20924.13713 | AW108: -3279.82396 | AX108: -61214.22636 | AY108: 0 | BA108: =IF(ROUND(SUM(BA105:BA107),3)<>ROUND(SUM(BB108:BG108),3),#VALUE!,SUM(BA105:BA107)) -> -948086.3484 | BB108: =SUM(BB105:BB107) -> -628223.2318 | BC108: -208706.7709 | BD108: -18025.22402 | BE108: -3851.213141 | BF108: -89279.90859 | BG108: 0 | BI108: =IF(ROUND(SUM(BI105:BI107),3)<>ROUND(SUM(BJ108:BO108),3),#VALUE!,SUM(BI105:BI107)) -> -4551369.331 | BJ108: =SUM(BJ105:BJ107) -> -4342988.316 | BK108: -181990.4442 | BL108: -4213.395949 | BM108: -1774.114634 | BN108: -20403.06029 | BO108: 0
A109: 109 | AI109: 0
A110: 110 | D110: Total Accum Reserve for Depr & Amort | E110: =E103+E108 -> -181389000 | F110: ="("&A$103&"+"&A$108&")" -> (103+108) | H110: =H103+H108 -> -181389000 | I110: -145781825.1 | J110: -25501730.71 | K110: -1936063.593 | L110: -376031.5166 | M110: -7793349.032 | N110: 0 | P110: =$A103&"+"&$A108 -> 103+108 | R110: =($E103*R103+$E108*R108)/$E110 -> 0.101195308 | S110: =($E103*S103+$E108*S108)/$E110 -> 0.06005246243 | T110: 0.06924919837 | U110: 0 | V110: 0 | W110: 0.2559682078 | X110: 0 | Y110: 0 | Z110: 0 | AA110: 0 | AB110: 0.07140079085 | AC110: 0.3450018744 | AD110: 0.08974438237 | AE110: 0 | AF110: 0.007387775748 | AG110: 0 | AH110: 1.520474089e-19 | AI110: 0 | AK110: =AK103+AK108 -> -181389000 | AL110: =AL103+AL108 -> -41809614.68 | AM110: =AM103+AM108 -> -46429817.24 | AN110: =AN103+AN108 -> -93149568.08 | AO110: =AO103+AO108 -> -2.757972745e-11 | AQ110: =$A103&"+"&$A108 -> 103+108 | AS110: =AS103+AS108 -> -41809614.68 | AT110: -27087737.46 | AU110: -10874343.99 | AV110: -933262.1423 | AW110: -138381.0195 | AX110: -2775890.071 | AY110: 0 | BA110: =BA103+BA108 -> -46429817.24 | BB110: -30765435.96 | BC110: -10220817.17 | BD110: -882733.7917 | BE110: -188602.1485 | BF110: -4372228.169 | BG110: 0 | BI110: =BI103+BI108 -> -93149568.08 | BJ110: -87928651.73 | BK110: -4406569.55 | BL110: -120067.6594 | BM110: -49048.34862 | BN110: -645230.7923 | BO110: 0
A111: 111 | AI111: 0
A112: 112 | D112: Total Net Plant | E112: =E57+E110 -> 379895000 | F112: ="("&A$57&"+"&A$110&")" -> (57+110) | G112: Net Plant (S18) | H112: =H57+H110 -> 379895000 | I112: =I57+I110 -> 302136480 | J112: 55524117.86 | K112: 4155334.602 | L112: 813199.8226 | M112: 17265867.76 | N112: 0 | P112: =$A57&"+"&$A110 -> 57+110 | R112: =($E57*R57+$E110*R110)/$E112 -> 0.105965448 | S112: =($E57*S57+$E110*S110)/$E112 -> 0.04779075399 | T112: 0.07286123261 | U112: 0 | V112: 0 | W112: 0.2721300605 | X112: 0 | Y112: 0 | Z112: 0 | AA112: 0 | AB112: 0.07977066516 | AC112: 0.2817305348 | AD112: 0.133825129 | AE112: 0 | AF112: 0.005926175948 | AG112: 0 | AH112: 2.346008617e-19 | AI112: 0 | AK112: =AK57+AK110 -> 379895000 | AL112: =AL57+AL110 -> 86090830.31 | AM112: =AM57+AM110 -> 103380849.3 | AN112: =AN57+AN110 -> 190423320.4 | AO112: =AO57+AO110 -> 8.912369435e-11 | AQ112: =$A57&"+"&$A110 -> 57+110 | AS112: =AS57+AS110 -> 86090830.31 | AT112: 55525743.87 | AU112: 22290752.05 | AV112: 1913045.516 | AW112: 273511.0206 | AX112: 6087777.852 | AY112: 0 | BA112: =BA57+BA110 -> 103380849.3 | BB112: 68502464.34 | BC112: 22757719.56 | BD112: 1965499.21 | BE112: 419942.4305 | BF112: 9735223.794 | BG112: 0 | BI112: =BI57+BI110 -> 190423320.4 | BJ112: 178108271.8 | BK112: 10475646.25 | BL112: 276789.8758 | BM112: 119746.3715 | BN112: 1442866.111 | BO112: 0
A114: =RowHdr -> 114 | D114: Net UG/D Plant | E114: =E42+E88 -> 310858000 | F114: ="("&A$23&"+"&A$40&")" -> (23+40) | G114: UG/D Plant (S03) | H114: =H42+H88 -> 310858000 | I114: =I42+I88 -> 242109380 | J114: 48835267.31 | K114: 3702817.841 | L114: 719410.1479 | M114: 15491124.74 | N114: =N42+N88 -> 0 | R114: =($E42*R42+$E88*R88)/$E114 -> 0.1159199869 | S114: =($E42*S42+$E88*S88)/$E114 -> 0.04826367666 | T114: 0.08084662132 | U114: 0 | V114: 0 | W114: 0.3011451536 | X114: 0 | Y114: 0 | Z114: 0 | AA114: 0 | AB114: 0 | AC114: 0.306181885 | AD114: 0.1419480355 | AE114: 0 | AF114: 0.005694641081 | AG114: 0 | AH114: 0 | AI114: =(AI42+AI88)/2 -> 0
A116: 116 | E116: =(E112/1000)-PROFORMA!AQ354 -> 0 | AI116: 0
A117: 117 | C117: A | D117: Accumulated Deferred Income Taxes | E117: =PROFORMA!AQ365*1000 -> -85497000 | F117: ="as Plant in Service ("&A$57&")" -> as Plant in Service (57) | H117: =SUM(I117:N117) -> -85497000 | I117: =$E117*SUMPRODUCT($R117:$AH117,INDEX(AllocFactors,I$4,0)) -> -68228688.74 | J117: =$E117*SUMPRODUCT($R117:$AH117,INDEX(AllocFactors,J$4,0)) -> -12342177.89 | K117: -927865.8781 | L117: -181148.4236 | M117: -3817119.066 | N117: 0 | P117: =E$1&$A117&"* Sum["&$R$1&$A117&":"&$AH$1&$A117&"* "&Factors!D$1&Factors!$A$58&":"&Factors!S$1&Factors!$A$64&"]" -> E117* Sum[R117:AH117* D1037:S1043] | R117: =R$57 -> 0.1044238916 | S117: =S$57 -> 0.05175334518 | T117: 0.07169393891 | U117: 0 | V117: 0 | W117: 0.2669070677 | X117: 0 | Y117: 0 | Z117: 0 | AA117: 0 | AB117: 0.07706579003 | AC117: 0.3021778039 | AD117: 0.1195796445 | AE117: 0 | AF117: 0.00639851816 | AG117: 0 | AH117: 2.079222315e-19 | AI117: 0 | AK117: =SUM(AL117:AO117) -> -85497000 | AL117: =SUMIF($R$4:$AH$4,AL$5,$R117:$AH117)*$E117 -> -19482301.91 | AM117: =SUMIF($R$4:$AH$4,AM$5,$R117:$AH117)*$E117 -> -22819753.57 | AN117: =SUMIF($R$4:$AH$4,AN$5,$R117:$AH117)*$E117 -> -43194944.52 | AO117: =SUMIF($R$4:$AH$4,AO$5,$R117:$AH117)*$E117 -> -1.777672703e-11 | AQ117: =E$1&$A117&"*["&R$1&$A117&":"&$AH$1&$A117&" when "&R$1&$A$4&":"&$AH$1&$A$4&" = E,D,C,or R]" -> E117*[R117:AH117 when R4:AH4 = E,D,C,or R] | AS117: =SUM(AT117:AY117) -> -19482301.91 | AT117: =$E117*SUMPRODUCT($R117:$V117,INDEX(AllocFactors_E,AT$4,0)) -> -12584012.39 | AU117: -5051838.671 | AV117: -433560.8459 | AW117: -62741.02549 | AX117: -1350148.973 | AY117: 0 | BA117: =SUM(BB117:BG117) -> -22819753.57 | BB117: =$E117*SUMPRODUCT($W117:$AA117,INDEX(AllocFactors_D,BB$4,0)) -> -15120879.4 | BC117: -5023421.218 | BD117: -433854.1219 | BE117: -92695.91842 | BF117: -2148902.909 | BG117: 0 | BI117: =SUM(BJ117:BO117) -> -43194944.52 | BJ117: =$E117*SUMPRODUCT($AB117:$AG117,INDEX(AllocFactors_C,BJ$4,0)) -> -40523796.95 | BK117: -2266918.002 | BL117: -60450.91021 | BM117: -25711.47972 | BN117: -318067.1834 | BO117: 0
A118: 118 | AI118: 0
A119: 119 | D119: Miscellaneous Rate Base Items | AI119: 0
A120: 120 | C120: D | D120: Customer Advances and Deposits | E120: =(PROFORMA!AQ368+PROFORMA!AQ369)*1000 -> -484000 | F120: input - DA 101 | H120: =SUM(I120:N120) -> -484000 | I120: =$E120*SUMPRODUCT($R120:$AH120,INDEX(AllocFactors,I$4,0)) -> -484000 | J120: 0 | K120: 0 | L120: 0 | M120: 0 | N120: 0 | P120: =E$1&$A120&"* Sum["&$R$1&$A120&":"&$AH$1&$A120&"* "&Factors!D$1&Factors!$A$58&":"&Factors!S$1&Factors!$A$64&"]" -> E120* Sum[R120:AH120* D1037:S1043] | S120: 0 | T120: 0 | U120: 0 | V120: 0 | W120: 0 | X120: 0 | Y120: 0 | Z120: 0 | AA120: 0 | AB120: 0 | AC120: 0 | AD120: 0 | AE120: 0 | AF120: 0 | AG120: 1 | AH120: 0 | AI120: 0 | AK120: =SUM(AL120:AO120) -> -484000 | AL120: =SUMIF($R$4:$AH$4,AL$5,$R120:$AH120)*$E120 -> 0 | AM120: 0 | AN120: -484000 | AO120: 0 | AQ120: =E$1&$A120&"*["&R$1&$A120&":"&$AH$1&$A120&" when "&R$1&$A$4&":"&$AH$1&$A$4&" = E,D,C,or R]" -> E120*[R120:AH120 when R4:AH4 = E,D,C,or R] | AS120: =SUM(AT120:AY120) -> 0 | AT120: =$E120*SUMPRODUCT($R120:$V120,INDEX(AllocFactors_E,AT$4,0)) -> 0 | AU120: 0 | AV120: 0 | AW120: 0 | AX120: 0 | AY120: 0 | BA120: =SUM(BB120:BG120) -> 0 | BB120: =$E120*SUMPRODUCT($W120:$AA120,INDEX(AllocFactors_D,BB$4,0)) -> 0 | BC120: 0 | BD120: 0 | BE120: 0 | BF120: 0 | BG120: 0 | BI120: =SUM(BJ120:BO120) -> -484000 | BJ120: =$E120*SUMPRODUCT($AB120:$AG120,INDEX(AllocFactors_C,BJ$4,0)) -> -484000 | BK120: 0 | BL120: 0 | BM120: 0 | BN120: 0 | BO120: 0
A121: 121 | C121: U | D121: Gas Inventory | E121: =PROFORMA!AQ370*1000 -> 9116000 | F121: ="as UG Storage Plant ("&A$23&")" -> as UG Storage Plant (23) | H121: =SUM(I121:N121) -> 9116000 | I121: 6191276.443 | J121: 2485481.48 | K121: 213309.9498 | L121: 46715.37199 | M121: 179216.7548 | N121: 0 | P121: =E$1&$A121&"* """ -> E121* " | R121: =R$23 -> 0.13 | S121: =S$23 -> 0.87 | T121: 0 | U121: 0 | V121: 0 | W121: 0 | X121: 0 | Y121: 0 | Z121: 0 | AA121: 0 | AB121: 0 | AC121: 0 | AD121: 0 | AE121: 0 | AF121: 0 | AG121: 0 | AH121: 0 | AI121: 0 | AK121: =SUM(AL121:AO121) -> 9116000 | AL121: 9116000 | AM121: 0 | AN121: 0 | AO121: 0 | AQ121: =E$1&$A121&"* """ -> E121* " | AS121: =SUM(AT121:AY121) -> 9116000 | AT121: 6191276.443 | AU121: 2485481.48 | AV121: 213309.9498 | AW121: 46715.37199 | AX121: 179216.7548 | AY121: 0 | BA121: =SUM(BB121:BG121) -> 0 | BB121: 0 | BC121: 0 | BD121: 0 | BE121: 0 | BF121: 0 | BG121: 0 | BI121: =SUM(BJ121:BO121) -> 0 | BJ121: 0 | BK121: 0 | BL121: 0 | BM121: 0 | BN121: 0 | BO121: 0
A122: 122 | C122: O | D122: Working Capital | E122: =PROFORMA!AQ371*1000 -> 14800000 | F122: as Plant in Service (56) | H122: =SUM(I122:N122) -> 14800000 | I122: =$E122*SUMPRODUCT($R122:$AH122,INDEX(AllocFactors,I$4,0)) -> 11810760.53 | J122: 2136498.74 | K122: 160618.6766 | L122: 31357.78647 | M122: 660764.2628 | N122: 0 | P122: =E$1&$A122&"* """ -> E122* " | R122: =R$57 -> 0.1044238916 | S122: =S$57 -> 0.05175334518 | T122: 0.07169393891 | U122: 0 | V122: 0 | W122: 0.2669070677 | X122: 0 | Y122: 0 | Z122: 0 | AA122: 0 | AB122: 0.07706579003 | AC122: 0.3021778039 | AD122: 0.1195796445 | AE122: 0 | AF122: 0.00639851816 | AG122: =AG$55 -> 0 | AH122: 1.218185842e-18 | AI122: 0 | AK122: =SUM(AL122:AO122) -> 14800000 | AL122: 3372493.401 | AM122: 3950224.602 | AN122: 7477281.998 | AO122: 1.802915045e-11 | AQ122: =E$1&$A122&"* """ -> E122* " | AS122: =SUM(AT122:AY122) -> 3372493.401 | AT122: 2178361.62 | AU122: 874501.0038 | AV122: 75051.76228 | AW122: 10860.8159 | AX122: 233718.1984 | AY122: 0 | BA122: =SUM(BB122:BG122) -> 3950224.602 | BB122: 2617507.224 | BC122: 869581.7868 | BD122: 75102.52997 | BE122: 16046.17229 | BF122: 371986.8891 | BG122: 0 | BI122: =SUM(BJ122:BO122) -> 7477281.998 | BJ122: 7014891.69 | BK122: 392415.9495 | BL122: 10464.38438 | BM122: 4450.798273 | BN122: 55059.17534 | BO122: 0
A123: 123 | C123: M | D123: Demand Side Management Investment | E123: =0 -> 0 | F123: Input - Peak & Avg Calc | H123: =SUM(I123:N123) -> 0 | I123: 0 | J123: 0 | K123: 0 | L123: 0 | M123: 0 | N123: 0 | P123: =E$1&$A123&"* """ -> E123* " | R123: =PkAvg_E -> 0.3862947106 | S123: 0 | T123: 0 | U123: 0 | V123: 0 | W123: =PkAvg_D -> 0.6137052894 | X123: 0 | Y123: 0 | Z123: 0 | AA123: 0 | AB123: 0 | AC123: 0 | AD123: 0 | AE123: 0 | AF123: 0 | AG123: 0 | AH123: 0 | AI123: 0 | AK123: =SUM(AL123:AO123) -> 0 | AL123: 0 | AM123: 0 | AN123: 0 | AO123: 0 | AQ123: =E$1&$A123&"* """ -> E123* " | AS123: =SUM(AT123:AY123) -> 0 | AT123: 0 | AU123: 0 | AV123: 0 | AW123: 0 | AX123: 0 | AY123: 0 | BA123: =SUM(BB123:BG123) -> 0 | BB123: 0 | BC123: 0 | BD123: 0 | BE123: 0 | BF123: 0 | BG123: 0 | BI123: =SUM(BJ123:BO123) -> 0 | BJ123: 0 | BK123: 0 | BL123: 0 | BM123: 0 | BN123: 0 | BO123: 0
A124: 124 | C124: O | D124: Other (LEAP Program - Sch 101 only) | E124: =PROFORMA!AQ373*1000 -> 1709000 | F124: as Plant in Service (56) | G124: Plant in Service (S17) | H124: =SUM(I124:N124) -> 1709000 | I124: =$E124*SUMPRODUCT($R124:$AH124,INDEX(AllocFactors,I$4,0)) -> 1709000 | J124: 0 | K124: 0 | L124: 0 | M124: 0 | N124: 0 | P124: =E$1&$A124&"* """ -> E124* " | AG124: 1 | AI124: 0 | AK124: =SUM(AL124:AO124) -> 1709000 | AL124: 0 | AM124: 0 | AN124: 1709000 | AO124: 0 | AQ124: =E$1&$A124&"* """ -> E124* " | AS124: =SUM(AT124:AY124) -> 0 | AT124: 0 | AU124: 0 | AV124: 0 | AW124: 0 | AX124: 0 | AY124: 0 | BA124: =SUM(BB124:BG124) -> 0 | BB124: 0 | BC124: 0 | BD124: 0 | BE124: 0 | BF124: 0 | BG124: 0 | BI124: =SUM(BJ124:BO124) -> 1709000 | BJ124: 1709000 | BK124: 0 | BL124: 0 | BM124: 0 | BN124: 0 | BO124: 0
A125: 125 | AI125: 0
A126: 126 | D126: Total Other Rate Base Items | E126: =SUM(E117:E124) -> -60356000 | H126: =IF(ROUND(SUM(H117:H125),3)<>ROUND(SUM(I126:N126),3),#VALUE!,SUM(H117:H125)) -> -60356000 | I126: =SUM(I117:I125) -> -49001651.76 | J126: =SUM(J117:J125) -> -7720197.67 | K126: -553937.2517 | L126: -103075.2652 | M126: -2977138.048 | N126: 0 | P126: =$A117&":"&$A125 -> 117:125 | R126: =SUMPRODUCT($E117:$E125,R117:R125)/$E126 -> 0.102680361 | S126: -0.07078192319 | T126: 0.08397750677 | U126: 0 | V126: 0 | W126: 0.3126371689 | X126: 0 | Y126: 0 | Z126: 0 | AA126: 0 | AB126: 0.09026973553 | AC126: 0.3539509611 | AD126: 0.1400676341 | AE126: 0 | AF126: 0.00749479817 | AG126: -0.0202962423 | AH126: -4.182242448e-21 | AI126: 0 | AK126: =IF(ROUND(SUM(AK117:AK125),3)<>ROUND(SUM(AL126:AO126),3),#VALUE!,SUM(AK117:AK125)) -> -60356000 | AL126: =SUM(AL117:AL125) -> -6993808.509 | AM126: =SUM(AM117:AM125) -> -18869528.96 | AN126: =SUM(AN117:AN125) -> -34492662.53 | AO126: =SUM(AO117:AO125) -> 2.524234252e-13 | AQ126: =$A117&":"&$A125 -> 117:125 | AS126: =IF(ROUND(SUM(AS117:AS125),3)<>ROUND(SUM(AT126:AY126),3),#VALUE!,SUM(AS117:AS125)) -> -6993808.509 | AT126: =SUM(AT117:AT125) -> -4214374.331 | AU126: -1691856.186 | AV126: -145199.1339 | AW126: -5164.837595 | AX126: -937214.0202 | AY126: 0 | BA126: =IF(ROUND(SUM(BA117:BA125),3)<>ROUND(SUM(BB126:BG126),3),#VALUE!,SUM(BA117:BA125)) -> -18869528.96 | BB126: =SUM(BB117:BB125) -> -12503372.17 | BC126: -4153839.431 | BD126: -358751.592 | BE126: -76649.74613 | BF126: -1776916.02 | BG126: 0 | BI126: =IF(ROUND(SUM(BI117:BI125),3)<>ROUND(SUM(BJ126:BO126),3),#VALUE!,SUM(BI117:BI125)) -> -34492662.53 | BJ126: =SUM(BJ117:BJ125) -> -32283905.26 | BK126: -1874502.053 | BL126: -49986.52583 | BM126: -21260.68145 | BN126: -263008.008 | BO126: 0
A127: 127 | AI127: 0
A128: 128 | D128: Total Rate Base | E128: =E112+E126 -> 319539000 | F128: ="("&A$112&"+"&A$126&")" -> (112+126) | G128: Total Rate Base (S01) | H128: =H112+H126 -> 319539000 | I128: =I112+I126 -> 253134828.2 | J128: 47803920.19 | K128: 3601397.35 | L128: 710124.5574 | M128: 14288729.71 | N128: 0 | P128: =$A112&"+"&$A126 -> 112+126 | R128: =($E112*R112+$E126*R126)/$E128 -> 0.1065859504 | S128: 0.0701873081 | T128: 0.07076153948 | U128: 0 | V128: 0 | W128: 0.2644788911 | X128: 0 | Y128: 0 | Z128: 0 | AA128: 0 | AB128: 0.07778755232 | AC128: 0.2680892076 | AD128: 0.1326460159 | AE128: 0 | AF128: 0.005629887348 | AG128: 0.003833647849 | AH128: 2.797033156e-19 | AI128: 0 | AK128: =AK112+AK126 -> 319539000 | AL128: =AL112+AL126 -> 79097021.8 | AM128: =AM112+AM126 -> 84511320.37 | AN128: =AN112+AN126 -> 155930657.8 | AO128: =AO112+AO126 -> 8.937611778e-11 | AQ128: =$A112&"+"&$A126 -> 112+126 | AS128: =AS112+AS126 -> 79097021.8 | AT128: 51311369.54 | AU128: 20598895.86 | AV128: 1767846.382 | AW128: 268346.183 | AX128: 5150563.831 | AY128: 0 | BA128: =BA112+BA126 -> 84511320.37 | BB128: 55999092.17 | BC128: 18603880.13 | BD128: 1606747.618 | BE128: 343292.6844 | BF128: 7958307.774 | BG128: 0 | BI128: =BI112+BI126 -> 155930657.8 | BJ128: 145824366.5 | BK128: 8601144.193 | BL128: 226803.3499 | BM128: 98485.69005 | BN128: 1179858.103 | BO128: 0
A129: 129 | D129: Rate of Return | E129: =-E430/E128 -> 0.06153865412 | H129: =IF(H128,-H430/H128,0) -> 0.06153865407 | I129: =IF(I128,-I430/I128,0) -> 0.05019056074 | J129: =IF(J128,-J430/J128,0) -> 0.1195725217 | K129: 0.1031077552 | L129: 0.08872834742 | M129: =IF(M128,-M430/M128,0) -> 0.05659324319 | N129: 0 | P129: ="-"&$A430&"/"&$A128 -> -430/128 | AI129: 0 | AK129: =IF(AK128<>0,-AK430/AK128,0) -> 0.06153865412 | AL129: =IF(AL128<>0,-AL430/AL128,0) -> -0.06740723947 | AM129: =IF(AM128<>0,-AM430/AM128,0) -> -0.05977838435 | AN129: =IF(AN128<>0,-AN430/AN128,0) -> -0.1411267758 | AO129: =IF(AO128<>0,-AO430/AO128,0) -> 5.824112119e+17 | AQ129: ="-"&$A430&"/"&$A128 -> -430/128
A130: 130 | E130: =E128/1000-PROFORMA!AQ376 -> 0 | AI130: 0
A131: 131 | AI131: 0
A132: 132 | C132: U | D132: Underground Storage | E132: =SUMIF($C$7:$C$128,$C132,E$7:E$128) -> 26361000 | F132: ="sum where Func = "&$C132&" ("&A$7&"-"&A$128&")" -> sum where Func = U (7-128) | H132: =SUMIF($C$7:$C$128,$C132,H$7:H$128) -> 26361000 | I132: 17903492.58 | J132: 7187338.449 | K132: 616834.5312 | L132: 135088.1879 | M132: 518246.2564 | N132: 0 | P132: =H$1&$A$7&":"&H$1&$A$128&", col "&C$1&"= T" -> H7:H128, col C= T | R132: =SUM(IF($C$7:$C$128=$C132,$E$7:$E$128*R$7:R$128))/$E132 -> 0.13 | S132: =SUM(IF($C$7:$C$128=$C132,$E$7:$E$128*S$7:S$128))/$E132 -> 0.87 | T132: =SUM(IF($C$7:$C$128=$C132,$E$7:$E$128*T$7:T$128))/$E132 -> 0 | U132: =SUM(IF($C$7:$C$128=$C132,$E$7:$E$128*U$7:U$128))/$E132 -> 0 | V132: =SUM(IF($C$7:$C$128=$C132,$E$7:$E$128*V$7:V$128))/$E132 -> 0 | W132: =SUM(IF($C$7:$C$128=$C132,$E$7:$E$128*W$7:W$128))/$E132 -> 0 | X132: =SUM(IF($C$7:$C$128=$C132,$E$7:$E$128*X$7:X$128))/$E132 -> 0 | Y132: =SUM(IF($C$7:$C$128=$C132,$E$7:$E$128*Y$7:Y$128))/$E132 -> 0 | Z132: =SUM(IF($C$7:$C$128=$C132,$E$7:$E$128*Z$7:Z$128))/$E132 -> 0 | AA132: =SUM(IF($C$7:$C$128=$C132,$E$7:$E$128*AA$7:AA$128))/$E132 -> 0 | AB132: =SUM(IF($C$7:$C$128=$C132,$E$7:$E$128*AB$7:AB$128))/$E132 -> 0 | AC132: =SUM(IF($C$7:$C$128=$C132,$E$7:$E$128*AC$7:AC$128))/$E132 -> 0 | AD132: =SUM(IF($C$7:$C$128=$C132,$E$7:$E$128*AD$7:AD$128))/$E132 -> 0 | AE132: =SUM(IF($C$7:$C$128=$C132,$E$7:$E$128*AE$7:AE$128))/$E132 -> 0 | AF132: =SUM(IF($C$7:$C$128=$C132,$E$7:$E$128*AF$7:AF$128))/$E132 -> 0 | AG132: =SUM(IF($C$7:$C$128=$C132,$E$7:$E$128*AG$7:AG$128))/$E132 -> 0 | AH132: =SUM(IF($C$7:$C$128=$C132,$E$7:$E$128*AH$7:AH$128))/$E132 -> 0 | AI132: 0 | AK132: =SUMIF($C$7:$C$128,$C132,AK$7:AK$128) -> 26361000 | AL132: 26361000 | AM132: 0 | AN132: 0 | AO132: 0 | AQ132: =E$1&$A132&"* """ -> E132* " | AS132: =SUM(AT132:AY132) -> 26361000 | AT132: =SUMIF($C$7:$C$128,$C132,AT$7:AT$128) -> 17903492.58 | AU132: 7187338.449 | AV132: 616834.5312 | AW132: 135088.1879 | AX132: 518246.2564 | AY132: 0 | BA132: =SUM(BB132:BG132) -> 0 | BB132: =SUMIF($C$7:$C$128,$C132,BB$7:BB$128) -> 0 | BC132: 0 | BD132: 0 | BE132: 0 | BF132: 0 | BG132: 0 | BI132: =SUM(BJ132:BO132) -> 0 | BJ132: =SUMIF($C$7:$C$128,$C132,BJ$7:BJ$128) -> 0 | BK132: 0 | BL132: 0 | BM132: 0 | BN132: 0 | BO132: 0
A133: 133 | C133: D | D133: Distribution | E133: =SUMIF($C$7:$C$128,$C133,E$7:E$128) -> 295049000 | F133: ="sum where Func = "&$C133&" ("&A$7&"-"&A$128&")" -> sum where Func = D (7-128) | H133: 295049000 | I133: 231429071.8 | J133: 44415251.54 | K133: 3320437.314 | L133: 635061.6246 | M133: 15249177.75 | N133: 0 | P133: =H$1&$A$7&":"&H$1&$A$128&", col "&C$1&"= D" -> H7:H128, col C= D | R133: =SUM(IF($C$7:$C$128=$C133,$E$7:$E$128*R$7:R$128))/$E133 -> 0.1152654502 | S133: =SUM(IF($C$7:$C$128=$C133,$E$7:$E$128*S$7:S$128))/$E133 -> 0 | T133: =SUM(IF($C$7:$C$128=$C133,$E$7:$E$128*T$7:T$128))/$E133 -> 0.08572663505 | U133: =SUM(IF($C$7:$C$128=$C133,$E$7:$E$128*U$7:U$128))/$E133 -> 0 | V133: =SUM(IF($C$7:$C$128=$C133,$E$7:$E$128*V$7:V$128))/$E133 -> 0 | W133: =SUM(IF($C$7:$C$128=$C133,$E$7:$E$128*W$7:W$128))/$E133 -> 0.3193155445 | X133: =SUM(IF($C$7:$C$128=$C133,$E$7:$E$128*X$7:X$128))/$E133 -> 0 | Y133: =SUM(IF($C$7:$C$128=$C133,$E$7:$E$128*Y$7:Y$128))/$E133 -> 0 | Z133: =SUM(IF($C$7:$C$128=$C133,$E$7:$E$128*Z$7:Z$128))/$E133 -> 0 | AA133: =SUM(IF($C$7:$C$128=$C133,$E$7:$E$128*AA$7:AA$128))/$E133 -> 0 | AB133: =SUM(IF($C$7:$C$128=$C133,$E$7:$E$128*AB$7:AB$128))/$E133 -> 0 | AC133: =SUM(IF($C$7:$C$128=$C133,$E$7:$E$128*AC$7:AC$128))/$E133 -> 0.3248741306 | AD133: =SUM(IF($C$7:$C$128=$C133,$E$7:$E$128*AD$7:AD$128))/$E133 -> 0.1504153799 | AE133: =SUM(IF($C$7:$C$128=$C133,$E$7:$E$128*AE$7:AE$128))/$E133 -> 0 | AF133: =SUM(IF($C$7:$C$128=$C133,$E$7:$E$128*AF$7:AF$128))/$E133 -> 0.006043265293 | AG133: =SUM(IF($C$7:$C$128=$C133,$E$7:$E$128*AG$7:AG$128))/$E133 -> -0.001640405492 | AH133: =SUM(IF($C$7:$C$128=$C133,$E$7:$E$128*AH$7:AH$128))/$E133 -> 0 | AI133: 0 | AK133: 295049000 | AL133: 59302513.76 | AM133: 94213732.08 | AN133: 141532754.2 | AO133: 0 | AQ133: =E$1&$A133&"* """ -> E133* " | AS133: =SUM(AT133:AY133) -> 59302513.76 | AT133: 37612957.9 | AU133: 15099682.78 | AV133: 1295890.796 | AW133: 150890.9368 | AX133: 5143091.348 | AY133: 0 | BA133: =SUM(BB133:BG133) -> 94213732.08 | BB133: 62428127.29 | BC133: 20739718.31 | BD133: 1791211.982 | BE133: 382704.7649 | BF133: 8871969.733 | BG133: 0 | BI133: =SUM(BJ133:BO133) -> 141532754.2 | BJ133: 131387986.6 | BK133: 8575850.455 | BL133: 233334.5363 | BM133: 101465.9229 | BN133: 1234116.669 | BO133: 0
A134: 134 | C134: M | D134: DSM | E134: =SUMIF($C$7:$C$128,$C134,E$7:E$128) -> 0 | F134: ="sum where Func = "&$C134&" ("&A$7&"-"&A$128&")" -> sum where Func = M (7-128) | H134: 0 | I134: 0 | J134: 0 | K134: 0 | L134: 0 | M134: 0 | N134: 0 | P134: =H$1&$A$7&":"&H$1&$A$128&", col "&C$1&"= D" -> H7:H128, col C= D | R134: =IF($E134,SUM(IF($C$7:$C$128=$C134,$E$7:$E$128*R$7:R$128))/$E134,0) -> 0 | S134: =IF($E134,SUM(IF($C$7:$C$128=$C134,$E$7:$E$128*S$7:S$128))/$E134,0) -> 0 | T134: =IF($E134,SUM(IF($C$7:$C$128=$C134,$E$7:$E$128*T$7:T$128))/$E134,0) -> 0 | U134: =IF($E134,SUM(IF($C$7:$C$128=$C134,$E$7:$E$128*U$7:U$128))/$E134,0) -> 0 | V134: =IF($E134,SUM(IF($C$7:$C$128=$C134,$E$7:$E$128*V$7:V$128))/$E134,0) -> 0 | W134: =IF($E134,SUM(IF($C$7:$C$128=$C134,$E$7:$E$128*W$7:W$128))/$E134,0) -> 0 | X134: =IF($E134,SUM(IF($C$7:$C$128=$C134,$E$7:$E$128*X$7:X$128))/$E134,0) -> 0 | Y134: =IF($E134,SUM(IF($C$7:$C$128=$C134,$E$7:$E$128*Y$7:Y$128))/$E134,0) -> 0 | Z134: =IF($E134,SUM(IF($C$7:$C$128=$C134,$E$7:$E$128*Z$7:Z$128))/$E134,0) -> 0 | AA134: =IF($E134,SUM(IF($C$7:$C$128=$C134,$E$7:$E$128*AA$7:AA$128))/$E134,0) -> 0 | AB134: =IF($E134,SUM(IF($C$7:$C$128=$C134,$E$7:$E$128*AB$7:AB$128))/$E134,0) -> 0 | AC134: =IF($E134,SUM(IF($C$7:$C$128=$C134,$E$7:$E$128*AC$7:AC$128))/$E134,0) -> 0 | AD134: =IF($E134,SUM(IF($C$7:$C$128=$C134,$E$7:$E$128*AD$7:AD$128))/$E134,0) -> 0 | AE134: =IF($E134,SUM(IF($C$7:$C$128=$C134,$E$7:$E$128*AE$7:AE$128))/$E134,0) -> 0 | AF134: =IF($E134,SUM(IF($C$7:$C$128=$C134,$E$7:$E$128*AF$7:AF$128))/$E134,0) -> 0 | AG134: =IF($E134,SUM(IF($C$7:$C$128=$C134,$E$7:$E$128*AG$7:AG$128))/$E134,0) -> 0 | AH134: =IF($E134,SUM(IF($C$7:$C$128=$C134,$E$7:$E$128*AH$7:AH$128))/$E134,0) -> 0 | AI134: 0 | AK134: 0 | AL134: 0 | AM134: 0 | AN134: 0 | AO134: 0 | AQ134: =E$1&$A134&"* """ -> E134* " | AS134: =SUM(AT134:AY134) -> 0 | AT134: 0 | AU134: 0 | AV134: 0 | AW134: 0 | AX134: 0 | AY134: 0 | BA134: =SUM(BB134:BG134) -> 0 | BB134: 0 | BC134: 0 | BD134: 0 | BE134: 0 | BF134: 0 | BG134: 0 | BI134: =SUM(BJ134:BO134) -> 0 | BJ134: 0 | BK134: 0 | BL134: 0 | BM134: 0 | BN134: 0 | BO134: 0
A135: =RowHdr -> 135 | C135: O | D135: Common | E135: =SUMIF($C$7:$C$128,$C135,E$7:E$128) -> 83626000 | F135: ="sum where Func = "&$C135&" ("&A$7&"-"&A$128&")" -> sum where Func = O (7-128) | H135: 83626000 | I135: 72030952.59 | J135: 8543508.09 | K135: 591991.3828 | L135: 121123.1685 | M135: 2338424.768 | N135: 0 | P135: =H$1&$A$7&":"&H$1&$A$128&", col "&C$1&"= O" -> H7:H128, col C= O | R135: =SUM(IF($C$7:$C$128=$C135,$E$7:$E$128*R$7:R$128))/$E135 -> 0.06637184181 | S135: =SUM(IF($C$7:$C$128=$C135,$E$7:$E$128*S$7:S$128))/$E135 -> 0.04685466238 | T135: =SUM(IF($C$7:$C$128=$C135,$E$7:$E$128*T$7:T$128))/$E135 -> 0.04122079632 | U135: =SUM(IF($C$7:$C$128=$C135,$E$7:$E$128*U$7:U$128))/$E135 -> 0 | V135: =SUM(IF($C$7:$C$128=$C135,$E$7:$E$128*V$7:V$128))/$E135 -> 0 | W135: =SUM(IF($C$7:$C$128=$C135,$E$7:$E$128*W$7:W$128))/$E135 -> 0.1568572197 | X135: =SUM(IF($C$7:$C$128=$C135,$E$7:$E$128*X$7:X$128))/$E135 -> 0 | Y135: =SUM(IF($C$7:$C$128=$C135,$E$7:$E$128*Y$7:Y$128))/$E135 -> 0 | Z135: =SUM(IF($C$7:$C$128=$C135,$E$7:$E$128*Z$7:Z$128))/$E135 -> 0 | AA135: =SUM(IF($C$7:$C$128=$C135,$E$7:$E$128*AA$7:AA$128))/$E135 -> 0 | AB135: =SUM(IF($C$7:$C$128=$C135,$E$7:$E$128*AB$7:AB$128))/$E135 -> 0.3760200241 | AC135: =SUM(IF($C$7:$C$128=$C135,$E$7:$E$128*AC$7:AC$128))/$E135 -> 0.187100491 | AD135: =SUM(IF($C$7:$C$128=$C135,$E$7:$E$128*AD$7:AD$128))/$E135 -> 0.09840681959 | AE135: =SUM(IF($C$7:$C$128=$C135,$E$7:$E$128*AE$7:AE$128))/$E135 -> 0 | AF135: =SUM(IF($C$7:$C$128=$C135,$E$7:$E$128*AF$7:AF$128))/$E135 -> 0.006731917094 | AG135: =SUM(IF($C$7:$C$128=$C135,$E$7:$E$128*AG$7:AG$128))/$E135 -> 0.02043622797 | AH135: =SUM(IF($C$7:$C$128=$C135,$E$7:$E$128*AH$7:AH$128))/$E135 -> 1.281334092e-18 | AI135: 0 | AK135: 83626000 | AL135: 12915809.95 | AM135: 13117341.86 | AN135: 57592848.19 | AO135: 1.071528448e-10 | AQ135: =E$1&$A135&"* """ -> E135* " | AS135: =SUM(AT135:AY135) -> 12915809.95 | AT135: 8378931.459 | AU135: 3363713.308 | AV135: 288681.9003 | AW135: 45108.08372 | AX135: 839375.2004 | AY135: 0 | BA135: =SUM(BB135:BG135) -> 13117341.86 | BB135: 8691844.269 | BC135: 2887583.042 | BD135: 249389.7586 | BE135: 53283.83794 | BF135: 1235240.95 | BG135: 0 | BI135: =SUM(BJ135:BO135) -> 57592848.19 | BJ135: 54960176.86 | BK135: 2292211.74 | BL135: 53919.72385 | BM135: 22731.24687 | BN135: 263808.6171 | BO135: 0
A136: 136 | C136: A | D136: Allocated | E136: =SUMIF($C$7:$C$128,$C136,E$7:E$128) -> -85497000 | F136: ="sum where Func = "&$C136&" ("&A$7&"-"&A$128&")" -> sum where Func = A (7-128) | H136: -85497000 | I136: -68228688.74 | J136: -12342177.89 | K136: -927865.8781 | L136: -181148.4236 | M136: -3817119.066 | N136: 0 | P136: =H$1&$A$7&":"&H$1&$A$128&", col "&C$1&"= O" -> H7:H128, col C= O | R136: =SUM(IF($C$7:$C$128=$C136,$E$7:$E$128*R$7:R$128))/$E136 -> 0.1044238916 | S136: =SUM(IF($C$7:$C$128=$C136,$E$7:$E$128*S$7:S$128))/$E136 -> 0.05175334518 | T136: =SUM(IF($C$7:$C$128=$C136,$E$7:$E$128*T$7:T$128))/$E136 -> 0.07169393891 | U136: =SUM(IF($C$7:$C$128=$C136,$E$7:$E$128*U$7:U$128))/$E136 -> 0 | V136: =SUM(IF($C$7:$C$128=$C136,$E$7:$E$128*V$7:V$128))/$E136 -> 0 | W136: =SUM(IF($C$7:$C$128=$C136,$E$7:$E$128*W$7:W$128))/$E136 -> 0.2669070677 | X136: =SUM(IF($C$7:$C$128=$C136,$E$7:$E$128*X$7:X$128))/$E136 -> 0 | Y136: =SUM(IF($C$7:$C$128=$C136,$E$7:$E$128*Y$7:Y$128))/$E136 -> 0 | Z136: =SUM(IF($C$7:$C$128=$C136,$E$7:$E$128*Z$7:Z$128))/$E136 -> 0 | AA136: =SUM(IF($C$7:$C$128=$C136,$E$7:$E$128*AA$7:AA$128))/$E136 -> 0 | AB136: =SUM(IF($C$7:$C$128=$C136,$E$7:$E$128*AB$7:AB$128))/$E136 -> 0.07706579003 | AC136: =SUM(IF($C$7:$C$128=$C136,$E$7:$E$128*AC$7:AC$128))/$E136 -> 0.3021778039 | AD136: =SUM(IF($C$7:$C$128=$C136,$E$7:$E$128*AD$7:AD$128))/$E136 -> 0.1195796445 | AE136: =SUM(IF($C$7:$C$128=$C136,$E$7:$E$128*AE$7:AE$128))/$E136 -> 0 | AF136: =SUM(IF($C$7:$C$128=$C136,$E$7:$E$128*AF$7:AF$128))/$E136 -> 0.00639851816 | AG136: =SUM(IF($C$7:$C$128=$C136,$E$7:$E$128*AG$7:AG$128))/$E136 -> 0 | AH136: =SUM(IF($C$7:$C$128=$C136,$E$7:$E$128*AH$7:AH$128))/$E136 -> 2.079222315e-19 | AI136: 0 | AK136: -85497000 | AL136: -19482301.91 | AM136: -22819753.57 | AN136: -43194944.52 | AO136: -1.777672703e-11 | AQ136: =E$1&$A136&"* """ -> E136* " | AS136: =SUM(AT136:AY136) -> -19482301.91 | AT136: -12584012.39 | AU136: -5051838.671 | AV136: -433560.8459 | AW136: -62741.02549 | AX136: -1350148.973 | AY136: 0 | BA136: =SUM(BB136:BG136) -> -22819753.57 | BB136: -15120879.4 | BC136: -5023421.218 | BD136: -433854.1219 | BE136: -92695.91842 | BF136: -2148902.909 | BG136: 0 | BI136: =SUM(BJ136:BO136) -> -43194944.52 | BJ136: -40523796.95 | BK136: -2266918.002 | BL136: -60450.91021 | BM136: -25711.47972 | BN136: -318067.1834 | BO136: 0
A137: 137 | D137: Total Rate Base | E137: =SUM(E132:E136) -> 319539000 | H137: =SUM(H132:H136) -> 319539000 | I137: 253134828.2 | J137: 47803920.19 | K137: 3601397.35 | L137: 710124.5574 | M137: 14288729.71 | N137: 0 | P137: =A132&":"&$A135 -> 132:135 | AI137: 0 | AK137: =SUM(AK132:AK136) -> 319539000 | AL137: =SUM(AL132:AL136) -> 79097021.8 | AM137: =SUM(AM132:AM136) -> 84511320.37 | AN137: =SUM(AN132:AN136) -> 155930657.8 | AO137: =SUM(AO132:AO136) -> 8.937611778e-11 | AQ137: =A132&":"&$A135 -> 132:135 | AS137: =IF(ROUND(SUM(AS132:AS136),3)<>ROUND(SUM(AT137:AY137),3),#VALUE!,SUM(AS132:AS136)) -> 79097021.8 | AT137: =SUM(AT132:AT136) -> 51311369.54 | AU137: 20598895.86 | AV137: 1767846.382 | AW137: 268346.183 | AX137: 5150563.831 | AY137: 0 | BA137: =IF(ROUND(SUM(BA132:BA136),3)<>ROUND(SUM(BB137:BG137),3),#VALUE!,SUM(BA132:BA136)) -> 84511320.37 | BB137: =SUM(BB132:BB136) -> 55999092.17 | BC137: 18603880.13 | BD137: 1606747.618 | BE137: 343292.6844 | BF137: 7958307.774 | BG137: 0 | BI137: =IF(ROUND(SUM(BI132:BI136),3)<>ROUND(SUM(BJ137:BO137),3),#VALUE!,SUM(BI132:BI136)) -> 155930657.8 | BJ137: =SUM(BJ132:BJ136) -> 145824366.5 | BK137: 8601144.193 | BL137: 226803.3499 | BM137: 98485.69005 | BN137: 1179858.103 | BO137: 0
A138: 138 | H138: =H137-$E137 -> 0 | AI138: 0 | AK138: =AK137-$E137 -> 0
A139: 139 | D139: Allocated Rate Base - ADFIT | AI139: 0
A140: 140 | D140: Underground Storage | E140: =$E$136*$E$23/$E$57 -> -4298125.101 | H140: =SUM(I140:N140) -> -4298125.101 | I140: =I$136*IF(I$57,I$23/I$57,0) -> -2919140.049 | J140: -1171885.733 | K140: -100574.0291 | L140: -22025.94482 | M140: -84499.34536 | N140: 0 | AI140: 0 | AK140: =SUM(AL140:AQ140) -> -4298125.101 | AL140: =AL$136*IF(AL$57,AL$23/AL$57,0) -> -4298125.101 | AM140: =AM$136*IF(AM$57,AM$23/AM$57,0) -> 0 | AN140: =AN$136*IF(AN$57,AN$23/AN$57,0) -> 0 | AO140: =AO$136*IF(AO$57,AO$23/AO$57,0) -> 0 | AS140: =SUM(AT140:AY140) -> -4298125.101 | AT140: =AT$136*IF(AT$57,AT$23/AT$57,0) -> -2919140.049 | AU140: -1171885.733 | AV140: -100574.0291 | AW140: -22025.94482 | AX140: -84499.34536 | AY140: 0 | BA140: =SUM(BB140:BG140) -> 0 | BB140: =BB$136*IF(BB$57,BB$23/BB$57,0) -> 0 | BC140: 0 | BD140: 0 | BE140: 0 | BF140: 0 | BG140: 0 | BI140: =SUM(BJ140:BO140) -> 0 | BJ140: =BJ$136*IF(BJ$57,BJ$23/BJ$57,0) -> 0 | BK140: 0 | BL140: 0 | BM140: 0 | BN140: 0 | BO140: 0
A141: 141 | D141: Distribution | E141: =$E$136*$E$40/$E$57 -> -66253914.49 | H141: =SUM(I141:N141) -> -66253914.49 | I141: =I$136*IF(I$57,I$40/I$57,0) -> -52309809.83 | J141: -9725563.927 | K141: -729623.1349 | L141: -138867.26 | M141: -3350050.334 | N141: 0 | AI141: =IF(SUM(R141:AH141)<>0,(ROUND(SUM(R141:AH141),8)<>1)+0,0) -> 0 | AK141: =SUM(AL141:AQ141) -> -66253914.49 | AL141: =AL$136*IF(AL$57,AL$40/AL$57,0) -> -13039925.38 | AM141: =AM$136*IF(AM$57,AM$40/AM$57,0) -> -20716491.74 | AN141: =AN$136*IF(AN$57,AN$40/AN$57,0) -> -32497497.36 | AO141: =AO$136*IF(AO$57,AO$40/AO$57,0) -> 0 | AS141: =SUM(AT141:AY141) -> -13039925.38 | AT141: =AT$136*IF(AT$57,AT$40/AT$57,0) -> -8272751.269 | AU141: -3321087.382 | AV141: -285023.6416 | AW141: -33093.02677 | AX141: -1127970.064 | AY141: 0 | BA141: =SUM(BB141:BG141) -> -20716491.74 | BB141: =BB$136*IF(BB$57,BB$40/BB$57,0) -> -13727211.04 | BC141: -4560420.158 | BD141: -393866.4503 | BE141: -84152.27723 | BF141: -1950841.811 | BG141: 0 | BI141: =SUM(BJ141:BO141) -> -32497497.36 | BJ141: =BJ$136*IF(BJ$57,BJ$40/BJ$57,0) -> -30309847.52 | BK141: -1844056.387 | BL141: -50733.04307 | BM141: -21621.95598 | BN141: -271238.4595 | BO141: 0
A142: 142 | D142: Common | E142: =$E$136*SUM($E$12,$E$55)/$E$57 -> -14944960.41 | H142: =SUM(I142:N142) -> -14944960.41 | I142: =I$136*IF(I$57,SUM(I$12,I$55)/I$57,0) -> -12999738.86 | J142: -1444728.231 | K142: -97668.71403 | L142: -20255.21884 | M142: -382569.3864 | N142: 0 | AI142: 0 | AK142: =SUM(AL142:AQ142) -> -14944960.41 | AL142: =AL$136*IF(AL$57,SUM(AL$12,AL$55)/AL$57,0) -> -2144251.426 | AM142: =AM$136*IF(AM$57,SUM(AM$12,AM$55)/AM$57,0) -> -2103261.827 | AN142: =AN$136*IF(AN$57,SUM(AN$12,AN$55)/AN$57,0) -> -10697447.16 | AO142: =AO$136*IF(AO$57,SUM(AO$12,AO$55)/AO$57,0) -> -1.777672703e-11 | AS142: =SUM(AT142:AY142) -> -2144251.426 | AT142: =AT$136*IF(AT$57,SUM(AT$12,AT$55)/AT$57,0) -> -1392121.077 | AU142: -558865.5564 | AV142: -47963.17524 | AW142: -7622.053897 | AX142: -137679.564 | AY142: 0 | BA142: =SUM(BB142:BG142) -> -2103261.827 | BB142: =BB$136*IF(BB$57,SUM(BB$12,BB$55)/BB$57,0) -> -1393668.355 | BC142: -463001.0599 | BD142: -39987.67166 | BE142: -8543.641198 | BF142: -198061.0985 | BG142: 0 | BI142: =SUM(BJ142:BO142) -> -10697447.16 | BJ142: =BJ$136*IF(BJ$57,SUM(BJ$12,BJ$55)/BJ$57,0) -> -10213949.43 | BK142: -422861.615 | BL142: -9717.867136 | BM142: -4089.523744 | BN142: -46828.72384 | BO142: 0
A143: 143 | D143: Total Allocated Rate Base | E143: =SUM(E140:E142) -> -85497000 | H143: =SUM(H140:H142) -> -85497000 | I143: =SUM(I140:I142) -> -68228688.74 | J143: -12342177.89 | K143: -927865.8781 | L143: -181148.4236 | M143: -3817119.066 | N143: 0 | AI143: 0 | AK143: =SUM(AK140:AK142) -> -85497000 | AL143: =SUM(AL140:AL142) -> -19482301.91 | AM143: =SUM(AM140:AM142) -> -22819753.57 | AN143: =SUM(AN140:AN142) -> -43194944.52 | AO143: =SUM(AO140:AO142) -> -1.777672703e-11 | AS143: =SUM(AS140:AS142) -> -19482301.91 | AT143: -12584012.39 | AU143: -5051838.671 | AV143: -433560.8459 | AW143: -62741.02549 | AX143: -1350148.973 | AY143: 0 | BA143: =SUM(BA140:BA142) -> -22819753.57 | BB143: -15120879.4 | BC143: -5023421.218 | BD143: -433854.1219 | BE143: -92695.91842 | BF143: -2148902.909 | BG143: 0 | BI143: =SUM(BI140:BI142) -> -43194944.52 | BJ143: -40523796.95 | BK143: -2266918.002 | BL143: -60450.91021 | BM143: -25711.47972 | BN143: -318067.1834 | BO143: 0
A144: 144 | H144: =H143-$E143 -> 0 | AI144: 0
A145: 145 | D145: Rate Base by Function | AI145: 0
A146: 146 | D146: Underground Storage | E146: =E132+E140 -> 22062874.9 | H146: =H132+H140 -> 22062874.9 | I146: 14984352.53 | J146: 6015452.717 | K146: 516260.5021 | L146: 113062.2431 | M146: 433746.9111 | N146: 0 | AI146: 0 | AK146: =AK132+AK140 -> 22062874.9 | AL146: 22062874.9 | AM146: 0 | AN146: 0 | AO146: 0 | AS146: =AS132+AS140 -> 22062874.9 | AT146: 14984352.53 | AU146: 6015452.717 | AV146: 516260.5021 | AW146: 113062.2431 | AX146: 433746.9111 | AY146: 0 | BA146: =BA132+BA140 -> 0 | BB146: 0 | BC146: 0 | BD146: 0 | BE146: 0 | BF146: 0 | BG146: 0 | BI146: =BI132+BI140 -> 0 | BJ146: 0 | BK146: 0 | BL146: 0 | BM146: 0 | BN146: 0 | BO146: 0
A147: 147 | D147: Distribution | E147: =E133+E141 -> 228795085.5 | H147: 228795085.5 | I147: 179119261.9 | J147: 34689687.61 | K147: 2590814.18 | L147: 496194.3646 | M147: 11899127.42 | N147: 0 | AI147: 0 | AK147: 228795085.5 | AL147: 46262588.37 | AM147: 73497240.34 | AN147: 109035256.8 | AO147: 0 | AS147: =AS133+AS141 -> 46262588.37 | AT147: 29340206.63 | AU147: 11778595.4 | AV147: 1010867.155 | AW147: 117797.9101 | AX147: 4015121.284 | AY147: 0 | BA147: =BA133+BA141 -> 73497240.34 | BB147: 48700916.25 | BC147: 16179298.15 | BD147: 1397345.531 | BE147: 298552.4877 | BF147: 6921127.922 | BG147: 0 | BI147: =BI133+BI141 -> 109035256.8 | BJ147: 101078139.1 | BK147: 6731794.068 | BL147: 182601.4932 | BM147: 79843.96692 | BN147: 962878.2099 | BO147: 0
A148: 148 | D148: DSM | E148: =E134 -> 0 | H148: =H134 -> 0 | I148: 0 | J148: 0 | K148: 0 | L148: 0 | M148: 0 | N148: 0 | AI148: 0 | AK148: =AK134 -> 0 | AL148: =AL134 -> 0 | AM148: =AM134 -> 0 | AN148: =AN134 -> 0 | AO148: =AO134 -> 0 | AS148: =AS134 -> 0 | AT148: 0 | AU148: 0 | AV148: 0 | AW148: 0 | AX148: 0 | AY148: 0 | BA148: =BA134 -> 0 | BB148: 0 | BC148: 0 | BD148: 0 | BE148: 0 | BF148: 0 | BG148: 0 | BI148: =BI134 -> 0 | BJ148: 0 | BK148: 0 | BL148: 0 | BM148: 0 | BN148: 0 | BO148: 0
A149: 149 | D149: Common | E149: =E135+E142 -> 68681039.59 | H149: =H135+H142 -> 68681039.59 | I149: 59031213.73 | J149: 7098779.859 | K149: 494322.6688 | L149: 100867.9497 | M149: 1955855.381 | N149: 0 | AI149: 0 | AK149: =AK135+AK142 -> 68681039.59 | AL149: =AL135+AL142 -> 10771558.53 | AM149: =AM135+AM142 -> 11014080.03 | AN149: =AN135+AN142 -> 46895401.03 | AO149: =AO135+AO142 -> 8.937611778e-11 | AS149: =AS135+AS142 -> 10771558.53 | AT149: 6986810.382 | AU149: 2804847.752 | AV149: 240718.7251 | AW149: 37486.02983 | AX149: 701695.6363 | AY149: 0 | BA149: =BA135+BA142 -> 11014080.03 | BB149: 7298175.914 | BC149: 2424581.982 | BD149: 209402.087 | BE149: 44740.19674 | BF149: 1037179.852 | BG149: 0 | BI149: =BI135+BI142 -> 46895401.03 | BJ149: 44746227.43 | BK149: 1869350.125 | BL149: 44201.85671 | BM149: 18641.72313 | BN149: 216979.8933 | BO149: 0
A150: 150 | D150: Total Allocated Rate Base | E150: =SUM(E146:E149) -> 319539000 | H150: =SUM(H146:H149) -> 319539000 | I150: 253134828.2 | J150: 47803920.19 | K150: 3601397.35 | L150: 710124.5574 | M150: 14288729.71 | N150: 0 | AI150: 0 | AK150: =SUM(AK146:AK149) -> 319539000 | AL150: =SUM(AL146:AL149) -> 79097021.8 | AM150: =SUM(AM146:AM149) -> 84511320.37 | AN150: =SUM(AN146:AN149) -> 155930657.8 | AO150: =SUM(AO146:AO149) -> 8.937611778e-11 | AS150: =SUM(AS146:AS149) -> 79097021.8 | AT150: 51311369.54 | AU150: 20598895.86 | AV150: 1767846.382 | AW150: 268346.183 | AX150: 5150563.831 | AY150: 0 | BA150: =SUM(BA146:BA149) -> 84511320.37 | BB150: 55999092.17 | BC150: 18603880.13 | BD150: 1606747.618 | BE150: 343292.6844 | BF150: 7958307.774 | BG150: 0 | BI150: =SUM(BI146:BI149) -> 155930657.8 | BJ150: 145824366.5 | BK150: 8601144.193 | BL150: 226803.3499 | BM150: 98485.69005 | BN150: 1179858.103 | BO150: 0
A151: 151 | H151: =H150-$E150 -> 0 | AI151: 0 | AK151: =AK150-$E150 -> 0
A152: 152 | AI152: 0
A153: 153 | D153: Interest Expenses | AI153: 0
A154: 154 | C154: R | D154: Interest Expenses | E154: =PROFORMA!AQ404*1000 -> 8979000 | F154: ="as Total Rate Base ("&A$128&")" -> as Total Rate Base (128) | H154: =SUM(I154:N154) -> 8979000 | I154: =$E154*SUMPRODUCT($R154:$AH154,INDEX(AllocFactors,I$4,0)) -> 7113052.311 | J154: 1343283.29 | K154: 101198.7482 | L154: 19954.39806 | M154: 401511.2523 | N154: 0 | P154: =E$1&$A154&"* Sum["&$R$1&$A154&":"&$AH$1&$A154&"* "&Factors!D$1&Factors!$A$58&":"&Factors!S$1&Factors!$A$64&"]" -> E154* Sum[R154:AH154* D1037:S1043] | R154: =R$128 -> 0.1065859504 | S154: 0.0701873081 | T154: 0.07076153948 | U154: 0 | V154: 0 | W154: 0.2644788911 | X154: 0 | Y154: 0 | Z154: 0 | AA154: 0 | AB154: 0.07778755232 | AC154: 0.2680892076 | AD154: 0.1326460159 | AE154: 0 | AF154: 0.005629887348 | AG154: 0.003833647849 | AH154: 2.797033156e-19 | AI154: 0 | AK154: =SUM(AL154:AO154) -> 8979000 | AL154: =SUMIF($R$4:$AH$4,AL$5,$R154:$AH154)*$E154 -> 2222614.951 | AM154: =SUMIF($R$4:$AH$4,AM$5,$R154:$AH154)*$E154 -> 2374755.963 | AN154: =SUMIF($R$4:$AH$4,AN$5,$R154:$AH154)*$E154 -> 4381629.086 | AO154: =SUMIF($R$4:$AH$4,AO$5,$R154:$AH154)*$E154 -> 2.511456071e-12 | AQ154: =E$1&$A154&"*["&R$1&$A154&":"&$AH$1&$A154&" when "&R$1&$A$4&":"&$AH$1&$A$4&" = E,D,C,or R]" -> E154*[R154:AH154 when R4:AH4 = E,D,C,or R]
A155: 155 | H155: =H154-E154 -> 0 | AI155: 0
A156: 156 | D156: Peak-Average Energy | E156: ='Demand - Pk-Avg'!R25 -> 0.3862947106 | H156: =H143-$E143 -> 0 | AI156: 0 | AK156: =AK143-$E143 -> 0
A157: 157 | D157: Peak-Average Demand | E157: ='Demand - Pk-Avg'!R24 -> 0.6137052894
A158: 158
A159: 159
A160: 160
A161: 161
A162: 162
A163: 163
A164: 164
A165: 165
A166: 166
A167: 167 | AS167: COMMODITY | BA167: DEMAND | BI167: CUSTOMER
A168: 168 | E168: Proforma | R168: COMMODITY | S168: COMMODITY | T168: COMMODITY | U168: COMMODITY | V168: COMMODITY | W168: DEMAND | X168: DEMAND | Y168: DEMAND | Z168: DEMAND | AA168: DEMAND | AB168: CUSTOMER | AC168: CUSTOMER | AD168: CUSTOMER | AE168: CUSTOMER | AF168: CUSTOMER | AG168: CUSTOMER | AH168: REVENUE | BR168: Proforma | BS168: COMMODITY | BT168: COMMODITY | BU168: COMMODITY | BV168: COMMODITY | BW168: COMMODITY | BX168: DEMAND | BY168: DEMAND | BZ168: DEMAND | CA168: DEMAND | CB168: DEMAND | CC168: CUSTOMER | CD168: CUSTOMER | CE168: CUSTOMER | CF168: COMMON | CG168: CUSTOMER | CH168: CUSTOMER | CI168: REVENUE | CM168: =MATCH(CM169,Factors!$C$58:$C$64,0) -> 1 | CN168: =MATCH(CN169,Factors!$C$58:$C$64,0) -> 2 | CO168: =MATCH(CO169,Factors!$C$58:$C$64,0) -> 3 | CP168: =MATCH(CP169,Factors!$C$58:$C$64,0) -> 4 | CQ168: =MATCH(CQ169,Factors!$C$58:$C$64,0) -> 5 | CR168: =MATCH(CR169,Factors!$C$58:$C$64,0) -> 6
A169: 169 | B169: Acct | C169: Func | D169: Description | E169: Totals | F169: classif. basis (line) | G169: derived classif. | H169: Total | I169: Sch 101 | J169: Sch 111 | K169: Sch 121 | L169: Sch 131 | M169: Sch 146 | N169: Open | P169: source | R169: Throughput | S169: Sales | T169: Therms - Small Mains | U169: Purchased Gas - Commodity | V169: GTI Expense | W169: Coincident Peak - All | X169: Coincident Peak - Small Mains | Y169: Purchased Gas - Demand | Z169: DA 131 | AA169: DA 146 | AB169: All Customers | AC169: Service Cost | AD169: Meter Cost | AE169: Regulator Cost | AF169: Ind Meas & Reg Cost | AG169: DA 101 | AH169: Revenues From Retail Rates | AK169: Total | AL169: Commodity | AM169: Demand | AN169: Customer | AO169: Revenue | AQ169: source | AS169: Total | AT169: Sch 101 | AU169: Sch 111 | AV169: Sch 121 | AW169: Sch 131 | AX169: Sch 146 | AY169: Open | BA169: Total | BB169: Sch 101 | BC169: Sch 111 | BD169: Sch 121 | BE169: Sch 131 | BF169: Sch 146 | BG169: Open | BI169: Total | BJ169: Sch 101 | BK169: Sch 111 | BL169: Sch 121 | BM169: Sch 131 | BN169: Sch 146 | BO169: Open | BQ169: Description | BR169: Labor Totals | BS169: Throughput | BT169: Sales | BU169: Therms - Small Mains | BV169: Purchased Gas - Commodity | BW169: GTI Expense | BX169: Coincident Peak - All | BY169: Coincident Peak - Small Mains | BZ169: Purchased Gas - Demand | CA169: DA 131 | CB169: DA 146 | CC169: All Customers | CD169: Service Cost | CE169: Meter Cost | CF169: 4-Factor | CG169: Ind Meas & Reg Cost | CH169: DA 101 | CI169: Revenues From Retail Rates | CK169: source | CM169: Sch 101 | CN169: Sch 111 | CO169: Sch 121 | CP169: Sch 131 | CQ169: Sch 146 | CR169: Open
A170: 170 | R170: E01 | S170: E04 | T170: E06 | U170: E07 | V170: E08 | W170: D01 | X170: D02 | Y170: D05 | Z170: D06 | AA170: D07 | AB170: C01 | AC170: C02 | AD170: C03 | AE170: C04 | AF170: C06 | AG170: C10 | AH170: R01 | BS170: E01 | BT170: E04 | BU170: E06 | BV170: E07 | BW170: E08 | BX170: D01 | BY170: D02 | BZ170: D05 | CA170: D06 | CB170: D07 | CC170: C01 | CD170: C02 | CE170: C03 | CF170: C04 | CG170: C06 | CH170: C10 | CI170: R01
A171: 171 | D171: Operation & Maintenance Expenses | BQ171: Operation & Maintenance Expenses
A172: 172 | D172: Purchased Gas Expenses | AI172: =IF(SUM(R172:AH172)<>0,(ROUND(SUM(R172:AH172),8)<>1)+0,0) -> 0 | BQ172: Purchased Gas Expenses
A173: 173 | B173: 804 | C173: P | D173: Proforma Purchased Gas Expense | E173: =PROFORMA!AQ28*1000 -> 0 | F173: Input - from PF Gas Costs | H173: =SUM(I173:N173) -> 0 | I173: =$E173*SUMPRODUCT($R173:$AH173,INDEX(AllocFactors,I$4,0)) -> 0 | J173: 0 | K173: 0 | L173: 0 | M173: 0 | N173: 0 | P173: =E$1&$A173&"* Sum["&$R$1&$A173&":"&$AH$1&$A173&"* "&Factors!D$1&Factors!$A$58&":"&Factors!S$1&Factors!$A$64&"]" -> E173* Sum[R173:AH173* D1037:S1043] | R173: 0 | T173: 0 | U173: =ROUND((Factors!D7/(Factors!D7+Factors!D11)),4) -> 0.5 | V173: 0 | W173: 0 | X173: 0 | Y173: =ROUND((Factors!D11/(Factors!D7+Factors!D11)),4) -> 0.5 | Z173: 0 | AA173: 0 | AB173: 0 | AC173: 0 | AD173: 0 | AE173: 0 | AF173: 0 | AG173: 0 | AH173: 0 | AI173: =IF(SUM(R173:AH173)<>0,(ROUND(SUM(R173:AH173),8)<>1)+0,0) -> 0 | AK173: =SUM(AL173:AO173) -> 0 | AL173: =SUMIF($R$4:$AH$4,AL$5,$R173:$AH173)*$E173 -> 0 | AM173: 0 | AN173: 0 | AO173: 0 | AQ173: =E$1&$A173&"*["&R$1&$A173&":"&$AH$1&$A173&" when "&R$1&$A$4&":"&$AH$1&$A$4&" = E,D,C,or R]" -> E173*[R173:AH173 when R4:AH4 = E,D,C,or R] | AS173: =SUM(AT173:AY173) -> 0 | AT173: =$E173*SUMPRODUCT($R173:$V173,INDEX(AllocFactors_E,AT$4,0)) -> 0 | AU173: 0 | AV173: 0 | AW173: 0 | AX173: 0 | AY173: 0 | BA173: =SUM(BB173:BG173) -> 0 | BB173: =$E173*SUMPRODUCT($W173:$AA173,INDEX(AllocFactors_D,BB$4,0)) -> 0 | BC173: 0 | BD173: 0 | BE173: 0 | BF173: 0 | BG173: 0 | BI173: =SUM(BJ173:BO173) -> 0 | BJ173: =$E173*SUMPRODUCT($AB173:$AG173,INDEX(AllocFactors_C,BJ$4,0)) -> 0 | BK173: 0 | BL173: 0 | BM173: 0 | BN173: 0 | BO173: 0 | BQ173: Proforma Purchased Gas Expense | BR173: 0 | BS173: =R173 -> 0 | BT173: 0 | BU173: 0 | BV173: 0.5 | BW173: 0 | BX173: 0 | BY173: 0 | BZ173: 0.5 | CA173: 0 | CB173: 0 | CC173: 0 | CD173: 0 | CE173: 0 | CF173: 0 | CG173: =AF173 -> 0 | CH173: 0 | CI173: 0 | CK173: =F173 -> Input - from PF Gas Costs | CL173: =IF(SUM(BS173:CI173)<>0,(ROUND(SUM(BS173:CI173),4)<>1)+0,0) -> 0 | CM173: =$BR173*SUMPRODUCT($BS173:$CI173,INDEX(AllocFactors,CM$168,0)) -> 0 | CN173: 0 | CO173: 0 | CP173: 0 | CQ173: 0 | CR173: 0
A174: 174 | B174: 813-010 | C174: P | D174: Gas Research Institute Expense | E174: =PROFORMA!AQ30 -> 76000 | F174: Input - 100% GTI | H174: =SUM(I174:N174) -> 76000 | I174: 56221.52666 | J174: 18248.14439 | K174: 1277.60731 | L174: 252.7216355 | M174: 0 | N174: 0 | P174: =E$1&$A174&"* """ -> E174* " | R174: 0 | S174: 0 | T174: 0 | V174: 1 | W174: 0 | X174: 0 | Z174: 0 | AA174: 0 | AB174: 0 | AC174: 0 | AD174: 0 | AE174: 0 | AF174: 0 | AG174: 0 | AH174: 0 | AI174: 0 | AK174: =SUM(AL174:AO174) -> 76000 | AL174: 76000 | AM174: 0 | AN174: 0 | AO174: 0 | AQ174: =E$1&$A174&"* """ -> E174* " | AS174: =SUM(AT174:AY174) -> 76000 | AT174: 56221.52666 | AU174: 18248.14439 | AV174: 1277.60731 | AW174: 252.7216355 | AX174: 0 | AY174: 0 | BA174: =SUM(BB174:BG174) -> 0 | BB174: 0 | BC174: 0 | BD174: 0 | BE174: 0 | BF174: 0 | BG174: 0 | BI174: =SUM(BJ174:BO174) -> 0 | BJ174: 0 | BK174: 0 | BL174: 0 | BM174: 0 | BN174: 0 | BO174: 0 | BQ174: Gas Research Contributions | BR174: 0 | BS174: 0 | BT174: 0 | BU174: 0 | BV174: 0 | BW174: 1 | BX174: 0 | BY174: 0 | BZ174: 0 | CA174: 0 | CB174: 0 | CC174: 0 | CD174: 0 | CE174: 0 | CF174: 0 | CG174: 0 | CH174: 0 | CI174: 0 | CK174: =F174 -> Input - 100% GTI | CL174: 0 | CM174: 0 | CN174: 0 | CO174: 0 | CP174: 0 | CQ174: 0 | CR174: 0
A175: 175 | B175: 813 | C175: P | D175: Other Gas Expenses | E175: =PROFORMA!AQ31 -> 943000 | F175: Input - purch vs. sched analysis | H175: =SUM(I175:N175) -> 943000 | I175: 631709.9628 | J175: 253599.3067 | K175: 21764.49746 | L175: 4766.475245 | M175: 31159.75787 | N175: 0 | P175: =E$1&$A175&"* """ -> E175* " | R175: ='Acct 813'!E27 -> 0.2185 | S175: ='Acct 813'!E28 -> 0.7815 | T175: 0 | U175: 0 | V175: 0 | W175: 0 | X175: 0 | Y175: 0 | Z175: 0 | AA175: 0 | AB175: 0 | AC175: 0 | AD175: 0 | AE175: 0 | AF175: 0 | AG175: 0 | AH175: 0 | AI175: 0 | AK175: =SUM(AL175:AO175) -> 943000 | AL175: 943000 | AM175: 0 | AN175: 0 | AO175: 0 | AQ175: =E$1&$A175&"* """ -> E175* " | AS175: =SUM(AT175:AY175) -> 943000 | AT175: 631709.9628 | AU175: 253599.3067 | AV175: 21764.49746 | AW175: 4766.475245 | AX175: 31159.75787 | AY175: 0 | BA175: =SUM(BB175:BG175) -> 0 | BB175: 0 | BC175: 0 | BD175: 0 | BE175: 0 | BF175: 0 | BG175: 0 | BI175: =SUM(BJ175:BO175) -> 0 | BJ175: 0 | BK175: 0 | BL175: 0 | BM175: 0 | BN175: 0 | BO175: 0 | BQ175: Other Gas Expenses | BR175: 493311 | BS175: 0.2185 | BT175: 0.7815 | BU175: 0 | BV175: 0 | BW175: 0 | BX175: 0 | BY175: 0 | BZ175: 0 | CA175: 0 | CB175: 0 | CC175: 0 | CD175: 0 | CE175: 0 | CF175: 0 | CG175: 0 | CH175: 0 | CI175: 0 | CK175: =F175 -> Input - purch vs. sched analysis | CL175: 0 | CM175: 330466.0376 | CN175: 132665.2466 | CO175: 11385.64794 | CP175: 2493.483213 | CQ175: 16300.58464 | CR175: 0
A176: 176 | D176: Total Purchased Gas Expenses | E176: =SUM(E172:E175) -> 1019000 | H176: =IF(ROUND(SUM(H173:H175),3)<>ROUND(SUM(I176:N176),3),#VALUE!,SUM(H173:H175)) -> 1019000 | I176: =SUM(I173:I175) -> 687931.4894 | J176: 271847.4511 | K176: 23042.10477 | L176: 5019.19688 | M176: 31159.75787 | N176: 0 | P176: =A173&":"&A175 -> 173:175 | R176: =SUMPRODUCT($E173:$E175,R$173:R$175)/$E176 -> 0.202203631 | S176: =SUMPRODUCT($E173:$E175,S$173:S$175)/$E176 -> 0.7232134446 | T176: 0 | U176: =SUMPRODUCT($E173:$E175,U$173:U$175)/$E176 -> 0 | V176: 0.07458292444 | W176: 0 | X176: 0 | Y176: 0 | Z176: 0 | AA176: 0 | AB176: 0 | AC176: 0 | AD176: 0 | AE176: 0 | AF176: 0 | AG176: 0 | AH176: 0 | AI176: 0 | AK176: =IF(ROUND(SUM(AK173:AK175),3)<>ROUND(SUM(AL176:AO176),3),#VALUE!,SUM(AK173:AK175)) -> 1019000 | AL176: =SUM(AL173:AL175) -> 1019000 | AM176: =SUM(AM173:AM175) -> 0 | AN176: =SUM(AN173:AN175) -> 0 | AO176: =SUM(AO173:AO175) -> 0 | AQ176: =$A173&":"&$A175 -> 173:175 | AS176: =IF(ROUND(SUM(AS173:AS175),3)<>ROUND(SUM(AT176:AY176),3),#VALUE!,SUM(AS173:AS175)) -> 1019000 | AT176: =SUM(AT173:AT175) -> 687931.4894 | AU176: 271847.4511 | AV176: 23042.10477 | AW176: 5019.19688 | AX176: 31159.75787 | AY176: 0 | BA176: =IF(ROUND(SUM(BA173:BA175),3)<>ROUND(SUM(BB176:BG176),3),#VALUE!,SUM(BA173:BA175)) -> 0 | BB176: =SUM(BB173:BB175) -> 0 | BC176: 0 | BD176: 0 | BE176: 0 | BF176: 0 | BG176: 0 | BI176: =IF(ROUND(SUM(BI173:BI175),3)<>ROUND(SUM(BJ176:BO176),3),#VALUE!,SUM(BI173:BI175)) -> 0 | BJ176: =SUM(BJ173:BJ175) -> 0 | BK176: 0 | BL176: 0 | BM176: 0 | BN176: 0 | BO176: 0 | BQ176: Total Purchased Gas Expenses | BR176: =IF(ROUND(SUM(BR173:BR175),3)<>ROUND(SUM(CM176:CR176),3),#VALUE!,SUM(BR173:BR175)) -> 493311 | BS176: =SUMPRODUCT($BR$173:$BR$175,BS$173:BS$175)/$BR$176 -> 0.2185 | BT176: =SUMPRODUCT($BR$173:$BR$175,BT$173:BT$175)/$BR$176 -> 0.7815 | BU176: 0 | BV176: 0 | BW176: 0 | BX176: 0 | BY176: 0 | BZ176: 0 | CA176: 0 | CB176: 0 | CC176: 0 | CD176: 0 | CE176: 0 | CF176: 0 | CG176: 0 | CH176: 0 | CI176: 0 | CL176: 0 | CM176: =SUM(CM173:CM175) -> 330466.0376 | CN176: 132665.2466 | CO176: 11385.64794 | CP176: 2493.483213 | CQ176: 16300.58464 | CR176: 0
A177: 177 | AI177: 0 | CL177: 0
A178: 178 | D178: Underground Storage Expenses | AI178: 0 | BQ178: Underground Storage Expenses | CL178: 0
A179: 179 | B179: 814-OP | C179: U | D179: Supervision & Engineering | E179: =PROFORMA!AQ35 -> 11000 | F179: ="as UG Storage Plant ("&A$23&")" -> as UG Storage Plant (23) | H179: =SUM(I179:N179) -> 11000 | I179: =$E179*SUMPRODUCT($R179:$AH179,INDEX(AllocFactors,I$4,0)) -> 7470.825019 | J179: 2999.154924 | K179: 257.3946301 | L179: 56.37001886 | M179: 216.2554084 | N179: 0 | P179: =E$1&$A179&"* Sum["&$R$1&$A179&":"&$AH$1&$A179&"* "&Factors!D$1&Factors!$A$58&":"&Factors!S$1&Factors!$A$64&"]" -> E179* Sum[R179:AH179* D1037:S1043] | R179: =R$23 -> 0.13 | S179: =S$23 -> 0.87 | T179: 0 | U179: 0 | V179: 0 | W179: 0 | X179: 0 | Y179: 0 | Z179: 0 | AA179: 0 | AB179: 0 | AC179: 0 | AD179: 0 | AE179: 0 | AF179: 0 | AG179: 0 | AH179: 0 | AI179: 0 | AK179: =SUM(AL179:AO179) -> 11000 | AL179: =SUMIF($R$4:$AH$4,AL$5,$R179:$AH179)*$E179 -> 11000 | AM179: 0 | AN179: 0 | AO179: 0 | AQ179: =E$1&$A179&"*["&R$1&$A179&":"&$AH$1&$A179&" when "&R$1&$A$4&":"&$AH$1&$A$4&" = E,D,C,or R]" -> E179*[R179:AH179 when R4:AH4 = E,D,C,or R] | AS179: =SUM(AT179:AY179) -> 11000 | AT179: =$E179*SUMPRODUCT($R179:$V179,INDEX(AllocFactors_E,AT$4,0)) -> 7470.825019 | AU179: 2999.154924 | AV179: 257.3946301 | AW179: 56.37001886 | AX179: 216.2554084 | AY179: 0 | BA179: =SUM(BB179:BG179) -> 0 | BB179: =$E179*SUMPRODUCT($W179:$AA179,INDEX(AllocFactors_D,BB$4,0)) -> 0 | BC179: 0 | BD179: 0 | BE179: 0 | BF179: 0 | BG179: 0 | BI179: =SUM(BJ179:BO179) -> 0 | BJ179: =$E179*SUMPRODUCT($AB179:$AG179,INDEX(AllocFactors_C,BJ$4,0)) -> 0 | BK179: 0 | BL179: 0 | BM179: 0 | BN179: 0 | BO179: 0 | BQ179: Supervision & Engineering | BR179: 6742 | BS179: =R179 -> 0.13 | BT179: =S179 -> 0.87 | BU179: =T179 -> 0 | BV179: =U179 -> 0 | BW179: =V179 -> 0 | BX179: =W179 -> 0 | BY179: =X179 -> 0 | BZ179: =Y179 -> 0 | CA179: =Z179 -> 0 | CB179: =AA179 -> 0 | CC179: =AB179 -> 0 | CD179: =AC179 -> 0 | CE179: =AD179 -> 0 | CF179: =AE179 -> 0 | CG179: =AF179 -> 0 | CH179: =AG179 -> 0 | CI179: =AH179 -> 0 | CK179: =F179 -> as UG Storage Plant (23) | CL179: 0 | CM179: =$BR179*SUMPRODUCT($BS179:$CI179,INDEX(AllocFactors,CM$168,0)) -> 4578.936571 | CN179: 1838.209318 | CO179: 157.7595087 | CP179: 34.54969701 | CQ179: 132.5449058 | CR179: 0
A180: 180 | B180: 815-OP | C180: U | D180: Maps & Records | E180: =PROFORMA!AQ36 -> 0 | F180: ="as UG Storage Plant ("&A$23&")" -> as UG Storage Plant (23) | H180: 0 | I180: 0 | J180: 0 | K180: 0 | L180: 0 | M180: 0 | N180: 0 | P180: =E$1&$A180&"* """ -> E180* " | R180: 0.13 | S180: 0.87 | T180: 0 | U180: 0 | V180: 0 | W180: 0 | X180: 0 | Y180: 0 | Z180: 0 | AA180: 0 | AB180: 0 | AC180: 0 | AD180: 0 | AE180: 0 | AF180: 0 | AG180: 0 | AH180: 0 | AI180: 0 | AK180: =SUM(AL180:AO180) -> 0 | AL180: 0 | AM180: 0 | AN180: 0 | AO180: 0 | AQ180: =E$1&$A180&"* """ -> E180* " | AS180: 0 | AT180: 0 | AU180: 0 | AV180: 0 | AW180: 0 | AX180: 0 | AY180: 0 | BA180: =SUM(BB180:BG180) -> 0 | BB180: 0 | BC180: 0 | BD180: 0 | BE180: 0 | BF180: 0 | BG180: 0 | BI180: 0 | BJ180: 0 | BK180: 0 | BL180: 0 | BM180: 0 | BN180: 0 | BO180: 0 | BQ180: Maps & Records | BR180: 0 | BS180: 0.13 | BT180: 0.87 | BU180: 0 | BV180: 0 | BW180: 0 | BX180: 0 | BY180: 0 | BZ180: 0 | CA180: 0 | CB180: 0 | CC180: 0 | CD180: 0 | CE180: 0 | CF180: 0 | CG180: 0 | CH180: 0 | CI180: 0 | CK180: as UG Storage Plant (23) | CL180: 0 | CM180: 0 | CN180: 0 | CO180: 0 | CP180: 0 | CQ180: 0 | CR180: 0
A181: 181 | B181: 816-OP | C181: U | D181: Wells Expenses | E181: =PROFORMA!AQ37 -> 0 | F181: as UG Storage Plant (23) | H181: 0 | I181: 0 | J181: 0 | K181: 0 | L181: 0 | M181: 0 | N181: 0 | P181: =E$1&$A181&"* """ -> E181* " | R181: 0.13 | S181: 0.87 | T181: 0 | U181: 0 | V181: 0 | W181: 0 | X181: 0 | Y181: 0 | Z181: 0 | AA181: 0 | AB181: 0 | AC181: 0 | AD181: 0 | AE181: 0 | AF181: 0 | AG181: 0 | AH181: 0 | AI181: 0 | AK181: =SUM(AL181:AO181) -> 0 | AL181: 0 | AM181: 0 | AN181: 0 | AO181: 0 | AQ181: =E$1&$A181&"* """ -> E181* " | AS181: 0 | AT181: 0 | AU181: 0 | AV181: 0 | AW181: 0 | AX181: 0 | AY181: 0 | BA181: =SUM(BB181:BG181) -> 0 | BB181: 0 | BC181: 0 | BD181: 0 | BE181: 0 | BF181: 0 | BG181: 0 | BI181: 0 | BJ181: 0 | BK181: 0 | BL181: 0 | BM181: 0 | BN181: 0 | BO181: 0 | BQ181: Wells Expenses | BR181: 0 | BS181: 0.13 | BT181: 0.87 | BU181: 0 | BV181: 0 | BW181: 0 | BX181: 0 | BY181: 0 | BZ181: 0 | CA181: 0 | CB181: 0 | CC181: 0 | CD181: 0 | CE181: 0 | CF181: 0 | CG181: 0 | CH181: 0 | CI181: 0 | CK181: as UG Storage Plant (23) | CL181: 0 | CM181: 0 | CN181: 0 | CO181: 0 | CP181: 0 | CQ181: 0 | CR181: 0
A182: 182 | B182: 817-OP | C182: U | D182: Lines Expenses | E182: =PROFORMA!AQ38 -> 0 | F182: as UG Storage Plant (23) | H182: =SUM(I182:N182) -> 0 | I182: 0 | J182: 0 | K182: 0 | L182: 0 | M182: 0 | N182: 0 | R182: 0.13 | S182: 0.87 | T182: 0 | U182: 0 | V182: 0 | W182: 0 | X182: 0 | Y182: 0 | Z182: 0 | AA182: 0 | AB182: 0 | AC182: 0 | AD182: 0 | AE182: 0 | AF182: 0 | AG182: 0 | AH182: 0 | AI182: 0 | AK182: =SUM(AL182:AO182) -> 0 | AL182: 0 | AM182: 0 | AN182: 0 | AO182: 0 | AQ182: =E$1&$A182&"* """ -> E182* " | AS182: 0 | AT182: 0 | AU182: 0 | AV182: 0 | AW182: 0 | AX182: 0 | AY182: 0 | BA182: =SUM(BB182:BG182) -> 0 | BB182: 0 | BC182: 0 | BD182: 0 | BE182: 0 | BF182: 0 | BG182: 0 | BI182: 0 | BJ182: 0 | BK182: 0 | BL182: 0 | BM182: 0 | BN182: 0 | BO182: 0 | BQ182: Lines Expenses | BR182: 0 | BS182: 0.13 | BT182: 0.87 | BU182: 0 | BV182: 0 | BW182: 0 | BX182: 0 | BY182: 0 | BZ182: 0 | CA182: 0 | CB182: 0 | CC182: 0 | CD182: 0 | CE182: 0 | CF182: 0 | CG182: 0 | CH182: 0 | CI182: 0 | CK182: as UG Storage Plant (23) | CL182: 0 | CM182: 0 | CN182: 0 | CO182: 0 | CP182: 0 | CQ182: 0 | CR182: 0
A183: 183 | B183: 818-OP | C183: U | D183: Compressor Station Expenses | E183: =PROFORMA!AQ39 -> 0 | F183: as UG Storage Plant (23) | H183: 0 | I183: 0 | J183: 0 | K183: 0 | L183: 0 | M183: 0 | N183: 0 | R183: 0.13 | S183: 0.87 | T183: 0 | U183: 0 | V183: 0 | W183: 0 | X183: 0 | Y183: 0 | Z183: 0 | AA183: 0 | AB183: 0 | AC183: 0 | AD183: 0 | AE183: 0 | AF183: 0 | AG183: 0 | AH183: 0 | AI183: 0 | AK183: 0 | AL183: 0 | AM183: 0 | AN183: 0 | AO183: 0 | AQ183: E183* " | AS183: 0 | AT183: 0 | AU183: 0 | AV183: 0 | AW183: 0 | AX183: 0 | AY183: 0 | BA183: 0 | BB183: 0 | BC183: 0 | BD183: 0 | BE183: 0 | BF183: 0 | BG183: 0 | BI183: 0 | BJ183: 0 | BK183: 0 | BL183: 0 | BM183: 0 | BN183: 0 | BO183: 0 | BQ183: Compressor Station Expenses | BR183: 0 | BS183: 0.13 | BT183: 0.87 | BU183: 0 | BV183: 0 | BW183: 0 | BX183: 0 | BY183: 0 | BZ183: 0 | CA183: 0 | CB183: 0 | CC183: 0 | CD183: 0 | CE183: 0 | CF183: 0 | CG183: 0 | CH183: 0 | CI183: 0 | CK183: as UG Storage Plant (23) | CL183: 0 | CM183: 0 | CN183: 0 | CO183: 0 | CP183: 0 | CQ183: 0 | CR183: 0
A184: 184 | B184: 819-OP | C184: U | D184: Compressor Station Fuel & Power | E184: =PROFORMA!AQ40 -> 0 | F184: as UG Storage Plant (23) | H184: 0 | I184: 0 | J184: 0 | K184: 0 | L184: 0 | M184: 0 | N184: 0 | R184: 0.13 | S184: 0.87 | T184: 0 | U184: 0 | V184: 0 | W184: 0 | X184: 0 | Y184: 0 | Z184: 0 | AA184: 0 | AB184: 0 | AC184: 0 | AD184: 0 | AE184: 0 | AF184: 0 | AG184: 0 | AH184: 0 | AI184: 0 | AK184: 0 | AL184: 0 | AM184: 0 | AN184: 0 | AO184: 0 | AQ184: E184* " | AS184: 0 | AT184: 0 | AU184: 0 | AV184: 0 | AW184: 0 | AX184: 0 | AY184: 0 | BA184: 0 | BB184: 0 | BC184: 0 | BD184: 0 | BE184: 0 | BF184: 0 | BG184: 0 | BI184: 0 | BJ184: 0 | BK184: 0 | BL184: 0 | BM184: 0 | BN184: 0 | BO184: 0 | BQ184: Compressor Station Fuel & Power | BR184: 0 | BS184: 0.13 | BT184: 0.87 | BU184: 0 | BV184: 0 | BW184: 0 | BX184: 0 | BY184: 0 | BZ184: 0 | CA184: 0 | CB184: 0 | CC184: 0 | CD184: 0 | CE184: 0 | CF184: 0 | CG184: 0 | CH184: 0 | CI184: 0 | CK184: as UG Storage Plant (23) | CL184: 0 | CM184: 0 | CN184: 0 | CO184: 0 | CP184: 0 | CQ184: 0 | CR184: 0
A185: 185 | B185: 820-OP | C185: U | D185: Measuring & Regulator Station | E185: =PROFORMA!AQ41 -> 0 | F185: as UG Storage Plant (23) | H185: 0 | I185: 0 | J185: 0 | K185: 0 | L185: 0 | M185: 0 | N185: 0 | R185: 0.13 | S185: 0.87 | T185: 0 | U185: 0 | V185: 0 | W185: 0 | X185: 0 | Y185: 0 | Z185: 0 | AA185: 0 | AB185: 0 | AC185: 0 | AD185: 0 | AE185: 0 | AF185: 0 | AG185: 0 | AH185: 0 | AI185: 0 | AK185: 0 | AL185: 0 | AM185: 0 | AN185: 0 | AO185: 0 | AQ185: E185* " | AS185: 0 | AT185: 0 | AU185: 0 | AV185: 0 | AW185: 0 | AX185: 0 | AY185: 0 | BA185: 0 | BB185: 0 | BC185: 0 | BD185: 0 | BE185: 0 | BF185: 0 | BG185: 0 | BI185: 0 | BJ185: 0 | BK185: 0 | BL185: 0 | BM185: 0 | BN185: 0 | BO185: 0 | BQ185: Measuring & Regulator Station | BR185: 0 | BS185: 0.13 | BT185: 0.87 | BU185: 0 | BV185: 0 | BW185: 0 | BX185: 0 | BY185: 0 | BZ185: 0 | CA185: 0 | CB185: 0 | CC185: 0 | CD185: 0 | CE185: 0 | CF185: 0 | CG185: 0 | CH185: 0 | CI185: 0 | CK185: as UG Storage Plant (23) | CL185: 0 | CM185: 0 | CN185: 0 | CO185: 0 | CP185: 0 | CQ185: 0 | CR185: 0
A186: 186 | B186: 821-OP | C186: U | D186: Purification Expenses | E186: =PROFORMA!AQ42 -> 0 | F186: as UG Storage Plant (23) | H186: 0 | I186: 0 | J186: 0 | K186: 0 | L186: 0 | M186: 0 | N186: 0 | R186: 0.13 | S186: 0.87 | T186: 0 | U186: 0 | V186: 0 | W186: 0 | X186: 0 | Y186: 0 | Z186: 0 | AA186: 0 | AB186: 0 | AC186: 0 | AD186: 0 | AE186: 0 | AF186: 0 | AG186: 0 | AH186: 0 | AI186: 0 | AK186: 0 | AL186: 0 | AM186: 0 | AN186: 0 | AO186: 0 | AQ186: E186* " | AS186: 0 | AT186: 0 | AU186: 0 | AV186: 0 | AW186: 0 | AX186: 0 | AY186: 0 | BA186: 0 | BB186: 0 | BC186: 0 | BD186: 0 | BE186: 0 | BF186: 0 | BG186: 0 | BI186: 0 | BJ186: 0 | BK186: 0 | BL186: 0 | BM186: 0 | BN186: 0 | BO186: 0 | BQ186: Purification Expenses | BR186: 0 | BS186: 0.13 | BT186: 0.87 | BU186: 0 | BV186: 0 | BW186: 0 | BX186: 0 | BY186: 0 | BZ186: 0 | CA186: 0 | CB186: 0 | CC186: 0 | CD186: 0 | CE186: 0 | CF186: 0 | CG186: 0 | CH186: 0 | CI186: 0 | CK186: as UG Storage Plant (23) | CL186: 0 | CM186: 0 | CN186: 0 | CO186: 0 | CP186: 0 | CQ186: 0 | CR186: 0
A187: 187 | B187: 824-OP | C187: U | D187: Other Expenses | E187: =PROFORMA!AQ43 -> 450000 | F187: as UG Storage Plant (23) | H187: 450000 | I187: 305624.6599 | J187: 122692.7014 | K187: 10529.78032 | L187: 2306.046226 | M187: 8846.812161 | N187: 0 | P187: =E$1&$A187&"* """ -> E187* " | R187: 0.13 | S187: 0.87 | T187: 0 | U187: 0 | V187: 0 | W187: 0 | X187: 0 | Y187: 0 | Z187: 0 | AA187: 0 | AB187: 0 | AC187: 0 | AD187: 0 | AE187: 0 | AF187: 0 | AG187: 0 | AH187: 0 | AI187: 0 | AK187: 450000 | AL187: 450000 | AM187: 0 | AN187: 0 | AO187: 0 | AQ187: E187* " | AS187: 450000 | AT187: 305624.6599 | AU187: 122692.7014 | AV187: 10529.78032 | AW187: 2306.046226 | AX187: 8846.812161 | AY187: 0 | BA187: 0 | BB187: 0 | BC187: 0 | BD187: 0 | BE187: 0 | BF187: 0 | BG187: 0 | BI187: 0 | BJ187: 0 | BK187: 0 | BL187: 0 | BM187: 0 | BN187: 0 | BO187: 0 | BQ187: Other Expenses | BR187: 0 | BS187: 0.13 | BT187: 0.87 | BU187: 0 | BV187: 0 | BW187: 0 | BX187: 0 | BY187: 0 | BZ187: 0 | CA187: 0 | CB187: 0 | CC187: 0 | CD187: 0 | CE187: 0 | CF187: 0 | CG187: 0 | CH187: 0 | CI187: 0 | CK187: as UG Storage Plant (23) | CL187: 0 | CM187: 0 | CN187: 0 | CO187: 0 | CP187: 0 | CQ187: 0 | CR187: 0
A188: 188 | B188: 825-OP | C188: U | D188: Storage Well Royalties & Rents | E188: =PROFORMA!AQ44 -> 0 | F188: as UG Storage Plant (23) | H188: 0 | I188: 0 | J188: 0 | K188: 0 | L188: 0 | M188: 0 | N188: 0 | P188: =E$1&$A188&"* """ -> E188* " | R188: 0.13 | S188: 0.87 | T188: 0 | U188: 0 | V188: 0 | W188: 0 | X188: 0 | Y188: 0 | Z188: 0 | AA188: 0 | AB188: 0 | AC188: 0 | AD188: 0 | AE188: 0 | AF188: 0 | AG188: 0 | AH188: 0 | AI188: 0 | AK188: 0 | AL188: 0 | AM188: 0 | AN188: 0 | AO188: 0 | AQ188: E188* " | AS188: 0 | AT188: 0 | AU188: 0 | AV188: 0 | AW188: 0 | AX188: 0 | AY188: 0 | BA188: 0 | BB188: 0 | BC188: 0 | BD188: 0 | BE188: 0 | BF188: 0 | BG188: 0 | BI188: 0 | BJ188: 0 | BK188: 0 | BL188: 0 | BM188: 0 | BN188: 0 | BO188: 0 | BQ188: Storage Well Royalties & Rents | BR188: 0 | BS188: 0.13 | BT188: 0.87 | BU188: 0 | BV188: 0 | BW188: 0 | BX188: 0 | BY188: 0 | BZ188: 0 | CA188: 0 | CB188: 0 | CC188: 0 | CD188: 0 | CE188: 0 | CF188: 0 | CG188: 0 | CH188: 0 | CI188: 0 | CK188: as UG Storage Plant (23) | CL188: 0 | CM188: 0 | CN188: 0 | CO188: 0 | CP188: 0 | CQ188: 0 | CR188: 0
A189: 189 | B189: 826-OP | C189: U | D189: Rents | E189: =PROFORMA!AQ45 -> 0 | F189: as UG Storage Plant (23) | H189: 0 | I189: 0 | J189: 0 | K189: 0 | L189: 0 | M189: 0 | N189: 0 | P189: =E$1&$A189&"* """ -> E189* " | R189: 0.13 | S189: 0.87 | T189: 0 | U189: 0 | V189: 0 | W189: 0 | X189: 0 | Y189: 0 | Z189: 0 | AA189: 0 | AB189: 0 | AC189: 0 | AD189: 0 | AE189: 0 | AF189: 0 | AG189: 0 | AH189: 0 | AI189: 0 | AK189: 0 | AL189: 0 | AM189: 0 | AN189: 0 | AO189: 0 | AQ189: E189* " | AS189: 0 | AT189: 0 | AU189: 0 | AV189: 0 | AW189: 0 | AX189: 0 | AY189: 0 | BA189: 0 | BB189: 0 | BC189: 0 | BD189: 0 | BE189: 0 | BF189: 0 | BG189: 0 | BI189: 0 | BJ189: 0 | BK189: 0 | BL189: 0 | BM189: 0 | BN189: 0 | BO189: 0 | BQ189: Rents | BR189: 0 | BS189: 0.13 | BT189: 0.87 | BU189: 0 | BV189: 0 | BW189: 0 | BX189: 0 | BY189: 0 | BZ189: 0 | CA189: 0 | CB189: 0 | CC189: 0 | CD189: 0 | CE189: 0 | CF189: 0 | CG189: 0 | CH189: 0 | CI189: 0 | CK189: as UG Storage Plant (23) | CL189: 0 | CM189: 0 | CN189: 0 | CO189: 0 | CP189: 0 | CQ189: 0 | CR189: 0
A190: 190 | D190: Total Underground Storage Operation | E190: =SUM(E178:E189) -> 461000 | H190: =IF(ROUND(SUM(H179:H189),3)<>ROUND(SUM(I190:N190),3),#VALUE!,SUM(H179:H189)) -> 461000 | I190: =SUM(I179:I189) -> 313095.4849 | J190: 125691.8563 | K190: 10787.17495 | L190: 2362.416245 | M190: 9063.06757 | N190: 0 | P190: =$A179&":"&$A189 -> 179:189 | R190: =SUMPRODUCT($E$179:$E$189,R$179:R$189)/$E190 -> 0.13 | S190: 0.87 | T190: 0 | U190: 0 | V190: 0 | W190: 0 | X190: 0 | Y190: 0 | Z190: 0 | AA190: 0 | AB190: 0 | AC190: 0 | AD190: 0 | AE190: 0 | AF190: 0 | AG190: 0 | AH190: 0 | AI190: 0 | AK190: =IF(ROUND(SUM(AK179:AK189),3)<>ROUND(SUM(AL190:AO190),3),#VALUE!,SUM(AK179:AK189)) -> 461000 | AL190: =SUM(AL179:AL189) -> 461000 | AM190: =SUM(AM179:AM189) -> 0 | AN190: =SUM(AN179:AN189) -> 0 | AO190: =SUM(AO179:AO189) -> 0 | AQ190: =$A179&":"&$A189 -> 179:189 | AS190: =IF(ROUND(SUM(AS179:AS189),3)<>ROUND(SUM(AT190:AY190),3),#VALUE!,SUM(AS179:AS189)) -> 461000 | AT190: =SUM(AT179:AT189) -> 313095.4849 | AU190: 125691.8563 | AV190: 10787.17495 | AW190: 2362.416245 | AX190: 9063.06757 | AY190: 0 | BA190: =IF(ROUND(SUM(BA179:BA189),3)<>ROUND(SUM(BB190:BG190),3),#VALUE!,SUM(BA179:BA189)) -> 0 | BB190: =SUM(BB179:BB189) -> 0 | BC190: 0 | BD190: 0 | BE190: 0 | BF190: 0 | BG190: 0 | BI190: =IF(ROUND(SUM(BI179:BI189),3)<>ROUND(SUM(BJ190:BO190),3),#VALUE!,SUM(BI179:BI189)) -> 0 | BJ190: =SUM(BJ179:BJ189) -> 0 | BK190: 0 | BL190: 0 | BM190: 0 | BN190: 0 | BO190: 0 | BQ190: Total Underground Storage Operation | BR190: =IF(ROUND(SUM(BR179:BR189),3)<>ROUND(SUM(CM190:CR190),3),#VALUE!,SUM(BR179:BR189)) -> 6742 | BS190: =SUMPRODUCT($BR$179:$BR$189,BS$179:BS$189)/$BR$190 -> 0.13 | BT190: =SUMPRODUCT($BR$179:$BR$189,BT$179:BT$189)/$BR$190 -> 0.87 | BU190: 0 | BV190: 0 | BW190: 0 | BX190: 0 | BY190: 0 | BZ190: 0 | CA190: 0 | CB190: 0 | CC190: 0 | CD190: 0 | CE190: 0 | CF190: 0 | CG190: 0 | CH190: 0 | CI190: 0 | CL190: 0 | CM190: =SUM(CM179:CM189) -> 4578.936571 | CN190: 1838.209318 | CO190: 157.7595087 | CP190: 34.54969701 | CQ190: 132.5449058 | CR190: 0
A191: 191 | B191: 830-MT | C191: U | D191: Supervision & Engineering | E191: =PROFORMA!AQ47 -> 0 | F191: as UG Storage Plant (23) | H191: =SUM(I191:N191) -> 0 | I191: =$E191*SUMPRODUCT($R191:$AH191,INDEX(AllocFactors,I$4,0)) -> 0 | J191: 0 | K191: 0 | L191: 0 | M191: 0 | N191: 0 | P191: =E$1&$A191&"* Sum["&$R$1&$A191&":"&$AH$1&$A191&"* "&Factors!D$1&Factors!$A$58&":"&Factors!S$1&Factors!$A$64&"]" -> E191* Sum[R191:AH191* D1037:S1043] | R191: =R$23 -> 0.13 | S191: 0.87 | T191: 0 | U191: 0 | V191: 0 | W191: 0 | X191: 0 | Y191: 0 | Z191: 0 | AA191: 0 | AB191: 0 | AC191: 0 | AD191: 0 | AE191: 0 | AF191: 0 | AG191: 0 | AH191: 0 | AI191: 0 | AK191: =SUM(AL191:AO191) -> 0 | AL191: =SUMIF($R$4:$AH$4,AL$5,$R191:$AH191)*$E191 -> 0 | AM191: 0 | AN191: 0 | AO191: 0 | AQ191: =E$1&$A191&"*["&R$1&$A191&":"&$AH$1&$A191&" when "&R$1&$A$4&":"&$AH$1&$A$4&" = E,D,C,or R]" -> E191*[R191:AH191 when R4:AH4 = E,D,C,or R] | AS191: =SUM(AT191:AY191) -> 0 | AT191: =$E191*SUMPRODUCT($R191:$V191,INDEX(AllocFactors_E,AT$4,0)) -> 0 | AU191: 0 | AV191: 0 | AW191: 0 | AX191: 0 | AY191: 0 | BA191: =SUM(BB191:BG191) -> 0 | BB191: =$E191*SUMPRODUCT($W191:$AA191,INDEX(AllocFactors_D,BB$4,0)) -> 0 | BC191: 0 | BD191: 0 | BE191: 0 | BF191: 0 | BG191: 0 | BI191: =SUM(BJ191:BO191) -> 0 | BJ191: =$E191*SUMPRODUCT($AB191:$AG191,INDEX(AllocFactors_C,BJ$4,0)) -> 0 | BK191: 0 | BL191: 0 | BM191: 0 | BN191: 0 | BO191: 0 | BQ191: Supervision & Engineering | BR191: 0 | BS191: =R191 -> 0.13 | BT191: =S191 -> 0.87 | BU191: =T191 -> 0 | BV191: =U191 -> 0 | BW191: =V191 -> 0 | BX191: =W191 -> 0 | BY191: =X191 -> 0 | BZ191: =Y191 -> 0 | CA191: =Z191 -> 0 | CB191: =AA191 -> 0 | CC191: =AB191 -> 0 | CD191: =AC191 -> 0 | CE191: =AD191 -> 0 | CF191: =AE191 -> 0 | CG191: =AF191 -> 0 | CH191: =AG191 -> 0 | CI191: =AH191 -> 0 | CK191: =F191 -> as UG Storage Plant (23) | CL191: 0 | CM191: =$BR191*SUMPRODUCT($BS191:$CI191,INDEX(AllocFactors,CM$168,0)) -> 0 | CN191: 0 | CO191: 0 | CP191: 0 | CQ191: 0 | CR191: 0
A192: 192 | B192: 831-MT | C192: U | D192: Maps & Records | E192: =PROFORMA!AQ48 -> 0 | F192: as UG Storage Plant (23) | H192: 0 | I192: 0 | J192: 0 | K192: 0 | L192: 0 | M192: 0 | N192: 0 | R192: =R$23 -> 0.13 | S192: 0.87 | T192: 0 | U192: 0 | V192: 0 | W192: 0 | X192: 0 | Y192: 0 | Z192: 0 | AA192: 0 | AB192: 0 | AC192: 0 | AD192: 0 | AE192: 0 | AF192: 0 | AG192: 0 | AH192: 0 | AI192: 0 | AK192: =SUM(AL192:AO192) -> 0 | AL192: 0 | AM192: 0 | AN192: 0 | AO192: 0 | AQ192: =E$1&$A192&"* """ -> E192* " | AS192: =SUM(AT192:AY192) -> 0 | AT192: 0 | AU192: 0 | AV192: 0 | AW192: 0 | AX192: 0 | AY192: 0 | BA192: =SUM(BB192:BG192) -> 0 | BB192: 0 | BC192: 0 | BD192: 0 | BE192: 0 | BF192: 0 | BG192: 0 | BI192: 0 | BJ192: 0 | BK192: 0 | BL192: 0 | BM192: 0 | BN192: 0 | BO192: 0 | BQ192: Maps & Records | BR192: 0 | BS192: 0.13 | BT192: 0.87 | BU192: 0 | BV192: 0 | BW192: 0 | BX192: 0 | BY192: 0 | BZ192: 0 | CA192: 0 | CB192: 0 | CC192: 0 | CD192: 0 | CE192: 0 | CF192: 0 | CG192: 0 | CH192: 0 | CI192: 0 | CK192: as UG Storage Plant (23) | CL192: 0 | CM192: 0 | CN192: 0 | CO192: 0 | CP192: 0 | CQ192: 0 | CR192: 0
A193: 193 | B193: 832-MT | C193: U | D193: Wells Expenses | E193: =PROFORMA!AQ49 -> 0 | F193: as UG Storage Plant (23) | H193: 0 | I193: 0 | J193: 0 | K193: 0 | L193: 0 | M193: 0 | N193: 0 | R193: =R$23 -> 0.13 | S193: 0.87 | T193: 0 | U193: 0 | V193: 0 | W193: 0 | X193: 0 | Y193: 0 | Z193: 0 | AA193: 0 | AB193: 0 | AC193: 0 | AD193: 0 | AE193: 0 | AF193: 0 | AG193: 0 | AH193: 0 | AI193: 0 | AK193: 0 | AL193: 0 | AM193: 0 | AN193: 0 | AO193: 0 | AQ193: E193* " | AS193: 0 | AT193: 0 | AU193: 0 | AV193: 0 | AW193: 0 | AX193: 0 | AY193: 0 | BA193: 0 | BB193: 0 | BC193: 0 | BD193: 0 | BE193: 0 | BF193: 0 | BG193: 0 | BI193: 0 | BJ193: 0 | BK193: 0 | BL193: 0 | BM193: 0 | BN193: 0 | BO193: 0 | BQ193: Wells Expenses | BR193: 0 | BS193: 0.13 | BT193: 0.87 | BU193: 0 | BV193: 0 | BW193: 0 | BX193: 0 | BY193: 0 | BZ193: 0 | CA193: 0 | CB193: 0 | CC193: 0 | CD193: 0 | CE193: 0 | CF193: 0 | CG193: 0 | CH193: 0 | CI193: 0 | CK193: as UG Storage Plant (23) | CL193: 0 | CM193: 0 | CN193: 0 | CO193: 0 | CP193: 0 | CQ193: 0 | CR193: 0
A194: 194 | B194: 833-MT | C194: U | D194: Lines Expenses | E194: =PROFORMA!AQ50 -> 0 | F194: as UG Storage Plant (23) | H194: 0 | I194: 0 | J194: 0 | K194: 0 | L194: 0 | M194: 0 | N194: 0 | R194: =R$23 -> 0.13 | S194: 0.87 | T194: 0 | U194: 0 | V194: =V$23 -> 0 | W194: 0 | X194: 0 | Y194: 0 | Z194: 0 | AA194: 0 | AB194: 0 | AC194: 0 | AD194: 0 | AE194: 0 | AF194: 0 | AG194: 0 | AH194: 0 | AI194: 0 | AK194: 0 | AL194: 0 | AM194: 0 | AN194: 0 | AO194: 0 | AQ194: E194* " | AS194: 0 | AT194: 0 | AU194: 0 | AV194: 0 | AW194: 0 | AX194: 0 | AY194: 0 | BA194: 0 | BB194: 0 | BC194: 0 | BD194: 0 | BE194: 0 | BF194: 0 | BG194: 0 | BI194: 0 | BJ194: 0 | BK194: 0 | BL194: 0 | BM194: 0 | BN194: 0 | BO194: 0 | BQ194: Lines Expenses | BR194: 0 | BS194: 0.13 | BT194: 0.87 | BU194: 0 | BV194: 0 | BW194: 0 | BX194: 0 | BY194: 0 | BZ194: 0 | CA194: 0 | CB194: 0 | CC194: 0 | CD194: 0 | CE194: 0 | CF194: 0 | CG194: 0 | CH194: 0 | CI194: 0 | CK194: as UG Storage Plant (23) | CL194: 0 | CM194: 0 | CN194: 0 | CO194: 0 | CP194: 0 | CQ194: 0 | CR194: 0
A195: 195 | B195: 834-MT | C195: U | D195: Compressor Station Expenses | E195: =PROFORMA!AQ51 -> 0 | F195: as UG Storage Plant (23) | H195: 0 | I195: 0 | J195: 0 | K195: 0 | L195: 0 | M195: 0 | N195: 0 | P195: =E$1&$A195&"* """ -> E195* " | R195: =R$23 -> 0.13 | S195: =S$23 -> 0.87 | T195: =T$23 -> 0 | U195: =U$23 -> 0 | V195: 0 | W195: 0 | X195: 0 | Y195: 0 | Z195: 0 | AA195: 0 | AB195: 0 | AC195: 0 | AD195: 0 | AE195: 0 | AF195: 0 | AG195: 0 | AH195: 0 | AI195: 0 | AK195: 0 | AL195: 0 | AM195: 0 | AN195: 0 | AO195: 0 | AQ195: E195* " | AS195: 0 | AT195: 0 | AU195: 0 | AV195: 0 | AW195: 0 | AX195: 0 | AY195: 0 | BA195: 0 | BB195: 0 | BC195: 0 | BD195: 0 | BE195: 0 | BF195: 0 | BG195: 0 | BI195: 0 | BJ195: 0 | BK195: 0 | BL195: 0 | BM195: 0 | BN195: 0 | BO195: 0 | BQ195: Compressor Station Expenses | BR195: 0 | BS195: 0.13 | BT195: 0.87 | BU195: 0 | BV195: 0 | BW195: 0 | BX195: 0 | BY195: 0 | BZ195: 0 | CA195: 0 | CB195: 0 | CC195: 0 | CD195: 0 | CE195: 0 | CF195: 0 | CG195: 0 | CH195: 0 | CI195: 0 | CK195: as UG Storage Plant (23) | CL195: 0 | CM195: 0 | CN195: 0 | CO195: 0 | CP195: 0 | CQ195: 0 | CR195: 0
A196: 196 | B196: 835-MT | C196: U | D196: Compressor Station Fuel & Power | E196: =PROFORMA!AQ52 -> 0 | F196: as UG Storage Plant (23) | H196: 0 | I196: 0 | J196: 0 | K196: 0 | L196: 0 | M196: 0 | N196: 0 | P196: =E$1&$A196&"* """ -> E196* " | R196: =R$23 -> 0.13 | S196: 0.87 | T196: 0 | U196: 0 | V196: 0 | W196: 0 | X196: 0 | Y196: 0 | Z196: 0 | AA196: 0 | AB196: 0 | AC196: 0 | AD196: 0 | AE196: 0 | AF196: =AF$23 -> 0 | AG196: 0 | AH196: 0 | AI196: 0 | AK196: 0 | AL196: 0 | AM196: 0 | AN196: 0 | AO196: 0 | AQ196: E196* " | AS196: 0 | AT196: 0 | AU196: 0 | AV196: 0 | AW196: 0 | AX196: 0 | AY196: 0 | BA196: 0 | BB196: 0 | BC196: 0 | BD196: 0 | BE196: 0 | BF196: 0 | BG196: 0 | BI196: 0 | BJ196: 0 | BK196: 0 | BL196: 0 | BM196: 0 | BN196: 0 | BO196: 0 | BQ196: Compressor Station Fuel & Power | BR196: 0 | BS196: 0.13 | BT196: 0.87 | BU196: 0 | BV196: 0 | BW196: 0 | BX196: 0 | BY196: 0 | BZ196: 0 | CA196: 0 | CB196: 0 | CC196: 0 | CD196: 0 | CE196: 0 | CF196: 0 | CG196: 0 | CH196: 0 | CI196: 0 | CK196: as UG Storage Plant (23) | CL196: 0 | CM196: 0 | CN196: 0 | CO196: 0 | CP196: 0 | CQ196: 0 | CR196: 0
A197: 197 | B197: 836-MT | C197: U | D197: Measuring and Regulator Station Expenses | E197: =PROFORMA!AQ53 -> 0 | F197: as UG Storage Plant (23) | H197: 0 | I197: 0 | J197: 0 | K197: 0 | L197: 0 | M197: 0 | N197: 0 | P197: =E$1&$A197&"* """ -> E197* " | R197: 0.13 | S197: 0.87 | T197: 0 | U197: 0 | V197: 0 | W197: 0 | X197: 0 | Y197: 0 | Z197: 0 | AA197: 0 | AB197: 0 | AC197: 0 | AD197: 0 | AE197: 0 | AF197: 0 | AG197: 0 | AH197: 0 | AI197: 0 | AK197: 0 | AL197: 0 | AM197: 0 | AN197: 0 | AO197: 0 | AQ197: E197* " | AS197: 0 | AT197: 0 | AU197: 0 | AV197: 0 | AW197: 0 | AX197: 0 | AY197: 0 | BA197: 0 | BB197: 0 | BC197: 0 | BD197: 0 | BE197: 0 | BF197: 0 | BG197: 0 | BI197: 0 | BJ197: 0 | BK197: 0 | BL197: 0 | BM197: 0 | BN197: 0 | BO197: 0 | BQ197: Measuring and Regulator Station Expenses | BR197: 0 | BS197: 0.13 | BT197: 0.87 | BU197: 0 | BV197: 0 | BW197: 0 | BX197: 0 | BY197: 0 | BZ197: 0 | CA197: 0 | CB197: 0 | CC197: 0 | CD197: 0 | CE197: 0 | CF197: 0 | CG197: 0 | CH197: 0 | CI197: 0 | CK197: as UG Storage Plant (23) | CL197: 0 | CM197: 0 | CN197: 0 | CO197: 0 | CP197: 0 | CQ197: 0 | CR197: 0
A198: 198 | B198: 837-MT | C198: U | D198: Other Equipment | E198: =PROFORMA!AQ54 -> 513000 | F198: as UG Storage Plant (23) | H198: 513000 | I198: 348412.1123 | J198: 139869.6796 | K198: 12003.94957 | L198: 2628.892698 | M198: 10085.36586 | N198: 0 | P198: =E$1&$A198&"* """ -> E198* " | R198: 0.13 | S198: 0.87 | T198: 0 | U198: 0 | V198: 0 | W198: 0 | X198: 0 | Y198: 0 | Z198: 0 | AA198: 0 | AB198: 0 | AC198: 0 | AD198: 0 | AE198: 0 | AF198: 0 | AG198: 0 | AH198: 0 | AI198: 0 | AK198: 513000 | AL198: 513000 | AM198: 0 | AN198: 0 | AO198: 0 | AQ198: E198* " | AS198: 513000 | AT198: 348412.1123 | AU198: 139869.6796 | AV198: 12003.94957 | AW198: 2628.892698 | AX198: 10085.36586 | AY198: 0 | BA198: 0 | BB198: 0 | BC198: 0 | BD198: 0 | BE198: 0 | BF198: 0 | BG198: 0 | BI198: 0 | BJ198: 0 | BK198: 0 | BL198: 0 | BM198: 0 | BN198: 0 | BO198: 0 | BQ198: Other Equipment | BR198: 0 | BS198: 0.13 | BT198: 0.87 | BU198: 0 | BV198: 0 | BW198: 0 | BX198: 0 | BY198: 0 | BZ198: 0 | CA198: 0 | CB198: 0 | CC198: 0 | CD198: 0 | CE198: 0 | CF198: 0 | CG198: 0 | CH198: 0 | CI198: 0 | CK198: as UG Storage Plant (23) | CL198: 0 | CM198: 0 | CN198: 0 | CO198: 0 | CP198: 0 | CQ198: 0 | CR198: 0
A199: 199 | D199: Total Underground Storage Maintenance | E199: =SUM(E191:E198) -> 513000 | H199: =IF(ROUND(SUM(H191:H198),3)<>ROUND(SUM(I199:N199),3),#VALUE!,SUM(H191:H198)) -> 513000 | I199: =SUM(I191:I198) -> 348412.1123 | J199: 139869.6796 | K199: 12003.94957 | L199: 2628.892698 | M199: 10085.36586 | N199: 0 | P199: =$A191&":"&$A198 -> 191:198 | R199: =SUMPRODUCT($E$191:$E$198,R$191:R$198)/$E199 -> 0.13 | S199: 0.87 | T199: 0 | U199: 0 | V199: 0 | W199: 0 | X199: 0 | Y199: 0 | Z199: 0 | AA199: 0 | AB199: 0 | AC199: 0 | AD199: 0 | AE199: 0 | AF199: 0 | AG199: 0 | AH199: 0 | AI199: 0 | AK199: =IF(ROUND(SUM(AK191:AK198),3)<>ROUND(SUM(AL199:AO199),3),#VALUE!,SUM(AK191:AK198)) -> 513000 | AL199: =SUM(AL191:AL198) -> 513000 | AM199: =SUM(AM191:AM198) -> 0 | AN199: =SUM(AN191:AN198) -> 0 | AO199: =SUM(AO191:AO198) -> 0 | AQ199: =$A191&":"&$A198 -> 191:198 | AS199: =IF(ROUND(SUM(AS191:AS198),3)<>ROUND(SUM(AT199:AY199),3),#VALUE!,SUM(AS191:AS198)) -> 513000 | AT199: =SUM(AT191:AT198) -> 348412.1123 | AU199: 139869.6796 | AV199: 12003.94957 | AW199: 2628.892698 | AX199: 10085.36586 | AY199: 0 | BA199: =IF(ROUND(SUM(BA191:BA198),3)<>ROUND(SUM(BB199:BG199),3),#VALUE!,SUM(BA191:BA198)) -> 0 | BB199: =SUM(BB191:BB198) -> 0 | BC199: 0 | BD199: 0 | BE199: 0 | BF199: 0 | BG199: 0 | BI199: =IF(ROUND(SUM(BI191:BI198),3)<>ROUND(SUM(BJ199:BO199),3),#VALUE!,SUM(BI191:BI198)) -> 0 | BJ199: =SUM(BJ191:BJ198) -> 0 | BK199: 0 | BL199: 0 | BM199: 0 | BN199: 0 | BO199: 0 | BQ199: Total Underground Storage Maintenance | BR199: =IF(ROUND(SUM(BR191:BR198),3)<>ROUND(SUM(CM199:CR199),3),#VALUE!,SUM(BR191:BR198)) -> 0 | BS199: =IF(SUM($BR$191:$BR$198)=0,0,SUMPRODUCT($BR$191:$BR$198,BS$191:BS$198)/$BR$199) -> 0 | BT199: =IF(SUM($BR$191:$BR$198)=0,0,SUMPRODUCT($BR$191:$BR$198,BT$191:BT$198)/$BR$199) -> 0 | BU199: 0 | BV199: 0 | BW199: 0 | BX199: 0 | BY199: 0 | BZ199: 0 | CA199: 0 | CB199: 0 | CC199: 0 | CD199: 0 | CE199: 0 | CF199: 0 | CG199: 0 | CH199: 0 | CI199: 0 | CL199: 0 | CM199: =SUM(CM191:CM198) -> 0 | CN199: 0 | CO199: 0 | CP199: 0 | CQ199: 0 | CR199: 0
A200: =RowHdr -> 200 | D200: Total Underground Storage Expenses | E200: =E190+E199 -> 974000 | H200: =H190+H199 -> 974000 | I200: 661507.5971 | J200: 265561.536 | K200: 22791.12452 | L200: 4991.308942 | M200: 19148.43343 | N200: 0 | P200: =$A190&"+"&$A199 -> 190+199 | R200: =($E$190*R$190+$E$199*R$199)/SUM($E190,$E199) -> 0.13 | S200: 0.87 | T200: 0 | U200: =($E$190*U$190+$E$199*U$199)/SUM($E190,$E199) -> 0 | V200: =($E$190*V$190+$E$199*V$199)/SUM($E190,$E199) -> 0 | W200: 0 | X200: 0 | Y200: =($E$190*Y$190+$E$199*Y$199)/SUM($E190,$E199) -> 0 | Z200: 0 | AA200: 0 | AB200: 0 | AC200: 0 | AD200: 0 | AE200: 0 | AF200: 0 | AG200: =($E$190*AG$190+$E$199*AG$199)/SUM($E190,$E199) -> 0 | AH200: 0 | AI200: 0 | AK200: =AK190+AK199 -> 974000 | AL200: =AL190+AL199 -> 974000 | AM200: =AM190+AM199 -> 0 | AN200: =AN190+AN199 -> 0 | AO200: =AO190+AO199 -> 0 | AQ200: =$A190&"+"&$A199 -> 190+199 | AS200: =AS190+AS199 -> 974000 | AT200: 661507.5971 | AU200: 265561.536 | AV200: 22791.12452 | AW200: 4991.308942 | AX200: 19148.43343 | AY200: 0 | BA200: =BA190+BA199 -> 0 | BB200: 0 | BC200: 0 | BD200: 0 | BE200: 0 | BF200: 0 | BG200: 0 | BI200: =BI190+BI199 -> 0 | BJ200: 0 | BK200: 0 | BL200: 0 | BM200: 0 | BN200: 0 | BO200: 0 | BQ200: Total Underground Storage Expenses | BR200: =BR190+BR199 -> 6742 | BS200: =($BR$190*BS$190+$BR$199*BS$199)/($BR$190+$BR$199) -> 0.13 | BT200: =($BR$190*BT$190+$BR$199*BT$199)/($BR$190+$BR$199) -> 0.87 | BU200: 0 | BV200: 0 | BW200: 0 | BX200: 0 | BY200: 0 | BZ200: 0 | CA200: 0 | CB200: 0 | CC200: 0 | CD200: 0 | CE200: 0 | CF200: 0 | CG200: 0 | CH200: 0 | CI200: 0 | CL200: 0 | CM200: =CM190+CM199 -> 4578.936571 | CN200: 1838.209318 | CO200: 157.7595087 | CP200: 34.54969701 | CQ200: 132.5449058 | CR200: 0
A201: 201 | AI201: 0 | CL201: 0
A202: 202 | D202: Distribution Expenses | AI202: 0 | BQ202: Distribution Expenses | CL202: 0
A203: 203 | B203: 870-OP | C203: D | D203: Supervision & Engineering | E203: =PROFORMA!AQ70 -> 1212000 | F203: ="as Distrib Plant ("&A$40&")" -> as Distrib Plant (40) | G203: all oth Dist Exp (S04) | H203: =SUM(I203:N203) -> 1212000 | I203: =$E203*SUMPRODUCT($R203:$AH203,INDEX(AllocFactors,I$4,0)) -> 956916.8857 | J203: 177912.2573 | K203: 13347.18479 | L203: 2540.334717 | M203: 61283.33755 | N203: 0 | P203: =E$1&$A203&"* Sum["&$R$1&$A203&":"&$AH$1&$A203&"* "&Factors!D$1&Factors!$A$58&":"&Factors!S$1&Factors!$A$64&"]" -> E203* Sum[R203:AH203* D1037:S1043] | R203: =R$40 -> 0.1125784049 | S203: =S$40 -> 0 | T203: =T$40 -> 0.08423902827 | U203: 0 | V203: 0 | W203: 0.3126832867 | X203: 0 | Y203: 0 | Z203: =Z$40 -> 0 | AA203: 0 | AB203: =AB$40 -> 0 | AC203: 0.3514057011 | AD203: 0.1324088684 | AE203: =AE$40 -> 0 | AF203: 0.006684710625 | AG203: 0 | AH203: 0 | AI203: 0 | AK203: =SUM(AL203:AO203) -> 1212000 | AL203: =SUMIF($R$4:$AH$4,AL$5,$R203:$AH203)*$E203 -> 238542.7289 | AM203: 378972.1435 | AN203: 594485.1276 | AO203: 0 | AQ203: =E$1&$A203&"*["&R$1&$A203&":"&$AH$1&$A203&" when "&R$1&$A$4&":"&$AH$1&$A$4&" = E,D,C,or R]" -> E203*[R203:AH203 when R4:AH4 = E,D,C,or R] | AS203: =SUM(AT203:AY203) -> 238542.7289 | AT203: =$E203*SUMPRODUCT($R203:$V203,INDEX(AllocFactors_E,AT$4,0)) -> 151335.5794 | AU203: 60753.51076 | AV203: 5214.011222 | AW203: 605.3793012 | AX203: 20634.24823 | AY203: 0 | BA203: =SUM(BB203:BG203) -> 378972.1435 | BB203: =$E203*SUMPRODUCT($W203:$AA203,INDEX(AllocFactors_D,BB$4,0)) -> 251115.4233 | BC203: 83424.9459 | BD203: 7205.100883 | BE203: 1539.419381 | BF203: 35687.254 | BG203: 0 | BI203: =SUM(BJ203:BO203) -> 594485.1276 | BJ203: =$E203*SUMPRODUCT($AB203:$AG203,INDEX(AllocFactors_C,BJ$4,0)) -> 554465.8829 | BK203: 33733.80061 | BL203: 928.0726834 | BM203: 395.5360352 | BN203: 4961.83532 | BO203: 0 | BQ203: Supervision & Engineering | BR203: 729656 | BS203: =R203 -> 0.1125784049 | BT203: =S203 -> 0 | BU203: =T203 -> 0.08423902827 | BV203: =U203 -> 0 | BW203: =V203 -> 0 | BX203: =W203 -> 0.3126832867 | BY203: =X203 -> 0 | BZ203: =Y203 -> 0 | CA203: =Z203 -> 0 | CB203: =AA203 -> 0 | CC203: =AB203 -> 0 | CD203: =AC203 -> 0.3514057011 | CE203: =AD203 -> 0.1324088684 | CF203: =AE203 -> 0 | CG203: =AF203 -> 0.006684710625 | CH203: =AG203 -> 0 | CI203: =AH203 -> 0 | CK203: =F203 -> as Distrib Plant (40) | CL203: 0 | CM203: =$BR203*SUMPRODUCT($BS203:$CI203,INDEX(AllocFactors,CM$168,0)) -> 576089.2303 | CN203: 107107.8762 | CO203: 8035.357643 | CP203: 1529.348571 | CQ203: 36894.18725 | CR203: 0
... 242 more rows

Sheet Summary
A1: =ColHdr -> A | B1: =ColHdr -> B | C1: C | D1: D | E1: E | F1: F | G1: G | H1: H | I1: I | J1: J | K1: K | L1: L
A2: =Pg1Row+ROW(A2) -> 447
A3: 448
A4: 449 | C4: Total | D4: Sch 101 | E4: Sch 111 | F4: Sch 121 | G4: Sch 132 | H4: Sch 146 | I4: Open | K4: source
A5: 450 | B5: Plant In Service
A6: 451 | B6: Underground Storage Plant | C6: =Detail!H23 -> 28217000 | D6: =Detail!I23 -> 19164024.51 | E6: =Detail!J23 -> 7693377.68 | F6: =Detail!K23 -> 660264.0252 | G6: =Detail!L23 -> 144599.3475 | H6: =Detail!M23 -> 554734.4417 | I6: =Detail!N23 -> 0 | K6: =Detail!A$23 -> 23
A7: 452 | B7: Distribution Plant | C7: =Detail!H40 -> 434954000 | D7: =Detail!I40 -> 343411573.5 | E7: =Detail!J40 -> 63847894.35 | F7: =Detail!K40 -> 4789943.409 | G7: =Detail!L40 -> 911657.3816 | H7: =Detail!M40 -> 21992931.35 | I7: =Detail!N40 -> 0 | K7: =Detail!A$40 -> 40
A8: 453 | B8: Intangible Plant | C8: =Detail!H12 -> 25720000 | D8: =Detail!I12 -> 22232008.96 | E8: =Detail!J12 -> 2573918.618 | F8: =Detail!K12 -> 175908.2793 | G8: =Detail!L12 -> 36152.86158 | H8: =Detail!M12 -> 702011.282 | I8: =Detail!N12 -> 0 | K8: =Detail!A$12 -> 12
A9: 454 | B9: General Plant | C9: =Detail!H55 -> 72393000 | D9: =Detail!I55 -> 63110698.13 | E9: =Detail!J55 -> 6910657.924 | F9: =Detail!K55 -> 465282.4816 | G9: =Detail!L55 -> 96821.74865 | H9: =Detail!M55 -> 1809539.713 | I9: =Detail!N55 -> 0 | K9: =Detail!A$55 -> 55
A10: 455 | B10: Total Plant In Service | C10: =Detail!H57 -> 561284000 | D10: =Detail!I57 -> 447918305.1 | E10: =Detail!J57 -> 81025848.57 | F10: =Detail!K57 -> 6091398.196 | G10: =Detail!L57 -> 1189231.339 | H10: =Detail!M57 -> 25059216.79 | I10: =Detail!N57 -> 0 | K10: =Detail!A57 -> 57
A11: 456 | C11: =ABS(ROUND(SUM(C6:C9)-C10,0)) -> 0 | D11: 0 | E11: 0 | F11: 0 | G11: 0 | H11: 0 | I11: 0
A12: 457 | B12: Accum Depreciation
A13: 458 | B13: Underground Storage Plant | C13: =Detail!H70 -> -10972000 | D13: =Detail!I70 -> -7451808.374 | E13: =Detail!J70 -> -2991520.711 | F13: =Detail!K70 -> -256739.4437 | G13: =Detail!L70 -> -56226.53153 | H13: =Detail!M70 -> -215704.9401 | I13: =Detail!N70 -> 0 | K13: =Detail!A$70 -> 70
A14: 459 | B14: Distribution Plant | C14: =Detail!H86 -> -141341000 | D14: =Detail!I86 -> -113014409.7 | E14: =Detail!J86 -> -19714484.01 | F14: =Detail!K86 -> -1490650.15 | G14: =Detail!L86 -> -280620.0496 | H14: =Detail!M86 -> -6840836.117 | I14: =Detail!N86 -> 0 | K14: =Detail!A$86 -> 86
A15: 460 | B15: Intangible Plant | C15: =Detail!H108 -> -6436000 | D15: =Detail!I108 -> -5578530.229 | E15: =Detail!J108 -> -634504.667 | F15: =Detail!K108 -> -43162.7571 | G15: =Detail!L108 -> -8905.151735 | H15: =Detail!M108 -> -170897.1952 | I15: =Detail!N108 -> 0 | K15: =Detail!A$108 -> 108
A16: 461 | B16: General Plant | C16: =Detail!H101 -> -22640000 | D16: =Detail!I101 -> -19737076.87 | E16: =Detail!J101 -> -2161221.325 | F16: =Detail!K101 -> -145511.2426 | G16: =Detail!L101 -> -30279.78381 | H16: =Detail!M101 -> -565910.7802 | I16: =Detail!N101 -> 0 | K16: =Detail!A$101 -> 101
A17: 462 | B17: Total Accumulated Depreciation | C17: =Detail!H110 -> -181389000 | D17: =Detail!I110 -> -145781825.1 | E17: =Detail!J110 -> -25501730.71 | F17: =Detail!K110 -> -1936063.593 | G17: =Detail!L110 -> -376031.5166 | H17: =Detail!M110 -> -7793349.032 | I17: =Detail!N110 -> 0 | K17: =Detail!A110 -> 110
A18: 463 | C18: =ABS(ROUND(SUM(C13:C16)-C17,0)) -> 0 | D18: 0 | E18: 0 | F18: 0 | G18: 0 | H18: 0 | I18: 0
A19: 464 | B19: Net Plant | C19: =C10+C17 -> 379895000 | D19: 302136480 | E19: 55524117.86 | F19: 4155334.602 | G19: 813199.8226 | H19: 17265867.76 | I19: 0 | K19: =A10&"+"&A17 -> 455+462
A20: 465 | B20: Accumulated Deferred FIT | C20: =Detail!H117 -> -85497000 | D20: =Detail!I117 -> -68228688.74 | E20: =Detail!J117 -> -12342177.89 | F20: =Detail!K117 -> -927865.8781 | G20: =Detail!L117 -> -181148.4236 | H20: =Detail!M117 -> -3817119.066 | I20: =Detail!N117 -> 0 | K20: =Detail!A$117 -> 117
A21: 466 | B21: Miscellaneous Rate Base | C21: =Detail!H126-C20 -> 25141000 | D21: =Detail!I126-D20 -> 19227036.98 | E21: =Detail!J126-E20 -> 4621980.22 | F21: =Detail!K126-F20 -> 373928.6264 | G21: =Detail!L126-G20 -> 78073.15846 | H21: =Detail!M126-H20 -> 839981.0176 | I21: =Detail!N126-I20 -> 0 | K21: =Detail!A$126&"-"&A20 -> 126-465
A22: 467 | B22: Total Rate Base | C22: =IF(ROUND(Detail!H128,3)<>ROUND(SUM(D22:I22),3),#VALUE!,SUM(D22:I22)) -> 319539000 | D22: =Detail!I128 -> 253134828.2 | E22: =Detail!J128 -> 47803920.19 | F22: =Detail!K128 -> 3601397.35 | G22: =Detail!L128 -> 710124.5574 | H22: =Detail!M128 -> 14288729.71 | I22: =Detail!N128 -> 0 | K22: =Detail!A128 -> 128
A23: 468 | C23: =ABS(ROUND(SUM(C19:C21)-C22,0)) -> 0 | D23: 0 | E23: 0 | F23: 0 | G23: 0 | H23: 0 | I23: 0
A24: 469 | B24: Revenue From Retail Rates | C24: =-Detail!H417 -> 87219000 | D24: =-Detail!I417 -> 67621992.25 | E24: =-Detail!J417 -> 15462087.99 | F24: =-Detail!K417 -> 1024175.845 | G24: =-Detail!L417 -> 190167.5966 | H24: =-Detail!M417 -> 2920576.314 | I24: =-Detail!N417 -> 0 | K24: =Detail!A$417 -> 417
A25: 470 | B25: Other Operating Revenues | C25: =C26-C24 -> 1857000 | D25: =D26-D24 -> 1471063.168 | E25: 277781.4325 | F25: 20926.67175 | G25: 4125.496963 | H25: 83103.23073 | I25: 0 | K25: =A26&"-"&A24 -> 471-469
A26: 471 | B26: Total Revenues | C26: =-Detail!H428 -> 89076000 | D26: =-Detail!I428 -> 69093055.42 | E26: =-Detail!J428 -> 15739869.43 | F26: =-Detail!K428 -> 1045102.516 | G26: =-Detail!L428 -> 194293.0935 | H26: =-Detail!M428 -> 3003679.544 | I26: =-Detail!N428 -> 0 | K26: =Detail!A$428 -> 428
A27: 472 | C27: =ABS(ROUND(C24+C25-C26,0)) -> 0 | D27: =ABS(ROUND(D24+D25-D26,0)) -> 0 | E27: 0 | F27: 0 | G27: 0 | H27: 0 | I27: 0
A28: 473 | B28: Operating Expenses
A29: 474 | B29: Purchased Gas Costs | C29: =Detail!H176 -> 1019000 | D29: =Detail!I176 -> 687931.4894 | E29: =Detail!J176 -> 271847.4511 | F29: =Detail!K176 -> 23042.10477 | G29: =Detail!L176 -> 5019.19688 | H29: =Detail!M176 -> 31159.75787 | I29: =Detail!N176 -> 0 | K29: =Detail!A$176 -> 176
A30: 475 | B30: Underground Storage Expenses | C30: =Detail!H200 -> 974000 | D30: =Detail!I200 -> 661507.5971 | E30: =Detail!J200 -> 265561.536 | F30: =Detail!K200 -> 22791.12452 | G30: =Detail!L200 -> 4991.308942 | H30: =Detail!M200 -> 19148.43343 | I30: =Detail!N200 -> 0 | K30: =Detail!A$200 -> 200
A31: 476 | B31: Distribution Expenses | C31: =Detail!H224 -> 12693000 | D31: =Detail!I224 -> 10429944.67 | E31: =Detail!J224 -> 1640731.387 | F31: =Detail!K224 -> 105011.6657 | G31: =Detail!L224 -> 23632.46975 | H31: =Detail!M224 -> 493679.8129 | I31: =Detail!N224 -> 0 | K31: =Detail!A$224 -> 224
A32: 477 | B32: Customer Accounting Expenses | C32: =Detail!H232 -> 6652000 | D32: =Detail!I232 -> 6440417.909 | E32: =Detail!J232 -> 187874.6504 | F32: =Detail!K232 -> 6137.794483 | G32: =Detail!L232 -> 1051.608379 | H32: =Detail!M232 -> 16518.03733 | I32: =Detail!N232 -> 0 | K32: =Detail!A$232 -> 232
A33: 478 | B33: Customer Information Expenses | C33: =Detail!H240 -> 977000 | D33: =Detail!I240 -> 959466.9709 | E33: =Detail!J240 -> 17129.49934 | F33: =Detail!K240 -> 141.7807149 | G33: =Detail!L240 -> 12.46423867 | H33: =Detail!M240 -> 249.2847734 | I33: =Detail!N240 -> 0 | K33: =Detail!A$240 -> 240
A34: 479 | B34: Sales Expenses | C34: =Detail!H247 -> 1000 | D34: =Detail!I247 -> 982.0542179 | E34: =Detail!J247 -> 17.53275265 | F34: =Detail!K247 -> 0.145118439 | G34: =Detail!L247 -> 0.01275766496 | H34: =Detail!M247 -> 0.2551532993 | I34: =Detail!N247 -> 0 | K34: =Detail!A$247 -> 247
A35: 480 | B35: Admin & General Expenses | C35: =Detail!H338 -> 13718000.02 | D35: =Detail!I338 -> 11923800.73 | E35: =Detail!J338 -> 1336428.128 | F35: =Detail!K338 -> 90173.97584 | G35: =Detail!L338 -> 18681.73756 | H35: =Detail!M338 -> 348915.4453 | I35: =Detail!N338 -> 0 | K35: =Detail!A$338 -> 338
A36: 481 | B36: Total O&M Expenses | C36: =Detail!H340 -> 36034000.02 | D36: =Detail!I340 -> 31104051.42 | E36: =Detail!J340 -> 3719590.184 | F36: =Detail!K340 -> 247298.5912 | G36: =Detail!L340 -> 53388.79851 | H36: =Detail!M340 -> 909671.0267 | I36: =Detail!N340 -> 0 | K36: =Detail!A$340 -> 340
A37: 482 | C37: =ABS(ROUND(SUM(C29:C35)-C36,0)) -> 0 | D37: =ABS(ROUND(SUM(D29:D35)-D36,0)) -> 0 | E37: =ABS(ROUND(SUM(E29:E35)-E36,0)) -> 0 | F37: 0 | G37: 0 | H37: 0 | I37: 0
A38: 483 | B38: Taxes Other Than Income Taxes | C38: =Detail!H348 -> 6514000 | D38: =Detail!I348 -> 5068453.129 | E38: =Detail!J348 -> 1088720.883 | F38: =Detail!K348 -> 77224.0683 | G38: =Detail!L348 -> 14681.97232 | H38: =Detail!M348 -> 264919.9476 | I38: =Detail!N348 -> 0 | K38: =Detail!A$348 -> 348
A39: 484 | B39: Depreciation Expense
A40: 485 | B40: Underground Storage Plant Depreciation | C40: =Detail!H360 -> 529000 | D40: =Detail!I360 -> 359278.7668 | E40: =Detail!J360 -> 144232.0868 | F40: =Detail!K360 -> 12378.34176 | G40: =Detail!L360 -> 2710.885452 | H40: =Detail!M360 -> 10399.91919 | I40: =Detail!N360 -> 0 | K40: =Detail!A$360 -> 360
A41: 486 | B41: Distribution Plant Depreciation | C41: =Detail!H376 -> 10958000 | D41: =Detail!I376 -> 8690924.108 | E41: =Detail!J376 -> 1588766.213 | F41: =Detail!K376 -> 116815.063 | G41: =Detail!L376 -> 22617.95953 | H41: =Detail!M376 -> 538876.6569 | I41: =Detail!N376 -> 0 | K41: =Detail!A$376 -> 376
A42: 487 | B42: General Plant Depreciation | C42: =Detail!H389 -> 5303000 | D42: =Detail!I389 -> 4623044.109 | E42: =Detail!J389 -> 506226.0021 | F42: =Detail!K389 -> 34083.30916 | G42: =Detail!L389 -> 7092.47763 | H42: =Detail!M389 -> 132554.1019 | I42: =Detail!N389 -> 0 | K42: =Detail!A$389 -> 389
A43: 488 | B43: Amortization Expense | C43: =Detail!H399 -> 3672000 | D43: =Detail!I399 -> 3191879.008 | E43: =Detail!J399 -> 356330.7576 | F43: =Detail!K399 -> 24118.73166 | G43: =Detail!L399 -> 4996.817704 | H43: =Detail!M399 -> 94674.68519 | I43: =Detail!N399 -> 0 | K43: =Detail!A$399 -> 399
A44: 489 | B44: Total Depreciation Expense | C44: =Detail!H401 -> 20462000 | D44: =Detail!I401 -> 16865125.99 | E44: =Detail!J401 -> 2595555.059 | F44: =Detail!K401 -> 187395.4456 | G44: =Detail!L401 -> 37418.14032 | H44: =Detail!M401 -> 776505.3632 | I44: =Detail!N401 -> 0 | K44: =Detail!A$401 -> 401
A45: 490 | B45: Income Tax | C45: =SUM(Detail!H408:H411) -> 6402000 | D45: =SUM(Detail!I408:I411) -> 3350445.913 | E45: =SUM(Detail!J408:J411) -> 2619968.017 | F45: =SUM(Detail!K408:K411) -> 161852.415 | G45: =SUM(Detail!L408:L411) -> 25796.00393 | H45: =SUM(Detail!M408:M411) -> 243937.6516 | I45: =SUM(Detail!N408:N411) -> 0 | K45: =Detail!A$408&":"&Detail!A$411 -> 408:411
A46: 491 | B46: Total Operating Expenses | C46: =Detail!H414 -> 69412000.02 | D46: =Detail!I414 -> 56388076.45 | E46: =Detail!J414 -> 10023834.14 | F46: =Detail!K414 -> 673770.5201 | G46: =Detail!L414 -> 131284.9151 | H46: =Detail!M414 -> 2195033.989 | I46: =Detail!N414 -> 0 | K46: =Detail!A$414 -> 414
A47: 492 | I47: 0
A48: 493 | B48: Net Operating Income | C48: =IF(ROUND(-Detail!H430,3)<>ROUND(SUM(D48:I48),3),#VALUE!,SUM(D48:I48)) -> 19663999.98 | D48: =-Detail!I430 -> 12704978.97 | E48: =-Detail!J430 -> 5716035.284 | F48: =-Detail!K430 -> 371331.9964 | G48: =-Detail!L430 -> 63008.17845 | H48: =-Detail!M430 -> 808645.5552 | I48: =-Detail!N430 -> 0 | K48: =Detail!A$430 -> 430
A49: 494 | B49: Rate of Return | C49: =Detail!H129 -> 0.06153865407 | D49: =Detail!I129 -> 0.05019056074 | E49: =Detail!J129 -> 0.1195725217 | F49: =Detail!K129 -> 0.1031077552 | G49: =Detail!L129 -> 0.08872834742 | H49: =Detail!M129 -> 0.05659324319 | I49: =Detail!N129 -> 0 | K49: =Detail!A$129 -> 129
A50: 495 | B50: Return Ratio | C50: =C49/$C49 -> 1 | D50: =D49/$C49 -> 0.8155940603 | E50: 1.943047398 | F50: 1.67549578 | G50: 1.441831135 | H50: =H49/$C49 -> 0.9196373245 | I50: 0 | K50: ="% of "&C$1&$A49 -> % of C494
A51: 496
A52: 497 | B52: Interest Expense | C52: =Detail!H154 -> 8979000 | D52: =Detail!I154 -> 7113052.311 | E52: =Detail!J154 -> 1343283.29 | F52: =Detail!K154 -> 101198.7482 | G52: =Detail!L154 -> 19954.39806 | H52: =Detail!M154 -> 401511.2523 | I52: =Detail!N154 -> 0 | K52: =Detail!A$154 -> 154
A53: 498 | B53: Income Tax / Net Oper Income | C53: =C45/C48 -> 0.325569569
A54: 499
A55: 500
A56: 501 | B56: Proposed Rate Revenue Increase | C56: =SUM(D56:I56) -> 8269000 | D56: 6411000 | E56: 1466000 | F56: 97000 | G56: 18000 | H56: 277000 | I56: 0 | K56: input from Ehrbar "ROR" tab
A57: 502 | B57: Proposed Misc Revenue Increase | C57: =ROUND(SUM(D57:I57),-3) -> 0 | D57: 0 | E57: 0 | F57: 0 | G57: 0 | H57: 0 | I57: 0 | K57: input
A58: 503 | B58: Total Revenue Increase | C58: =C56+C57 -> 8269000 | D58: =D56+D57 -> 6411000 | E58: 1466000 | F58: 97000 | G58: 18000 | H58: 277000 | I58: 0 | K58: =A56&"+"&A57 -> 501+502
A59: 504
A60: 505 | B60: allocated Misc Rev increase | C60: =C57 -> 0 | D60: =$C60*D61 -> 0 | E60: =$C60*E61 -> 0 | F60: =$C60*F61 -> 0 | G60: 0 | H60: 0 | I60: 0 | K60: =C$1&A60&" * "&A61 -> C505 * 506
A61: 506 | B61: allocation basis - Dist Plant | C61: =SUM(D61:H61) -> 1 | D61: =Detail!I421/Detail!$H421 -> 0.7895353842 | E61: =Detail!J421/Detail!$H421 -> 0.1467922915 | F61: =Detail!K421/Detail!$H421 -> 0.0110125287 | G61: =Detail!L421/Detail!$H421 -> 0.00209598574 | H61: =Detail!M421/Detail!$H421 -> 0.05056380986 | I61: =Detail!N421/Detail!$H421 -> 0 | K61: ="% of "&Detail!H$1&Detail!A421 -> % of H421
A62: 507
A63: 508 | B63: Proposed Rate Revenue | C63: =C24+C56 -> 95488000 | D63: =D24+D56 -> 74032992.25 | E63: 16928087.99 | F63: 1121175.845 | G63: =G24+G56 -> 208167.5966 | H63: =H24+H56 -> 3197576.314 | I63: 0 | K63: =A24&"+"&A56 -> 469+501
A64: 509
A65: 510 | B65: Present Return b4 conversion items | C65: =SUM(D65:I65) -> 30042999.98 | D65: =-(Detail!I428+Detail!I403)+D91 -> 19138843.21 | E65: =-(Detail!J428+Detail!J403)+E91 -> 9041041.468 | F65: =-(Detail!K428+Detail!K403)+F91 -> 579884.6411 | G65: =-(Detail!L428+Detail!L403)+G91 -> 97475.41837 | H65: =-(Detail!M428+Detail!M403)+H91 -> 1185755.245 | I65: =-(Detail!N428+Detail!N403)+I91 -> 0 | K65: ="-"&Detail!A428&"-"&Detail!A403&"+"&A91 -> -428-403+536
A66: 511
A67: 512
A68: 513 | B68: present conversion items, new spread
A69: 514 | B69: Uncollectibles | C69: =Detail!$E230 -> 446000 | D69: =$C69*D$63/$C$63 -> 345789.152 | E69: =$C69*E$63/$C$63 -> 79066.76488 | F69: 5236.725314 | G69: 972.297546 | H69: 14935.06028 | I69: 0 | K69: =Detail!A230&" * % of "&A$63 -> 230 * % of 508
A70: =Pg1Row+ROW(A70) -> 515 | B70: Commission Fees | C70: =Detail!$E315 -> 204000 | D70: =$C70*D$63/$C$63 -> 158163.648 | E70: 36165.06735 | F70: 2395.273462 | G70: 444.7280255 | H70: 6831.283177 | I70: 0 | K70: =Detail!A315&" * % of "&A$63 -> 315 * % of 508
A71: 516 | B71: Washington ExciseTax | C71: =Detail!$E347 -> 3327000 | D71: =$C71*D$63/$C$63 -> 2579463.024 | E71: 589809.7013 | F71: 39064.09219 | G71: 7252.990887 | H71: 111410.1918 | I71: 0 | K71: =Detail!A347&" * % of "&A$63 -> 347 * % of 508
A72: 517 | B72: incremental conversion items, new spread
A73: 518 | B73: Uncollectibles | C73: =ROUND($C$58*$L73,-3) -> 40000 | D73: =$C73*D$63/$C$63 -> 31012.48 | E73: 7091.189676 | F73: 469.6614631 | G73: 87.20157363 | H73: 1339.46729 | I73: 0 | K73: =C$1&$A$56&"*"&L$1&$A73&" * % of "&A$63 -> C501*L518 * % of 508 | L73: 0.004827
A74: 519 | B74: Commission Fees | C74: =ROUND($C$58*$L74,-3) -> 17000 | D74: 13180.304 | E74: 3013.755612 | F74: 199.6061218 | G74: 37.06066879 | H74: 569.2735981 | I74: 0 | K74: =C$1&$A$56&"*"&L$1&$A74&" * % of "&A$63 -> C501*L519 * % of 508 | L74: 0.002
A75: 520 | B75: Washington ExciseTax | C75: =ROUND($C$58*$L75,-3) -> 317000 | D75: 245773.904 | E75: 56197.67818 | F75: 3722.067095 | G75: 691.072471 | H75: 10615.27827 | I75: 0 | K75: =C$1&$A$56&"*"&L$1&$A75&" * % of "&A$63 -> C501*L520 * % of 508 | L75: 0.038334
A76: 521 | B76: less: Interest Expense | C76: =Detail!H154 -> 8979000 | D76: =Detail!I154 -> 7113052.311 | E76: =Detail!J154 -> 1343283.29 | F76: =Detail!K154 -> 101198.7482 | G76: =Detail!L154 -> 19954.39806 | H76: =Detail!M154 -> 401511.2523 | I76: =Detail!N154 -> 0 | K76: =Detail!A154 -> 154
A77: 522 | B77: Proposed Return b4 Tax, new spread | C77: =C56+C60+C65-SUM(C69:C76) -> 24981999.98 | D77: =D56+D60+D65-SUM(D69:D76) -> 15063408.39 | E77: =E56+E60+E65-SUM(E69:E76) -> 8392414.021 | F77: 524598.4672 | G77: 86035.66914 | H77: 915543.4383 | I77: 0 | K77: =A56&"+"&A60&"+"&A65&"+"&A69&":"&A75 -> 501+505+510+514:520 | L77: 0.334194
A78: 523 | B78: less: FIT--present | C78: =Detail!$E409 -> -3192000 | D78: =$C78*D$77/$C$77 -> -1924681.755 | E78: =$C78*E$77/$C$77 -> -1072315.49 | F78: -67028.99321 | G78: -10992.94917 | H78: =$C78*H$77/$C$77 -> -116980.8125 | I78: 0 | K78: =Detail!E$1&Detail!A409&" * % of "&A77 -> E409 * % of 522
A79: 524 | B79: less: FIT--incremental | C79: =ROUND($C$58*$L77,-3) -> 2763000 | D79: =$C79*D$77/$C$77 -> 1666007.422 | E79: 928197.9007 | F79: 58020.39732 | G79: 9515.513329 | H79: 101258.7672 | I79: 0 | K79: =C$1&A$58&"*"&L$1&A$77&"* % of "&A$77 -> C503*L522* % of 522
A80: 525 | B80: less: DFIT, SIT, ITC--present | C80: =Detail!E412-C78 -> 9594000 | D80: =$C80*D$77/$C$77 -> 5784898.734 | E80: 3222993.362 | F80: 201464.9627 | G80: 33040.83781 | H80: 351602.1036 | I80: 0 | K80: =Detail!E$1&Detail!A412&" - "&C$1&A78&"* % of "&A77 -> E412 - C523* % of 522 | M80: =1-L73-L74-L75-L77 -> 0.620645
A81: 526 | B81: addback: Interest Expense | C81: =Detail!H154 -> 8979000 | D81: =Detail!I154 -> 7113052.311 | E81: =Detail!J154 -> 1343283.29 | F81: =Detail!K154 -> 101198.7482 | G81: =Detail!L154 -> 19954.39806 | H81: =Detail!M154 -> 401511.2523 | I81: =Detail!N154 -> 0 | K81: =Detail!A154 -> 154
A82: 527 | B82: Proposed Return | C82: =IF(ROUND(C77-C78-C79-C80+C81,0)<>ROUND(SUM(D82:I82),0),#VALUE!,ROUND(SUM(D82:I82),0)) -> 24796000 | D82: =D77-D78-D79-D80+D81 -> 16650236.3 | E82: 6656821.539 | F82: 433340.8487 | G82: 74426.66522 | H82: 981174.6323 | I82: 0 | K82: =A77&" - "&A78&":"&A80&" + "&A81 -> 522 - 523:525 + 526
A83: 528 | B83: Proposed Rate of Return | C83: =IF(C22,C82/C22,0) -> 0.07759929148 | D83: 0.06577615738 | E83: 0.1392526285 | F83: 0.1203257532 | G83: 0.1048079023 | H83: =IF(H22,H82/H22,0) -> 0.0686677299 | I83: 0 | K83: =A82&" / "&A22 -> 527 / 467
A84: 529 | B84: Proposed Return Ratio | C84: =C83/$C83 -> 1 | D84: =D83/$C83 -> 0.8476386334 | E84: =E83/$C83 -> 1.79450902 | F84: =F83/$C83 -> 1.55060376 | G84: 1.350629629 | H84: 0.8849015061 | I84: 0 | K84: ="% of "&C$1&$A83 -> % of C528
A85: 530
A86: 531 | B86: Rate Revenues at Uniform Present Rates | C86: =C129 -> 87219000 | D86: =D129 -> 72435200.93 | E86: =E129 -> 10813672.75 | F86: 773333.0886 | G86: 157815.7756 | H86: 3038977.456 | I86: 0 | K86: =A129 -> 574
A87: 532 | B87: Rate Change to get to Uniform Present Rates | C87: =SUM(D87:J87) -> -1.379521564e-08 | D87: =D86-D24 -> 4813208.681 | E87: =E86-E24 -> -4648415.247 | F87: -250842.7561 | G87: -32351.82097 | H87: =H86-H24 -> 118401.1425 | I87: 0 | K87: =A86&"-"&A24 -> 531-469
A88: 533 | B88: % Change to get to Uniform Rates | C88: =IF(C86,C87/C86,0) -> -1.581675511e-16 | D88: =IF(D86,D87/D86,0) -> 0.06644847559 | E88: =IF(E86,E87/E86,0) -> -0.4298646126 | F88: -0.3243657355 | G88: -0.2049973829 | H88: =IF(H86,H87/H86,0) -> 0.03896084923 | I88: 0 | K88: =A87&"/"&A86 -> 532/531
A89: 534
A90: 535
A91: 536 | B91: Revenue Related Op Exp., current | C91: =SUMIF(Detail!$C$170:$C$405,$L91,Detail!H$170:H$405) -> 3977000 | D91: =SUMIF(Detail!$C$170:$C$405,$L91,Detail!I$170:I$405) -> 3083418.328 | E91: =SUMIF(Detail!$C$170:$C$405,$L91,Detail!J$170:J$405) -> 705038.1677 | F91: =SUMIF(Detail!$C$170:$C$405,$L91,Detail!K$170:K$405) -> 46700.2297 | G91: =SUMIF(Detail!$C$170:$C$405,$L91,Detail!L$170:L$405) -> 8671.235987 | H91: =SUMIF(Detail!$C$170:$C$405,$L91,Detail!M$170:M$405) -> 133172.0382 | I91: =SUMIF(Detail!$C$170:$C$405,$L91,Detail!N$170:N$405) -> 0 | K91: =Detail!A$170&":"&Detail!A$405&", col "&Detail!C$1&"= " -> 170:405, col C= | L91: R
A92: 537 | B92: Rate Rev. excl Rev. Conversion Items, current | C92: =C24-C91 -> 83242000 | D92: =D24-D91 -> 64538573.92 | E92: 14757049.83 | F92: 977475.615 | G92: 181496.3606 | H92: 2787404.275 | I92: 0 | K92: =A24&" - "&A91 -> 469 - 536
A93: 538 | B93: Revenue Conversion Item Ratio, current | C93: =IF(C92,C91/C92,0) -> 0.04777636289 | D93: =IF(D92,D91/D92,0) -> 0.04777636289 | E93: =IF(E92,E91/E92,0) -> 0.04777636289 | F93: 0.04777636289 | G93: 0.04777636289 | H93: 0.04777636289 | I93: 0 | K93: =A91&"/"&A92 -> 536/537
A94: 539
A95: 540 | B95: Adj. Revenue Conversion Items | C95: =SUM(C69:C71,C73:C75) -> 4351000 | D95: =SUM(D69:D71,D73:D75) -> 3373382.512 | E95: 771344.157 | F95: 51087.42565 | G95: 9485.351172 | H95: 145700.5544 | I95: 0 | K95: =A69&":"&A71&" + "&A73&":"&A75 -> 514:516 + 518:520
A96: 541 | B96: Adj. Rate Rev. excl Conversion Items | C96: =C63-C95 -> 91137000 | D96: =D63-D95 -> 70659609.74 | E96: 16156743.84 | F96: 1070088.419 | G96: 198682.2454 | H96: 3051875.759 | I96: 0 | K96: =A63&" - "&A95 -> 508 - 540
A97: 542 | B97: Adj. Revenue Conversion Ratio | C97: =IF(C96,C95/C96,0) -> 0.04774131253 | D97: =IF(D96,D95/D96,0) -> 0.04774131253 | E97: 0.04774131253 | F97: 0.04774131253 | G97: 0.04774131253 | H97: 0.04774131253 | I97: 0 | K97: =A95&"/"&A96 -> 540/541
A98: 543 | B98: Adj. Income Tax Items | C98: =SUM(C78:C80) -> 9165000 | D98: =SUM(D78:D80) -> 5526224.4 | E98: 3078875.773 | F98: 192456.3668 | G98: 31563.40198 | H98: 335880.0583 | I98: 0 | K98: =A78&":"&A80 -> 523:525
A99: 544 | B99: Adj. Return | C99: =C83*C22 -> 24796000 | D99: 16650236.3 | E99: 6656821.539 | F99: 433340.8487 | G99: 74426.66522 | H99: 981174.6323 | I99: 0 | K99: =A83&" * "&A22 -> 528 * 467
A100: 545 | B100: Adj. Income Tax Ratio | C100: =IF(C99,C98/C99,0) -> 0.3696160671 | D100: =IF(D99,D98/D99,0) -> 0.331900659 | E100: 0.4625143929 | F100: 0.4441223748 | G100: 0.4240872795 | H100: 0.3423244418 | I100: 0 | K100: =A98&"/"&A99 -> 543/544
A101: 546 | B101: Adj. Income Tax Items - Uniform | C101: =C98 -> 9165000 | D101: =$C101*D$82/$C$82 -> 6154194.857 | E101: 2460468.197 | F101: 160169.7402 | G101: 27509.29129 | H101: 362657.9087 | I101: 0 | K101: =C$1&A98&" * % of "&A82 -> C543 * % of 527
A102: 547
A103: 548
A104: 549
A105: 550 | B105: SUMMARY BY FUNCTION WITH MARGIN ANALYSIS
A106: 551
A107: 552 | C107: Total | D107: Sch 101 | E107: Sch 111 | F107: Sch 121 | G107: Sch 131 | H107: Sch 146 | I107: Open
A108: 553 | B108: Functional Cost Components at Current Rates
A109: 554 | B109: Production | C109: =SUM(D109:I109) -> 1067684.114 | D109: =D281 -> 720798.3539 | E109: 284835.3335 | F109: 24142.97273 | G109: 5258.995852 | H109: 32648.45777 | I109: 0 | K109: =A281 -> 726
A110: 555 | B110: Underground Storage | C110: =SUM(D110:I110) -> 3923549.039 | D110: =D290 -> 2150580.385 | E110: 1562666.369 | F110: 119869.3167 | G110: 23527.58598 | H110: 66905.38241 | I110: 0 | K110: =A290 -> 735
A111: 556 | B111: Distribution | C111: =SUM(D111:I111) -> 53736882.57 | D111: =D301 -> 40761768.28 | E111: 10111694.31 | F111: 654819.1827 | G111: 117246.9981 | H111: 2091353.803 | I111: 0 | K111: =A301 -> 746
A112: 557 | B112: Common | C112: =SUM(D112:I112) -> 28490884.28 | D112: =D310 -> 23988845.23 | E112: 3502891.986 | F112: 225344.3726 | G112: 44134.01666 | H112: 729668.6704 | I112: 0 | K112: =A310 -> 755
A113: 558 | B113: Total Current Rate Revenue | C113: =IF(ROUND(SUM(C109:C112),3)<>ROUND(SUM(D113:I113),3),#VALUE!,SUM(D113:I113)) -> 87219000 | D113: =SUM(D109:D112) -> 67621992.25 | E113: 15462087.99 | F113: 1024175.845 | G113: 190167.5966 | H113: =SUM(H109:H112) -> 2920576.314 | I113: 0 | K113: =A109&":"&A112 -> 554:557
A114: 559 | B114: Exclude Cost of Gas w / Revenue Exp. | C114: =SUM(D114:I114) -> 0 | D114: =SUM(D$276:D$277)*(1+D$93) -> 0 | E114: =SUM(E$276:E$277)*(1+E$93) -> 0 | F114: 0 | G114: 0 | H114: 0 | I114: 0 | K114: =A276&":"&A277&"*(1+"&A93&")" -> 721:722*(1+538)
A115: 560 | B115: Total Margin Revenue at Current Rates | C115: =C113-C114 -> 87219000 | D115: =D113-D114 -> 67621992.25 | E115: 15462087.99 | F115: 1024175.845 | G115: 190167.5966 | H115: 2920576.314 | I115: 0 | K115: =A113&"-"&A114 -> 558-559
A116: 561 | C116: =ABS(ROUND(C113-Detail!$E$433,0)) -> 0
A117: 562 | B117: Margin per Therm at Current Rates
A118: 563 | B118: Production | C118: =IF(C$177,(C109-C114)/C$177,0) -> 0.005256046132 | D118: =IF(D$177,(D109-D114)/D$177,0) -> 0.00603448111 | E118: =IF(E$177,(E109-E114)/E$177,0) -> 0.005940044143 | F118: 0.005866593169 | G118: 0.00583511418 | H118: 0.001062791613 | I118: 0 | K118: ="("&A109&"-"&A114&")/"&A$177 -> (554-559)/622
A119: 564 | B119: Underground Storage | C119: =IF(C$177,C110/C$177,0) -> 0.01931503381 | D119: 0.01800453155 | E119: 0.03258832779 | F119: 0.02912750315 | G119: 0.02610501214 | H119: 0.002177942976 | I119: 0 | K119: =A110&"/"&A$177 -> 555/622
A120: 565 | B120: Distribution | C120: 0.2645384811 | D120: 0.3412551088 | E120: 0.2108724005 | F120: 0.1591170146 | G120: 0.1300913027 | H120: 0.06807896707 | I120: 0 | K120: =A111&"/"&A$177 -> 556/622
A121: 566 | B121: Common | C121: 0.1402562801 | D121: 0.2008331909 | E121: 0.07305039289 | F121: 0.05475728989 | G121: 0.04896885901 | H121: 0.02375259954 | I121: 0 | K121: =A112&"/"&A$177 -> 557/622
A122: 567 | B122: Total Curr. Margin Melded Rate per Therm | C122: =IF(C$177,C115/C$177,0) -> 0.4293658411 | D122: =IF(D$177,D115/D$177,0) -> 0.5661273123 | E122: =IF(E$177,E115/E$177,0) -> 0.3224511653 | F122: 0.2488684008 | G122: 0.211000288 | H122: 0.0950723012 | I122: 0 | K122: =A115&"/"&A$177 -> 560/622
A123: 568
A124: 569 | B124: Functional Cost Components at Uniform Current Return
A125: 570 | B125: Production | C125: =SUM(D125:I125) -> 1067684.114 | D125: =D$109 -> 720798.3539 | E125: 284835.3335 | F125: 24142.97273 | G125: 5258.995852 | H125: 32648.45777 | I125: 0 | K125: =A109 -> 554
A126: 571 | B126: Underground Storage | C126: =SUM(D126:I126) -> 3586014.736 | D126: =D319 -> 2435498.964 | E126: 977728.5228 | F126: 83910.99422 | G126: 18376.70166 | H126: 70499.55284 | I126: 0 | K126: =A319 -> 764
A127: 572 | B127: Distribution | C127: =SUM(D127:I127) -> 53665071.85 | D127: =D326 -> 44167614.85 | E127: 6738496.623 | F127: 474365.0684 | G127: 94641.3987 | H127: 2189953.91 | I127: 0 | K127: =A326 -> 771
A128: 573 | B128: Common | C128: =SUM(D128:I128) -> 28900229.3 | D128: =D333 -> 25111288.77 | E128: 2812612.268 | F128: 190914.0533 | G128: 39538.67938 | H128: 745875.5353 | I128: 0 | K128: =A333 -> 778
A129: 574 | B129: Total Uniform Current Cost | C129: =IF(ROUND(SUM(C125:C128),3)<>ROUND(SUM(D129:I129),3),#VALUE!,SUM(D129:I129)) -> 87219000 | D129: =SUM(D125:D128) -> 72435200.93 | E129: 10813672.75 | F129: 773333.0886 | G129: 157815.7756 | H129: 3038977.456 | I129: 0 | K129: =A125&":"&A128 -> 570:573
A130: 575 | B130: Exclude Cost of Gas w / Revenue Exp. | C130: =SUM(D130:I130) -> 0 | D130: =SUM(D$276:D$277)*(1+D$93) -> 0 | E130: =SUM(E$276:E$277)*(1+E$93) -> 0 | F130: 0 | G130: 0 | H130: 0 | I130: 0 | K130: =A276&":"&A277&"*(1+"&A93&")" -> 721:722*(1+538)
A131: 576 | B131: Total Uniform Current Margin | C131: =C129-C130 -> 87219000 | D131: 72435200.93 | E131: 10813672.75 | F131: 773333.0886 | G131: 157815.7756 | H131: 3038977.456 | I131: 0 | K131: =A129&"-"&A130 -> 574-575
A132: 577 | C132: =ABS(ROUND(C129-Detail!$E$433,0)) -> 0
A133: 578 | B133: Margin per Therm at Uniform Current Return
A134: =Pg1Row+ROW(A134) -> 579 | B134: Production | C134: =IF(C$177,(C125-C130)/C$177,0) -> 0.005256046132 | D134: 0.00603448111 | E134: 0.005940044143 | F134: 0.005866593169 | G134: 0.00583511418 | H134: 0.001062791613 | I134: 0 | K134: ="("&A125&"-"&A130&")/"&A$177 -> (570-575)/622
A135: 580 | B135: Underground Storage | C135: =IF(C$177,C126/C$177,0) -> 0.01765340388 | D135: 0.02038985302 | E135: 0.02038985302 | F135: 0.02038985302 | G135: 0.02038985302 | H135: 0.002294942505 | I135: 0 | K135: =A126&"/"&A$177 -> 571/622
A136: 581 | B136: Distribution | C136: 0.2641849679 | D136: 0.3697686545 | E136: 0.1405266927 | F136: 0.11526778 | G136: 0.1050092799 | H136: 0.07128865518 | I136: 0 | K136: =A127&"/"&A$177 -> 572/622
A137: 582 | B137: Common | C137: 0.1422714232 | D137: 0.2102302216 | E137: 0.05865508616 | F137: 0.04639093509 | G137: 0.04387010662 | H137: 0.02428017485 | I137: 0 | K137: =A128&"/"&A$177 -> 573/622
A138: 583 | B138: Total Curr. Uniform Margin @ Melded Rate | C138: =IF(C$177,C131/C$177,0) -> 0.4293658411 | D138: =IF(D$177,D131/D$177,0) -> 0.6064232102 | E138: 0.2255116761 | F138: 0.1879151613 | G138: 0.1751043538 | H138: 0.09892656415 | I138: 0 | K138: =A131&"/"&A$177 -> 576/622
A139: 584
A140: 585 | B140: Margin to Cost Ratio at Current Rates | C140: =IF(C131,C115/C131,0) -> 1 | D140: =IF(D131,D115/D131,0) -> 0.9335515244 | E140: =IF(E131,E115/E131,0) -> 1.429864613 | F140: 1.324365736 | G140: 1.204997383 | H140: =IF(H131,H115/H131,0) -> 0.9610391508 | I140: 0 | K140: =A115&"/"&A131 -> 560/576
A141: 586
A142: 587
A143: 588 | B143: Functional Cost Components at Proposed Rates
A144: 589 | B144: Production | C144: =SUM(D144:I144) -> 1067648.397 | D144: =D342 -> 720774.2417 | E144: 284825.8052 | F144: 24142.1651 | G144: 5258.819927 | H144: 32647.36561 | I144: 0 | K144: =A$342 -> 787
A145: 590 | B145: Underground Storage | C145: =SUM(D145:I145) -> 4512780.667 | D145: =D349 -> 2530142.415 | E145: 1747154.716 | F145: 133775.1733 | G145: 26393.67574 | H145: 75314.68776 | I145: 0 | K145: =A349 -> 794
A146: 591 | B146: Distribution | C146: =SUM(D146:I146) -> 59650482.13 | D146: =D356 -> 45298455.76 | E146: 11175557.99 | F146: 724602.8877 | G146: 129824.8899 | H146: 2322040.593 | I146: 0 | K146: =A356 -> 801
A147: 592 | B147: Common | C147: =SUM(D147:I147) -> 30257088.81 | D147: =D363 -> 25483619.83 | E147: 3720549.479 | F147: 238655.6187 | G147: 46690.21097 | H147: 767573.6672 | I147: 0 | K147: =A363 -> 808
A148: 593 | B148: Total Proposed Rate Revenue | C148: =IF(ROUND(SUM(C144:C147),3)<>ROUND(SUM(D148:I148),3),#VALUE!,SUM(D148:I148)) -> 95488000 | D148: =SUM(D144:D147) -> 74032992.25 | E148: 16928087.99 | F148: 1121175.845 | G148: 208167.5966 | H148: 3197576.314 | I148: 0 | K148: =A144&":"&A147 -> 589:592
A149: 594 | B149: Exclude Cost of Gas w / Revenue Exp. | C149: =SUM(D149:I149) -> 0 | D149: =SUM(D$276:D$277)*(1+D$97) -> 0 | E149: 0 | F149: 0 | G149: 0 | H149: 0 | I149: 0 | K149: =A276&":"&A277&"*(1+"&A97&")" -> 721:722*(1+542)
A150: 595 | B150: Total Margin Revenue at Proposed Rates | C150: =C148-C149 -> 95488000 | D150: 74032992.25 | E150: 16928087.99 | F150: 1121175.845 | G150: 208167.5966 | H150: 3197576.314 | I150: 0 | K150: =A148&"-"&A149 -> 593-594
A151: 596
A152: 597 | B152: Margin per Therm at Proposed Rates
A153: 598 | B153: Production | C153: =IF(C$177,(C144-C149)/C$177,0) -> 0.005255870306 | D153: =IF(D$177,(D144-D149)/D$177,0) -> 0.006034279243 | E153: 0.005939845436 | F153: 0.005866396919 | G153: 0.005834918983 | H153: 0.00106275606 | I153: 0 | K153: ="("&A144&"-"&A$149&")/"&A$177 -> (589-594)/622
A154: 599 | B154: Underground Storage | C154: =IF(C$177,C145/C$177,0) -> 0.02221573129 | D154: 0.02118220238 | E154: 0.03643570482 | F154: 0.03250654036 | G154: 0.02928507949 | H154: 0.002451687581 | I154: 0 | K154: =A145&"/"&A$177 -> 590/622
A155: 600 | B155: Distribution | C155: 0.2936502303 | D155: 0.3792359876 | E155: 0.2330585429 | F155: 0.1760740236 | G155: 0.1440470914 | H155: 0.07558841781 | I155: 0 | K155: =A146&"/"&A$177 -> 591/622
A156: 601 | B156: Common | C156: 0.1489510357 | D156: 0.2133473553 | E156: 0.07758948957 | F156: 0.05799184044 | G156: 0.05180508215 | H156: 0.02498650507 | I156: 0 | K156: =A147&"/"&A$177 -> 592/622
A157: 602 | B157: Total Proposed Margin @ Melded Rates | C157: =IF(C$177,C150/C$177,0) -> 0.4700728676 | D157: =IF(D$177,D150/D$177,0) -> 0.6197998245 | E157: 0.3530235828 | F157: 0.2724388013 | G157: 0.230972172 | H157: 0.1040893665 | I157: 0 | K157: =A148&"/"&A$177 -> 593/622
A158: 603
A159: 604 | B159: Functional Cost Components at Uniform Proposed Return
A160: 605 | B160: Production | C160: =SUM(D160:I160) -> 1067648.397 | D160: =D373 -> 720774.2417 | E160: 284825.8052 | F160: 24142.1651 | G160: 5258.819927 | H160: 32647.36561 | I160: 0 | K160: =A373 -> 818
A161: 606 | B161: Underground Storage | C161: =SUM(D161:I161) -> 4157037.219 | D161: =D380 -> 2823317.969 | E161: 1133418.058 | F161: 97272.64155 | G161: 21302.93331 | H161: 81725.61649 | I161: 0 | K161: =A380 -> 825
A162: 607 | B162: Distribution | C162: =SUM(D162:I162) -> 59586103.31 | D162: =D387 -> 48803004.18 | E162: 7636284.407 | F162: 541417.7005 | G162: 107483.2343 | H162: 2497913.794 | I162: 0 | K162: =A387 -> 832
A163: 608 | B163: Common | C163: =SUM(D163:I163) -> 30677211.09 | D163: =D394 -> 26638591.91 | E163: 2996284.552 | F163: 203704.2156 | G163: 42148.529 | H163: 796481.8834 | I163: 0 | K163: =A394 -> 839
A164: 609 | B164: Total Uniform Proposed Cost | C164: =IF(ROUND(SUM(C160:C163),3)<>ROUND(SUM(D164:I164),3),#VALUE!,SUM(D164:I164)) -> 95488000.02 | D164: =SUM(D160:D163) -> 78985688.3 | E164: 12050812.82 | F164: 866536.7228 | G164: 176193.5165 | H164: 3408768.66 | I164: 0 | K164: =A160&":"&A163 -> 605:608
A165: 610 | B165: Exclude Cost of Gas w / Revenue Exp. | C165: =SUM(D165:I165) -> 0 | D165: =SUM(D$368:D$369)*(1+$C$97) -> 0 | E165: =SUM(E$368:E$369)*(1+$C$97) -> 0 | F165: 0 | G165: 0 | H165: 0 | I165: 0 | K165: =A368&":"&A369&"*(1+"&A97&")" -> 813:814*(1+542)
A166: 611 | B166: Total Uniform Proposed Margin | C166: =C164-C165 -> 95488000.02 | D166: 78985688.3 | E166: 12050812.82 | F166: 866536.7228 | G166: 176193.5165 | H166: 3408768.66 | I166: 0 | K166: =A164&"-"&A165 -> 609-610
A167: 612
A168: 613 | B168: Margin per Therm at Uniform Proposed Return
A169: 614 | B169: Production | C169: =IF(C$177,(C160-C165)/C$177,0) -> 0.005255870306 | D169: 0.006034279243 | E169: 0.005939845436 | F169: 0.005866396919 | G169: 0.005834918983 | H169: 0.00106275606 | I169: 0 | K169: ="("&A160&"-"&A$165&")/"&A$177 -> (605-610)/622
A170: 615 | B170: Underground Storage | C170: =IF(C$177,C161/C$177,0) -> 0.02046446052 | D170: 0.02363665075 | E170: 0.02363665075 | F170: 0.02363665075 | G170: 0.02363665075 | H170: 0.002660379867 | I170: 0 | K170: =A161&"/"&A$177 -> 606/622
A171: 616 | B171: Distribution | C171: =IF(C$177,C162/C$177,0) -> 0.2933333032 | D171: 0.4085758593 | E171: 0.1592494369 | F171: 0.1315611552 | G171: 0.1192579272 | H171: 0.0813135447 | I171: 0 | K171: =A162&"/"&A$177 -> 607/622
A172: 617 | B172: Common | C172: =IF(C$177,C163/C$177,0) -> 0.1510192337 | D172: 0.2230167131 | E172: 0.06248544477 | F172: 0.0494988655 | G172: 0.04676586294 | H172: 0.02592754216 | I172: 0 | K172: =A163&"/"&A$177 -> 608/622
A173: 618 | B173: Total Prop. Uniform Margin @ Melded Rates | C173: =IF(C$177,C166/C$177,0) -> 0.4700728677 | D173: =IF(D$177,D166/D$177,0) -> 0.6612635023 | E173: 0.2513113778 | F173: 0.2105630684 | G173: 0.1954953598 | H173: 0.1109642228 | I173: 0 | K173: =A164&"/"&A$177 -> 609/622
A174: 619
A175: 620 | B175: Margin to Cost Ratio at Proposed Rates | C175: =IF(C166,C150/C166,0) -> 0.9999999998 | D175: =IF(D166,D150/D166,0) -> 0.9372962855 | E175: =IF(E166,E150/E166,0) -> 1.404725826 | F175: 1.293858431 | G175: 1.181471377 | H175: 0.9380443887 | I175: 0 | K175: =A150&"/"&A166 -> 595/611
A176: 621
A177: 622 | B177: Throughput Therms | C177: =SUM(D177:I177) -> 203134464 | D177: =Factors!E41 -> 119446617 | E177: =Factors!F41 -> 47951720 | F177: =Factors!G41 -> 4115331 | G177: =Factors!H41 -> 901267 | H177: =Factors!I41 -> 30719529 | I177: =Factors!J41 -> 0 | K177: =Factors!A41 -> 1020
A178: 623 | B178: Peak Therms | C178: =SUM(D178:I178) -> 1440694.8 | D178: =Factors!E42 -> 954636.6159 | E178: =Factors!F42 -> 317147.0194 | F178: =Factors!G42 -> 27390.80313 | G178: =Factors!H42 -> 5852.23356 | H178: =Factors!I42 -> 135668.128 | I178: =Factors!J42 -> 0 | K178: =Factors!A42 -> 1021
A179: 624 | B179: Number of Customers (Annualized) | C179: =SUM(D179:I179) -> 1881222 | D179: =Factors!E43 -> 1847462 | E179: =Factors!F43 -> 32983 | F179: =Factors!G43 -> 273 | G179: =Factors!H43 -> 24 | H179: =Factors!I43 -> 480 | I179: =Factors!J43 -> 0 | K179: =Factors!A43 -> 1022
A180: 625
A181: 626
A182: 627
A183: 628 | B183: SUMMARY BY CLASSIFICATION WITH UNIT COST ANALYSIS
A184: 629
A185: 630 | C185: Total | D185: Sch 101 | E185: Sch 111 | F185: Sch 121 | G185: Sch 131 | H185: Sch 146 | I185: Open
A186: 631 | B186: Cost by Classification at Curr. Return by Schedule
A187: 632 | B187: Commodity | C187: =SUM(D187:I187) -> 18209472.62 | D187: =D410 -> 10125154.01 | E187: 6454900.19 | F187: 504901.8451 | G187: 72060.51311 | H187: 1052456.064 | I187: 0 | K187: =A410 -> 855
A188: 633 | B188: Demand | C188: =SUM(D188:I188) -> 17984792.39 | D188: =D419 -> 10318366.16 | E188: 5590710.413 | F188: 438522.3019 | G188: 85422.16593 | H188: 1551771.348 | I188: 0 | K188: =A419 -> 864
A189: 634 | B189: Customer | C189: =SUM(D189:I189) -> 51024734.97 | D189: =D428 -> 47178472.06 | E189: 3416477.391 | F189: 80751.6977 | G189: 32684.91753 | H189: 316348.9019 | I189: 0 | K189: =A428 -> 873
A190: 635 | B190: Total Current Rate Revenue | C190: =IF(ROUND(SUM(C187:C189),3)<>ROUND(SUM(D190:I190),3),#VALUE!,SUM(D190:I190)) -> 87218999.98 | D190: =SUM(D186:D189) -> 67621992.23 | E190: 15462087.99 | F190: 1024175.845 | G190: 190167.5966 | H190: 2920576.314 | I190: 0 | K190: =A186&":"&A189 -> 631:634
A191: 636
A192: 637 | B192: Revenue per Therm at Current Rates
A193: 638 | B193: Commodity | C193: =IF(C$177,C187/C$177,0) -> 0.08964245783 | D193: =IF(D$177,D187/D$177,0) -> 0.08476718943 | E193: 0.134612485 | F193: 0.122688028 | G193: 0.07995467837 | H193: 0.03426016277 | I193: 0 | K193: =A187&"/"&A$177 -> 632/622
A194: 639 | B194: Demand | C194: =IF(C$177,C188/C$177,0) -> 0.08853639129 | D194: 0.0863847501 | E194: 0.1165904041 | F194: 0.1065582093 | G194: 0.09478008839 | H194: 0.05051416472 | I194: 0 | K194: =A188&"/"&A$177 -> 633/622
A195: 640 | B195: Customer | C195: =IF(C$177,C189/C$177,0) -> 0.2511869919 | D195: 0.3949753727 | E195: 0.0712482762 | F195: 0.01962216349 | G195: 0.03626552124 | H195: 0.01029797371 | I195: 0 | K195: =A189&"/"&A$177 -> 634/622
A196: 641 | B196: Total Revenue per Therm at Current Rates | C196: 0.4293658411 | D196: 0.5661273122 | E196: 0.3224511653 | F196: 0.2488684008 | G196: 0.211000288 | H196: 0.0950723012 | I196: 0 | K196: =A190&"/"&A$177 -> 635/622
A197: 642
A198: =Pg1Row+ROW(A198) -> 643 | B198: Cost per Unit at Current Rates
A199: 644 | B199: Commodity | C199: =C193 -> 0.08964245783 | D199: =D193 -> 0.08476718943 | E199: 0.134612485 | F199: 0.122688028 | G199: 0.07995467837 | H199: 0.03426016277 | I199: 0 | K199: =A193 -> 638
A200: 645 | B200: Demand | C200: =IF(C$178,C188/C$178,0) -> 12.48341591 | D200: 10.80868467 | E200: 17.62813481 | F200: 16.00983731 | G200: 14.59650662 | H200: 11.43799484 | I200: 0 | K200: =A188&"/"&A$178 -> 633/623
... 334 more rows

Sheet Factors
A1: =ColHdr -> A | B1: =ColHdr -> B | C1: C | D1: D | E1: E | F1: F | G1: G | H1: H | I1: I | J1: J | K1: K | L1: L | M1: M | N1: N | O1: O | P1: P | Q1: Q | R1: R | S1: S | T1: T
A2: =Pg2Row+ROW(A2) -> 981 | E2: 1 | F2: 2 | G2: 3 | H2: 4 | I2: 5 | J2: 6
A3: 982 | B3: Allocation Factor | C3: Abbrev | D3: Total | E3: Sch 101 | F3: Sch 111 | G3: Sch 121 | H3: Sch 131 | I3: Sch 146 | J3: Open | K3: allocation basis
A4: 983 | B4: Throughput - All Schedules | C4: E01 | D4: =SUM(E4:J4) -> 203134464 | E4: =E$41 -> 119446617 | F4: 47951720 | G4: 4115331 | H4: 901267 | I4: 30719529 | J4: 0 | K4: =K41 -> Input from Proforma Revenue Study
A5: 984 | B5: Sales - Excludes 146 | C5: E04 | D5: =SUM(E5:J5) -> 172414935 | E5: =E$41 -> 119446617 | F5: =F$41 -> 47951720 | G5: =G$41 -> 4115331 | H5: =H$41 -> 901267 | I5: 0 | J5: =J$41 -> 0 | K5: same as Throughput, less Transport
A6: 985 | B6: Throughput - Excludes 132 & 146 | C6: E06 | D6: 171513668 | E6: =E$41 -> 119446617 | F6: =F$41 -> 47951720 | G6: =G$41 -> 4115331 | H6: 0 | I6: 0 | J6: =J$41 -> 0 | K6: same as Throughput, less Transport & Interruptible
A7: 986 | B7: Purchased Gas - Commodity | C7: E07 | D7: =SUM(E7:J7) -> 0.04 | E7: 0.04 | F7: 0 | G7: 0 | H7: 0 | I7: 0 | J7: 0 | K7: - not used -
A8: 987 | B8: GTI Expense | C8: E08 | D8: =SUM(E8:J8) -> 75889.67096 | E8: =GTI!E9 -> 56139.90999 | F8: =GTI!E10 -> 18221.6536 | G8: =GTI!E11 -> 1275.75261 | H8: =GTI!E12 -> 252.35476 | I8: 0 | J8: 0 | K8: Input GTI Contributions
A9: 988 | B9: Coincident Peak - All | C9: D01 | D9: 1440694.8 | E9: =E$42 -> 954636.6159 | F9: 317147.0194 | G9: 27390.80313 | H9: 5852.23356 | I9: 135668.128 | J9: 0 | K9: Input from Peak Study
A10: 989 | B10: Coincident Peak - Small Mains | C10: D02 | D10: 1299174.438 | E10: =E$9 -> 954636.6159 | F10: =F$9 -> 317147.0194 | G10: =G$9 -> 27390.80313 | H10: 0 | I10: 0 | J10: =J$9 -> 0 | K10: - not used -
A11: 990 | B11: Purchased Gas - Demand | C11: D05 | D11: =SUM(E11:J11) -> 0.04 | E11: 0.04 | F11: 0 | G11: 0 | H11: 0 | I11: 0 | J11: 0 | K11: - not used -
A12: 991 | B12: DA 132 | C12: D06 | D12: 100 | F12: 0 | G12: 0 | H12: 100 | I12: 0 | J12: 0 | K12: Direct Assignment Schedule 131/132
A13: 992 | B13: DA 146 | C13: D07 | D13: 100 | E13: 0 | F13: 0 | G13: 0 | H13: 0 | I13: 100 | J13: 0 | K13: Direct Assignment Schedule 146
A14: 993 | B14: All Customers | C14: C01 | D14: 1881222 | E14: =E$43*E46 -> 1847462 | F14: 32983 | G14: 273 | H14: 24 | I14: 480 | J14: 0 | K14: Unweighted Customers | R14: Corporate Cost Allocator (4-Factor)
A15: 994 | B15: Service Cost | C15: C02 | D15: 1887478.869 | E15: =E$43*E47 -> 1847462 | F15: =F$43*F47 -> 32983 | G15: 818.778381 | H15: 71.98051701 | I15: =I$43*I47 -> 6143.110207 | J15: 0 | K15: Wtd Avg Service Cost
A16: 995 | B16: Meter Cost | C16: C03 | D16: 2154777.755 | E16: 1847462 | F16: 265056.8731 | G16: 6697.265907 | H16: 3408.874827 | I16: 32152.7414 | J16: 0 | K16: Weighted Average Meter Cost
A17: 996 | B17: Regulator Cost | C17: C04 | D17: 1881222 | E17: =E43*E49 -> 1847462 | F17: =F43*F49 -> 32983 | G17: 273 | H17: 24 | I17: 480 | J17: 0 | K17: - not used - | S17: Total | T17: Sch 101 | U17: Sch 111 | V17: Sch 121 | W17: Sch 131 | X17: Sch 146
A18: 997 | B18: Ind Meas & Reg Cost | C18: C06 | D18: 40792.10335 | E18: =E$43*E51 -> 0 | F18: =F$43*F51 -> 32983 | G18: 1231.190837 | H18: 631.446914 | I18: 5946.465599 | J18: 0 | K18: Direct Assigned to Handbilled Customers | R18: Net UG/Dist Plant | S18: =Detail!H42+Detail!H88 -> 310858000 | T18: =Detail!I42+Detail!I88 -> 242109380 | U18: =Detail!J42+Detail!J88 -> 48835267.31 | V18: =Detail!K42+Detail!K88 -> 3702817.841 | W18: =Detail!L42+Detail!L88 -> 719410.1479 | X18: =Detail!M42+Detail!M88 -> 15491124.74
A19: 998 | B19: DA 101 | C19: C10 | D19: =SUM(E19:J19) -> 100 | E19: 100 | F19: 0 | G19: 0 | H19: 0 | I19: 0 | J19: 0 | K19: Direct Assigned to Residential | R19: O&M (less PG/Uncoll/Labor) | S19: =Detail!H250-Detail!CL250 -> 11945562.6 | T19: =Detail!I250-Detail!CM250 -> 10125924.71 | U19: =Detail!J250-Detail!CN250 -> 1396420.987 | V19: =Detail!K250-Detail!CO250 -> 92045.31952 | W19: =Detail!L250-Detail!CP250 -> 21146.95673 | X19: =Detail!M250-Detail!CQ250 -> 310024.6289
A20: 999 | B20: Revenues From Retail Rates | C20: R01 | D20: =SUM(E20:J20) -> 87219295.11 | E20: 67622221.05 | F20: 15462140.31 | G20: 1024179.31 | H20: 190168.24 | I20: 2920586.195 | J20: 0 | K20: Input Revenue From Rates | R20: O&M Labor | S20: =Detail!CL250 -> 9848437.4 | T20: =Detail!CM250 -> 8652315.019 | U20: =Detail!CN250 -> 889426.5371 | V20: =Detail!CO250 -> 58564.49904 | W20: =Detail!CP250 -> 12334.94827 | X20: =Detail!CQ250 -> 235796.3966
A21: 1000 | R21: Customers | S21: =D14 -> 1881222 | T21: =E14 -> 1847462 | U21: 32983 | V21: 273 | W21: 24 | X21: 480
A22: 1001 | B22: Throughput | C22: E01 | D22: =SUM(E22:J22) -> 1 | E22: =E4/$D4 -> 0.5880174868 | F22: =F4/$D4 -> 0.2360590077 | G22: 0.02025914716 | H22: 0.00443680005 | I22: 0.1512275583 | J22: 0
A23: 1002 | B23: Sales | C23: E04 | D23: =SUM(E23:J23) -> 1 | E23: 0.6927857903 | F23: 0.278118134 | G23: 0.02386876172 | H23: 0.005227313979 | I23: 0 | J23: 0
A24: 1003 | B24: Therms - Small Mains | C24: E06 | D24: 1 | E24: 0.6964262288 | F24: 0.2795795843 | G24: 0.02399418687 | H24: 0 | I24: 0 | J24: 0 | R24: Net UG/Dist Plant | S24: =SUM(T24:X24) -> 1 | T24: =T18/$S$18 -> 0.7788423652 | U24: =U18/$S$18 -> 0.1570983128 | V24: 0.01191160543 | W24: 0.002314272587 | X24: 0.04983344401
A25: 1004 | B25: Purchased Gas - Commodity | C25: E07 | D25: 1 | E25: 1 | F25: 0 | G25: 0 | H25: 0 | I25: 0 | J25: 0 | R25: O&M (less PG/Uncoll/Labor) | S25: =SUM(T25:X25) -> 1 | T25: =T19/$S$19 -> 0.8476724828 | U25: =U19/$S$19 -> 0.1168987208 | V25: 0.007705398448 | W25: 0.001770277168 | X25: 0.02595312078
A26: 1005 | B26: GTI Expense | C26: E08 | D26: 1 | E26: 0.7397569298 | F26: 0.2401071631 | G26: 0.0168106225 | H26: 0.003325284677 | I26: 0 | J26: 0 | R26: O&M Labor | S26: 1 | T26: =T20/$S$20 -> 0.8785469885 | U26: =U20/$S$20 -> 0.09031143733 | V26: 0.005946577783 | W26: 0.001252477705 | X26: 0.02394251869
A27: 1006 | B27: Coincident Peak - All | C27: D01 | D27: 1 | E27: 0.6626223791 | F27: 0.2201347707 | G27: 0.01901221767 | H27: 0.004062091125 | I27: 0.09416854144 | J27: 0 | R27: Customers | S27: 1 | T27: =T21/$S$21 -> 0.9820542179 | U27: =U21/$S$21 -> 0.01753275265 | V27: 0.000145118439 | W27: 1.275766496e-05 | X27: 0.0002551532993
A28: 1007 | B28: Coincident Peak - Small Mains | C28: D02 | D28: 1 | E28: 0.7348024928 | F28: 0.2441142698 | G28: 0.02108323742 | H28: 0 | I28: 0 | J28: 0
A29: 1008 | B29: Purchased Gas - Demand | C29: D05 | D29: 1 | E29: 1 | F29: 0 | G29: 0 | H29: 0 | I29: 0 | J29: 0 | R29: Average | S29: =SUM(T29:X29) -> 1 | T29: =AVERAGE(T24:T27) -> 0.8717790136 | U29: =AVERAGE(U24:U27) -> 0.09546030588 | V29: 0.006427175025 | W29: 0.001337446281 | X29: 0.0249960592
A30: 1009 | B30: DA 131/132 | C30: D06 | D30: 1 | E30: 0 | F30: 0 | G30: 0 | H30: 1 | I30: 0 | J30: 0
A31: 1010 | B31: DA 146 | C31: D07 | D31: 1 | E31: 0 | F31: 0 | G31: 0 | H31: 0 | I31: 1 | J31: 0 | R31: Corporate Cost Allocator | S31: =SUM(T31:X31) -> 1000 | T31: =T29*1000 -> 871.7790136 | U31: =U29*1000 -> 95.46030588 | V31: 6.427175025 | W31: 1.337446281 | X31: 24.9960592
A32: 1011 | B32: All Customers | C32: C01 | D32: 1 | E32: =E14/$D14 -> 0.9820542179 | F32: 0.01753275265 | G32: 0.000145118439 | H32: 1.275766496e-05 | I32: 0.0002551532993 | J32: 0
A33: 1012 | B33: Service Cost | C33: C02 | D33: 1 | E33: =E15/$D15 -> 0.9787987724 | F33: 0.01747463272 | G33: 0.0004337947272 | H33: 3.813580019e-05 | I33: 0.003254664361 | J33: 0
A34: 1013 | B34: Meter Cost | C34: C03 | D34: 1 | E34: 0.8573793727 | F34: 0.1230089147 | G34: 0.003108100541 | H34: 0.00158200762 | I34: 0.01492160448 | J34: 0 | R34: ** 4-Factor consists of multiple functions so is calculated in the detail tab
A35: 1014 | B35: Regulator Cost | C35: C04 | D35: 1 | E35: 0.9820542179 | F35: 0.01753275265 | G35: 0.000145118439 | H35: 1.275766496e-05 | I35: 0.0002551532993 | J35: 0
A36: 1015 | B36: Ind Meas & Reg Cost | C36: C06 | D36: 1 | E36: =E18/$D18 -> 0 | F36: 0.8085633564 | G36: 0.0301820876 | H36: 0.01547963606 | I36: 0.1457749199 | J36: 0
A37: 1016 | B37: DA 101 | C37: C10 | D37: 1 | E37: =E19/$D19 -> 1 | F37: 0 | G37: 0 | H37: 0 | I37: 0 | J37: 0
A38: 1017 | B38: Revenues From Retail Rates | C38: R01 | D38: 1 | E38: =E20/$D20 -> 0.7753126297 | F38: 0.1772788956 | G38: 0.01174257724 | H38: 0.002180345986 | I38: 0.03348555147 | J38: 0
A39: 1018
A40: 1019
A41: 1020 | C41: Throughput Therms | E41: 119446617 | F41: 47951720 | G41: 4115331 | H41: 901267 | I41: 30719529 | J41: 0 | K41: Input from Proforma Revenue Study
A42: 1021 | C42: Peak Therms | E42: ='Demand - Pk-Avg'!Q8 -> 954636.6159 | F42: ='Demand - Pk-Avg'!Q9 -> 317147.0194 | G42: ='Demand - Pk-Avg'!Q10 -> 27390.80313 | H42: ='Demand - Pk-Avg'!Q13 -> 5852.23356 | I42: ='Demand - Pk-Avg'!Q16 -> 135668.128 | J42: 0 | K42: Input from Peak Study
A43: 1022 | C43: No. of Cust. Bills--Annual | E43: 1847462 | F43: 32983 | G43: 273 | H43: 24 | I43: 480 | K43: Input from Proforma Revenue Study
A44: 1023
A45: 1024 | C45: Customer Weightings
A46: 1025 | C46: All Customers | E46: 1 | F46: 1 | G46: 1 | H46: 1 | I46: 1
A47: 1026 | C47: Service Cost | E47: ='Typical Service Cost'!D20 -> 1 | F47: ='Typical Service Cost'!F20 -> 1 | G47: ='Typical Service Cost'!H20 -> 2.999188209 | H47: ='Typical Service Cost'!J20 -> 2.999188209 | I47: ='Typical Service Cost'!L20 -> 12.79814626 | K47: Input from Typical Service Cost Study
A48: 1027 | C48: Meter Cost | E48: ='Average Meter Type'!G15 -> 1 | F48: ='Average Meter Type'!G23 -> 8.036166301 | G48: ='Average Meter Type'!G31 -> 24.53210955 | H48: ='Average Meter Type'!G39 -> 142.0364511 | I48: ='Average Meter Type'!G47 -> 66.98487791 | K48: Input from Meter Cost Study
A49: 1028 | C49: Regulator Cost | E49: 1 | F49: 1 | G49: 1 | H49: 1 | I49: 1
A50: 1029 | C50: Installations Cost | E50: 1 | F50: 1 | G50: 1 | H50: 1 | I50: 1
A51: 1030 | C51: Ind Meas & Reg Cost | E51: ='Industrial Meter Installations'!G15 -> 0 | F51: ='Industrial Meter Installations'!G23 -> 1 | G51: ='Industrial Meter Installations'!G31 -> 4.509856545 | H51: ='Industrial Meter Installations'!G39 -> 26.31028808 | I51: ='Industrial Meter Installations'!G47 -> 12.38847 | K51: Input from Meter Cost Study
A52: 1031
A53: 1032
A54: 1033
A55: 1034
A56: 1035
A57: 1036 | D57: E01 | E57: E04 | F57: E06 | G57: E07 | H57: E08 | I57: D01 | J57: D02 | K57: D05 | L57: D06 | M57: D07 | N57: C01 | O57: C02 | P57: C03 | Q57: C04 | R57: C06 | S57: C10 | T57: R01
A58: 1037 | C58: Sch 101 | D58: =INDEX($E$22:$J$38,COLUMN(D57)-COLUMN($C57),ROW(C58)-ROW(C$57)) -> 0.5880174868 | E58: =INDEX($E$22:$J$38,COLUMN(E57)-COLUMN($C57),ROW(D58)-ROW(D$57)) -> 0.6927857903 | F58: =INDEX($E$22:$J$38,COLUMN(F57)-COLUMN($C57),ROW(E58)-ROW(E$57)) -> 0.6964262288 | G58: 1 | H58: 0.7397569298 | I58: 0.6626223791 | J58: 0.7348024928 | K58: 1 | L58: 0 | M58: 0 | N58: =INDEX($E$22:$J$38,COLUMN(N57)-COLUMN($C57),ROW(M58)-ROW(M$57)) -> 0.9820542179 | O58: =INDEX($E$22:$J$38,COLUMN(O57)-COLUMN($C57),ROW(N58)-ROW(N$57)) -> 0.9787987724 | P58: 0.8573793727 | Q58: 0.9820542179 | R58: 0 | S58: 1 | T58: 0.7753126297
A59: 1038 | C59: Sch 111 | D59: 0.2360590077 | E59: 0.278118134 | F59: 0.2795795843 | G59: 0 | H59: 0.2401071631 | I59: 0.2201347707 | J59: 0.2441142698 | K59: 0 | L59: 0 | M59: 0 | N59: 0.01753275265 | O59: 0.01747463272 | P59: 0.1230089147 | Q59: 0.01753275265 | R59: 0.8085633564 | S59: 0 | T59: 0.1772788956
A60: 1039 | C60: Sch 121 | D60: 0.02025914716 | E60: 0.02386876172 | F60: 0.02399418687 | G60: 0 | H60: 0.0168106225 | I60: 0.01901221767 | J60: 0.02108323742 | K60: 0 | L60: 0 | M60: 0 | N60: 0.000145118439 | O60: 0.0004337947272 | P60: 0.003108100541 | Q60: 0.000145118439 | R60: 0.0301820876 | S60: 0 | T60: 0.01174257724
A61: 1040 | C61: Sch 131 | D61: 0.00443680005 | E61: 0.005227313979 | F61: 0 | G61: 0 | H61: 0.003325284677 | I61: 0.004062091125 | J61: 0 | K61: 0 | L61: 1 | M61: 0 | N61: 1.275766496e-05 | O61: 3.813580019e-05 | P61: 0.00158200762 | Q61: 1.275766496e-05 | R61: 0.01547963606 | S61: 0 | T61: 0.002180345986
A62: 1041 | C62: Sch 146 | D62: 0.1512275583 | E62: 0 | F62: 0 | G62: 0 | H62: 0 | I62: 0.09416854144 | J62: 0 | K62: 0 | L62: 0 | M62: 1 | N62: 0.0002551532993 | O62: 0.003254664361 | P62: 0.01492160448 | Q62: 0.0002551532993 | R62: 0.1457749199 | S62: 0 | T62: 0.03348555147
A63: 1042 | C63: Open | D63: 0 | E63: 0 | F63: 0 | G63: 0 | H63: 0 | I63: 0 | J63: 0 | K63: 0 | L63: 0 | M63: 0 | N63: 0 | O63: 0 | P63: 0 | Q63: 0 | R63: 0 | S63: 0 | T63: 0
A64: 1043
A65: 1044 | D65: range name: AllocFactors_E | I65: range name: AllocFactors_D | N65: range name: AllocFactors_C
A66: 1045 | D66: all 3 ranges + R01, range name: AllocFactors
A67: 1046 | B67: Allocated Dollars - Rate Base
A68: =Pg2Row+ROW(A68) -> 1047 | B68: Throughput | C68: E01 | D68: =Detail!$E$128*INDEX(Detail!$R$128:$AH$128,$A68-$A$67) -> 34058367.99 | E68: =$D68*INDEX(AllocFactors,E$2,$A68-$A$67) -> 20026915.95 | F68: =$D68*INDEX(AllocFactors,F$2,$A68-$A$67) -> 8039784.552 | G68: 689993.4893 | H68: 151110.1688 | I68: 5150563.831 | J68: 0
A69: 1048 | B69: Sales | C69: E04 | D69: =Detail!$E$128*INDEX(Detail!$R$128:$AH$128,$A69-$A$67) -> 22427582.24 | E69: =$D69*INDEX(AllocFactors,E$2,$A69-$A$67) -> 15537510.29 | F69: 6237517.324 | G69: 535318.6165 | H69: 117236.0142 | I69: 0 | J69: 0
A70: 1049 | B70: Therms - Small Mains | C70: E06 | D70: =Detail!$E$128*INDEX(Detail!$R$128:$AH$128,$A70-$A$67) -> 22611071.56 | E70: 15746943.3 | F70: 6321593.988 | G70: 542534.2763 | H70: 0 | I70: 0 | J70: 0
A71: 1050 | B71: Purchased Gas - Commodity | C71: E07 | D71: =Detail!$E$128*INDEX(Detail!$R$128:$AH$128,$A71-$A$67) -> 0 | E71: 0 | F71: 0 | G71: 0 | H71: 0 | I71: 0 | J71: 0
A72: 1051 | B72: GTI Expense | C72: E08 | D72: =Detail!$E$128*INDEX(Detail!$R$128:$AH$128,$A72-$A$67) -> 0 | E72: 0 | F72: 0 | G72: 0 | H72: 0 | I72: 0 | J72: 0
A73: 1052 | B73: Coincident Peak - All | C73: D01 | D73: =Detail!$E$128*INDEX(Detail!$R$128:$AH$128,$A73-$A$67) -> 84511320.37 | E73: 55999092.17 | F73: 18603880.13 | G73: 1606747.618 | H73: 343292.6844 | I73: 7958307.774 | J73: 0
A74: 1053 | B74: Coincident Peak - Small Mains | C74: D02 | D74: =Detail!$E$128*INDEX(Detail!$R$128:$AH$128,$A74-$A$67) -> 0 | E74: 0 | F74: 0 | G74: 0 | H74: 0 | I74: 0 | J74: 0
A75: 1054 | B75: Purchased Gas - Demand | C75: D05 | D75: =Detail!$E$128*INDEX(Detail!$R$128:$AH$128,$A75-$A$67) -> 0 | E75: 0 | F75: 0 | G75: 0 | H75: 0 | I75: 0 | J75: 0
A76: 1055 | B76: DA 131 | C76: D06 | D76: =Detail!$E$128*INDEX(Detail!$R$128:$AH$128,$A76-$A$67) -> 0 | E76: 0 | F76: 0 | G76: 0 | H76: 0 | I76: 0 | J76: 0
A77: 1056 | B77: DA 146 | C77: D07 | D77: =Detail!$E$128*INDEX(Detail!$R$128:$AH$128,$A77-$A$67) -> 0 | E77: 0 | F77: 0 | G77: 0 | H77: 0 | I77: 0 | J77: 0
A78: 1057 | B78: All Customers | C78: C01 | D78: =Detail!$E$128*INDEX(Detail!$R$128:$AH$128,$A78-$A$67) -> 24856156.68 | E78: =$D78*INDEX(AllocFactors,E$2,$A78-$A$67) -> 24410093.51 | F78: 435796.8469 | G78: 3607.086657 | H78: 317.1065193 | I78: 6342.130385 | J78: 0
A79: 1058 | B79: Service Cost | C79: C02 | D79: =Detail!$E$128*INDEX(Detail!$R$128:$AH$128,$A79-$A$67) -> 85664957.31 | E79: 83848755.05 | F79: 1496963.666 | G79: 37161.00678 | H79: 3266.901695 | I79: 278810.6835 | J79: 0
A80: 1059 | B80: Meter Cost | C80: C03 | D80: =Detail!$E$128*INDEX(Detail!$R$128:$AH$128,$A80-$A$67) -> 42385575.26 | E80: 36340517.93 | F80: 5213803.613 | G80: 131738.6294 | H80: 67054.30303 | I80: 632460.7895 | J80: 0
A81: 1060 | B81: Regulator Cost | C81: C04 | D81: =Detail!$E$128*INDEX(Detail!$R$128:$AH$128,$A81-$A$67) -> 0 | E81: 0 | F81: 0 | G81: 0 | H81: 0 | I81: 0 | J81: 0
A82: 1061 | B82: Ind Meas & Reg Cost | C82: C06 | D82: =Detail!$E$128*INDEX(Detail!$R$128:$AH$128,$A82-$A$67) -> 1798968.573 | E82: 0 | F82: 1454580.068 | G82: 54296.62707 | H82: 27847.3788 | I82: 262244.4997 | J82: 0
A83: 1062 | B83: DA 101 | C83: C10 | D83: =Detail!$E$128*INDEX(Detail!$R$128:$AH$128,$A83-$A$67) -> 1225000 | E83: 1225000 | F83: 0 | G83: 0 | H83: 0 | I83: 0 | J83: 0
A84: 1063 | B84: Revenues From Retail Rates | C84: R01 | D84: =Detail!$E$128*INDEX(Detail!$R$128:$AH$128,$A84-$A$67) -> 8.937611778e-11 | E84: 6.929443291e-11 | F84: 1.584449945e-11 | G84: 1.049505967e-12 | H84: 1.948708597e-13 | I84: 2.992808592e-12 | J84: 0
A85: 1064
A86: 1065 | B86: Total | D86: =IF(ROUND(SUM(D68:D85),3)<>ROUND(SUM(E86:J86),3),#VALUE!,SUM(E86:J86)) -> 319539000 | E86: =SUM(E68:E85) -> 253134828.2 | F86: 47803920.19 | G86: 3601397.35 | H86: 710124.5574 | I86: 14288729.71 | J86: 0
A87: 1066
A88: 1067 | B88: Allocated Dollars - Pre-tax Operating Expenses
A89: 1068 | B89: Throughput | C89: E01 | D89: =Detail!$E$403*INDEX(Detail!$R$403:$AH$403,$A89-$A$88) -> 4331162.106 | E89: =$D89*INDEX(AllocFactors,E$2,$A89-$A$88) -> 2546799.056 | F89: 1022409.829 | G89: 87745.65048 | H89: 19216.50025 | I89: 654991.0699 | J89: 0
A90: 1069 | B90: Sales | C90: E04 | D90: =Detail!$E$403*INDEX(Detail!$R$403:$AH$403,$A90-$A$88) -> 3310184.079 | E90: 2293248.493 | F90: 920622.2192 | G90: 79009.99501 | H90: 17303.37151 | I90: 0 | J90: 0
A91: 1070 | B91: Therms - Small Mains | C91: E06 | D91: =Detail!$E$403*INDEX(Detail!$R$403:$AH$403,$A91-$A$88) -> 2599713.012 | E91: 1810508.329 | F91: 726826.6832 | G91: 62377.99981 | H91: 0 | I91: 0 | J91: 0
A92: 1071 | B92: Purchased Gas - Commodity | C92: E07 | D92: =Detail!$E$403*INDEX(Detail!$R$403:$AH$403,$A92-$A$88) -> 0 | E92: 0 | F92: 0 | G92: 0 | H92: 0 | I92: 0 | J92: 0
A93: 1072 | B93: GTI Expense | C93: E08 | D93: =Detail!$E$403*INDEX(Detail!$R$403:$AH$403,$A93-$A$88) -> 76000 | E93: 56221.52666 | F93: 18248.14439 | G93: 1277.60731 | H93: 252.7216355 | I93: 0 | J93: 0
A94: 1073 | B94: Coincident Peak - All | C94: D01 | D94: =Detail!$E$403*INDEX(Detail!$R$403:$AH$403,$A94-$A$88) -> 9993385.901 | E94: 6621841.141 | F94: 2199891.714 | G94: 189996.428 | H94: 40594.04417 | I94: 941062.5743 | J94: 0
A95: 1074 | B95: Coincident Peak - Small Mains | C95: D02 | D95: =Detail!$E$403*INDEX(Detail!$R$403:$AH$403,$A95-$A$88) -> 0 | E95: 0 | F95: 0 | G95: 0 | H95: 0 | I95: 0 | J95: 0
A96: 1075 | B96: Purchased Gas - Demand | C96: D05 | D96: =Detail!$E$403*INDEX(Detail!$R$403:$AH$403,$A96-$A$88) -> 0 | E96: 0 | F96: 0 | G96: 0 | H96: 0 | I96: 0 | J96: 0
A97: 1076 | B97: DA 131 | C97: D06 | D97: =Detail!$E$403*INDEX(Detail!$R$403:$AH$403,$A97-$A$88) -> 0 | E97: 0 | F97: 0 | G97: 0 | H97: 0 | I97: 0 | J97: 0
A98: 1077 | B98: DA 146 | C98: D07 | D98: =Detail!$E$403*INDEX(Detail!$R$403:$AH$403,$A98-$A$88) -> 0 | E98: 0 | F98: 0 | G98: 0 | H98: 0 | I98: 0 | J98: 0
A99: 1078 | B99: All Customers | C99: C01 | D99: =Detail!$E$403*INDEX(Detail!$R$403:$AH$403,$A99-$A$88) -> 18696143.25 | E99: =$D99*INDEX(AllocFactors,E$2,$A99-$A$88) -> 18360626.34 | F99: =$D99*INDEX(AllocFactors,F$2,$A99-$A$88) -> 327794.855 | G99: 2713.155123 | H99: 238.5191317 | I99: 4770.382634 | J99: 0
A100: 1079 | B100: Service Cost | C100: C02 | D100: =Detail!$E$403*INDEX(Detail!$R$403:$AH$403,$A100-$A$88) -> 12434644.92 | E100: 12171015.18 | F100: 217290.8529 | G100: 5394.0834 | H100: 474.2051341 | I100: 40470.59566 | J100: 0
A101: 1080 | B101: Meter Cost | C101: C03 | D101: =Detail!$E$403*INDEX(Detail!$R$403:$AH$403,$A101-$A$88) -> 7107649.566 | E101: 6093952.126 | F101: 874304.2593 | G101: 22091.28946 | H101: 11244.35577 | I101: 106057.5356 | J101: 0
A102: 1081 | B102: Regulator Cost | C102: C04 | D102: =Detail!$E$403*INDEX(Detail!$R$403:$AH$403,$A102-$A$88) -> 0 | E102: 0 | F102: 0 | G102: 0 | H102: 0 | I102: 0 | J102: 0
A103: 1082 | B103: Ind Meas & Reg Cost | C103: C06 | D103: =Detail!$E$403*INDEX(Detail!$R$403:$AH$403,$A103-$A$88) -> 484117.1675 | E103: 0 | F103: 391439.4019 | G103: 14611.66676 | H103: 7493.957565 | I103: 70572.14133 | J103: 0
A104: 1083 | B104: DA 101 | C104: C10 | D104: =Detail!$E$403*INDEX(Detail!$R$403:$AH$403,$A104-$A$88) -> 0 | E104: 0 | F104: 0 | G104: 0 | H104: 0 | I104: 0 | J104: 0
A105: 1084 | B105: Revenues From Retail Rates | C105: R01 | D105: =Detail!$E$403*INDEX(Detail!$R$403:$AH$403,$A105-$A$88) -> 3977000 | E105: 3083418.328 | F105: 705038.1677 | G105: 46700.2297 | H105: 8671.235987 | I105: 133172.0382 | J105: 0
A106: 1085
A107: 1086 | B107: Total | D107: =IF(ROUND(SUM(D89:D106),3)<>ROUND(SUM(E107:J107),3),#VALUE!,SUM(E107:J107)) -> 63010000 | E107: =SUM(E89:E106) -> 53037630.52 | F107: 7403866.126 | G107: 511918.1051 | H107: 105488.9112 | I107: 1951096.338 | J107: 0
A108: 1087
A109: 1088
A110: 1089
A111: 1090
A112: 1091
A113: 1092
A114: 1093

Sheet Avg Cust Unit Costs
B1: WASHINGTON GAS
B2: Meter, Services, Meter Reading & Billing Costs by Schedule at Proposed Rate of Return
C4: Total | D4: Sch 101 | E4: Sch 111 | F4: Sch 121 | G4: Sch 131 | H4: Sch 146
A5: 380 | B5: Services | C5: =SUM(D5:H5) -> 152554000 | D5: =SUMIF(Detail!$B$26:$B$39,'Avg Cust Unit Costs'!$A$5,Detail!BJ26:BJ39) -> 149319667.9 | E5: =SUMIF(Detail!$B$26:$B$39,'Avg Cust Unit Costs'!$A$5,Detail!BK26:BK39) -> 2665825.12 | F5: =SUMIF(Detail!$B$26:$B$39,'Avg Cust Unit Costs'!$A$5,Detail!BL26:BL39) -> 66177.12081 | G5: =SUMIF(Detail!$B$26:$B$39,'Avg Cust Unit Costs'!$A$5,Detail!BM26:BM39) -> 5817.768862 | H5: =SUMIF(Detail!$B$26:$B$39,'Avg Cust Unit Costs'!$A$5,Detail!BN26:BN39) -> 496512.0669 | J5: =C5-Detail!E33 -> 0
A6: 380 | B6: Services Accum. Depr. | C6: =SUM(D6:H6) -> -57597000 | D6: =SUMIF(Detail!$B$73:$B$85,'Avg Cust Unit Costs'!$A$6,Detail!BJ73:BJ85) -> -56375872.89 | E6: =SUMIF(Detail!$B$73:$B$85,'Avg Cust Unit Costs'!$A$6,Detail!BK73:BK85) -> -1006486.421 | F6: =SUMIF(Detail!$B$73:$B$85,'Avg Cust Unit Costs'!$A$6,Detail!BL73:BL85) -> -24985.2749 | G6: =SUMIF(Detail!$B$73:$B$85,'Avg Cust Unit Costs'!$A$6,Detail!BM73:BM85) -> -2196.507684 | H6: =SUMIF(Detail!$B$73:$B$85,'Avg Cust Unit Costs'!$A$6,Detail!BN73:BN85) -> -187458.9032 | J6: =C6-Detail!E79 -> 0
B7: Total Services | C7: =SUM(C5:C6) -> 94957000 | D7: 92943795.03 | E7: 1659338.699 | F7: 41191.84591 | G7: 3621.261179 | H7: 309053.1637
A9: 381 | B9: Meters | C9: =SUM(D9:H9) -> 57482000 | D9: =SUMIF(Detail!$B$26:$B$39,'Avg Cust Unit Costs'!$A$9,Detail!BJ26:BJ39) -> 49283881.1 | E9: =SUMIF(Detail!$B$26:$B$39,'Avg Cust Unit Costs'!$A$9,Detail!BK26:BK39) -> 7070798.435 | F9: =SUMIF(Detail!$B$26:$B$39,'Avg Cust Unit Costs'!$A$9,Detail!BL26:BL39) -> 178659.8353 | G9: =SUMIF(Detail!$B$26:$B$39,'Avg Cust Unit Costs'!$A$9,Detail!BM26:BM39) -> 90936.96199 | H9: =SUMIF(Detail!$B$26:$B$39,'Avg Cust Unit Costs'!$A$9,Detail!BN26:BN39) -> 857723.6684 | J9: =C9-Detail!E34 -> 0
A10: 381 | B10: Meters Accum. Depr. | C10: =SUM(D10:H10) -> -13440000 | D10: =SUMIF(Detail!$B$73:$B$85,'Avg Cust Unit Costs'!$A$10,Detail!BJ73:BJ85) -> -11523178.77 | E10: =SUMIF(Detail!$B$73:$B$85,'Avg Cust Unit Costs'!$A$10,Detail!BK73:BK85) -> -1653239.814 | F10: =SUMIF(Detail!$B$73:$B$85,'Avg Cust Unit Costs'!$A$10,Detail!BL73:BL85) -> -41772.87127 | G10: =SUMIF(Detail!$B$73:$B$85,'Avg Cust Unit Costs'!$A$10,Detail!BM73:BM85) -> -21262.18241 | H10: =SUMIF(Detail!$B$73:$B$85,'Avg Cust Unit Costs'!$A$10,Detail!BN73:BN85) -> -200546.3641 | J10: =C10-Detail!E80 -> 0
B11: Total Meters | C11: =SUM(C9:C10) -> 44042000 | D11: =SUM(D9:D10) -> 37760702.33 | E11: 5417558.622 | F11: 136886.964 | G11: 69674.77958 | H11: 657177.3043
B13: Total Rate Base | C13: =C7+C11 -> 138999000 | D13: =D7+D11 -> 130704497.4 | E13: =E7+E11 -> 7076897.321 | F13: 178078.8099 | G13: 73296.04076 | H13: 966230.468
B15: Return on Rate Base @ 7.76% | C15: =C13*$M$15 -> 10786322.4 | D15: =D13*$I$15 -> 10142669 | E15: =E13*$I$15 -> 549167.2321 | F15: 13818.91565 | G15: 5687.772763 | H15: 74979.48432 | I15: 0.0776 | M15: ='[1]RR SUMMARY'!$N$16 -> 0.0776
B16: Tax Benefit of Interest Expense | C16: =SUM(D16:H16) -> -1367055.165 | D16: =(D13*$I$16)*-0.35 -> -1285478.732 | E16: =(E13*$I$16)*-0.35 -> -69601.28515 | F16: -1751.405096 | G16: -720.8665609 | H16: -9502.876653 | I16: 0.0281 | M16: ='[1]RR SUMMARY'!$P$13 -> 0.0281
B17: Revenue Conversion Factor | C17: =1-SUM(Summary!L73:L77) -> 0.620645 | D17: =$C$17 -> 0.620645 | E17: =$C$17 -> 0.620645 | F17: 0.620645 | G17: 0.620645 | H17: 0.620645
B18: Rate Base Revenue Requirement | C18: =(C15+C16)/C17 -> 15176577.97 | D18: =(D15+D16)/D17 -> 14270944.36 | E18: =(E15+E16)/E17 -> 772689.6163 | F18: 19443.49919 | G18: 8002.813528 | H18: 105497.6801
A21: 380 | B21: Services Depr Exp | C21: =SUM(D21:H21) -> 3678000 | D21: =SUMIF(Detail!$B$170:$B$404,'Avg Cust Unit Costs'!$A$21,Detail!BJ170:BJ404) -> 3600021.885 | E21: =SUMIF(Detail!$B$170:$B$404,'Avg Cust Unit Costs'!$A$21,Detail!BK170:BK404) -> 64271.69914 | F21: =SUMIF(Detail!$B$170:$B$404,'Avg Cust Unit Costs'!$A$21,Detail!BL170:BL404) -> 1595.497006 | G21: =SUMIF(Detail!$B$170:$B$404,'Avg Cust Unit Costs'!$A$21,Detail!BM170:BM404) -> 140.2634731 | H21: =SUMIF(Detail!$B$170:$B$404,'Avg Cust Unit Costs'!$A$21,Detail!BN170:BN404) -> 11970.65552 | J21: =C21-Detail!E369 -> 0
A22: 381 | B22: Meters Depr Exp | C22: 1857000 | D22: =SUMIF(Detail!$B$170:$B$404,'Avg Cust Unit Costs'!$A$22,Detail!BJ170:BJ404) -> 1592153.495 | E22: =SUMIF(Detail!$B$170:$B$404,'Avg Cust Unit Costs'!$A$22,Detail!BK170:BK404) -> 228427.5546 | F22: =SUMIF(Detail!$B$170:$B$404,'Avg Cust Unit Costs'!$A$22,Detail!BL170:BL404) -> 5771.742705 | G22: =SUMIF(Detail!$B$170:$B$404,'Avg Cust Unit Costs'!$A$22,Detail!BM170:BM404) -> 2937.78815 | H22: =SUMIF(Detail!$B$170:$B$404,'Avg Cust Unit Costs'!$A$22,Detail!BN170:BN404) -> 27709.41951 | J22: =C22-Detail!E370 -> 0
A23: 892-MT | B23: Services Exp | C23: 1555000 | D23: =SUMIF(Detail!$B$170:$B$404,'Avg Cust Unit Costs'!$A$23,Detail!BJ170:BJ404) -> 1522032.091 | E23: =SUMIF(Detail!$B$170:$B$404,'Avg Cust Unit Costs'!$A$23,Detail!BK170:BK404) -> 27173.05388 | F23: =SUMIF(Detail!$B$170:$B$404,'Avg Cust Unit Costs'!$A$23,Detail!BL170:BL404) -> 674.5508007 | G23: =SUMIF(Detail!$B$170:$B$404,'Avg Cust Unit Costs'!$A$23,Detail!BM170:BM404) -> 59.3011693 | H23: =SUMIF(Detail!$B$170:$B$404,'Avg Cust Unit Costs'!$A$23,Detail!BN170:BN404) -> 5061.003081 | J23: =C23-Detail!E220 -> 0
A24: 893-MT | B24: Meters Exp | C24: 1377000 | D24: =SUMIF(Detail!$B$170:$B$404,'Avg Cust Unit Costs'!$A$24,Detail!BJ170:BJ404) -> 1180611.396 | E24: =SUMIF(Detail!$B$170:$B$404,'Avg Cust Unit Costs'!$A$24,Detail!BK170:BK404) -> 169383.2756 | F24: =SUMIF(Detail!$B$170:$B$404,'Avg Cust Unit Costs'!$A$24,Detail!BL170:BL404) -> 4279.854445 | G24: =SUMIF(Detail!$B$170:$B$404,'Avg Cust Unit Costs'!$A$24,Detail!BM170:BM404) -> 2178.424492 | H24: =SUMIF(Detail!$B$170:$B$404,'Avg Cust Unit Costs'!$A$24,Detail!BN170:BN404) -> 20547.04936 | J24: =C24-Detail!E221 -> 0
A25: 902-OP | B25: Meter Reading | C25: 1918000 | D25: =SUMIF(Detail!$B$170:$B$404,'Avg Cust Unit Costs'!$A$25,Detail!BJ170:BJ404) -> 1883579.99 | E25: =SUMIF(Detail!$B$170:$B$404,'Avg Cust Unit Costs'!$A$25,Detail!BK170:BK404) -> 33627.81958 | F25: =SUMIF(Detail!$B$170:$B$404,'Avg Cust Unit Costs'!$A$25,Detail!BL170:BL404) -> 278.3371659 | G25: =SUMIF(Detail!$B$170:$B$404,'Avg Cust Unit Costs'!$A$25,Detail!BM170:BM404) -> 24.4692014 | H25: =SUMIF(Detail!$B$170:$B$404,'Avg Cust Unit Costs'!$A$25,Detail!BN170:BN404) -> 489.384028 | J25: =C25-Detail!E228 -> 0
A26: 903-OP | B26: Billing Exp | C26: 4037000 | D26: =SUMIF(Detail!$B$170:$B$404,'Avg Cust Unit Costs'!$A$26,Detail!BJ170:BJ404) -> 3964552.878 | E26: =SUMIF(Detail!$B$170:$B$404,'Avg Cust Unit Costs'!$A$26,Detail!BK170:BK404) -> 70779.72244 | F26: =SUMIF(Detail!$B$170:$B$404,'Avg Cust Unit Costs'!$A$26,Detail!BL170:BL404) -> 585.8431381 | G26: =SUMIF(Detail!$B$170:$B$404,'Avg Cust Unit Costs'!$A$26,Detail!BM170:BM404) -> 51.50269346 | H26: =SUMIF(Detail!$B$170:$B$404,'Avg Cust Unit Costs'!$A$26,Detail!BN170:BN404) -> 1030.053869 | J26: =C26-Detail!E229 -> 0
B27: Total Expenses | C27: =SUM(C21:C26) -> 14422000 | D27: 13742951.73 | E27: 593663.1252 | F27: 13185.82526 | G27: 5391.749179 | H27: 66807.56537
B28: Revenue Conversion Factor | C28: =1-Summary!L73-Summary!L74-Summary!L75 -> 0.954839 | D28: =$C$28 -> 0.954839 | E28: =$C$28 -> 0.954839 | F28: 0.954839 | G28: 0.954839 | H28: 0.954839
B29: Expense Revenue Requirement | C29: =C27/C28 -> 15104117.03 | D29: =D27/D28 -> 14392951.83 | E29: 621741.5975 | F29: 13809.47496 | G29: 5646.762626 | H29: 69967.36138
B31: Total Customer Costs | C31: =C18+C29 -> 30280695 | D31: =D18+D29 -> 28663896.19 | E31: 1394431.214 | F31: 33252.97415 | G31: 13649.57615 | H31: 175465.0415
B33: Total Customers Bills | C33: =SUM(D33:H33) -> 1881222 | D33: =Factors!E43 -> 1847462 | E33: =Factors!F43 -> 32983 | F33: =Factors!G43 -> 273 | G33: =Factors!H43 -> 24 | H33: =Factors!I43 -> 480 | J33: =SUM(Factors!E43:I43)-'Avg Cust Unit Costs'!C33 -> 0
B35: Avg Unit Cost | C35: =C31/C33 -> 16.09629007 | D35: =D31/D33 -> 15.51528323 | E35: 42.27727053 | F35: 121.8057661 | G35: 568.7323398 | H35: 365.5521697
B37: Fixed Costs Per Customer
B39: Total Customer Related Costs | C39: =SUM(D39:H39) -> 56985434.39 | D39: =Summary!D243 -> 53724525.62 | E39: =Summary!E243 -> 2802680.779 | F39: =Summary!F243 -> 70823.59605 | G39: =Summary!G243 -> 30746.67047 | H39: =Summary!H243 -> 356657.7164
B40: Customer Related Unit Cost per Month | C40: =C39/C33 -> 30.29171166 | D40: =D39/D33 -> 29.08017898 | E40: 84.97349481 | F40: 259.4270918 | G40: 1281.111269 | H40: 743.0369092
B42: Other Non-Gas Costs | C42: =Summary!C166-C39 -> 38502565.63 | D42: =Summary!D166-D39 -> 25261162.67 | E42: =Summary!E166-E39 -> 9248132.043 | F42: =Summary!F166-F39 -> 795713.1267 | G42: =Summary!G166-G39 -> 145446.846 | H42: =Summary!H166-H39 -> 3052110.943
B43: Other Non-Gas Unit Cost per Month | C43: =C42/C33 -> 20.46678469 | D43: =D42/D33 -> 13.67344101 | E43: =E42/E33 -> 280.3908693 | F43: =F42/F33 -> 2914.700098 | G43: =G42/G33 -> 6060.285251 | H43: =H42/H33 -> 6358.564466
B45: Total Fixed Unit Cost per Month | C45: =C40+C43 -> 50.75849635 | D45: =D40+D43 -> 42.75361999 | E45: 365.3643641 | F45: 3174.12719 | G45: 7341.39652 | H45: 7101.601375

Sheet Acerno_Cache_XXXXX (hidden)

Sheet PROFORMA
A1: 1 | B1: Proforma | I1: Natural Gas Utility
A2: 2 | B2: Pro Forma Results of Operations
A3: 3 | B3: Company Base Case
A4: 4
A5: 5 | F5: 1 | G5: =F5+0.01 -> 1.01 | H5: =G5+0.01 -> 1.02 | I5: =H5+0.01 -> 1.03 | J5: 2.01 | K5: 2.02 | L5: 2.03 | M5: 2.04 | N5: 2.05 | O5: 2.06 | P5: 2.07 | Q5: 2.08 | R5: 2.09 | S5: 2.1 | T5: 2.11 | U5: 2.12 | V5: 2.13 | W5: 2.14 | X5: 2.15 | Y5: 3.01 | Z5: 3.02 | AA5: =Z5+0.01 -> 3.03 | AB5: 3.04 | AC5: 3.05 | AD5: 3.06 | AE5: 3.07 | AF5: =AE5+0.01 -> 3.08 | AG5: =AF5+0.01 -> 3.09 | AH5: 3.1 | AI5: 3.11 | AJ5: 3.12 | AK5: 3.13 | AL5: 3.14 | AN5: =ColHdr -> (an) | AO5: (ao) | AP5: (ap) | AQ5: (aq)
A6: 6 | E6: Notes | F6: Per Results | G6: Deferred FIT | H6: Deferred Debits | I6: Working | J6: Eliminate | K6: Restate | L6: Uncollectible | M6: Regulatory | N6: Injuries & | O6: FIT/DFIT | P6: Office Space | Q6: Restate | R6: Net Gains/ | S6: Weather Normalization | T6: Eliminate | U6: Misc. Restating | V6: Project | W6: Restating | X6: Restate | Y6: Pro Forma | Z6: Pro Forma | AA6: Pro Forma | AB6: Pro Forma | AC6: Pro Forma | AD6: Pro Forma | AE6: Pro Forma | AF6: Pro Forma Revenue | AG6: Pro Forma | AH6: Pro Forma | AI6: Pro Forma | AJ6: Pro Forma | AK6: Pro Forma | AL6: EOP 2017 | AN6: Net Total | AO6: Total | AP6: check | AQ6: Total
A7: 7 | B7: Account | C7: Description | F7: Report | G7: Rate Base | H7: and Credits | I7: Capital | J7: B & O Taxes | K7: Property Taxes | L7: Expense | M7: Expense | N7: Damages | O7: Expense | P7: Charges to Subs | Q7: Excise Tax | R7: Losses | S7: Gas Cost Adjust | T7: Adder Schedules | U7: Adjustments | V7: Compass Def | W7: Incentives | X7: Debt Int | Y7: Atmospheric Test | Z7: Non-Exec Labor | AA7: Exec Labor | AB7: Empl. Benefits | AC7: Incentive Adj | AD7: Property Tax | AE7: ISIT | AF7: Normalization | AG7: Regulatory Amortization | AH7: 2017 Threshhold Cap Add | AI7: O&M Offsets | AJ7: Director Fees Exp | AK7: Leap Def. Gas Line ext. | AL7: Capital Net Plant Adj | AN7: of All | AQ7: $000's | AR7: Case
A8: 8 | F8: Adj G-ROO | G8: G-DFIT | H8: G-DDC | I8: G-WC | J8: G-EBO | K8: G-RPT | L8: G-UE | M8: G-RE | N8: G-ID | O8: G-FIT | P8: G-OSC | Q8: G-RET | R8: G-NGL | S8: G-WNGC | T8: G-EAS | U8: G-MR | V8: G-CD | W8: G-RI | X8: G-DI | Y8: G-PAT | Z8: G-PLN | AA8: G-PLE | AB8: G-PEB | AC8: G-RI | AD8: G-PPT | AE8: G-PIS | AF8: G-PREV | AG8: G-PRA | AH8: G-PCAP16 | AI8: G-POFF | AJ8: G-PDF | AK8: G-PLEAP | AL8: G-EOPCAP17 | AN8: Adjustments | AQ8: in bold | AR8: Pro Forma
A9: 9 | B9: Operation & Maintenance Expenses | AR9: Total | AS9: Diff
A10: 10 | C10: Purchased Gas Expenses
A11: 11 | B11: 804/805-000 | C11: Gas Purchases | F11: 112604000 | S11: 5274000 | T11: -54419000 | AF11: -63460000 | AN11: =SUM(G11:AL11) -> -112605000 | AO11: =F11+AN11 -> -1000 | AQ11: =ROUND(AO11/1000,0)*1000 -> -1000
A12: 12 | B12: 804-001 | C12: Pipeline Demand Costs | T12: =-F12 -> 0 | AN12: 0 | AO12: 0 | AQ12: 0
A13: 13 | B13: 804-002 | C13: Transport Variable Charges | T13: 0 | AN13: 0 | AO13: 0 | AQ13: 0
A14: 14 | B14: 804-017 | C14: Transaction Fees | T14: 0 | AN14: 0 | AO14: 0 | AQ14: 0
A15: 15 | B15: 804-730 | C15: Gas Costs - Intracompany LDC Gas | T15: 0 | AN15: 0 | AO15: 0 | AQ15: 0
A16: 16 | B16: 804-170 | C16: Gas Transaction Fees | T16: 0 | AN16: 0 | AO16: 0 | AQ16: 0
A17: 17 | B17: 804-600 | C17: Gas Purchases - Financial | T17: 0 | AN17: 0 | AO17: 0 | AQ17: 0
A18: 18 | B18: 804-700 | C18: Off System Gas Purchases - Bookout | T18: 0 | AN18: 0 | AO18: 0 | AQ18: 0
A19: 19 | B19: 804-711 | C19: Off System Bookout Offset | T19: 0 | AN19: 0 | AO19: 0 | AQ19: 0
A20: 20 | B20: 804-010 | C20: Gas Costs - Fixed Hedge | T20: 0 | AN20: 0 | AO20: 0 | AQ20: 0
A21: 21 | B21: 805-110 | C21: Gas Exp - Rate Amortizations | T21: 0 | AN21: 0 | AO21: 0 | AQ21: 0
A22: 22 | B22: 805-120 | C22: Gas Expense - Rate Deferrals | T22: 0 | AN22: 0 | AO22: 0 | AQ22: 0
A23: 23 | B23: 805-980 | C23: Gas Expense - Estimated Amortizations | T23: 0 | AN23: 0 | AO23: 0 | AQ23: 0
A24: 24 | B24: 805-990 | C24: Gas Expense - Estimated Deferrals | T24: 0 | AN24: 0 | AO24: 0 | AQ24: 0
A25: 25 | B25: Open | C25: Open | T25: 0 | AN25: 0 | AO25: 0 | AQ25: 0
A26: 26 | B26: 808-xxx | C26: Net Natural Gas Storage Transactions | F26: =3202000-269000 -> 2933000 | T26: -2932000 | AN26: -2932000 | AO26: 1000 | AQ26: =ROUND(AO26/1000,0)*1000 -> 1000
A27: 27 | B27: 804.xx | C27: Proforma Purchased Gas Expense | AN27: 0 | AO27: 0 | AQ27: 0
A28: 28 | C28: Total Purchased Gas Cost | F28: =SUM(F11:F27) -> 115537000 | G28: 0 | H28: 0 | I28: 0 | J28: =SUM(J11:J27) -> 0 | K28: =SUM(K11:K27) -> 0 | L28: 0 | M28: 0 | N28: 0 | O28: 0 | P28: =SUM(P11:P27) -> 0 | Q28: 0 | R28: 0 | S28: =SUM(S11:S27) -> 5274000 | T28: =SUM(T11:T27) -> -57351000 | U28: 0 | V28: =SUM(V11:V27) -> 0 | W28: 0 | X28: 0 | Z28: 0 | AA28: 0 | AB28: 0 | AC28: 0 | AD28: 0 | AE28: 0 | AF28: =SUM(AF11:AF27) -> -63460000 | AG28: 0 | AH28: 0 | AI28: =SUM(AI11:AI27) -> 0 | AJ28: 0 | AK28: 0 | AL28: =SUM(AL11:AL27) -> 0 | AN28: =SUM(AN11:AN27) -> -115537000 | AO28: 0 | AP28: =IF(ROUND(SUM(F28:AL28),0)=ROUND(AO28,0),"ok","crossfoot error") -> ok | AQ28: =SUM(AQ11:AQ27)/1000 -> 0
A29: 29 | B29: 811-00 | C29: Gas Used for Products Extraction | F29: 0 | AN29: =SUM(G29:AL29) -> 0 | AO29: =F29+AN29 -> 0 | AQ29: =ROUND(AO29/1000,0)*1000 -> 0
A30: 30 | B30: 813-010 | C30: GTI Expenses | F30: 70000 | S30: 6000 | AN30: =SUM(G30:AL30) -> 6000 | AO30: =F30+AN30 -> 76000 | AQ30: =ROUND(AO30/1000,0)*1000 -> 76000
A31: 31 | B31: 813-xxx | C31: Other Gas Expenses | F31: 918000 | Z31: 31000 | AB31: -6000 | AN31: =SUM(G31:AL31) -> 25000 | AO31: =F31+AN31 -> 943000 | AQ31: =ROUND(AO31/1000,0)*1000 -> 943000
A32: 32 | C32: Total Purchased Gas Expenses | F32: =SUM(F28:F31) -> 116525000 | G32: =SUM(G28:G31) -> 0 | H32: 0 | I32: 0 | J32: =SUM(J28:J31) -> 0 | K32: 0 | L32: 0 | M32: 0 | N32: 0 | O32: 0 | P32: =SUM(P28:P31) -> 0 | Q32: 0 | R32: 0 | S32: =SUM(S28:S31) -> 5280000 | T32: =SUM(T28:T31) -> -57351000 | U32: 0 | V32: =SUM(V28:V31) -> 0 | W32: 0 | X32: 0 | Z32: 31000 | AA32: 0 | AB32: -6000 | AC32: 0 | AD32: 0 | AE32: 0 | AF32: =SUM(AF28:AF31) -> -63460000 | AG32: 0 | AH32: 0 | AI32: =SUM(AI28:AI31) -> 0 | AJ32: 0 | AK32: 0 | AL32: =SUM(AL28:AL31) -> 0 | AN32: =SUM(AN28:AN31) -> -115506000 | AO32: 1019000 | AP32: =IF(ROUND(SUM(F32:AL32),0)=ROUND(AO32,0),"ok","crossfoot error") -> ok | AQ32: =AQ28+SUM(AQ29:AQ31)/1000 -> 1019 | AR32: ='[2]ADJ DETAIL INPUT'!$AO$25 -> 1019 | AS32: =AQ32-AR32 -> 0
A33: 33
A34: 34 | C34: Underground Storage Expenses
A35: 35 | B35: 814-OP | C35: Supervision & Engineering | F35: 11000 | AN35: =SUM(G35:AL35) -> 0 | AO35: =F35+AN35 -> 11000 | AQ35: =ROUND(AO35/1000,0)*1000 -> 11000
A36: 36 | B36: 815-OP | C36: Maps & Records | F36: 0 | AN36: 0 | AO36: 0
A37: 37 | B37: 816-OP | C37: Wells Expenses | F37: 0 | AN37: 0 | AO37: 0
A38: 38 | B38: 817-OP | C38: Lines Expenses | F38: 0 | AN38: 0 | AO38: 0
A39: 39 | B39: 818-OP | C39: Compressor Station Expenses | F39: 0 | AN39: 0 | AO39: 0
A40: 40 | B40: 819-OP | C40: Compressor Station Fuel & Power | F40: 0 | AN40: 0 | AO40: 0
A41: 41 | B41: 820-OP | C41: Measuring & Regulator Station | F41: 0 | AN41: 0 | AO41: 0
A42: 42 | B42: 821-OP | C42: Purification Expenses | F42: 0 | AN42: 0 | AO42: 0
A43: 43 | B43: 824-OP | C43: Other Expenses | F43: 450000 | AN43: 0 | AO43: 450000 | AQ43: =ROUND(AO43/1000,0)*1000 -> 450000
A44: 44 | B44: 825-OP | C44: Storage Well Royalties & Rents | F44: 0 | AN44: 0 | AO44: 0
A45: 45 | B45: 826-OP | C45: Rents | F45: 0 | AN45: 0 | AO45: 0
A46: 46
A47: 47 | B47: 830-MT | C47: Supervision & Engineering | F47: 0 | AN47: =SUM(G47:AL47) -> 0 | AO47: =F47+AN47 -> 0
A48: 48 | B48: 831-MT | C48: Maps & Records | F48: 0 | AN48: 0 | AO48: 0
A49: 49 | B49: 832-MT | C49: Wells Expenses | F49: 0 | AN49: 0 | AO49: 0
A50: 50 | B50: 833-MT | C50: Lines Expenses | F50: 0 | AN50: 0 | AO50: 0
A51: 51 | B51: 834-MT | C51: Compressor Station Expenses | F51: 0 | AN51: 0 | AO51: 0
A52: 52 | B52: 835-MT | C52: Compressor Station Fuel & Power | F52: 0 | AN52: 0 | AO52: 0
A53: 53 | B53: 836-MT | C53: Measuring and Regulator Station Expenses | F53: 0 | AN53: 0 | AO53: 0
A54: 54 | B54: 837-MT | C54: Other Equipment | F54: 513000 | AN54: 0 | AO54: 513000 | AQ54: =ROUND(AO54/1000,0)*1000 -> 513000
A55: 55 | C55: Total Underground Storage Expenses | F55: =SUM(F35:F54) -> 974000 | G55: 0 | H55: 0 | I55: 0 | J55: =SUM(J35:J54) -> 0 | K55: 0 | L55: 0 | M55: 0 | N55: 0 | O55: 0 | P55: =SUM(P35:P54) -> 0 | Q55: 0 | R55: 0 | S55: =SUM(S35:S54) -> 0 | T55: =SUM(T35:T54) -> 0 | U55: 0 | V55: =SUM(V35:V54) -> 0 | W55: 0 | X55: 0 | Z55: 0 | AA55: 0 | AB55: 0 | AC55: 0 | AD55: 0 | AE55: 0 | AF55: =SUM(AF35:AF54) -> 0 | AG55: 0 | AH55: 0 | AI55: =SUM(AI35:AI54) -> 0 | AJ55: 0 | AK55: 0 | AL55: =SUM(AL35:AL54) -> 0 | AN55: =SUM(AN35:AN54) -> 0 | AO55: 974000 | AP55: =IF(ROUND(SUM(F55:AL55),0)=ROUND(AO55,0),"ok","crossfoot error") -> ok | AQ55: =SUM(AQ35:AQ54)/1000 -> 974 | AR55: ='[2]ADJ DETAIL INPUT'!$AO$28 -> 974 | AS55: =AQ55-AR55 -> 0
A56: 56
A57: 57
A58: 59
A59: 60
A60: 61 | B60: =$B$1 -> Proforma | I60: =$I$1 -> Natural Gas Utility | AB60: Natural Gas Utility
A61: 62 | B61: =$B$2 -> Pro Forma Results of Operations | E61: Operation and Maintenance Expenses | O61: =$E61 -> Operation and Maintenance Expenses | AB61: =$E61 -> Operation and Maintenance Expenses
A62: 63 | B62: =$B$3 -> Company Base Case
A63: 64
A64: 65 | F64: =F5 -> 1 | G64: 1.01 | H64: 1.02 | I64: 1.03 | J64: =J5 -> 2.01 | K64: 2.02 | L64: 2.03 | M64: 2.04 | N64: 2.05 | O64: 2.06 | P64: =P5 -> 2.07 | Q64: 2.08 | R64: 2.09 | S64: =S5 -> 2.1 | T64: 2.11 | U64: 2.12 | V64: =V5 -> 2.13 | W64: 2.14 | X64: 2.15 | Z64: 3.02 | AA64: 3.03 | AB64: 3.04 | AC64: 3.05 | AD64: 3.06 | AE64: =AE5 -> 3.07 | AF64: =AF5 -> 3.08 | AG64: 3.09 | AH64: 3.1 | AI64: =AI5 -> 3.11 | AJ64: 3.12 | AK64: 3.13 | AL64: =AL5 -> 3.14 | AN64: =AN$5 -> (an) | AO64: (ao) | AP64: (ap) | AQ64: (aq)
A65: 66 | B65: =IF(ISBLANK(B$6),"",B$6) ->  | C65: =IF(ISBLANK(C$6),"",C$6) ->  | D65: =IF(ISBLANK(D$6),"",D$6) ->  | E65: =IF(ISBLANK(E$6),"",E$6) -> Notes | F65: Balance | G65: =G6 -> Deferred FIT | H65: Deferred Debits | I65: Working | J65: =J6 -> Eliminate | K65: Restate | L65: Uncollectible | M65: Regulatory | N65: Injuries & | O65: FIT/DFIT | P65: =P6 -> Office Space | Q65: Restate | R65: Net Gains/ | S65: Weather Normalization | T65: Eliminate | U65: Misc. Restating | V65: =V6 -> Project | W65: Restating | X65: Restate | Z65: Pro Forma | AA65: Pro Forma | AB65: Pro Forma | AC65: Pro Forma | AD65: Pro Forma | AE65: =AE6 -> Pro Forma | AF65: =AF6 -> Pro Forma Revenue | AG65: Pro Forma | AH65: Pro Forma | AI65: =AI6 -> Pro Forma | AJ65: Pro Forma | AK65: Pro Forma | AL65: =AL6 -> EOP 2017 | AN65: =IF(ISBLANK(AN$6),"",AN$6) -> Net Total | AO65: Total | AP65: check | AQ65: Total
A66: 67 | B66: =IF(ISBLANK(B$7),"",B$7) -> Account | C66: =IF(ISBLANK(C$7),"",C$7) -> Description | E66: =IF(ISBLANK(E$7),"",E$7) ->  | F66: per Books | G66: =G7 -> Rate Base | H66: and Credits | I66: Capital | J66: =J7 -> B & O Taxes | K66: Property Taxes | L66: Expense | M66: Expense | N66: Damages | O66: Expense | P66: =P7 -> Charges to Subs | Q66: Excise Tax | R66: Losses | S66: Gas Cost Adjust | T66: Adder Schedules | U66: Adjustments | V66: =V7 -> Compass Def | W66: Incentives | X66: Debt Int | Z66: Non-Exec Labor | AA66: Exec Labor | AB66: Empl. Benefits | AC66: Incentive Adj | AD66: Property Tax | AE66: =AE7 -> ISIT | AF66: =AF7 -> Normalization | AG66: Regulatory Amortization | AH66: 2017 Threshhold Cap Add | AI66: =AI7 -> O&M Offsets | AJ66: Director Fees Exp | AK66: Leap Def. Gas Line ext. | AL66: =AL7 -> Capital Net Plant Adj | AN66: =IF(ISBLANK(AN$7),"",AN$7) -> of All | AQ66: $000's
A67: 68 | B67: =IF(ISBLANK(B$8),"",B$8) ->  | C67: =IF(ISBLANK(C$8),"",C$8) ->  | D67: =IF(ISBLANK(D$8),"",D$8) ->  | E67: =IF(ISBLANK(E$8),"",E$8) ->  | G67: =G8 -> G-DFIT | H67: G-DDC | I67: G-WC | J67: =J8 -> G-EBO | K67: G-RPT | L67: G-UE | M67: G-RE | N67: G-ID | O67: G-FIT | P67: =P8 -> G-OSC | Q67: G-RET | R67: G-NGL | S67: G-WNGC | T67: G-EAS | U67: G-MR | V67: =V8 -> G-CD | W67: G-RI | X67: G-DI | Z67: G-PLN | AA67: G-PLE | AB67: G-PEB | AC67: G-RI | AD67: G-PPT | AE67: =AE8 -> G-PIS | AF67: =AF8 -> G-PREV | AG67: G-PRA | AH67: G-PCAP16 | AI67: =AI8 -> G-POFF | AJ67: G-PDF | AK67: G-PLEAP | AL67: =AL8 -> G-EOPCAP17 | AN67: =IF(ISBLANK(AN$8),"",AN$8) -> Adjustments | AQ67: in bold
A68: 69 | C68: Distribution Expenses
A69: 70 | C69: Operation Expense
A70: 71 | B70: 870-OP | C70: Supervision & Engineering | F70: 1174000 | Z70: 45000 | AB70: =ROUND(F70/($F$81+$F$92)*-76000,-3) -> -7000 | AN70: =SUM(G70:AL70) -> 38000 | AO70: =F70+AN70 -> 1212000 | AQ70: =ROUND(AO70/1000,0)*1000 -> 1212000
A71: 72 | B71: 871-OP | C71: Distribution Load Dispatching | F71: 0 | AB71: =ROUND(F71/($F$81+$F$92)*-76000,-3) -> 0 | AN71: 0 | AO71: 0 | AQ71: 0
A72: 73 | B72: 872-OP | C72: Compressor Station Labor & Expenses | F72: 0 | AB72: 0 | AN72: 0 | AO72: 0 | AQ72: 0
A73: 74 | B73: 874-OP | C73: Mains & Services Expense | F73: 3100000 | Z73: 84000 | AB73: =ROUND(F73/($F$81+$F$92)*-76000,-3)-1000 -> -21000 | AN73: 63000 | AO73: 3163000 | AQ73: 3163000
A74: 75 | B74: 875-OP | C74: Measuring & Regulating Stations-General | F74: 59000 | Z74: 2000 | AB74: 0 | AN74: 2000 | AO74: 61000 | AQ74: 61000
A75: 76 | B75: 876-OP | C75: Measuring & Regulating Stations-Industrial | F75: 3000 | Z75: 0 | AB75: 0 | AN75: 0 | AO75: 3000 | AQ75: 3000
A76: 77 | B76: 877-OP | C76: Measuring & Regulating Stations-City Gate | F76: 68000 | Z76: 2000 | AB76: 0 | AN76: 2000 | AO76: 70000 | AQ76: 70000
A77: 78 | B77: 878-OP | C77: Meters & House Regulators Expenses | F77: 395000 | Y77: 348000 | Z77: 2000 | AB77: -2000 | AN77: 348000 | AO77: 743000 | AQ77: 743000
A78: 79 | B78: 879-OP | C78: Customer Installations | F78: 1244000 | Z78: 50000 | AB78: -8000 | AN78: 42000 | AO78: 1286000 | AQ78: 1286000
A79: 80 | B79: 880-OP | C79: Other Distribution Expense | F79: 1689000 | U79: 1000 | Z79: 60000 | AB79: -11000 | AN79: 50000 | AO79: 1739000 | AQ79: 1739000
A80: 81 | B80: 881-OP | C80: Rents | F80: 28000 | Z80: 0 | AB80: 0 | AN80: 0 | AO80: 28000 | AQ80: 28000
A81: 82 | C81: Total Distribution Operation Expense | F81: =SUM(F70:F80) -> 7760000 | G81: 0 | H81: 0 | I81: 0 | J81: =SUM(J70:J80) -> 0 | K81: 0 | L81: 0 | M81: 0 | N81: 0 | O81: 0 | P81: =SUM(P70:P80) -> 0 | Q81: 0 | R81: 0 | S81: =SUM(S70:S80) -> 0 | T81: =SUM(T70:T80) -> 0 | U81: 1000 | V81: =SUM(V70:V80) -> 0 | W81: 0 | X81: 0 | Y81: 348000 | Z81: 245000 | AA81: 0 | AB81: =SUM(AB70:AB80) -> -49000 | AC81: 0 | AD81: 0 | AE81: 0 | AF81: =SUM(AF70:AF80) -> 0 | AG81: 0 | AH81: 0 | AI81: =SUM(AI70:AI80) -> 0 | AJ81: 0 | AK81: 0 | AL81: =SUM(AL70:AL80) -> 0 | AN81: =SUM(AN70:AN80) -> 545000 | AO81: 8305000 | AP81: =IF(ROUND(SUM(F81:AL81),0)=ROUND(AO81,0),"ok","crossfoot error") -> ok
A82: 83 | C82: Maintenance Expense
A83: 84 | B83: 885-MT | C83: Supervision & Engineering | F83: 81000 | Z83: 3000 | AB83: =ROUND(F83/($F$81+$F$92)*-76000,-3) -> -1000 | AN83: =SUM(G83:AL83) -> 2000 | AO83: =F83+AN83 -> 83000 | AQ83: =ROUND(AO83/1000,0)*1000 -> 83000
A84: 85 | B84: 887-MT | C84: Mains | F84: 793000 | Z84: 22000 | AB84: =ROUND(F84/($F$81+$F$92)*-76000,-3) -> -5000 | AN84: 17000 | AO84: 810000 | AQ84: 810000
A85: 86 | B85: 888-MT | C85: Compressor Station Equipment | F85: 0 | Z85: 0 | AB85: 0 | AN85: 0 | AO85: 0 | AQ85: 0
A86: 87 | B86: 889-MT | C86: Measuring & Regulating Stations-General | F86: 163000 | Z86: 5000 | AB86: -1000 | AN86: 4000 | AO86: 167000 | AQ86: 167000
A87: 88 | B87: 890-MT | C87: Measuring & Regulating Stations-Industrial | F87: 203000 | Z87: 3000 | AB87: -1000 | AN87: 2000 | AO87: 205000 | AQ87: 205000
A88: 89 | B88: 891-MT | C88: Measuring & Regulating Stations-City Gate | F88: 45000 | Z88: 1000 | AB88: 0 | AN88: 1000 | AO88: 46000 | AQ88: 46000
A89: 90 | B89: 892-MT | C89: Services | F89: 1524000 | Z89: 42000 | AB89: -10000 | AN89: 32000 | AO89: 1556000 | AQ89: =ROUND(AO89/1000,0)*1000-1000 -> 1555000
A90: 91 | B90: 893-MT | C90: Meters & House Regulators | F90: 1339000 | Z90: 46000 | AB90: -8000 | AN90: 38000 | AO90: 1377000 | AQ90: 1377000
A91: 92 | B91: 894-MT | C91: Other Equipment | F91: 142000 | Z91: 4000 | AB91: -1000 | AN91: 3000 | AO91: 145000 | AQ91: 145000
A92: 93 | C92: Total Distribution Maintenance Expense | F92: =SUM(F83:F87)+ SUM(F88:F91) -> 4290000 | G92: 0 | H92: 0 | I92: 0 | J92: =SUM(J83:J87)+ SUM(J88:J91) -> 0 | K92: 0 | L92: 0 | M92: 0 | N92: 0 | O92: 0 | P92: =SUM(P83:P87)+ SUM(P88:P91) -> 0 | Q92: 0 | R92: 0 | S92: =SUM(S83:S87)+ SUM(S88:S91) -> 0 | T92: =SUM(T83:T87)+ SUM(T88:T91) -> 0 | U92: 0 | V92: =SUM(V83:V87)+ SUM(V88:V91) -> 0 | W92: 0 | X92: 0 | Y92: 0 | Z92: =SUM(Z83:Z91) -> 126000 | AA92: =SUM(AA83:AA87)+ SUM(AA88:AA91) -> 0 | AB92: -27000 | AC92: 0 | AD92: 0 | AE92: 0 | AF92: =SUM(AF83:AF87)+ SUM(AF88:AF91) -> 0 | AG92: 0 | AH92: 0 | AI92: =SUM(AI83:AI87)+ SUM(AI88:AI91) -> 0 | AJ92: 0 | AK92: 0 | AL92: =SUM(AL83:AL87)+ SUM(AL88:AL91) -> 0 | AN92: =SUM(AN83:AN87)+ SUM(AN88:AN91) -> 99000 | AO92: 4389000 | AP92: =IF(ROUND(SUM(F92:AL92),0)=ROUND(AO92,0),"ok","crossfoot error") -> ok
A93: 94
A94: 95 | C94: Total Distribution Expense | F94: =F81+F92 -> 12050000 | G94: =G81+G92 -> 0 | H94: 0 | I94: 0 | J94: =J81+J92 -> 0 | K94: 0 | L94: 0 | M94: 0 | N94: 0 | O94: 0 | P94: =P81+P92 -> 0 | Q94: 0 | R94: 0 | S94: =S81+S92 -> 0 | T94: =T81+T92 -> 0 | U94: 1000 | V94: =V81+V92 -> 0 | W94: 0 | X94: 0 | Y94: 348000 | Z94: 371000 | AA94: 0 | AB94: -76000 | AC94: 0 | AD94: 0 | AE94: 0 | AF94: =AF81+AF92 -> 0 | AG94: 0 | AH94: 0 | AI94: =AI81+AI92 -> 0 | AJ94: 0 | AK94: 0 | AL94: =AL81+AL92 -> 0 | AN94: =AN81+AN92 -> 644000 | AO94: 12694000 | AP94: =IF(ROUND(SUM(F94:AL94),0)=ROUND(AO94,0),"ok","crossfoot error") -> ok | AQ94: =SUM(AQ70:AQ91)/1000 -> 12693 | AR94: ='[2]ADJ DETAIL INPUT'!$AO$34 -> 12693 | AS94: =AQ94-AR94 -> 0
A95: 96
A96: 97 | C96: Customer Accounting Expenses
A97: 98 | B97: 901-OP | C97: Supervision | F97: 141000 | Z97: 5000 | AB97: =ROUND((F97/$F$102)*-41000,-3) -> -1000 | AN97: =SUM(G97:AL97) -> 4000 | AO97: =F97+AN97 -> 145000 | AQ97: =ROUND(AO97/1000,0)*1000 -> 145000
A98: 99 | B98: 902-OP | C98: Meter Reading | F98: 1861000 | Z98: 67000 | AB98: =ROUND((F98/$F$102)*-41000,-3) -> -10000 | AN98: =SUM(G98:AL98) -> 57000 | AO98: =F98+AN98 -> 1918000 | AQ98: =ROUND(AO98/1000,0)*1000 -> 1918000
A99: 100 | B99: 903-OP | C99: Customer Records & Collection | F99: 3931000 | Z99: 128000 | AB99: -22000 | AN99: =SUM(G99:AL99) -> 106000 | AO99: =F99+AN99 -> 4037000 | AQ99: =ROUND(AO99/1000,0)*1000 -> 4037000
A100: 101 | B100: 904-OP | C100: Uncollectible Accounts | F100: 1317000 | L100: -590000 | S100: 54000 | T100: -6000 | AB100: -7000 | AF100: -322000 | AN100: =SUM(G100:AL100) -> -871000 | AO100: =F100+AN100 -> 446000 | AQ100: =ROUND(AO100/1000,0)*1000 -> 446000
A101: 102 | B101: 905-OP | C101: Misc Customer Accounts Expenses | F101: 102000 | H101: 2000 | Z101: 3000 | AB101: -1000 | AN101: =SUM(G101:AL101) -> 4000 | AO101: =F101+AN101 -> 106000 | AQ101: =ROUND(AO101/1000,0)*1000 -> 106000
A102: 103 | C102: Total Customer Accounting Expenses | F102: =SUM(F97:F101) -> 7352000 | G102: 0 | H102: 2000 | I102: 0 | J102: =SUM(J97:J101) -> 0 | K102: 0 | L102: -590000 | M102: 0 | N102: 0 | O102: 0 | P102: =SUM(P97:P101) -> 0 | Q102: 0 | R102: 0 | S102: =SUM(S97:S101) -> 54000 | T102: =SUM(T97:T101) -> -6000 | U102: 0 | V102: =SUM(V97:V101) -> 0 | W102: 0 | X102: 0 | Y102: 0 | Z102: 203000 | AA102: 0 | AB102: -41000 | AC102: 0 | AD102: 0 | AE102: 0 | AF102: =SUM(AF97:AF101) -> -322000 | AG102: 0 | AH102: 0 | AI102: =SUM(AI97:AI101) -> 0 | AJ102: 0 | AK102: 0 | AL102: =SUM(AL97:AL101) -> 0 | AN102: =SUM(AN97:AN101) -> -700000 | AO102: 6652000 | AP102: =IF(ROUND(SUM(F102:AL102),0)=ROUND(AO102,0),"ok","crossfoot error") -> ok | AQ102: =SUM(AQ97:AQ101)/1000 -> 6652 | AR102: ='[2]ADJ DETAIL INPUT'!$AO$39 -> 6652 | AS102: =AQ102-AR102 -> 0
A103: 104
A104: 105 | C104: Customer Information Expense
A105: 106 | B105: 907-OP | C105: Supervision | F105: 0 | AN105: =SUM(G105:AL105) -> 0 | AO105: =F105+AN105 -> 0 | AQ105: =ROUND(AO105/1000,0)*1000 -> 0
A106: 107 | B106: 908-OP | C106: Customer Assistance Expenses | F106: 7041000 | S106: 0 | T106: -6632000 | Z106: 11000 | AB106: =ROUND((F106/$F$109)*-4000,-3) -> -4000 | AN106: =SUM(G106:AL106) -> -6625000 | AO106: =F106+AN106 -> 416000 | AQ106: =ROUND(AO106/1000,0)*1000 -> 416000
A107: 108 | B107: 909-OP | C107: Advertising | F107: 457000 | Z107: 6000 | AB107: =ROUND((F107/$F$109)*-4000,-3) -> 0 | AN107: =SUM(G107:AL107) -> 6000 | AO107: =F107+AN107 -> 463000 | AQ107: =ROUND(AO107/1000,0)*1000-1000 -> 462000
A108: 109 | B108: 910-OP | C108: Misc Customer Service & Info Expense | F108: 98000 | Z108: 1000 | AB108: 0 | AN108: =SUM(G108:AL108) -> 1000 | AO108: =F108+AN108 -> 99000 | AQ108: =ROUND(AO108/1000,0)*1000 -> 99000
A109: 110 | C109: Total Customer Information Expense | F109: =SUM(F105:F108) -> 7596000 | G109: 0 | H109: 0 | I109: 0 | J109: =SUM(J105:J108) -> 0 | K109: 0 | L109: 0 | M109: 0 | N109: 0 | O109: 0 | P109: =SUM(P105:P108) -> 0 | Q109: 0 | R109: 0 | S109: =SUM(S105:S108) -> 0 | T109: =SUM(T105:T108) -> -6632000 | U109: 0 | V109: =SUM(V105:V108) -> 0 | W109: 0 | X109: 0 | Y109: 0 | Z109: 18000 | AA109: 0 | AB109: -4000 | AC109: 0 | AD109: 0 | AE109: 0 | AF109: =SUM(AF105:AF108) -> 0 | AG109: 0 | AH109: 0 | AI109: =SUM(AI105:AI108) -> 0 | AJ109: 0 | AK109: 0 | AL109: =SUM(AL105:AL108) -> 0 | AN109: =SUM(AN105:AN108) -> -6618000 | AO109: 978000 | AP109: =IF(ROUND(SUM(F109:AL109),0)=ROUND(AO109,0),"ok","crossfoot error") -> ok | AQ109: =SUM(AQ105:AQ108)/1000 -> 977 | AR109: ='[2]ADJ DETAIL INPUT'!$AO$40 -> 977 | AS109: =AQ109-AR109 -> 0
A110: 111
A111: 112 | C111: Sales Expenses
A112: 113 | B112: 911-OP | C112: Supervision | F112: 0 | AN112: =SUM(G112:AL112)+501 -> 501 | AO112: =F112+AN112 -> 501 | AQ112: =ROUND(AO112/1000,0)*1000 -> 1000
A113: 114 | B113: 912-OP | C113: Demonstrating & Selling Expenses | F113: 0 | AN113: =SUM(G113:AL113) -> 0 | AO113: =F113+AN113 -> 0 | AQ113: =ROUND(AO113/1000,0)*1000 -> 0
A114: 115 | B114: 913-OP | C114: Advertising Expenses | F114: 0 | AN114: =SUM(G114:AL114) -> 0 | AO114: =F114+AN114 -> 0 | AQ114: =ROUND(AO114/1000,0)*1000 -> 0
A115: 116 | B115: 916-OP | C115: Misc Sales Expenses | F115: 0 | AN115: =SUM(G115:AL115) -> 0 | AO115: =F115+AN115 -> 0 | AQ115: =ROUND(AO115/1000,0)*1000 -> 0
A116: 117 | C116: Total Sales Expenses | F116: =SUM(F112:F115) -> 0 | G116: 0 | H116: 0 | I116: 0 | J116: =SUM(J112:J115) -> 0 | K116: 0 | L116: 0 | M116: 0 | N116: 0 | O116: 0 | P116: =SUM(P112:P115) -> 0 | Q116: 0 | R116: 0 | S116: =SUM(S112:S115) -> 0 | T116: =SUM(T112:T115) -> 0 | U116: 0 | V116: =SUM(V112:V115) -> 0 | W116: 0 | X116: 0 | Y116: 0 | Z116: 0 | AA116: 0 | AB116: 0 | AC116: 0 | AD116: 0 | AE116: 0 | AF116: =SUM(AF112:AF115) -> 0 | AG116: 0 | AH116: 0 | AI116: =SUM(AI112:AI115) -> 0 | AJ116: 0 | AK116: 0 | AL116: =SUM(AL112:AL115) -> 0 | AN116: =SUM(AN112:AN115) -> 501 | AO116: 501 | AP116: =IF(ROUND(SUM(F116:AL116),0)=ROUND(AO116,0),"ok","crossfoot error") -> crossfoot error | AQ116: =SUM(AQ112:AQ115)/1000 -> 1 | AR116: ='[2]ADJ DETAIL INPUT'!$AO$41 -> 0 | AS116: =AQ116-AR116 -> 1
A117: 118
A118: 119 | C118: Subtotal Expenses | F118: =F116+F109+F102+F94+F55+F32 -> 144497000 | G118: 0 | H118: 2000 | I118: 0 | J118: =J116+J109+J102+J94+J55+J32 -> 0 | K118: 0 | L118: -590000 | M118: 0 | N118: 0 | O118: 0 | P118: =P116+P109+P102+P94+P55+P32 -> 0 | Q118: 0 | R118: 0 | S118: =S116+S109+S102+S94+S55+S32 -> 5334000 | T118: =T116+T109+T102+T94+T55+T32 -> -63989000 | U118: 1000 | V118: =V116+V109+V102+V94+V55+V32 -> 0 | W118: 0 | X118: 0 | Y118: 348000 | Z118: 623000 | AA118: 0 | AB118: -127000 | AC118: 0 | AD118: 0 | AE118: 0 | AF118: =AF116+AF109+AF102+AF94+AF55+AF32 -> -63782000 | AG118: 0 | AH118: 0 | AI118: =AI116+AI109+AI102+AI94+AI55+AI32 -> 0 | AJ118: 0 | AK118: 0 | AL118: =AL116+AL109+AL102+AL94+AL55+AL32 -> 0 | AN118: =AN116+AN109+AN102+AN94+AN55+AN32 -> -122179499 | AO118: 22317501 | AP118: =IF(ROUND(SUM(F118:AL118),0)=ROUND(AO118,0),"ok","crossfoot error") -> crossfoot error | AQ118: =AQ116+AQ109+AQ102+AQ94+AQ55+AQ32 -> 22316
A119: 120 | B119: =$B$1 -> Proforma | I119: =$I$1 -> Natural Gas Utility | AB119: Natural Gas Utility
A120: 121 | B120: =$B$2 -> Pro Forma Results of Operations | E120: Admin, & General, Other Taxes & Depreciation Expense | O120: =E120 -> Admin, & General, Other Taxes & Depreciation Expense | AB120: =O120 -> Admin, & General, Other Taxes & Depreciation Expense
A121: 122 | B121: =$B$3 -> Company Base Case
A122: 123
A123: 124 | F123: =F5 -> 1 | G123: 1.01 | H123: 1.02 | I123: 1.03 | J123: =J5 -> 2.01 | K123: 2.02 | L123: 2.03 | M123: 2.04 | N123: 2.05 | O123: 2.06 | P123: =P5 -> 2.07 | Q123: 2.08 | R123: 2.09 | S123: =S5 -> 2.1 | T123: =T5 -> 2.11 | U123: 2.12 | V123: =V5 -> 2.13 | W123: 2.14 | X123: 2.15 | Z123: 3.02 | AA123: 3.03 | AB123: 3.04 | AC123: 3.05 | AD123: 3.06 | AE123: =AE5 -> 3.07 | AF123: =AF5 -> 3.08 | AG123: 3.09 | AH123: 3.1 | AI123: =AI5 -> 3.11 | AJ123: 3.12 | AK123: 3.13 | AL123: =AL5 -> 3.14 | AN123: =AN$5 -> (an) | AO123: (ao) | AP123: (ap) | AQ123: (aq)
A124: 125 | B124: =IF(ISBLANK(B$6),"",B$6) ->  | C124: =IF(ISBLANK(C$6),"",C$6) ->  | D124: =IF(ISBLANK(D$6),"",D$6) ->  | E124: =IF(ISBLANK(E$6),"",E$6) -> Notes | F124: Balance | G124: =IF(ISBLANK(G$6),"",G$6) -> Deferred FIT | H124: Deferred Debits | I124: Working | J124: Eliminate | K124: Restate | L124: Uncollectible | M124: Regulatory | N124: Injuries & | O124: FIT/DFIT | P124: Office Space | Q124: Restate | R124: Net Gains/ | S124: =IF(ISBLANK(S$6),"",S$6) -> Weather Normalization | T124: =IF(ISBLANK(T$6),"",T$6) -> Eliminate | U124: Misc. Restating | V124: Project | W124: Restating | X124: Restate | Z124: Pro Forma | AA124: Pro Forma | AB124: Pro Forma | AC124: Pro Forma | AD124: Pro Forma | AE124: Pro Forma | AF124: Pro Forma Revenue | AG124: Pro Forma | AH124: Pro Forma | AI124: Pro Forma | AJ124: Pro Forma | AK124: Pro Forma | AL124: EOP 2017 | AN124: =IF(ISBLANK(AN$6),"",AN$6) -> Net Total | AO124: Total | AP124: check | AQ124: Total
A125: 126 | B125: =IF(ISBLANK(B$7),"",B$7) -> Account | C125: =IF(ISBLANK(C$7),"",C$7) -> Description | E125: =IF(ISBLANK(E$7),"",E$7) ->  | F125: per Books | G125: =IF(ISBLANK(G$7),"",G$7) -> Rate Base | H125: and Credits | I125: Capital | J125: B & O Taxes | K125: Property Taxes | L125: Expense | M125: Expense | N125: Damages | O125: Expense | P125: Charges to Subs | Q125: Excise Tax | R125: Losses | S125: =IF(ISBLANK(S$7),"",S$7) -> Gas Cost Adjust | T125: =IF(ISBLANK(T$7),"",T$7) -> Adder Schedules | U125: Adjustments | V125: Compass Def | W125: Incentives | X125: Debt Int | Z125: Non-Exec Labor | AA125: Exec Labor | AB125: Empl. Benefits | AC125: Incentive Adj | AD125: Property Tax | AE125: ISIT | AF125: Normalization | AG125: Regulatory Amortization | AH125: 2017 Threshhold Cap Add | AI125: O&M Offsets | AJ125: Director Fees Exp | AK125: Leap Def. Gas Line ext. | AL125: Capital Net Plant Adj | AN125: =IF(ISBLANK(AN$7),"",AN$7) -> of All | AQ125: $000's
A126: 127 | B126: =IF(ISBLANK(B$8),"",B$8) ->  | C126: =IF(ISBLANK(C$8),"",C$8) ->  | D126: =IF(ISBLANK(D$8),"",D$8) ->  | E126: =IF(ISBLANK(E$8),"",E$8) ->  | G126: =IF(ISBLANK(G$8),"",G$8) -> G-DFIT | H126: G-DDC | I126: G-WC | J126: G-EBO | K126: G-RPT | L126: G-UE | M126: G-RE | N126: G-ID | O126: G-FIT | P126: G-OSC | Q126: G-RET | R126: G-NGL | S126: =IF(ISBLANK(S$8),"",S$8) -> G-WNGC | T126: =IF(ISBLANK(T$8),"",T$8) -> G-EAS | U126: G-MR | V126: G-CD | W126: G-RI | X126: G-DI | Z126: G-PLN | AA126: G-PLE | AB126: G-PEB | AC126: G-RI | AD126: G-PPT | AE126: G-PIS | AF126: G-PREV | AG126: G-PRA | AH126: G-PCAP16 | AI126: G-POFF | AJ126: G-PDF | AK126: G-PLEAP | AL126: G-EOPCAP17 | AN126: =IF(ISBLANK(AN$8),"",AN$8) -> Adjustments | AQ126: in bold
A127: 128 | C127: Administrative & General Expenses | AP127: =AP$9 -> 0
A128: 129 | B128: 920-OP | C128: Admin. & General Salaries | F128: 6393000 | U128: -195000 | W128: -181000 | Z128: 206000 | AA128: -10000 | AC128: 34000 | AN128: =SUM(G128:AL128) -> -146000 | AO128: =F128+AN128 -> 6247000 | AQ128: =ROUND(AO128/1000,0)*1000-1000 -> 6246000
A129: 130 | B129: 921-OP | C129: Office Supplies & Expenses | F129: 830000 | P129: -9000 | Z129: 3000 | AN129: -6000 | AO129: 824000 | AQ129: =ROUND(AO129/1000,0)*1000 -> 824000
A130: 131 | B130: 922-OP | C130: Admin. Expenses Transferred - Credit | F130: -14000 | AN130: 0 | AO130: -14000 | AQ130: -14000
A131: 132 | B131: 923-OP | C131: Outside Services Employed | F131: 1449000 | U131: -2000 | AN131: -2000 | AO131: 1447000 | AQ131: 1447000
A132: 133 | B132: 924-OP | C132: Property Insurance Premium | F132: 223000 | AN132: 0 | AO132: 223000 | AQ132: 223000
A133: 134 | B133: 925-OP | C133: Injuries & Damages | F133: 628000 | N133: 76000 | U133: -10000 | Z133: 5000 | AN133: 71000 | AO133: 699000 | AQ133: 699000
A134: 135 | B134: 926-OP | C134: Employee Pension & Benefits | F134: 304000 | AB134: -49000 | AN134: -49000 | AO134: 255000 | AQ134: 255000
A135: 136 | B135: 927-OP | C135: Franchise Requirements | F135: 0 | AN135: 0 | AO135: 0 | AQ135: 0
A136: 137 | B136: 928-OP | C136: Regulatory Commission Expenses | F136: 829000 | M136: -3000 | S136: 22000 | T136: -2000 | U136: -1000 | Z136: 17000 | AF136: -133000 | AN136: -100000 | AO136: =F136+AN136 -> 729000 | AQ136: 729000
A137: 138 | B137: 930-OP | C137: Miscellaneous & General Expense | F137: 821000 | U137: -107000 | Z137: 4000 | AE137: 201000 | AJ137: 108000 | AN137: 206000 | AO137: 1027000 | AQ137: =ROUND(AO137/1000,0)*1000 -> 1027000
A138: 139 | B138: 931-OP | C138: Rents | F138: 211000 | AN138: 0 | AO138: 211000 | AQ138: 211000
A139: 140 | B139: 935-MT | C139: Maintenance of General Plant | F139: 2088000 | U139: -1000 | Z139: 16000 | AI139: -32000 | AN139: -17000 | AO139: 2071000 | AQ139: 2071000
A140: 141 | C140: Total Administrative & General Expenses | F140: =SUM(F128:F139) -> 13762000 | G140: 0 | H140: 0 | I140: 0 | J140: =SUM(J128:J139) -> 0 | K140: 0 | L140: 0 | M140: -3000 | N140: 76000 | O140: 0 | P140: =SUM(P128:P139) -> -9000 | Q140: 0 | R140: 0 | S140: =SUM(S128:S139) -> 22000 | T140: =SUM(T128:T139) -> -2000 | U140: -316000 | V140: =SUM(V128:V139) -> 0 | W140: -181000 | X140: 0 | Y140: 0 | Z140: 251000 | AA140: -10000 | AB140: -49000 | AC140: 34000 | AD140: 0 | AE140: 201000 | AF140: =SUM(AF128:AF139) -> -133000 | AG140: 0 | AH140: 0 | AI140: =SUM(AI128:AI139) -> -32000 | AJ140: 108000 | AK140: 0 | AL140: =SUM(AL128:AL139) -> 0 | AN140: =SUM(AN128:AN139) -> -43000 | AO140: 13719000 | AP140: =IF(ROUND(SUM(F140:AL140),0)=ROUND(AO140,0),"ok","crossfoot error") -> ok | AQ140: =SUM(AQ128:AQ139)/1000 -> 13718 | AR140: ='[2]ADJ DETAIL INPUT'!$AO$44 -> 13720 | AS140: =AQ140-AR140 -> -2
A141: 142
A142: 143 | C142: Total Operating & Maintenance Expenses | F142: =F140+F118 -> 158259000 | G142: 0 | H142: 2000 | I142: 0 | J142: =J140+J118 -> 0 | K142: 0 | L142: -590000 | M142: -3000 | N142: 76000 | O142: 0 | P142: =P140+P118 -> -9000 | Q142: 0 | R142: 0 | S142: =S140+S118 -> 5356000 | T142: =T140+T118 -> -63991000 | U142: -315000 | V142: =V140+V118 -> 0 | W142: -181000 | X142: 0 | Y142: 348000 | Z142: 874000 | AA142: -10000 | AB142: -176000 | AC142: 34000 | AD142: 0 | AE142: 201000 | AF142: =AF140+AF118 -> -63915000 | AG142: 0 | AH142: 0 | AI142: =AI140+AI118 -> -32000 | AJ142: 108000 | AK142: 0 | AL142: =AL140+AL118 -> 0 | AN142: =AN140+AN118 -> -122222499 | AO142: 36036501 | AP142: =IF(ROUND(SUM(F142:AL142),0)=ROUND(AO142,0),"ok","crossfoot error") -> crossfoot error | AQ142: =AQ140+AQ118 -> 36034 | AR142: ='[2]ADJ DETAIL INPUT'!$AO$25+'[2]ADJ DETAIL INPUT'!$AO$28+'[2]ADJ DETAIL INPUT'!$AO$34+'[2]ADJ DETAIL INPUT'!$AO$39+'[2]ADJ DETAIL INPUT'!$AO$40+'[2]ADJ DETAIL INPUT'!$AO$41+'[2]ADJ DETAIL INPUT'!$AO$44 -> 36035 | AS142: =AQ142-AR142 -> -1
A143: 144
A144: 145 | B144: Taxes Other Than Income Taxes
A145: 146 | C145: Property Related
A146: 147 | C146: -Production | F146: 0 | AN146: =SUM(G146:AL146) -> 0 | AO146: =F146+AN146 -> 0
A147: 148 | C147: -Underground Storage | F147: 210000 | AD147: 37000 | AN147: =SUM(G147:AL147) -> 37000 | AO147: =F147+AN147 -> 247000 | AQ147: =ROUND(AO147/1000,0) -> 247 | AR147: ='[2]ADJ DETAIL INPUT'!$AO$30 -> 247 | AS147: =AQ147-AR147 -> 0
A148: 149 | C148: -Distribution | F148: =2121000+5000 -> 2126000 | K148: 375000 | AD148: 439000 | AF148: 0 | AN148: =SUM(G148:AL148) -> 814000 | AO148: =F148+AN148 -> 2940000 | AQ148: =ROUND(AO148/1000,0) -> 2940 | AS148: =AQ148-AR148 -> 2940 | AT148: =AS148+AS153 -> -1
A149: 150 | C149: -Administrative & General | F149: 0 | AN149: =SUM(G149:AL149) -> 0 | AO149: =F149+AN149 -> 0 | AQ149: =ROUND(AO149/1000,0) -> 0 | AR149: ='[2]ADJ DETAIL INPUT'!$AO$47 -> 0 | AS149: =AQ149-AR149 -> 0
A150: 151 | C150: Total Property Related | F150: =SUM(F146:F149) -> 2336000 | G150: 0 | H150: 0 | I150: 0 | J150: =SUM(J146:J149) -> 0 | K150: 375000 | L150: 0 | M150: 0 | N150: 0 | O150: 0 | P150: =SUM(P146:P149) -> 0 | Q150: 0 | R150: 0 | S150: =SUM(S146:S149) -> 0 | T150: =SUM(T146:T149) -> 0 | U150: 0 | V150: =SUM(V146:V149) -> 0 | W150: 0 | X150: 0 | Y150: 0 | Z150: 0 | AA150: 0 | AB150: 0 | AC150: 0 | AD150: 476000 | AE150: 0 | AF150: =SUM(AF146:AF149) -> 0 | AG150: 0 | AH150: 0 | AI150: =SUM(AI146:AI149) -> 0 | AJ150: 0 | AK150: 0 | AL150: =SUM(AL146:AL149) -> 0 | AN150: =SUM(AN146:AN149) -> 851000 | AO150: 3187000 | AP150: =IF(ROUND(SUM(F150:AL150),0)=ROUND(AO150,0),"ok","crossfoot error") -> ok | AQ150: =SUM(AQ146:AQ149) -> 3187
A151: 152
A152: 153 | C152: State Excise
A153: 154 | C153: -Distribution | F153: 5497000 | Q153: 2000 | S153: 430000 | T153: -48000 | AF153: -2554000 | AN153: =SUM(G153:AL153) -> -2170000 | AO153: =F153+AN153 -> 3327000 | AQ153: =ROUND(AO153/1000,0) -> 3327 | AR153: ='[2]ADJ DETAIL INPUT'!$AO$36 -> 6268 | AS153: =AQ153-AR153 -> -2941 | AT153: =AS153+AS148 -> -1
A154: 155
A155: 156 | C155: Business & Occupation
A156: 157 | C156: -Distribution | F156: =5188000-5000 -> 5183000 | J156: -5183000 | AN156: =SUM(G156:AL156) -> -5183000 | AO156: =F156+AN156 -> 0 | AQ156: =ROUND(AO156/1000,0) -> 0
A157: 158 | C157: -Open | AN157: =SUM(G157:AL157) -> 0 | AO157: =F157+AN157 -> 0 | AQ157: =ROUND(AO157/1000,0) -> 0
A158: 159 | C158: -Open | AN158: =SUM(G158:AL158) -> 0 | AO158: =F158+AN158 -> 0 | AQ158: =ROUND(AO158/1000,0) -> 0
A159: 160 | C159: Total Business & Occupation | F159: =SUM(F156:F158) -> 5183000 | G159: 0 | H159: 0 | I159: 0 | J159: =SUM(J156:J158) -> -5183000 | K159: 0 | L159: 0 | M159: 0 | N159: 0 | O159: 0 | P159: =SUM(P156:P158) -> 0 | Q159: 0 | R159: 0 | S159: =SUM(S156:S158) -> 0 | T159: =SUM(T156:T158) -> 0 | U159: 0 | V159: =SUM(V156:V158) -> 0 | W159: 0 | X159: 0 | Y159: 0 | Z159: 0 | AA159: 0 | AB159: 0 | AC159: 0 | AD159: 0 | AE159: 0 | AF159: =SUM(AF156:AF158) -> 0 | AG159: 0 | AH159: 0 | AI159: =SUM(AI156:AI158) -> 0 | AJ159: 0 | AK159: 0 | AL159: =SUM(AL156:AL158) -> 0 | AN159: =SUM(AN156:AN158) -> -5183000 | AO159: 0 | AP159: =IF(ROUND(SUM(F159:AL159),0)=ROUND(AO159,0),"ok","crossfoot error") -> ok | AQ159: =SUM(AQ156:AQ158) -> 0
A160: 161
A161: 162 | C161: Miscellaneous
A162: 163 | C162: -Distribution | F162: 0 | AN162: =SUM(G162:AL162) -> 0 | AO162: =F162+AN162 -> 0
A163: 164
A164: 165 | C164: Total Taxes Other Than Income Taxes | F164: =F162+F159+F153+F150 -> 13016000 | G164: 0 | H164: 0 | I164: 0 | J164: =J162+J159+J153+J150 -> -5183000 | K164: 375000 | L164: 0 | M164: 0 | N164: 0 | O164: 0 | P164: =P162+P159+P153+P150 -> 0 | Q164: 2000 | R164: 0 | S164: =S162+S159+S153+S150 -> 430000 | T164: =T162+T159+T153+T150 -> -48000 | U164: 0 | V164: =V162+V159+V153+V150 -> 0 | W164: 0 | X164: 0 | Y164: 0 | Z164: 0 | AA164: 0 | AB164: 0 | AC164: 0 | AD164: 476000 | AE164: 0 | AF164: =AF162+AF159+AF153+AF150 -> -2554000 | AG164: 0 | AH164: 0 | AI164: =AI162+AI159+AI153+AI150 -> 0 | AJ164: 0 | AK164: 0 | AL164: =AL162+AL159+AL153+AL150 -> 0 | AN164: =AN162+AN159+AN153+AN150 -> -6502000 | AO164: 6514000 | AP164: =IF(ROUND(SUM(F164:AL164),0)=ROUND(AO164,0),"ok","crossfoot error") -> ok | AQ164: =AQ162+AQ159+AQ153+AQ150 -> 6514 | AR164: ='[2]ADJ DETAIL INPUT'!$AO$30+'[2]ADJ DETAIL INPUT'!$AO$36+'[2]ADJ DETAIL INPUT'!$AO$47 -> 6515 | AS164: =AQ164-AR164 -> -1
A165: 166
A166: 167 | B166: Depreciation Expense
A167: 168 | C167: Underground Storage Plant Depreciation Expense
A168: 169 | B168: 350 | C168: Land & Land Rights Depr. Exp. | F168: 1000 | AL168: =ROUND((F168/$F$176)*37000,-3) -> 0 | AN168: =SUM(G168:AL168) -> 0 | AO168: =F168+AN168 -> 1000 | AQ168: =ROUND(AO168/1000,0)*1000 -> 1000
A169: 170 | B169: 351 | C169: Structures & Improvements Depr. Exp. | F169: 20000 | AL169: =ROUND((F169/$F$176)*37000,-3) -> 2000 | AN169: 2000 | AO169: 22000 | AQ169: 22000
A170: 171 | B170: 352 | C170: Wells Depr. Exp. | F170: 125000 | AL170: =ROUND((F170/$F$176)*37000,-3)+1000 -> 10000 | AN170: 10000 | AO170: 135000 | AQ170: 135000
A171: 172 | B171: 353 | C171: Lines Depr. Exp. | F171: 11000 | AL171: =ROUND((F171/$F$176)*37000,-3) -> 1000 | AN171: 1000 | AO171: 12000 | AQ171: 12000
A172: 173 | B172: 354 | C172: Compressor Station Equip. Depr. Exp. | F172: 159000 | AL172: =ROUND((F172/$F$176)*37000,-3) -> 12000 | AN172: 12000 | AO172: 171000 | AQ172: =ROUND(AO172/1000,0)*1000-1000 -> 170000
A173: 174 | B173: 355 | C173: Measuring & Regulating Equip. Depr. Exp. | F173: 141000 | AL173: =ROUND((F173/$F$176)*37000,-3) -> 11000 | AN173: 11000 | AO173: 152000 | AQ173: 152000
A174: 175 | B174: 356 | C174: Purification Equipment Depr. Exp. | F174: 4000 | AL174: =ROUND((F174/$F$176)*37000,-3) -> 0 | AN174: 0 | AO174: 4000 | AQ174: 4000
A175: 176 | B175: 357 | C175: Other Equipment Depr. Exp. | F175: 31000 | AL175: =ROUND((F175/$F$176)*37000,-3) -> 2000 | AN175: 2000 | AO175: 33000 | AQ175: 33000
A176: 177 | C176: Total Underground Storage Plant Depr. Exp. | F176: =SUM(F168:F175) -> 492000 | G176: 0 | H176: 0 | I176: 0 | J176: =SUM(J168:J175) -> 0 | K176: 0 | L176: 0 | M176: 0 | N176: 0 | O176: 0 | P176: =SUM(P168:P175) -> 0 | Q176: 0 | R176: 0 | S176: =SUM(S168:S175) -> 0 | T176: =SUM(T168:T175) -> 0 | U176: 0 | V176: =SUM(V168:V175) -> 0 | W176: 0 | X176: 0 | Y176: 0 | Z176: 0 | AA176: 0 | AB176: 0 | AC176: 0 | AD176: 0 | AE176: 0 | AF176: =SUM(AF168:AF175) -> 0 | AG176: 0 | AH176: 0 | AI176: =SUM(AI168:AI175) -> 0 | AJ176: 0 | AK176: 0 | AL176: =SUM(AL168:AL175) -> 38000 | AN176: =SUM(AN168:AN175) -> 38000 | AO176: 530000 | AP176: =IF(ROUND(SUM(F176:AL176),0)=ROUND(AO176,0),"ok","crossfoot error") -> ok | AQ176: =SUM(AQ168:AQ175)/1000 -> 529 | AR176: ='[2]ADJ DETAIL INPUT'!$AO$29 -> 529 | AS176: =AQ176-AR176 -> 0
A177: 178
A178: 179 | B178: =$B$1 -> Proforma | I178: =$I$1 -> Natural Gas Utility
A179: 180 | B179: =$B$2 -> Pro Forma Results of Operations | E179: Depreciation Expense & Income Tax | O179: =E179 -> Depreciation Expense & Income Tax | AB179: =E179 -> Depreciation Expense & Income Tax
A180: 181 | B180: =$B$3 -> Company Base Case
A181: 182
A182: 183 | F182: =F5 -> 1 | G182: 1.01 | H182: 1.02 | I182: 1.03 | J182: =J5 -> 2.01 | K182: 2.02 | L182: 2.03 | M182: 2.04 | N182: 2.05 | O182: 2.06 | P182: =P5 -> 2.07 | Q182: 2.08 | R182: 2.09 | S182: =S5 -> 2.1 | T182: =T5 -> 2.11 | U182: 2.12 | V182: =V5 -> 2.13 | W182: 2.14 | X182: 2.15 | Z182: 3.02 | AA182: 3.03 | AB182: 3.04 | AC182: 3.05 | AD182: 3.06 | AE182: =AE5 -> 3.07 | AF182: =AF5 -> 3.08 | AG182: 3.09 | AH182: 3.1 | AI182: =AI5 -> 3.11 | AJ182: 3.12 | AK182: 3.13 | AL182: =AL5 -> 3.14 | AN182: =AN$5 -> (an) | AO182: (ao) | AP182: (ap) | AQ182: (aq)
A183: 184 | B183: =IF(ISBLANK(B$6),"",B$6) ->  | C183: =IF(ISBLANK(C$6),"",C$6) ->  | D183: =IF(ISBLANK(D$6),"",D$6) ->  | E183: =IF(ISBLANK(E$6),"",E$6) -> Notes | F183: Balance | G183: =IF(ISBLANK(G$6),"",G$6) -> Deferred FIT | H183: Deferred Debits | I183: Working | J183: Eliminate | K183: Restate | L183: Uncollectible | M183: Regulatory | N183: Injuries & | O183: FIT/DFIT | P183: Office Space | Q183: Restate | R183: Net Gains/ | S183: =IF(ISBLANK(S$6),"",S$6) -> Weather Normalization | T183: =IF(ISBLANK(T$6),"",T$6) -> Eliminate | U183: Misc. Restating | V183: Project | W183: Restating | X183: Restate | Z183: Pro Forma | AA183: Pro Forma | AB183: Pro Forma | AC183: Pro Forma | AD183: Pro Forma | AE183: Pro Forma | AF183: Pro Forma Revenue | AG183: Pro Forma | AH183: Pro Forma | AI183: Pro Forma | AJ183: Pro Forma | AK183: Pro Forma | AL183: EOP 2017 | AN183: =IF(ISBLANK(AN$6),"",AN$6) -> Net Total | AO183: Total | AP183: check | AQ183: Total
A184: 185 | B184: =IF(ISBLANK(B$7),"",B$7) -> Account | C184: =IF(ISBLANK(C$7),"",C$7) -> Description | E184: =IF(ISBLANK(E$7),"",E$7) ->  | F184: per Books | G184: =IF(ISBLANK(G$7),"",G$7) -> Rate Base | H184: and Credits | I184: Capital | J184: B & O Taxes | K184: Property Taxes | L184: Expense | M184: Expense | N184: Damages | O184: Expense | P184: Charges to Subs | Q184: Excise Tax | R184: Losses | S184: =IF(ISBLANK(S$7),"",S$7) -> Gas Cost Adjust | T184: =IF(ISBLANK(T$7),"",T$7) -> Adder Schedules | U184: Adjustments | V184: Compass Def | W184: Incentives | X184: Debt Int | Z184: Non-Exec Labor | AA184: Exec Labor | AB184: Empl. Benefits | AC184: Incentive Adj | AD184: Property Tax | AE184: ISIT | AF184: Normalization | AG184: Regulatory Amortization | AH184: 2017 Threshhold Cap Add | AI184: O&M Offsets | AJ184: Director Fees Exp | AK184: Leap Def. Gas Line ext. | AL184: Capital Net Plant Adj | AN184: =IF(ISBLANK(AN$7),"",AN$7) -> of All | AQ184: $000's
A185: 186 | B185: =IF(ISBLANK(B$8),"",B$8) ->  | C185: =IF(ISBLANK(C$8),"",C$8) ->  | D185: =IF(ISBLANK(D$8),"",D$8) ->  | E185: =IF(ISBLANK(E$8),"",E$8) ->  | G185: =IF(ISBLANK(G$8),"",G$8) -> G-DFIT | H185: G-DDC | I185: G-WC | J185: G-EBO | K185: G-RPT | L185: G-UE | M185: G-RE | N185: G-ID | O185: G-FIT | P185: G-OSC | Q185: G-RET | R185: G-NGL | S185: =IF(ISBLANK(S$8),"",S$8) -> G-WNGC | T185: =IF(ISBLANK(T$8),"",T$8) -> G-EAS | U185: G-MR | V185: G-CD | W185: G-RI | X185: G-DI | Z185: G-PLN | AA185: G-PLE | AB185: G-PEB | AC185: G-RI | AD185: G-PPT | AE185: G-PIS | AF185: G-PREV | AG185: G-PRA | AH185: G-PCAP16 | AI185: G-POFF | AJ185: G-PDF | AK185: G-PLEAP | AL185: G-EOPCAP17 | AN185: =IF(ISBLANK(AN$8),"",AN$8) -> Adjustments | AQ185: in bold
A186: 187 | C186: Distribution Plant Depreciation Expense
A187: 188 | B187: 374 | C187: Land & Land Rights Depr. Exp. | F187: 2000 | AH187: =ROUND((F187/$F$200)*366000,-3) -> 0 | AL187: =ROUND((F187/F200)*725000,-3) -> 0 | AN187: =SUM(G187:AL187) -> 0 | AO187: =F187+AN187 -> 2000 | AQ187: =ROUND(AO187/1000,0)*1000 -> 2000
A188: 189 | B188: 375 | C188: Structures & Improvements Depr. Exp. | F188: 10000 | AH188: 0 | AL188: =ROUND((F188/F200)*725000,-3) -> 1000 | AN188: =SUM(G188:AL188) -> 1000 | AO188: =F188+AN188 -> 11000 | AQ188: 11000
A189: 190 | B189: 376-All | C189: Mains Depr. Exp. | E189: =E268 -> 1 | F189: 4607000 | AH189: 171000 | AL189: =ROUND((F189/F200)*725000,-3) -> 339000 | AN189: 510000 | AO189: 5117000 | AQ189: 5117000
A190: 191 | B190: 376 | C190: Mains Depr. Exp. | E190: =E269 -> 0 | F190: =ROUND($E$188*E190,-3) -> 0 | AH190: 0 | AL190: =ROUND((F190/F200)*725000,-3) -> 0 | AN190: 0 | AO190: 0 | AQ190: 0
A191: 192 | B191: 378 | C191: Meas & Reg Station Equip-Gen Depr. Exp. | F191: 148000 | AH191: 5000 | AL191: =ROUND((F191/$F$200)*725000,-3) -> 11000 | AN191: 16000 | AO191: 164000 | AQ191: 164000
A192: 193 | B192: 379 | C192: Meas & Reg Station Equip-City Gate Depr. Exp. | F192: 67000 | AH192: 2000 | AL192: 5000 | AN192: 7000 | AO192: 74000 | AQ192: 74000
A193: 194 | B193: 380 | C193: Services Depr. Exp. | F193: 3312000 | AH193: 123000 | AL193: 243000 | AN193: 366000 | AO193: 3678000 | AQ193: =ROUND(AO193/1000,0)*1000 -> 3678000
A194: 195 | B194: 381 | C194: Meters Depr. Exp. | F194: 1672000 | AH194: 62000 | AL194: 123000 | AN194: 185000 | AO194: 1857000 | AQ194: =ROUND(AO194/1000,0)*1000 -> 1857000
A195: 196 | B195: 382 | C195: Meter Installations Depr. Exp. | AH195: 0 | AL195: 0 | AN195: 0 | AO195: 0 | AQ195: 0
A196: 197 | B196: 383 | C196: House Regulators Depr. Exp. | AH196: 0 | AL196: 0 | AN196: 0 | AO196: 0 | AQ196: 0
A197: 198 | B197: 384 | C197: House Regulator Installations Depr. Exp. | AH197: 0 | AL197: 0 | AN197: 0 | AO197: 0 | AQ197: 0
A198: 199 | B198: 385 | C198: Industrial Meas & Reg Station Equip. Depr. Exp. | F198: 49000 | AH198: 2000 | AL198: 4000 | AN198: 6000 | AO198: 55000 | AQ198: 55000
A199: 200 | B199: 387 | C199: Other Equipment Depr. Exp. | F199: 0 | AH199: 0 | AL199: 0 | AN199: 0 | AO199: 0 | AQ199: 0
A200: 201 | C200: Total Distribution Plant Depreciation Expense | F200: =SUM(F187:F199) -> 9867000 | G200: 0 | H200: 0 | I200: 0 | J200: =SUM(J187:J199) -> 0 | K200: 0 | L200: 0 | M200: 0 | N200: 0 | O200: 0 | P200: =SUM(P187:P199) -> 0 | Q200: 0 | R200: 0 | S200: =SUM(S187:S199) -> 0 | T200: =SUM(T187:T199) -> 0 | U200: 0 | V200: =SUM(V187:V199) -> 0 | W200: 0 | X200: 0 | Y200: 0 | Z200: 0 | AA200: 0 | AB200: 0 | AC200: 0 | AD200: 0 | AE200: 0 | AF200: =SUM(AF187:AF199) -> 0 | AG200: 0 | AH200: 365000 | AI200: =SUM(AI187:AI199) -> 0 | AJ200: 0 | AK200: 0 | AL200: =SUM(AL187:AL199) -> 726000 | AN200: =SUM(AN187:AN199) -> 1091000 | AO200: =SUM(AO187:AO199) -> 10958000 | AP200: =IF(ROUND(SUM(F200:AL200),0)=ROUND(AO200,0),"ok","crossfoot error") -> ok | AQ200: =SUM(AQ187:AQ199)/1000 -> 10958 | AR200: ='[2]ADJ DETAIL INPUT'!$AO$35 -> 10944 | AS200: =AQ200-AR200 -> 14 | AT200: =AS200+AS213+AS224 -> -582
... 212 more rows

Sheet Mains Allocator
B1: Avista
B2: Distribution Mains Allocation
I5: GEN SERVICE | J5: LRG GEN SVC | K5: EX LRG GEN SVC | L5: INTERRUPTIBLE | M5: TRANSPORT | N5: S.C.
B6: Line | C6: Item | D6: Amount | G6: Percent | H6: Allocator | I6: SCHEDULE 101 | J6: SCH. 111&112 | K6: SCH. 121&122 | L6: SCH. 131&132 | M6: SCHEDULE 146 | N6: SCHEDULE 148 | O6: Check
C8: Peak | E8: Percentage | F8: Allocator | G8: =1-G12 -> 0.6137052894
B9: 1 | C9: Peak Related Costs | D9: =D$21*G8 -> 131787073.8 | E9: =D9/D21 -> 0.6137052894 | F9: D01 | H9: Peak | I9: =$D9*I$28 -> 87325064.41 | J9: =$D9*J$28 -> 29010917.28 | K9: 2505564.534 | L9: 535331.103 | M9: =$D9*M$28 -> 12410196.52 | O9: =SUM(I9:M9)-D9 -> 0
C12: Average | G12: ='Demand - Pk-Avg'!R25 -> 0.3862947106
B13: =B9+1 -> 2 | C13: Average Related Costs | D13: =D$21*G12 -> 82952926.15
B15: =B13+1 -> 3 | C15: Large Mains (=> 4") | D15: =D13-D16-D17-D18 -> 31236796.87 | E15: =D15/D21 -> 0.1454633364 | F15: E01 | H15: Volume | I15: =$D15*I$31 -> 18367782.79 | J15: =$D15*J$31 -> 7373727.272 | K15: 632830.8647 | L15: =$D15*L$31 -> 138591.4219 | M15: 4723864.52 | O15: =SUM(I15:M15)-D15 -> 0
B16: =B15+1 -> 4 | C16: Medium Mains (2-3") | D16: =($D$21*$G$12*('Mains - Weighted Cost'!D58))*G16 -> 15145861.14 | E16: =(D16/D21) -> 0.07053115925 | F16: E01 | G16: =1-G17 -> 0.333 | H16: Volume | I16: =$D16*I$31 -> 8906031.201 | J16: 3575316.951 | K16: 306842.2297 | L16: 67199.15745 | M16: 2290471.598 | O16: =SUM(I16:M16)-D16 -> 0
B17: =B16+1 -> 5 | C17: Medium Mains (2-3") | D17: =($D$21*$G$12*('Mains - Weighted Cost'!D58))*G17 -> 30337205.34 | E17: =(D17/D21) -> 0.1412741238 | F17: E06 | G17: 0.667 | H17: Volume Less 132, 146 | I17: =$D17*I$37 -> 21127625.51 | J17: =$D17*J$37 -> 8481663.258 | K17: =$D17*K$37 -> 727916.574 | L17: =$D17*L$37 -> 0 | M17: =$D17*M$37 -> 0 | N17: 0
B18: =B17+1 -> 6 | C18: Small Mains (< 2") | D18: =D21*G12*('Mains - Weighted Cost'!D57) -> 6233062.804 | E18: =D18/D21 -> 0.02902609111 | F18: E06 | H18: Volume Less 132, 146 | I18: =$D18*I$37 -> 4340868.423 | J18: =$D18*J$37 -> 1742637.108 | K18: 149557.2737 | L18: 0 | M18: 0 | N18: 0 | O18: =SUM(I18:M18)-D18 -> 0
B19: =B18+1 -> 7 | C19: Total Average Related Costs | D19: =SUM(D15:D18) -> 82952926.15 | E19: =SUM(E9:E18) -> 1 | I19: =SUM(I15:I18) -> 52742307.92 | J19: 21173344.59 | K19: 1817146.942 | L19: 205790.5794 | M19: 7014336.118 | N19: 0 | O19: =SUM(I19:M19)-D19 -> 0
B21: =B19+1 -> 8 | C21: Total (MAINS) | D21: =Detail!E28 -> 214740000 | I21: =SUM(I19,I9) -> 140067372.3 | J21: =SUM(J19,J9) -> 50184261.87 | K21: =SUM(K19,K9) -> 4322711.476 | L21: =SUM(L19,L9) -> 741121.6824 | M21: =SUM(M19,M9) -> 19424532.64 | O21: =SUM(I21:M21)-D21 -> 0
B22: =B21+1 -> 9 | C22: Percent | D22: =SUM(I22:M22) -> 1 | I22: =I21/$D21 -> 0.6522649359 | J22: =J21/$D21 -> 0.2336977828 | K22: =K21/$D21 -> 0.020129978 | L22: =L21/$D21 -> 0.003451251198 | M22: =M21/$D21 -> 0.09045605217 | O22: =SUM(I22:M22)-D22 -> 0
H23: Current Method | I23: =Detail!I28/Detail!$H$28 -> 0.6522649359 | J23: =Detail!J28/Detail!$H$28 -> 0.2336977828 | K23: =Detail!K28/Detail!$H$28 -> 0.020129978 | L23: =Detail!L28/Detail!$H$28 -> 0.003451251198 | M23: =Detail!M28/Detail!$H$28 -> 0.09045605217
H24: Difference | I24: =I22-I23 -> 0 | J24: =J22-J23 -> 0 | K24: 0 | L24: 0 | M24: 0 | O24: =SUM(I24:M24) -> 0
C26: Allocators
B27: =B22+1 -> 10 | C27: Peak | D27: =SUM(I27:M27) -> 1440694.8 | F27: D01 | I27: =Factors!E9 -> 954636.6159 | J27: =Factors!F9 -> 317147.0194 | K27: =Factors!G9 -> 27390.80313 | L27: =Factors!H9 -> 5852.23356 | M27: =Factors!I9 -> 135668.128 | O27: =SUM(I27:M27)-D27 -> 0
B28: =B27+1 -> 11 | C28: Percent | D28: =SUM(I28:M28) -> 1 | I28: =I27/$D27 -> 0.6626223791 | J28: =J27/$D27 -> 0.2201347707 | K28: =K27/$D27 -> 0.01901221767 | L28: =L27/$D27 -> 0.004062091125 | M28: =M27/$D27 -> 0.09416854144 | O28: =SUM(I28:M28)-D28 -> 0
B30: =B28+1 -> 12 | C30: Total Annual Volume | D30: =SUM(I30:M30) -> 203134464 | F30: E01 | I30: =Factors!E4 -> 119446617 | J30: =Factors!F4 -> 47951720 | K30: =Factors!G4 -> 4115331 | L30: =Factors!H4 -> 901267 | M30: =Factors!I4 -> 30719529 | O30: =SUM(I30:M30)-D30 -> 0
B31: =B30+1 -> 13 | C31: Percent | D31: =SUM(I31:M31) -> 1 | I31: =I30/$D30 -> 0.5880174868 | J31: =J30/$D$30 -> 0.2360590077 | K31: =K30/$D$30 -> 0.02025914716 | L31: =L30/$D$30 -> 0.00443680005 | M31: =M30/$D$30 -> 0.1512275583 | O31: =SUM(I31:M31)-D31 -> 0
B33: =B31+1 -> 14 | C33: Volume Less 146 | D33: =SUM(I33:M33) -> 172414935 | F33: E04 | I33: =I30 -> 119446617 | J33: =J30 -> 47951720 | K33: =K30 -> 4115331 | L33: =L30 -> 901267 | M33: 0 | O33: =SUM(I33:M33)-D33 -> 0
B34: =B33+1 -> 15 | C34: Percent | D34: =SUM(I34:M34) -> 1 | I34: =I33/$D33 -> 0.6927857903 | J34: =J33/$D33 -> 0.278118134 | K34: =K33/$D33 -> 0.02386876172 | L34: =L33/$D33 -> 0.005227313979 | M34: =M33/$D33 -> 0 | O34: =SUM(I34:M34)-D34 -> 0
B36: =B34+1 -> 16 | C36: Volume Less 131, 132 & 146 | D36: =SUM(I36:M36) -> 171513668 | F36: E06 | I36: =I30 -> 119446617 | J36: =J30 -> 47951720 | K36: =K30 -> 4115331 | L36: 0 | M36: 0 | O36: =SUM(I36:M36)-D36 -> 0
B37: =B36+1 -> 17 | C37: Percent | D37: =SUM(I37:M37) -> 1 | I37: =I36/$D36 -> 0.6964262288 | J37: =J36/$D36 -> 0.2795795843 | K37: =K36/$D36 -> 0.02399418687 | L37: =L36/$D36 -> 0 | M37: =M36/$D36 -> 0 | O37: =SUM(I37:M37)-D37 -> 0
C40: Check | D40: =D21-SUM(D9,D13) -> 0

Sheet Mains - Footages
B1: Avista Utilities
B2: Account 1376 Historical Install Length
B3: WA-ID Division Natural Gas System
B5: ** From GIS system
A6: Group | B6: STATE_ABBR | C6: MATERIALCODE | D6: SIZENUMBER | E6: SumOfFeet_length | F6: SumOfMiles_length
A7: a | B7: WA | C7: PL | D7: 0.5 | E7: 175995.4209 | F7: 33.33246608
